Workbook

Sheet Peak Calc CP
A1: AVISTA UTILITIES
A2: Electric Cost Study
A3: Twelve Months Ended December 31, 2018
A4: Coincident Peak Calculations
A7: Estimate 12 Monthly Coincident Peaks
A8: Washington | C8: Jan | D8: Feb | E8: Mar | F8: Apr | G8: May | H8: Jun | I8: Jul | J8: Aug | K8: Sep | L8: Oct | M8: Nov | N8: Dec
A9: Schedule 1 | C9: ='WA DemEst'!D16 -> 507231.756 | D9: ='WA DemEst'!E16 -> 544572.2537 | E9: ='WA DemEst'!F16 -> 426588.0079 | F9: ='WA DemEst'!G16 -> 326621.0273 | G9: ='WA DemEst'!H16 -> 304270.0711 | H9: ='WA DemEst'!I16 -> 278375.7487 | I9: ='WA DemEst'!J16 -> 449869.5543 | J9: ='WA DemEst'!K16 -> 556847.4046 | K9: ='WA DemEst'!L16 -> 299878.5613 | L9: ='WA DemEst'!M16 -> 312760.3959 | M9: ='WA DemEst'!N16 -> 379916.2894 | N9: ='WA DemEst'!O16 -> 454338.7064
A10: Schedule 11/12 | B10: 2 | C10: =CHOOSE($B10,'WA DemEst'!D41,'WA DemEst'!D49) -> 88608.83488 | D10: =CHOOSE($B10,'WA DemEst'!E41,'WA DemEst'!E49) -> 96522.14041 | E10: =CHOOSE($B10,'WA DemEst'!F41,'WA DemEst'!F49) -> 85882.00462 | F10: =CHOOSE($B10,'WA DemEst'!G41,'WA DemEst'!G49) -> 83724.55764 | G10: =CHOOSE($B10,'WA DemEst'!H41,'WA DemEst'!H49) -> 56491.78751 | H10: =CHOOSE($B10,'WA DemEst'!I41,'WA DemEst'!I49) -> 88576.18129 | I10: =CHOOSE($B10,'WA DemEst'!J41,'WA DemEst'!J49) -> 114006.7674 | J10: =CHOOSE($B10,'WA DemEst'!K41,'WA DemEst'!K49) -> 120352.9586 | K10: =CHOOSE($B10,'WA DemEst'!L41,'WA DemEst'!L49) -> 81841.54237 | L10: =CHOOSE($B10,'WA DemEst'!M41,'WA DemEst'!M49) -> 80704.88236 | M10: =CHOOSE($B10,'WA DemEst'!N41,'WA DemEst'!N49) -> 77049.25364 | N10: =CHOOSE($B10,'WA DemEst'!O41,'WA DemEst'!O49) -> 95486.05085
A11: Schedule 21/22 Secondary | C11: ='WA DemEst'!D70+'WA DemEst'!D65+'WA DemEst'!D57 -> 160637.7474 | D11: ='WA DemEst'!E70+'WA DemEst'!E65+'WA DemEst'!E57 -> 171809.6058 | E11: ='WA DemEst'!F70+'WA DemEst'!F65+'WA DemEst'!F57 -> 167507.3091 | F11: ='WA DemEst'!G70+'WA DemEst'!G65+'WA DemEst'!G57 -> 165620.8672 | G11: ='WA DemEst'!H70+'WA DemEst'!H65+'WA DemEst'!H57 -> 156763.5777 | H11: ='WA DemEst'!I70+'WA DemEst'!I65+'WA DemEst'!I57 -> 175248.4374 | I11: ='WA DemEst'!J70+'WA DemEst'!J65+'WA DemEst'!J57 -> 209731.5401 | J11: ='WA DemEst'!K70+'WA DemEst'!K65+'WA DemEst'!K57 -> 206776.5858 | K11: ='WA DemEst'!L70+'WA DemEst'!L65+'WA DemEst'!L57 -> 165537.8654 | L11: ='WA DemEst'!M70+'WA DemEst'!M65+'WA DemEst'!M57 -> 166446.0433 | M11: ='WA DemEst'!N70+'WA DemEst'!N65+'WA DemEst'!N57 -> 152360.5613 | N11: ='WA DemEst'!O70+'WA DemEst'!O65+'WA DemEst'!O57 -> 174505.858
A12: Schedule 21 Primary | C12: ='WA DemEst'!D75 -> 10958.85448 | D12: ='WA DemEst'!E75 -> 14664.48567 | E12: ='WA DemEst'!F75 -> 14519.56333 | F12: ='WA DemEst'!G75 -> 15154.20145 | G12: ='WA DemEst'!H75 -> 13172.22085 | H12: ='WA DemEst'!I75 -> 14460.96553 | I12: ='WA DemEst'!J75 -> 13273.42988 | J12: ='WA DemEst'!K75 -> 12669.64416 | K12: ='WA DemEst'!L75 -> 13408.50978 | L12: ='WA DemEst'!M75 -> 15825.10763 | M12: ='WA DemEst'!N75 -> 12436.5625 | N12: ='WA DemEst'!O75 -> 13642.19014
A13: Schedule 31/32 | C13: ='WA DemEst'!D80 -> 6374.084783 | D13: ='WA DemEst'!E80 -> 16849.18998 | E13: ='WA DemEst'!F80 -> 24744.95492 | F13: ='WA DemEst'!G80 -> 35502.55503 | G13: ='WA DemEst'!H80 -> 35232.28158 | H13: ='WA DemEst'!I80 -> 30688.30397 | I13: ='WA DemEst'!J80 -> 16275.86022 | J13: ='WA DemEst'!K80 -> 7820.291448 | K13: ='WA DemEst'!L80 -> 4849.988709 | L13: ='WA DemEst'!M80 -> 7755.073266 | M13: ='WA DemEst'!N80 -> 6951.92848 | N13: ='WA DemEst'!O80 -> 5666.415201
A14: Street Lights | B14: =SUM('12.2018 WA Usage'!O98:O102) -> 10967850.23 | C14: =$B14/'2018 Daylight'!Hrs_Darkness*'2018 Daylight'!B$59 -> 2556.479329 | D14: =$B14/'2018 Daylight'!Hrs_Darkness*'2018 Daylight'!C$59 -> 0 | E14: =$B14/'2018 Daylight'!Hrs_Darkness*'2018 Daylight'!D$59 -> 0 | F14: =$B14/'2018 Daylight'!Hrs_Darkness*'2018 Daylight'!E$59 -> 0 | G14: =$B14/'2018 Daylight'!Hrs_Darkness*'2018 Daylight'!F$59 -> 0 | H14: =$B14/'2018 Daylight'!Hrs_Darkness*'2018 Daylight'!G$59 -> 0 | I14: =$B14/'2018 Daylight'!Hrs_Darkness*'2018 Daylight'!H$59 -> 0 | J14: =$B14/'2018 Daylight'!Hrs_Darkness*'2018 Daylight'!I$59 -> 0 | K14: =$B14/'2018 Daylight'!Hrs_Darkness*'2018 Daylight'!J$59 -> 0 | L14: =$B14/'2018 Daylight'!Hrs_Darkness*'2018 Daylight'!K$59 -> 426.0798882 | M14: =$B14/'2018 Daylight'!Hrs_Darkness*'2018 Daylight'!L$59 -> 2556.479329 | N14: =$B14/'2018 Daylight'!Hrs_Darkness*'2018 Daylight'!M$59 -> 1022.591732
A15: Area Lights | B15: =SUM('12.2018 WA Usage'!O103:O104) -> 7574181.315 | C15: =$B15/'2018 Daylight'!Hrs_Darkness*'2018 Daylight'!B$59 -> 1765.454266 | D15: =$B15/'2018 Daylight'!Hrs_Darkness*'2018 Daylight'!C$59 -> 0 | E15: =$B15/'2018 Daylight'!Hrs_Darkness*'2018 Daylight'!D$59 -> 0 | F15: =$B15/'2018 Daylight'!Hrs_Darkness*'2018 Daylight'!E$59 -> 0 | G15: =$B15/'2018 Daylight'!Hrs_Darkness*'2018 Daylight'!F$59 -> 0 | H15: =$B15/'2018 Daylight'!Hrs_Darkness*'2018 Daylight'!G$59 -> 0 | I15: =$B15/'2018 Daylight'!Hrs_Darkness*'2018 Daylight'!H$59 -> 0 | J15: =$B15/'2018 Daylight'!Hrs_Darkness*'2018 Daylight'!I$59 -> 0 | K15: =$B15/'2018 Daylight'!Hrs_Darkness*'2018 Daylight'!J$59 -> 0 | L15: =$B15/'2018 Daylight'!Hrs_Darkness*'2018 Daylight'!K$59 -> 294.2423776 | M15: =$B15/'2018 Daylight'!Hrs_Darkness*'2018 Daylight'!L$59 -> 1765.454266 | N15: =$B15/'2018 Daylight'!Hrs_Darkness*'2018 Daylight'!M$59 -> 706.1817063
A16: Schedule 21 Transmission | C16: 0 | D16: 0 | E16: 0 | F16: 0 | G16: 0 | H16: 0 | I16: 0 | J16: 0 | K16: 0 | L16: 0 | M16: 0 | N16: 0
A17: Schedule 25 Transmission | C17: 58824 | D17: 56916 | E17: 56772 | F17: 53424 | G17: 50868 | H17: 51660 | I17: 54864 | J17: 54756 | K17: 52884 | L17: 56124 | M17: 55800 | N17: 56304
A18: Schedule 25 Primary | C18: 68016.9 | D18: 73361.9 | E18: 72614.3 | F18: 64952.1 | G18: 75434.4 | H18: 74988.1 | I18: 79431 | J18: 84712.699 | K18: 78730.2 | L18: 64115.4 | M18: 68114.8 | N18: 75413.399
A19: Schedule 25 Secondary | C19: 9377.692718 | D19: 9885.6 | E19: 9700 | F19: 10369.2 | G19: 10098 | H19: 11914.4 | I19: 12362.4 | J19: 14006.8 | K19: 13006.8 | L19: 9896 | M19: 10796.8 | N19: 9728.4
A21: Idaho | C21: Jan | D21: Feb | E21: Mar | F21: Apr | G21: May | H21: Jun | I21: Jul | J21: Aug | K21: Sep | L21: Oct | M21: Nov | N21: Dec
A22: Schedule 1 | C22: ='ID DemEst'!D16 -> 259220.6884 | D22: ='ID DemEst'!E16 -> 260926.2607 | E22: ='ID DemEst'!F16 -> 205547.1191 | F22: ='ID DemEst'!G16 -> 159674.942 | G22: ='ID DemEst'!H16 -> 134791.8932 | H22: ='ID DemEst'!I16 -> 142488.7753 | I22: ='ID DemEst'!J16 -> 222205.445 | J22: ='ID DemEst'!K16 -> 248441.3858 | K22: ='ID DemEst'!L16 -> 148776.8001 | L22: ='ID DemEst'!M16 -> 143787.4322 | M22: ='ID DemEst'!N16 -> 209240.4933 | N22: ='ID DemEst'!O16 -> 213411.4143
A23: Schedule 11/12 | B23: 2 | C23: =CHOOSE($B23,'ID DemEst'!D41,'ID DemEst'!D49)-C24 -> 53882.15474 | D23: =CHOOSE($B23,'ID DemEst'!E41,'ID DemEst'!E49)-D24 -> 57069.39734 | E23: =CHOOSE($B23,'ID DemEst'!F41,'ID DemEst'!F49)-E24 -> 49406.72737 | F23: =CHOOSE($B23,'ID DemEst'!G41,'ID DemEst'!G49)-F24 -> 50316.75816 | G23: =CHOOSE($B23,'ID DemEst'!H41,'ID DemEst'!H49)-G24 -> 30689.06074 | H23: =CHOOSE($B23,'ID DemEst'!I41,'ID DemEst'!I49)-H24 -> 54799.28581 | I23: =CHOOSE($B23,'ID DemEst'!J41,'ID DemEst'!J49)-I24 -> 76722.80186 | J23: =CHOOSE($B23,'ID DemEst'!K41,'ID DemEst'!K49)-J24 -> 81860.81872 | K23: =CHOOSE($B23,'ID DemEst'!L41,'ID DemEst'!L49)-K24 -> 53325.75102 | L23: =CHOOSE($B23,'ID DemEst'!M41,'ID DemEst'!M49)-L24 -> 44505.5371 | M23: =CHOOSE($B23,'ID DemEst'!N41,'ID DemEst'!N49)-M24 -> 47114.29538 | N23: =CHOOSE($B23,'ID DemEst'!O41,'ID DemEst'!O49)-N24 -> 54969.64212
A24: Schedule 11/12 demand metered | C24: =CHOOSE($B23,'ID DemEst'!D41,'ID DemEst'!D49)*'12.2018 ID Usage'!C133/SUM('12.2018 ID Usage'!C104:C105) -> 0 | D24: =CHOOSE($B23,'ID DemEst'!E41,'ID DemEst'!E49)*'12.2018 ID Usage'!D133/SUM('12.2018 ID Usage'!D104:D105) -> 0 | E24: =CHOOSE($B23,'ID DemEst'!F41,'ID DemEst'!F49)*'12.2018 ID Usage'!E133/SUM('12.2018 ID Usage'!E104:E105) -> 0 | F24: =CHOOSE($B23,'ID DemEst'!G41,'ID DemEst'!G49)*'12.2018 ID Usage'!F133/SUM('12.2018 ID Usage'!F104:F105) -> 0 | G24: =CHOOSE($B23,'ID DemEst'!H41,'ID DemEst'!H49)*'12.2018 ID Usage'!G133/SUM('12.2018 ID Usage'!G104:G105) -> 0 | H24: =CHOOSE($B23,'ID DemEst'!I41,'ID DemEst'!I49)*'12.2018 ID Usage'!H133/SUM('12.2018 ID Usage'!H104:H105) -> 0 | I24: =CHOOSE($B23,'ID DemEst'!J41,'ID DemEst'!J49)*'12.2018 ID Usage'!I133/SUM('12.2018 ID Usage'!I104:I105) -> 0 | J24: =CHOOSE($B23,'ID DemEst'!K41,'ID DemEst'!K49)*'12.2018 ID Usage'!J133/SUM('12.2018 ID Usage'!J104:J105) -> 0 | K24: =CHOOSE($B23,'ID DemEst'!L41,'ID DemEst'!L49)*'12.2018 ID Usage'!K133/SUM('12.2018 ID Usage'!K104:K105) -> 0 | L24: =CHOOSE($B23,'ID DemEst'!M41,'ID DemEst'!M49)*'12.2018 ID Usage'!L133/SUM('12.2018 ID Usage'!L104:L105) -> 0 | M24: =CHOOSE($B23,'ID DemEst'!N41,'ID DemEst'!N49)*'12.2018 ID Usage'!M133/SUM('12.2018 ID Usage'!M104:M105) -> 0 | N24: =CHOOSE($B23,'ID DemEst'!O41,'ID DemEst'!O49)*'12.2018 ID Usage'!N133/SUM('12.2018 ID Usage'!N104:N105) -> 0
A25: Schedule 21/22 Secondary | C25: ='ID DemEst'!D78+'ID DemEst'!D73+'ID DemEst'!D65+'ID DemEst'!D57 -> 84227.47263 | D25: ='ID DemEst'!E78+'ID DemEst'!E73+'ID DemEst'!E65+'ID DemEst'!E57 -> 97210.64612 | E25: ='ID DemEst'!F78+'ID DemEst'!F73+'ID DemEst'!F65+'ID DemEst'!F57 -> 91286.48846 | F25: ='ID DemEst'!G78+'ID DemEst'!G73+'ID DemEst'!G65+'ID DemEst'!G57 -> 94008.37771 | G25: ='ID DemEst'!H78+'ID DemEst'!H73+'ID DemEst'!H65+'ID DemEst'!H57 -> 72952.26233 | H25: ='ID DemEst'!I78+'ID DemEst'!I73+'ID DemEst'!I65+'ID DemEst'!I57 -> 86761.80873 | I25: ='ID DemEst'!J78+'ID DemEst'!J73+'ID DemEst'!J65+'ID DemEst'!J57 -> 113115.3534 | J25: ='ID DemEst'!K78+'ID DemEst'!K73+'ID DemEst'!K65+'ID DemEst'!K57 -> 112829.8951 | K25: ='ID DemEst'!L78+'ID DemEst'!L73+'ID DemEst'!L65+'ID DemEst'!L57 -> 84041.70497 | L25: ='ID DemEst'!M78+'ID DemEst'!M73+'ID DemEst'!M65+'ID DemEst'!M57 -> 82099.05247 | M25: ='ID DemEst'!N78+'ID DemEst'!N73+'ID DemEst'!N65+'ID DemEst'!N57 -> 73431.91648 | N25: ='ID DemEst'!O78+'ID DemEst'!O73+'ID DemEst'!O65+'ID DemEst'!O57 -> 93509.94496
A26: Schedule 21 Primary | C26: ='ID DemEst'!D83 -> 3983.418942 | D26: ='ID DemEst'!E83 -> 5838.795209 | E26: ='ID DemEst'!F83 -> 4956.937084 | F26: ='ID DemEst'!G83 -> 5010.894395 | G26: ='ID DemEst'!H83 -> 3332.223049 | H26: ='ID DemEst'!I83 -> 3640.869111 | I26: ='ID DemEst'!J83 -> 4902.547088 | J26: ='ID DemEst'!K83 -> 4954.909845 | K26: ='ID DemEst'!L83 -> 4627.862867 | L26: ='ID DemEst'!M83 -> 6633.196163 | M26: ='ID DemEst'!N83 -> 4316.806895 | N26: ='ID DemEst'!O83 -> 5721.032333
A27: Schedule 31/32 | C27: ='ID DemEst'!D88 -> 6721.751052 | D27: ='ID DemEst'!E88 -> 6372.044397 | E27: ='ID DemEst'!F88 -> 8793.527482 | F27: ='ID DemEst'!G88 -> 14217.25639 | G27: ='ID DemEst'!H88 -> 12392.54123 | H27: ='ID DemEst'!I88 -> 10918.19705 | I27: ='ID DemEst'!J88 -> 5982.308591 | J27: ='ID DemEst'!K88 -> 3245.640315 | K27: ='ID DemEst'!L88 -> 3873.28428 | L27: ='ID DemEst'!M88 -> 5038.015538 | M27: ='ID DemEst'!N88 -> 3041.844714 | N27: ='ID DemEst'!O88 -> 5299.069854
A28: Street Lights | B28: =SUM('12.2018 ID Usage'!O114:O119) -> 7455506.463 | C28: =$B28/'2018 Daylight'!Hrs_Darkness*'2018 Daylight'!B$59 -> 1737.792527 | D28: =$B28/'2018 Daylight'!Hrs_Darkness*'2018 Daylight'!C$59 -> 0 | E28: =$B28/'2018 Daylight'!Hrs_Darkness*'2018 Daylight'!D$59 -> 0 | F28: =$B28/'2018 Daylight'!Hrs_Darkness*'2018 Daylight'!E$59 -> 0 | G28: =$B28/'2018 Daylight'!Hrs_Darkness*'2018 Daylight'!F$59 -> 0 | H28: =$B28/'2018 Daylight'!Hrs_Darkness*'2018 Daylight'!G$59 -> 0 | I28: =$B28/'2018 Daylight'!Hrs_Darkness*'2018 Daylight'!H$59 -> 0 | J28: =$B28/'2018 Daylight'!Hrs_Darkness*'2018 Daylight'!I$59 -> 0 | K28: =$B28/'2018 Daylight'!Hrs_Darkness*'2018 Daylight'!J$59 -> 0 | L28: =$B28/'2018 Daylight'!Hrs_Darkness*'2018 Daylight'!K$59 -> 289.6320879 | M28: =$B28/'2018 Daylight'!Hrs_Darkness*'2018 Daylight'!L$59 -> 1737.792527 | N28: =$B28/'2018 Daylight'!Hrs_Darkness*'2018 Daylight'!M$59 -> 695.1170108
A29: Area Lights | B29: =SUM('12.2018 ID Usage'!O120:O122) -> 4101952.346 | C29: =$B29/'2018 Daylight'!Hrs_Darkness*'2018 Daylight'!B$59 -> 956.1177592 | D29: =$B29/'2018 Daylight'!Hrs_Darkness*'2018 Daylight'!C$59 -> 0 | E29: =$B29/'2018 Daylight'!Hrs_Darkness*'2018 Daylight'!D$59 -> 0 | F29: =$B29/'2018 Daylight'!Hrs_Darkness*'2018 Daylight'!E$59 -> 0 | G29: =$B29/'2018 Daylight'!Hrs_Darkness*'2018 Daylight'!F$59 -> 0 | H29: =$B29/'2018 Daylight'!Hrs_Darkness*'2018 Daylight'!G$59 -> 0 | I29: =$B29/'2018 Daylight'!Hrs_Darkness*'2018 Daylight'!H$59 -> 0 | J29: =$B29/'2018 Daylight'!Hrs_Darkness*'2018 Daylight'!I$59 -> 0 | K29: =$B29/'2018 Daylight'!Hrs_Darkness*'2018 Daylight'!J$59 -> 0 | L29: =$B29/'2018 Daylight'!Hrs_Darkness*'2018 Daylight'!K$59 -> 159.3529599 | M29: =$B29/'2018 Daylight'!Hrs_Darkness*'2018 Daylight'!L$59 -> 956.1177592 | N29: =$B29/'2018 Daylight'!Hrs_Darkness*'2018 Daylight'!M$59 -> 382.4471037
A30: Schedule 25 Primary | C30: 37498.653 | D30: 45842.358 | E30: 44993.672 | F30: 43897.145 | G30: 42831.79 | H30: 37350.875 | I30: 39943.576 | J30: 39783.842 | K30: 40222.386 | L30: 41807.588 | M30: 40924.421 | N30: 43835.599
A31: Schedule 25 Secondary | C31: 480 | D31: 662.4 | E31: 518.4 | F31: 580.8 | G31: 456 | H31: 129.6 | I31: 571.2 | J31: 480 | K31: 552 | L31: 508.8 | M31: 566.4 | N31: 542.4
A32: Schedule 25P Primary | C32: 44580 | D32: 35280 | E32: 50090 | F32: 47470 | G32: 53750 | H32: 43110 | I32: 102260 | J32: 101570 | K32: 69000 | L32: 71130 | M32: 44110 | N32: 36180
A33: Schedule 25P Generation
A35: Total Washington | C35: =SUM(C9:C19) -> 914351.8038 | D35: 984581.1755 | E35: 858328.1399 | F35: 755368.5085 | G35: 702330.3388 | H35: 725912.1369 | I35: 949814.5519 | J35: 1057942.384 | K35: 710137.4676 | L35: 714347.2247 | M35: 767748.129 | N35: 886813.793
A36: Total Idaho | C36: =SUM(C22:C33) -> 493288.049 | D36: =SUM(D22:D33) -> 509201.9017 | E36: 455592.8715 | F36: 415176.1737 | G36: 351195.7705 | H36: 379199.411 | I36: 565703.232 | J36: 593166.4918 | K36: 404419.7892 | L36: 395958.6065 | M36: 425440.088 | N36: 454546.6667
A37: Total | C37: =C35+C36 -> 1407639.853 | D37: =D35+D36 -> 1493783.077 | E37: 1313921.011 | F37: 1170544.682 | G37: 1053526.109 | H37: 1105111.548 | I37: 1515517.784 | J37: 1651108.875 | K37: 1114557.257 | L37: 1110305.831 | M37: 1193188.217 | N37: 1341360.46
A39: Estimated Coincident Peak with Losses
A40: Washington | C40: Jan | D40: Feb | E40: Mar | F40: Apr | G40: May | H40: Jun | I40: Jul | J40: Aug | K40: Sep | L40: Oct | M40: Nov | N40: Dec
A41: =A9 -> Schedule 1 | B41: =1+Loss_Sec -> 1.062 | C41: =C9*$B41 -> 538680.1248 | D41: =D9*$B41 -> 578335.7334 | E41: 453036.4644 | F41: 346871.531 | G41: 323134.8156 | H41: 295635.0451 | I41: 477761.4666 | J41: 591371.9437 | K41: 318471.0321 | L41: 332151.5404 | M41: 403471.0994 | N41: 482507.7062
A42: Schedule 11/12 | B42: =1+Loss_Sec -> 1.062 | C42: =C10*$B42 -> 94102.58265 | D42: 102506.5131 | E42: 91206.6889 | F42: 88915.48021 | G42: 59994.27834 | H42: 94067.90453 | I42: 121075.187 | J42: 127814.842 | K42: 86915.71799 | L42: 85708.58507 | M42: 81826.30737 | N42: 101406.186
A43: Schedule 21/22 Secondary | B43: =1+Loss_Sec -> 1.062 | C43: =C11*$B43 -> 170597.2878 | D43: 182461.8013 | E43: 177892.7623 | F43: 175889.3609 | G43: 166482.9195 | H43: 186113.8405 | I43: 222734.8956 | J43: 219596.7341 | K43: 175801.213 | L43: 176765.698 | M43: 161806.9161 | N43: 185325.2212
A44: Schedule 21 Primary | B44: =1+Loss_Prim -> 1.046 | C44: =C12*$B44 -> 11462.96178 | D44: 15339.05201 | E44: 15187.46324 | F44: 15851.29471 | G44: 13778.14301 | H44: 15126.16995 | I44: 13884.00766 | J44: 13252.4478 | K44: 14025.30123 | L44: 16553.06258 | M44: 13008.64438 | N44: 14269.73089
A45: Schedule 31/32 | B45: =1+Loss_Sec -> 1.062 | C45: =C13*$B45 -> 6769.278039 | D45: 17893.83976 | E45: 26279.14212 | F45: 37703.71344 | G45: 37416.68303 | H45: 32590.97881 | I45: 17284.96355 | J45: 8305.149518 | K45: 5150.688009 | L45: 8235.887808 | M45: 7382.948046 | N45: 6017.732943
A46: Street Lights | B46: =1+Loss_Sec -> 1.062 | C46: =C14*$B46 -> 2714.981048 | D46: 0 | E46: 0 | F46: 0 | G46: 0 | H46: 0 | I46: 0 | J46: 0 | K46: 0 | L46: 452.4968413 | M46: 2714.981048 | N46: 1085.992419
A47: Area Lights | B47: =1+Loss_Sec -> 1.062 | C47: =C15*$B47 -> 1874.91243 | D47: 0 | E47: 0 | F47: 0 | G47: 0 | H47: 0 | I47: 0 | J47: 0 | K47: 0 | L47: 312.485405 | M47: 1874.91243 | N47: 749.964972
A48: Schedule 21 Transmission | B48: =1+Loss_Transm -> 1.03 | C48: =C16*$B48 -> 0 | D48: 0 | E48: 0 | F48: 0 | G48: 0 | H48: 0 | I48: 0 | J48: 0 | K48: 0 | L48: 0 | M48: 0 | N48: 0
A49: Schedule 25 Transmission | B49: =1+Loss_Transm -> 1.03 | C49: =C17*$B49 -> 60588.72 | D49: 58623.48 | E49: 58475.16 | F49: 55026.72 | G49: 52394.04 | H49: 53209.8 | I49: 56509.92 | J49: 56398.68 | K49: 54470.52 | L49: 57807.72 | M49: 57474 | N49: 57993.12
A50: Schedule 25 Primary | B50: =1+Loss_Prim -> 1.046 | C50: =C18*$B50 -> 71145.6774 | D50: 76736.5474 | E50: 75954.5578 | F50: 67939.8966 | G50: 78904.3824 | H50: 78437.5526 | I50: 83084.826 | J50: 88609.48315 | K50: 82351.7892 | L50: 67064.7084 | M50: 71248.0808 | N50: 78882.41535
A51: Schedule 25 Secondary | B51: =1+Loss_Sec -> 1.062 | C51: =C19*$B51 -> 9959.109666 | D51: 10498.5072 | E51: 10301.4 | F51: 11012.0904 | G51: 10724.076 | H51: 12653.0928 | I51: 13128.8688 | J51: 14875.2216 | K51: 13813.2216 | L51: 10509.552 | M51: 11466.2016 | N51: 10331.5608
A52: Total | C52: =SUM(C41:C51) -> 967895.6356 | D52: 1042395.474 | E52: 908333.6388 | F52: 799210.0872 | G52: 742829.3379 | H52: 767834.3843 | I52: 1005464.135 | J52: 1120224.502 | K52: 750999.4832 | L52: 755561.7365 | M52: 812274.0912 | N52: 938569.6307
A54: Idaho | C54: Jan | D54: Feb | E54: Mar | F54: Apr | G54: May | H54: Jun | I54: Jul | J54: Aug | K54: Sep | L54: Oct | M54: Nov | N54: Dec
A55: =A22 -> Schedule 1 | B55: =1+Loss_Sec -> 1.062 | C55: =C22*$B55 -> 275292.371 | D55: 277103.6888 | E55: 218291.0405 | F55: 169574.7884 | G55: 143148.9905 | H55: 151323.0794 | I55: 235982.1826 | J55: 263844.7517 | K55: 158000.9617 | L55: 152702.253 | M55: 222213.4039 | N55: 226642.922
A56: Schedule 11/12 | B56: =1+Loss_Sec -> 1.062 | C56: =C23*$B56 -> 57222.84834 | D56: 60607.69997 | E56: 52469.94447 | F56: 53436.39717 | G56: 32591.78251 | H56: 58196.84153 | I56: 81479.61557 | J56: 86936.18948 | K56: 56631.94758 | L56: 47264.8804 | M56: 50035.38169 | N56: 58377.75993
A57: Schedule 11/12 demand metered | B57: =1+Loss_Sec -> 1.062 | C57: =C24*$B57 -> 0 | D57: 0 | E57: 0 | F57: 0 | G57: 0 | H57: 0 | I57: 0 | J57: 0 | K57: 0 | L57: 0 | M57: 0 | N57: 0
A58: Schedule 21/22 Secondary | B58: =1+Loss_Sec -> 1.062 | C58: =C25*$B58 -> 89449.57594 | D58: =D25*$B58 -> 103237.7062 | E58: 96946.25074 | F58: 99836.89713 | G58: 77475.3026 | H58: 92141.04087 | I58: 120128.5053 | J58: 119825.3486 | K58: 89252.29068 | L58: 87189.19372 | M58: 77984.69531 | N58: 99307.56155
A59: Schedule 21 Primary | B59: =1+Loss_Prim -> 1.046 | C59: =C26*$B59 -> 4166.656213 | D59: 6107.379789 | E59: 5184.95619 | F59: 5241.395537 | G59: 3485.505309 | H59: 3808.34909 | I59: 5128.064254 | J59: 5182.835698 | K59: 4840.744559 | L59: 6938.323186 | M59: 4515.380012 | N59: 5984.19982
A60: Schedule 31/32 | B60: =1+Loss_Sec -> 1.062 | C60: =C27*$B60 -> 7138.499617 | D60: 6767.11115 | E60: 9338.726186 | F60: 15098.72628 | G60: 13160.87878 | H60: 11595.12527 | I60: 6353.211723 | J60: 3446.870014 | K60: 4113.427905 | L60: 5350.372501 | M60: 3230.439086 | N60: 5627.612185
A61: Street Lights | B61: =1+Loss_Sec -> 1.062 | C61: =C28*$B61 -> 1845.535664 | D61: 0 | E61: 0 | F61: 0 | G61: 0 | H61: 0 | I61: 0 | J61: 0 | K61: 0 | L61: 307.5892773 | M61: =M28*$B61 -> 1845.535664 | N61: 738.2142655
A62: Area Lights | B62: =1+Loss_Sec -> 1.062 | C62: =C29*$B62 -> 1015.39706 | D62: 0 | E62: 0 | F62: 0 | G62: 0 | H62: 0 | I62: 0 | J62: 0 | K62: 0 | L62: 169.2328434 | M62: 1015.39706 | N62: 406.1588241
A63: Schedule 25 Primary | B63: =1+Loss_Prim -> 1.046 | C63: =C30*$B63 -> 39223.59104 | D63: 47951.10647 | E63: 47063.38091 | F63: 45916.41367 | G63: 44802.05234 | H63: 39069.01525 | I63: 41780.9805 | J63: 41613.89873 | K63: 42072.61576 | L63: 43730.73705 | M63: 42806.94437 | N63: 45852.03655
A64: =A31 -> Schedule 25 Secondary | B64: =1+Loss_Sec -> 1.062 | C64: =C31*$B64 -> 509.76 | D64: 703.4688 | E64: 550.5408 | F64: 616.8096 | G64: 484.272 | H64: 137.6352 | I64: 606.6144 | J64: 509.76 | K64: 586.224 | L64: 540.3456 | M64: 601.5168 | N64: 576.0288
A65: Schedule 25P Primary | B65: =1+Loss_Prim -> 1.046 | C65: =C32*$B65 -> 46630.68 | D65: 36902.88 | E65: 52394.14 | F65: 49653.62 | G65: 56222.5 | H65: 45093.06 | I65: 106963.96 | J65: 106242.22 | K65: 72174 | L65: 74401.98 | M65: 46139.06 | N65: 37844.28
A66: Schedule 25P Generation | B66: 1 | C66: =C33*$B66 -> 0 | D66: 0 | E66: 0 | F66: 0 | G66: 0 | H66: 0 | I66: 0 | J66: 0 | K66: 0 | L66: 0 | M66: 0 | N66: 0
A67: Total | C67: =SUM(C55:C66) -> 522494.9149 | D67: 539381.0412 | E67: 482238.9798 | F67: 439375.0478 | G67: 371371.2841 | H67: 401364.1466 | I67: 598423.1344 | J67: 627601.8742 | K67: 427672.2122 | L67: 418594.9075 | M67: 450387.7539 | N67: 481356.774
A68: Idaho Excluding Generation (directly assigned) | C68: =C67-C66 -> 522494.9149 | D68: =D67-D66 -> 539381.0412 | E68: 482238.9798 | F68: 439375.0478 | G68: 371371.2841 | H68: 401364.1466 | I68: 598423.1344 | J68: 627601.8742 | K68: 427672.2122 | L68: 418594.9075 | M68: 450387.7539 | N68: 481356.774
C70: =C71 -> 2018-01-02 | D70: =D71 -> 2018-02-21 | E70: 2018-03-07 | F70: 2018-04-02 | G70: 2018-05-15 | H70: 2018-06-20 | I70: 2018-07-30 | J70: 2018-08-10 | K70: 2018-09-07 | L70: =L71 -> 2018-10-16 | M70: 2018-11-26 | N70: 2018-12-07
A71: System Peak Time | C71: ='PT Ratio'!B23 -> 2018-01-02 | D71: ='PT Ratio'!C23 -> 2018-02-21 | E71: ='PT Ratio'!D23 -> 2018-03-07 | F71: ='PT Ratio'!E23 -> 2018-04-02 | G71: ='PT Ratio'!F23 -> 2018-05-15 | H71: ='PT Ratio'!G23 -> 2018-06-20 | I71: ='PT Ratio'!H23 -> 2018-07-30 | J71: ='PT Ratio'!I23 -> 2018-08-10 | K71: ='PT Ratio'!J23 -> 2018-09-07 | L71: ='PT Ratio'!K23 -> 2018-10-16 | M71: ='PT Ratio'!L23 -> 2018-11-26 | N71: ='PT Ratio'!M23 -> 2018-12-07
C72: ='PT Ratio'!B24 -> 18:00:00 | D72: ='PT Ratio'!C24 -> 08:00:00 | E72: ='PT Ratio'!D24 -> 08:00:00 | F72: ='PT Ratio'!E24 -> 10:00:00 | G72: ='PT Ratio'!F24 -> 19:00:00 | H72: ='PT Ratio'!G24 -> 17:00:00 | I72: ='PT Ratio'!H24 -> 16:00:00 | J72: ='PT Ratio'!I24 -> 16:00:00 | K72: ='PT Ratio'!J24 -> 17:00:00 | L72: ='PT Ratio'!K24 -> 08:00:00 | M72: ='PT Ratio'!L24 -> 18:00:00 | N72: ='PT Ratio'!M24 -> 08:00:00
A73: Degree Days on Day of Peak | C73: 43 | D73: 51 | E73: 29 | F73: 29 | G73: -5 | H73: -6 | I73: -16 | J73: -23 | K73: -6 | L73: 17 | M73: 31 | N73: 43
A74: Washington Retail Peak | B74: =SUM(C74:N74) -> 10918000 | C74: ='PT Ratio'!B10*1000 -> 969000 | D74: ='PT Ratio'!C10*1000 -> 1020000 | E74: ='PT Ratio'!D10*1000 -> 863000 | F74: ='PT Ratio'!E10*1000 -> 776000 | G74: ='PT Ratio'!F10*1000 -> 828000 | H74: ='PT Ratio'!G10*1000 -> 870000 | I74: ='PT Ratio'!H10*1000 -> 1061000 | J74: ='PT Ratio'!I10*1000 -> 1123000 | K74: ='PT Ratio'!J10*1000 -> 823000 | L74: ='PT Ratio'!K10*1000 -> 761000 | M74: ='PT Ratio'!L10*1000 -> 865000 | N74: ='PT Ratio'!M10*1000 -> 959000
A75: Idaho Retail Peak (excluding CP Gen) | B75: 5784000 | C75: ='PT Ratio'!B19*1000 -> 507000 | D75: ='PT Ratio'!C19*1000 -> 526000 | E75: ='PT Ratio'!D19*1000 -> 462000 | F75: ='PT Ratio'!E19*1000 -> 438000 | G75: ='PT Ratio'!F19*1000 -> 412000 | H75: ='PT Ratio'!G19*1000 -> 433000 | I75: ='PT Ratio'!H19*1000 -> 564000 | J75: ='PT Ratio'!I19*1000 -> 606000 | K75: ='PT Ratio'!J19*1000 -> 432000 | L75: ='PT Ratio'!K19*1000 -> 441000 | M75: ='PT Ratio'!L19*1000 -> 459000 | N75: ='PT Ratio'!M19*1000 -> 504000
A76: System Peak KW (excluding CP Gen) | B76: 16702000 | C76: =C74+C75 -> 1476000 | D76: 1546000 | E76: 1325000 | F76: 1214000 | G76: 1240000 | H76: 1303000 | I76: 1625000 | J76: 1729000 | K76: 1255000 | L76: 1202000 | M76: 1324000 | N76: 1463000
A77: Washington Estimation Error | B77: 306407.8633 | C77: =C74-C52 -> 1104.364414 | D77: =D74-D52 -> -22395.47425 | E77: -45333.63876 | F77: -23210.08724 | G77: 85170.66212 | H77: 102165.6157 | I77: 55535.8648 | J77: 2775.498142 | K77: 72000.5168 | L77: 5438.263488 | M77: 52725.90884 | N77: 20430.36928
A78: Idaho Estimation Error | B78: 23737.9295 | C78: =C75-C68 -> -15494.9149 | D78: =D75-D68 -> -13381.04118 | E78: -20238.97981 | F78: -1375.04779 | G78: 40628.71592 | H78: 31635.85341 | I78: -34423.1344 | J78: -21601.87422 | K78: 4327.787829 | L78: 22405.09247 | M78: 8612.24614 | N78: 22643.22604
A79: Total Estimation Error | B79: 330145.7928 | C79: =C76-(C52+C67-C66) -> -14390.55048 | D79: =D76-(D52+D67-D66) -> -35776.51543 | E79: -65572.61858 | F79: -24585.13503 | G79: 125799.378 | H79: 133801.4691 | I79: 21112.7304 | J79: -18826.37608 | K79: 76328.30463 | L79: 27843.35596 | M79: 61338.15498 | N79: 43073.59532
B80: =B79/B76 -> 0.01976684186 | C80: -0.00974969545 | D80: -0.02314134245 | E80: -0.04948876874 | F80: -0.02025134681 | G80: 0.1014511113 | H80: 0.1026872364 | I80: 0.01299244948 | J80: -0.0108885923 | K80: 0.06081936624 | L80: 0.02316418965 | M80: 0.04632791162 | N80: 0.02944196536
A82: Adjusted Coincident Peak with Losses
B83: 12 Month Average | C83: Jan | D83: Feb | E83: Mar | F83: Apr | G83: May | H83: Jun | I83: Jul | J83: Aug | K83: Sep | L83: Oct | M83: Nov | N83: Dec
A84: Washington
A85: =A41 -> Schedule 1 | B85: =AVERAGE(C85:N85) -> 441770.3917 | C85: =C41+C$77*(C41/SUM(C$41:C$45)) -> 539404.188 | D85: 563888.9188 | E85: 426140.5456 | F85: 334769.0975 | G85: 368942.5601 | H85: 344074.648 | I85: 508876.3199 | J85: 593081.0778 | K85: 356664.6625 | L85: 335067.7246 | M85: 435341.5272 | N85: 494993.4297
A86: =A42 -> Schedule 11/12 | B86: =AVERAGE(C86:N86) -> 98085.43034 | C86: =C42+C$77*(C42/SUM(C$41:C$45)) -> 94229.06998 | D86: 99945.90254 | E86: 85791.92013 | F86: 85813.19713 | G86: 68499.09565 | H86: 109480.8673 | I86: 128960.3702 | J86: 128184.2418 | K86: 97339.35617 | L86: 86461.07902 | M86: 88289.81722 | N86: 104030.2469
A87: =A43 -> Schedule 21/22 Secondary | B87: 190824.1892 | C87: =C43+C$77*(C43/SUM(C$41:C$45)) -> 170826.5949 | D87: 177903.9093 | E87: 167331.6051 | F87: 169752.5377 | G87: 190083.6171 | H87: 216608.4678 | I87: 237240.803 | J87: 220231.3943 | K87: 196884.721 | L87: 178317.6443 | M87: 174588.143 | N87: 190120.8327
A88: =A44 -> Schedule 21 Primary | B88: 14876.17576 | C88: =C44+C$77*(C44/SUM(C$41:C$45)) -> 11478.36964 | D88: 14955.88281 | E88: 14285.81225 | F88: 15298.23912 | G88: 15731.33909 | H88: 17604.5827 | I88: 14788.22219 | J88: 13290.74892 | K88: 15707.32916 | L88: 16698.39317 | M88: 14036.20512 | N88: 14638.98492
A89: =A45 -> Schedule 31/32 | B89: 18411.69423 | C89: =C45+C$77*(C45/SUM(C$41:C$45)) -> 6778.376917 | D89: 17446.85201 | E89: 24718.99911 | F89: 36388.22156 | G89: 42720.88974 | H89: 37930.98873 | I89: 18410.66988 | J89: 8329.152371 | K89: 5768.40031 | L89: 8308.196268 | M89: 7966.131608 | N89: 6173.452219
A90: Street Lights | B90: 580.7042796 | C90: =C46 -> 2714.981048 | D90: =D46 -> 0 | E90: 0 | F90: 0 | G90: 0 | H90: 0 | I90: 0 | J90: 0 | K90: 0 | L90: 452.4968413 | M90: 2714.981048 | N90: 1085.992419
A91: Area Lights | B91: 401.0229364 | C91: 1874.91243 | D91: =D47 -> 0 | E91: 0 | F91: 0 | G91: 0 | H91: 0 | I91: 0 | J91: 0 | K91: 0 | L91: 312.485405 | M91: 1874.91243 | N91: 749.964972
A92: Schedule 21 Transmission | B92: 0 | C92: 0 | D92: =D48 -> 0 | E92: 0 | F92: 0 | G92: 0 | H92: 0 | I92: 0 | J92: 0 | K92: 0 | L92: 0 | M92: 0 | N92: 0
A93: =A49 -> Schedule 25 Transmission | B93: 56580.99 | C93: 60588.72 | D93: =D49 -> 58623.48 | E93: 58475.16 | F93: 55026.72 | G93: 52394.04 | H93: 53209.8 | I93: 56509.92 | J93: 56398.68 | K93: 54470.52 | L93: 57807.72 | M93: 57474 | N93: 57993.12
A94: =A50 -> Schedule 25 Primary | B94: 76696.65976 | C94: 71145.6774 | D94: =D50 -> 76736.5474 | E94: 75954.5578 | F94: 67939.8966 | G94: 78904.3824 | H94: 78437.5526 | I94: 83084.826 | J94: 88609.48315 | K94: 82351.7892 | L94: 67064.7084 | M94: 71248.0808 | N94: 78882.41535
A95: =A51 -> Schedule 25 Secondary | B95: 11606.07521 | C95: 9959.109666 | D95: =D51 -> 10498.5072 | E95: 10301.4 | F95: 11012.0904 | G95: 10724.076 | H95: 12653.0928 | I95: 13128.8688 | J95: 14875.2216 | K95: 13813.2216 | L95: 10509.552 | M95: 11466.2016 | N95: 10331.5608
A96: Washington Retail Total | B96: =SUM(B85:B95) -> 909833.3333 | C96: 969000 | D96: 1020000 | E96: 863000 | F96: 776000 | G96: 828000 | H96: 870000 | I96: 1061000 | J96: 1123000 | K96: 823000 | L96: 761000 | M96: 865000 | N96: 959000
A98: Idaho
A99: =A55 -> Schedule 1 | B99: =AVERAGE(C99:N99) -> 208537.8171 | C99: =C55+C$78*(C55/SUM(C$55:C$60)) -> 265447.1652 | D99: =D55+D$78*(D55/SUM(D$55:D$60)) -> 268933.2543 | E99: 206732.614 | F99: 168895.3553 | G99: 164700.5605 | H99: 166421.6972 | I99: 217893.2036 | J99: 251951.7779 | K99: 160186.7308 | L99: 164127.7496 | M99: 227559.4016 | N99: 239604.2955
A100: Schedule 11/12 | B100: 58153.06018 | C100: 55176.40324 | D100: =D56+D$78*(D56/SUM(D$55:D$60)) -> 58820.67489 | E100: 49691.68113 | F100: 53222.29424 | G100: 37498.58679 | H100: 64003.56892 | I100: 75233.87684 | J100: 83017.48419 | K100: 57415.38814 | L100: 50801.33596 | M100: 51239.13013 | N100: 61716.29766
A101: Schedule 11/12 demand metered | B101: 0 | C101: 0 | D101: =D57+D$78*(D57/SUM(D$55:D$60)) -> 0 | E101: 0 | F101: 0 | G101: 0 | H101: 0 | I101: 0 | J101: 0 | K101: 0 | L101: 0 | M101: 0 | N101: 0
A102: Schedule 21/22 Secondary | B102: 96880.01346 | C102: 86250.61519 | D102: =D58+D$78*(D58/SUM(D$55:D$60)) -> 100193.7304 | E102: 91812.98413 | F102: 99436.88191 | G102: 89139.47427 | H102: 101334.631 | I102: 110920.1745 | J102: 114424.143 | K102: 90486.99772 | L102: 93712.86851 | M102: 79860.84678 | N102: 104986.8141
A103: Schedule 21 Primary | B103: 6468.385758 | C103: =C59+C$78*(C59/SUM(C$55:C$60))-'Schedule Shifting Adj - ID'!D7 -> 5355.688425 | D103: =D59+D$78*(D59/SUM(D$55:D$60))-'Schedule Shifting Adj - ID'!E7 -> 7134.805386 | E103: =E59+E$78*(E59/SUM(E$55:E$60))-'Schedule Shifting Adj - ID'!F7 -> 6047.625958 | F103: =F59+F$78*(F59/SUM(F$55:F$60))-'Schedule Shifting Adj - ID'!G7 -> 6276.018104 | G103: =G59+G$78*(G59/SUM(G$55:G$60))-'Schedule Shifting Adj - ID'!H7 -> 5478.844049 | H103: =H59+H$78*(H59/SUM(H$55:H$60))-'Schedule Shifting Adj - ID'!I7 -> 5698.341721 | I103: =I59+I$78*(I59/SUM(I$55:I$60))-'Schedule Shifting Adj - ID'!J7 -> 6496.023199 | J103: =J59+J$78*(J59/SUM(J$55:J$60))-'Schedule Shifting Adj - ID'!K7 -> 6810.677608 | K103: =K59+K$78*(K59/SUM(K$55:K$60))-'Schedule Shifting Adj - ID'!L7 -> 6413.950923 | L103: =L59+L$78*(L59/SUM(L$55:L$60))-'Schedule Shifting Adj - ID'!M7 -> 8381.289997 | M103: =M59+M$78*(M59/SUM(M$55:M$60))-'Schedule Shifting Adj - ID'!N7 -> 5994.689174 | N103: =N59+N$78*(N59/SUM(N$55:N$60))-'Schedule Shifting Adj - ID'!O7 -> 7532.674555
A104: Schedule 31/32 | B104: 7796.996838 | C104: 6883.207406 | D104: =D60+D$78*(D60/SUM(D$55:D$60)) -> 6567.582091 | E104: 8844.244233 | F104: 15038.23041 | G104: 15142.29408 | H104: 12752.05629 | I104: 5866.21261 | J104: 3291.500106 | K104: 4170.332645 | L104: 5750.698376 | M104: 3308.156811 | N104: 5949.447001
A105: Street Lights | B105: 394.7395725 | C105: =C61 -> 1845.535664 | D105: =D61 -> 0 | E105: 0 | F105: 0 | G105: 0 | H105: 0 | I105: 0 | J105: 0 | K105: 0 | L105: 307.5892773 | M105: 1845.535664 | N105: 738.2142655
A106: Area Lights | B106: 217.182149 | C106: 1015.39706 | D106: =D62 -> 0 | E106: 0 | F106: 0 | G106: 0 | H106: 0 | I106: 0 | J106: 0 | K106: 0 | L106: 169.2328434 | M106: 1015.39706 | N106: 406.1588241
A107: Schedule 25 Primary | B107: 42128.02525 | C107: =C63+'Schedule Shifting Adj - ID'!D7 -> 37885.54784 | D107: =D63+'Schedule Shifting Adj - ID'!E7 -> 46743.60407 | E107: =E63+'Schedule Shifting Adj - ID'!F7 -> 45926.16971 | F107: =F63+'Schedule Shifting Adj - ID'!G7 -> 44860.79047 | G107: =G63+'Schedule Shifting Adj - ID'!H7 -> 43333.46834 | H107: =H63+'Schedule Shifting Adj - ID'!I7 -> 37559.00965 | I107: =I63+'Schedule Shifting Adj - ID'!J7 -> 40019.9349 | J107: =J63+'Schedule Shifting Adj - ID'!K7 -> 39752.43713 | K107: =K63+'Schedule Shifting Adj - ID'!L7 -> 40566.37576 | L107: =L63+'Schedule Shifting Adj - ID'!M7 -> 42806.90985 | M107: =M63+'Schedule Shifting Adj - ID'!N7 -> 41436.26597 | N107: =N63+'Schedule Shifting Adj - ID'!O7 -> 44645.78935
A108: =A64 -> Schedule 25 Secondary | B108: 535.248 | C108: 509.76 | D108: =D64 -> 703.4688 | E108: 550.5408 | F108: 616.8096 | G108: 484.272 | H108: 137.6352 | I108: 606.6144 | J108: 509.76 | K108: 586.224 | L108: 540.3456 | M108: 601.5168 | N108: 576.0288
A109: Schedule 25P Primary | B109: 60888.53167 | C109: 46630.68 | D109: 36902.88 | E109: 52394.14 | F109: 49653.62 | G109: 56222.5 | H109: 45093.06 | I109: 106963.96 | J109: 106242.22 | K109: 72174 | L109: 74401.98 | M109: 46139.06 | N109: 37844.28
A110: Schedule 25P Generation | B110: 0 | C110: 0 | D110: =D66 -> 0 | E110: 0 | F110: 0 | G110: 0 | H110: 0 | I110: 0 | J110: 0 | K110: 0 | L110: 0 | M110: 0 | N110: 0
A111: Idaho Retail Total | B111: =SUM(B99:B110) -> 482000 | C111: =SUM(C99:C110) -> 507000 | D111: =SUM(D99:D110) -> 526000 | E111: 462000 | F111: 438000 | G111: 412000 | H111: 433000 | I111: 564000 | J111: 606000 | K111: 432000 | L111: 441000 | M111: 459000 | N111: 504000
A113: System Total (Generation) | B113: =SUM(C113:N113) -> 16702000 | C113: =C96+C111 -> 1476000 | D113: =D96+D111 -> 1546000 | E113: 1325000 | F113: 1214000 | G113: 1240000 | H113: 1303000 | I113: 1625000 | J113: 1729000 | K113: 1255000 | L113: 1202000 | M113: 1324000 | N113: 1463000
A114: Check to PT Demand Total | B114: =B113-SUM(C110:N110) -> 16702000
A118: Street and Area Lights | C118: =C90+C91 -> 4589.893478 | D118: =D90+D91 -> 0 | E118: 0 | F118: 0 | G118: 0 | H118: 0 | I118: 0 | J118: 0 | K118: 0 | L118: 764.9822463 | M118: 4589.893478 | N118: 1835.957391
A121: Street and Area Lights | C121: =C105+C106 -> 2860.932724 | D121: =D105+D106 -> 0 | E121: 0 | F121: 0 | G121: 0 | H121: 0 | I121: 0 | J121: 0 | K121: 0 | L121: 476.8221207 | M121: 2860.932724 | N121: 1144.37309

Sheet Peak Calc NCP
A1: AVISTA UTILITIES
A2: Electric Cost Study
A3: Twelve Months Ended December 31, 2018
A4: Non-Coincident Peak Calculations
A5: =RIGHT(A3,4) -> 2018 | C5: =DATE($A5,COLUMN(C1)-COLUMN($C1)+2,0) -> 2018-01-31 | D5: =DATE($A5,COLUMN(D1)-COLUMN($C1)+2,0) -> 2018-02-28 | E5: 2018-03-31 | F5: 2018-04-30 | G5: 2018-05-31 | H5: 2018-06-30 | I5: 2018-07-31 | J5: 2018-08-31 | K5: 2018-09-30 | L5: 2018-10-31 | M5: 2018-11-30 | N5: 2018-12-31
A6: 2014 Peak Study
A7: Non-Coincident Peak
A9: Washington
A10: Schedule 1 | C10: 507848.69 | D10: 624592.67 | E10: 561716.97 | F10: 353689.46 | G10: 318933.54 | H10: 364476.09 | I10: 546251.82 | J10: 497044.11 | K10: 473685.39 | L10: 402146.48 | M10: 519493.65 | N10: 667793.93
A11: Schedule 11/12 | C11: 113663.72 | D11: 129671.11 | E11: 107434.2 | F11: 96963 | G11: 105680.87 | H11: 109290.04 | I11: 128986.91 | J11: 118837.75 | K11: 110384.67 | L11: 96624.53 | M11: 108900.6 | N11: 118071.66
A12: Schedule 21/22 Secondary | C12: 212068.28 | D12: 216809.85 | E12: 199018.7 | F12: 221250.98 | G12: 239637.25 | H12: 234600.7 | I12: 251224.25 | J12: 242479.11 | K12: 260012.03 | L12: 209256.07 | M12: 214619 | N12: 224310.65
A13: Schedule 21 Primary | C13: 26568.88 | D13: 26881.06 | E13: 25548.69 | F13: 26545.02 | G13: 26872.16 | H13: 25681.78 | I13: 27674.55 | J13: 26976.63 | K13: 26485.07 | L13: 23622.33 | M13: 23919.74 | N13: 25413.5
A14: Schedule 31/32 | C14: 14337.37 | D14: 10953.91 | E14: 9774.14 | F14: 20503.33 | G14: 51744.84 | H14: 54919.98 | I14: 52109.81 | J14: 40017.31 | K14: 33834.89 | L14: 16178.41 | M14: 11972.72 | N14: 11511.68
A15: Total Washington | C15: =SUM(C10:C14) -> 874486.94 | D15: 1008908.6 | E15: 903492.7 | F15: 718951.79 | G15: 742868.66 | H15: 788968.59 | I15: 1006247.34 | J15: 925354.91 | K15: 904402.05 | L15: 747827.82 | M15: 878905.71 | N15: 1047101.42
A17: Idaho
A18: Schedule 1 | C18: 278665.17 | D18: 332295.91 | E18: 308302.63 | F18: 206622.77 | G18: 170404.93 | H18: 174478.24 | I18: 248396.94 | J18: 222555.47 | K18: 214493.19 | L18: 196320.37 | M18: 252404.2 | N18: 336893.8
A19: Schedule 11/12 | C19: 75217.59 | D19: 86493.68 | E19: 70605.22 | F19: 60612.21 | G19: 61331.33 | H19: 60730.2 | I19: 73788.71 | J19: 69675.82 | K19: 68675.5 | L19: 55909.59 | M19: 66035.37 | N19: 89776.39
A20: Schedule 21/22 Secondary | C20: 118829.55 | D20: 117905.69 | E20: 112281.69 | F20: 116846.09 | G20: 120049.77 | H20: 120410.59 | I20: 124835.45 | J20: 124546.7 | K20: 124746.58 | L20: 113195.98 | M20: 118912.81 | N20: 122350.82
A21: Schedule 21 Primary | C21: 18992.76 | D21: 18926.19 | E21: 17507.12 | F21: 18085.6 | G21: 16812.52 | H21: 17739.6 | I21: 15957.95 | J21: 16271.12 | K21: 16456.35 | L21: 16780.81 | M21: 17982.3 | N21: 18463.48
A22: Schedule 31/32 | C22: 13048.9 | D22: 12837.85 | E22: 17073.66 | F22: 12472.93 | G22: 20908.29 | H22: 19728.16 | I22: 37122.54 | J22: 24572.9 | K22: 24609.2 | L22: 13409.19 | M22: 12741.64 | N22: 13508.82
A23: Total Idaho | C23: =SUM(C18:C22) -> 504753.97 | D23: 568459.32 | E23: 525770.32 | F23: 414639.6 | G23: 389506.84 | H23: 393086.79 | I23: 500101.59 | J23: 457622.01 | K23: 448980.82 | L23: 395615.94 | M23: 468076.32 | N23: 580993.31
A25: monthly kWh consumption | C25: Jan | D25: Feb | E25: Mar | F25: Apr | G25: May | H25: Jun | I25: Jul | J25: Aug | K25: Sep | L25: Oct | M25: Nov | N25: Dec
A26: Washington
A27: =A10 -> Schedule 1 | C27: 274145636.9 | D27: 264080031.4 | E27: 225090809.4 | F27: 175969889.8 | G27: 157862499.3 | H27: 157780438.1 | I27: 224439339.4 | J27: 206247756.8 | K27: 171964807.3 | L27: 194630473.9 | M27: 243789672.8 | N27: 310636626.9
A28: =A11 -> Schedule 11/12 | C28: 60470813.12 | D28: 55841909.32 | E28: 53036987.99 | F28: 46792751.08 | G28: 46682773.56 | H28: 46086295.78 | I28: 56493222.02 | J28: 53658065.37 | K28: 48977016.12 | L28: 49930255.51 | M28: 54443209.96 | N28: 61779452.39
A29: =A12 -> Schedule 21/22 Secondary | C29: 115112236.3 | D29: 104931143.4 | E29: 109549055.5 | F29: 105331705.2 | G29: 113503682.5 | H29: 110129391.1 | I29: 125768613.1 | J29: 125685575.8 | K29: 115178491.3 | L29: 113349590.5 | M29: 111319943.5 | N29: 116194385.6
A30: =A13 -> Schedule 21 Primary | C30: 12824351.64 | D30: 12259201.57 | E30: 12736146.96 | F30: 12102715.9 | G30: 12288086.2 | H30: 11776620.6 | I30: 12892900.51 | J30: 12584113.49 | K30: 11365458.44 | L30: 12077046.49 | M30: 11618844.95 | N30: 12838879.14
A31: =A14 -> Schedule 31/32 | C31: 6066578.91 | D31: 4344676.39 | E31: 4776252.45 | F31: 6097816.18 | G31: 17895192.46 | H31: 24228254.89 | I31: 26393810.52 | J31: 21159226.24 | K31: 11680999.46 | L31: 6785895.63 | M31: 5290683.59 | N31: 5071140.78
A32: Total Washington | C32: =SUM(C27:C31) -> 468619616.9 | D32: 441456962.1 | E32: 405189252.3 | F32: 346294878.2 | G32: 348232233.9 | H32: 350001000.4 | I32: 445987885.5 | J32: 419334737.7 | K32: 359166772.6 | L32: 376773262 | M32: 426462354.9 | N32: 506520484.9
A34: Idaho
A35: =A18 -> Schedule 1 | C35: 139199851.5 | D35: 133633182.5 | E35: 117635348.7 | F35: 98131288.81 | G35: 80754914.16 | H35: 71756362.17 | I35: 93213781.98 | J35: 87867556.83 | K35: 76735058.52 | L35: 93922380.47 | M35: 113844327.1 | N35: 151248173.6
A36: =A19 -> Schedule 11/12 | C36: 41202569.99 | D36: 38804160.67 | E36: 35187479.64 | F36: 28766972.74 | G36: 26714399.83 | H36: 25857421.47 | I36: 30614799.57 | J36: 30620453.38 | K36: 27728993.44 | L36: 29961500.75 | M36: 33281014.88 | N36: 44164859.32
A37: Schedule 21/22 Secondary | C37: 56186903.71 | D37: 51509767.99 | E37: 53661657.29 | F37: 53115637.18 | G37: 54068840.03 | H37: 52531517.93 | I37: 54490134.92 | J37: 57049651.21 | K37: 52937224.08 | L37: 54269426.65 | M37: 53720422.54 | N37: 57454741.9
A38: Schedule 21 Primary | C38: 9059799.41 | D38: 8238944.38 | E38: 8825853.41 | F38: 8409761.46 | G38: 8123746.77 | H38: 8107965.46 | I38: 7835964.33 | J38: 7778007.83 | K38: 7506774.91 | L38: 8245671.34 | M38: 8403416.17 | N38: 8940971.6
A39: =A22 -> Schedule 31/32 | C39: 3157426.16 | D39: 3122714.45 | E39: 3260629.3 | F39: 2974703.96 | G39: 4298937.88 | H39: 6269028.51 | I39: 12076616.6 | J39: 9769644.03 | K39: 6942761.71 | L39: 3634800.64 | M39: 2733408 | N39: 3138474.66
A40: Total Idaho | C40: =SUM(C35:C39) -> 248806550.8 | D40: 235308770 | E40: 218570968.4 | F40: 191398364.2 | G40: 173960838.7 | H40: 164522295.5 | I40: 198231297.4 | J40: 193085313.3 | K40: 171850812.7 | L40: 190033779.8 | M40: 211982588.7 | N40: 264947221.1
C42: =C$5 -> 2018-01-31 | D42: =D$5 -> 2018-02-28 | E42: 2018-03-31 | F42: 2018-04-30 | G42: 2018-05-31 | H42: 2018-06-30 | I42: 2018-07-31 | J42: 2018-08-31 | K42: 2018-09-30 | L42: 2018-10-31 | M42: 2018-11-30 | N42: 2018-12-31
A43: 2014 Study Average kW (consumption/hours) | C43: =IF(MONTH(C$5)=IF($A$5+0>2006,3,4),-1,IF(MONTH(C$5)=IF($A$5+0>2006,11,10),1))+DAY(C$5)*24 -> 744 | D43: =IF(MONTH(D$5)=IF($A$5+0>2006,3,4),-1,IF(MONTH(D$5)=IF($A$5+0>2006,11,10),1))+DAY(D$5)*24 -> 672 | E43: =IF(MONTH(E$5)=IF($A$5+0>2006,3,4),-1,IF(MONTH(E$5)=IF($A$5+0>2006,11,10),1))+DAY(E$5)*24 -> 743 | F43: 720 | G43: 744 | H43: 720 | I43: 744 | J43: 744 | K43: 720 | L43: 744 | M43: 721 | N43: 744
A44: Washington
A45: =A27 -> Schedule 1 | C45: =C27/C$43 -> 368475.3185 | D45: =D27/D$43 -> 392976.2372 | E45: 302948.5995 | F45: 244402.6247 | G45: 212180.7786 | H45: 219139.4973 | I45: 301665.7787 | J45: 277214.7269 | K45: 238840.0101 | L45: 261600.0994 | M45: 338127.1468 | N45: 417522.348
A46: =A28 -> Schedule 11/12 | C46: =C28/C$43 -> 81277.97462 | D46: 83098.07935 | E46: 71382.21802 | F46: 64989.93206 | G46: 62745.66339 | H46: 64008.74414 | I46: 75931.75003 | J46: 72121.0556 | K46: 68023.6335 | L46: 67110.55848 | M46: 75510.69343 | N46: 83036.89837
A47: =A29 -> Schedule 21/22 Secondary | C47: =C29/C$43 -> 154720.7477 | D47: 156147.5348 | E47: 147441.5283 | F47: 146294.0351 | G47: 152558.713 | H47: 152957.4876 | I47: 169043.8348 | J47: 168932.2255 | K47: 159970.1267 | L47: 152351.6001 | M47: 154396.593 | N47: 156175.2495
A48: =A30 -> Schedule 21 Primary | C48: =C30/C$43 -> 17237.03177 | D48: 18242.85948 | E48: 17141.51677 | F48: 16809.32764 | G48: 16516.24489 | H48: 16356.4175 | I48: 17329.16735 | J48: 16914.13103 | K48: 15785.35894 | L48: 16232.58937 | M48: 16114.90284 | N48: 17256.55798
A49: =A31 -> Schedule 31/32 | C49: 8154.003911 | D49: =D31/D$43 -> 6465.292247 | E49: 6428.334388 | F49: 8469.189139 | G49: 24052.67804 | H49: 33650.35401 | I49: 35475.55177 | J49: 28439.82022 | K49: 16223.61036 | L49: 9120.82746 | M49: 7337.980014 | N49: 6816.049435
A51: Idaho
A52: =A35 -> Schedule 1 | C52: =C35/C$43 -> 187096.5746 | D52: 198858.9026 | E52: 158324.83 | F52: 136293.4567 | G52: 108541.5513 | H52: 99661.61413 | I52: 125287.3414 | J52: 118101.5549 | K52: 106576.4702 | L52: 126239.7587 | M52: 157897.8184 | N52: 203290.5559
A53: =A36 -> Schedule 11/12 | C53: =C36/C$43 -> 55379.79837 | D53: 57744.28671 | E53: 47358.65362 | F53: 39954.12881 | G53: 35906.45138 | H53: 35913.08537 | I53: 41148.92415 | J53: 41156.52336 | K53: 38512.49089 | L53: 40270.83434 | M53: 46159.52133 | N53: 59361.37005
A54: =A37 -> Schedule 21/22 Secondary | C54: =C37/C$43 -> 75520.03187 | D54: 76651.44046 | E54: 72222.95732 | F54: 73771.71831 | G54: 72673.17208 | H54: 72960.44157 | I54: 73239.42866 | J54: 76679.63872 | K54: 73523.92233 | L54: 72942.77776 | M54: 74508.21434 | N54: 77224.11546
A55: =A38 -> Schedule 21 Primary | C55: =C38/C$43 -> 12177.14974 | D55: =D38/D$43 -> 12260.3339 | E55: 11878.67215 | F55: 11680.22425 | G55: 10919.01448 | H55: 11261.06314 | I55: 10532.21012 | J55: 10454.3116 | K55: 10426.07626 | L55: 11082.89159 | M55: 11655.22354 | N55: 12017.43495
A56: =A39 -> Schedule 31/32 | C56: =C39/C$43 -> 4243.852366 | D56: =D39/D$43 -> 4646.896503 | E56: 4388.464738 | F56: 4131.533278 | G56: 5778.142312 | H56: 8706.984042 | I56: 16232.01156 | J56: 13131.24198 | K56: 9642.724597 | L56: 4885.484731 | M56: 3791.134535 | N56: 4218.379919
A58: Ratio of Non-Coincident Peak kW to Average kW
A59: Washington
A60: =A45 -> Schedule 1 | C60: =C10/C45 -> 1.378243439 | D60: 1.589390429 | E60: 1.854165925 | F60: 1.447159009 | G60: 1.503121735 | H60: 1.663214959 | I60: 1.810784844 | J60: 1.792993163 | K60: 1.98327487 | L60: 1.537256603 | M60: 1.536385513 | N60: 1.599420805
A61: =A46 -> Schedule 11/12 | C61: =C11/C46 -> 1.398456599 | D61: 1.560458569 | E61: 1.505055502 | F61: 1.491969555 | G61: 1.68427369 | H61: 1.707423595 | I61: 1.69872168 | J61: 1.647753891 | K61: 1.622739985 | L61: 1.439781343 | M61: 1.442187789 | N61: 1.421917994
A62: =A47 -> Schedule 21/22 Secondary | C62: =C12/C47 -> 1.370651856 | D62: 1.388493582 | E62: 1.349814414 | F62: 1.512371847 | G62: 1.570787045 | H62: 1.533764078 | I62: 1.48614855 | J62: 1.435363261 | K62: 1.625378658 | L62: 1.373507531 | M62: 1.390050103 | N62: 1.436275279
A63: =A48 -> Schedule 21 Primary | C63: =C13/C48 -> 1.541383711 | D63: =D13/D48 -> 1.473511323 | E63: 1.490456786 | F63: 1.579183925 | G63: 1.627013899 | H63: 1.57013478 | I63: 1.596992483 | J63: 1.594916697 | K63: 1.677825008 | L63: 1.455241026 | M63: 1.484324183 | N63: 1.472686501
A64: =A49 -> Schedule 31/32 | C64: =C14/C49 -> 1.758322679 | D64: =D14/D49 -> 1.694263706 | E64: 1.520477842 | F64: 2.420931882 | G64: 2.151313044 | H64: 1.632077332 | I64: 1.468893573 | J64: 1.407087306 | K64: 2.085533938 | L64: 1.773787529 | M64: 1.631609786 | N64: 1.688907938
A66: Idaho
A67: =A52 -> Schedule 1 | C67: =C18/C52 -> 1.489418877 | D67: 1.671013496 | E67: 1.947279084 | F67: 1.516013865 | G67: 1.56995112 | H67: 1.750706544 | I67: 1.982618015 | J67: 1.88444149 | K67: 2.012575474 | L67: 1.555138983 | M67: 1.598528735 | N67: 1.657203398
A68: =A53 -> Schedule 11/12 | C68: =C19/C53 -> 1.358213504 | D68: 1.497874247 | E68: 1.490862062 | F68: 1.517044967 | G68: 1.708086643 | H68: 1.691032652 | I68: 1.79321116 | J68: 1.692947176 | K68: 1.783200682 | L68: 1.3883395 | M68: 1.430590441 | N68: 1.512370586
A69: =A54 -> Schedule 21/22 Secondary | C69: =C20/C54 -> 1.573483843 | D69: 1.538205796 | E69: 1.55465373 | F69: 1.583887331 | G69: 1.651913169 | H69: 1.650354458 | I69: 1.704484214 | J69: 1.62424735 | K69: 1.696680156 | L69: 1.551846303 | M69: 1.59596913 | N69: 1.584360265
A70: =A55 -> Schedule 21 Primary | C70: =C21/C55 -> 1.55970489 | D70: =D21/D55 -> 1.543692868 | E70: 1.473828032 | F70: 1.548394929 | G70: 1.53974702 | H70: 1.575304195 | I70: 1.515156821 | J70: 1.556402815 | K70: 1.578383812 | L70: 1.514118393 | M70: 1.542853292 | N70: 1.536391092
A71: =A56 -> Schedule 31/32 | C71: =C22/C56 -> 3.074777084 | D71: =D22/D56 -> 2.762671816 | E71: 3.890577006 | F71: 3.018959103 | G71: 3.618514199 | H71: 2.265785708 | I71: 2.286995661 | J71: 1.871330986 | K71: 2.552100265 | L71: 2.744700012 | M71: 3.360904205 | N71: 3.202371588
A73: =RIGHT(A3,4) -> 2018 | C73: =C$5 -> 2018-01-31 | D73: =D$5 -> 2018-02-28 | E73: 2018-03-31 | F73: 2018-04-30 | G73: 2018-05-31 | H73: 2018-06-30 | I73: 2018-07-31 | J73: 2018-08-31 | K73: 2018-09-30 | L73: 2018-10-31 | M73: 2018-11-30 | N73: 2018-12-31
A74: 2018 Average kW (consumption/hours) | C74: =C43 -> 744 | D74: =D43 -> 672 | E74: 743 | F74: 720 | G74: 744 | H74: 720 | I74: 744 | J74: 744 | K74: 720 | L74: 744 | M74: 721 | N74: 744
A75: Washington
A76: Schedule 1 | C76: ='12.2018 WA Usage'!C87/C$74 -> 389895.9916 | D76: ='12.2018 WA Usage'!D87/D$74 -> 337853.4317 | E76: ='12.2018 WA Usage'!E87/E$74 -> 313023.0212 | F76: ='12.2018 WA Usage'!F87/F$74 -> 271348.2409 | G76: ='12.2018 WA Usage'!G87/G$74 -> 214181.8312 | H76: ='12.2018 WA Usage'!H87/H$74 -> 206958.5953 | I76: ='12.2018 WA Usage'!I87/I$74 -> 218663.7512 | J76: ='12.2018 WA Usage'!J87/J$74 -> 275228.3747 | K76: ='12.2018 WA Usage'!K87/K$74 -> 230032.5571 | L76: ='12.2018 WA Usage'!L87/L$74 -> 200430.7802 | M76: ='12.2018 WA Usage'!M87/M$74 -> 250813.6731 | N76: ='12.2018 WA Usage'!N87/N$74 -> 329612.2139
A77: Schedule 11/12 | C77: =(SUM('12.2018 WA Usage'!C89:C90)+'12.2018 WA Usage'!C116)/C$74 -> 87322.60379 | D77: =(SUM('12.2018 WA Usage'!D89:D90)+'12.2018 WA Usage'!D116)/D$74 -> 83270.99587 | E77: =(SUM('12.2018 WA Usage'!E89:E90)+'12.2018 WA Usage'!E116)/E$74 -> 75020.33098 | F77: =(SUM('12.2018 WA Usage'!F89:F90)+'12.2018 WA Usage'!F116)/F$74 -> 70405.88905 | G77: =(SUM('12.2018 WA Usage'!G89:G90)+'12.2018 WA Usage'!G116)/G$74 -> 63102.40466 | H77: =(SUM('12.2018 WA Usage'!H89:H90)+'12.2018 WA Usage'!H116)/H$74 -> 64028.74559 | I77: =(SUM('12.2018 WA Usage'!I89:I90)+'12.2018 WA Usage'!I116)/I$74 -> 64742.3974 | J77: =(SUM('12.2018 WA Usage'!J89:J90)+'12.2018 WA Usage'!J116)/J$74 -> 74207.55148 | K77: =(SUM('12.2018 WA Usage'!K89:K90)+'12.2018 WA Usage'!K116)/K$74 -> 67378.45598 | L77: =(SUM('12.2018 WA Usage'!L89:L90)+'12.2018 WA Usage'!L116)/L$74 -> 61346.6407 | M77: =(SUM('12.2018 WA Usage'!M89:M90)+'12.2018 WA Usage'!M116)/M$74 -> 66196.44245 | N77: =(SUM('12.2018 WA Usage'!N89:N90)+'12.2018 WA Usage'!N116)/N$74 -> 76659.17847
A78: Schedule 21/22 Secondary | C78: =(SUM('12.2018 WA Usage'!C91:C92)-'12.2018 WA Usage'!C116)/C$74-C79 -> 156019.3694 | D78: =(SUM('12.2018 WA Usage'!D91:D92)-'12.2018 WA Usage'!D116)/D$74-D79 -> 155788.9542 | E78: =(SUM('12.2018 WA Usage'!E91:E92)-'12.2018 WA Usage'!E116)/E$74-E79 -> 139502.9386 | F78: =(SUM('12.2018 WA Usage'!F91:F92)-'12.2018 WA Usage'!F116)/F$74-F79 -> 142378.737 | G78: =(SUM('12.2018 WA Usage'!G91:G92)-'12.2018 WA Usage'!G116)/G$74-G79 -> 139324.3524 | H78: =(SUM('12.2018 WA Usage'!H91:H92)-'12.2018 WA Usage'!H116)/H$74-H79 -> 144465.7144 | I78: =(SUM('12.2018 WA Usage'!I91:I92)-'12.2018 WA Usage'!I116)/I$74-I79 -> 142589.3962 | J78: =(SUM('12.2018 WA Usage'!J91:J92)-'12.2018 WA Usage'!J116)/J$74-J79 -> 154109.5536 | K78: =(SUM('12.2018 WA Usage'!K91:K92)-'12.2018 WA Usage'!K116)/K$74-K79 -> 144324.4039 | L78: =(SUM('12.2018 WA Usage'!L91:L92)-'12.2018 WA Usage'!L116)/L$74-L79 -> 136859.7791 | M78: =(SUM('12.2018 WA Usage'!M91:M92)-'12.2018 WA Usage'!M116)/M$74-M79 -> 139114.4685 | N78: =(SUM('12.2018 WA Usage'!N91:N92)-'12.2018 WA Usage'!N116)/N$74-N79 -> 147792.2174
A79: Schedule 21 Primary | C79: ='12.2018 WA Usage'!C114/C$74 -> 13250.8629 | D79: ='12.2018 WA Usage'!D114/D$74 -> 12960.46577 | E79: ='12.2018 WA Usage'!E114/E$74 -> 11538.69044 | F79: ='12.2018 WA Usage'!F114/F$74 -> 11913.94861 | G79: ='12.2018 WA Usage'!G114/G$74 -> 11580.50679 | H79: ='12.2018 WA Usage'!H114/H$74 -> 13052.49694 | I79: ='12.2018 WA Usage'!I114/I$74 -> 11866.97457 | J79: ='12.2018 WA Usage'!J114/J$74 -> 13577.86214 | K79: ='12.2018 WA Usage'!K114/K$74 -> 13607.378 | L79: ='12.2018 WA Usage'!L114/L$74 -> 11592.07028 | M79: ='12.2018 WA Usage'!M114/M$74 -> 12135.58347 | N79: ='12.2018 WA Usage'!N114/N$74 -> 12311.20763
A80: Schedule 31/32 | C80: =SUM('12.2018 WA Usage'!C95:C97)/C$74 -> 6988.986126 | D80: =SUM('12.2018 WA Usage'!D95:D97)/D$74 -> 6391.853094 | E80: =SUM('12.2018 WA Usage'!E95:E97)/E$74 -> 5688.624226 | F80: =SUM('12.2018 WA Usage'!F95:F97)/F$74 -> 7394.209726 | G80: =SUM('12.2018 WA Usage'!G95:G97)/G$74 -> 13610.39743 | H80: =SUM('12.2018 WA Usage'!H95:H97)/H$74 -> 25717.55077 | I80: =SUM('12.2018 WA Usage'!I95:I97)/I$74 -> 31026.81806 | J80: =SUM('12.2018 WA Usage'!J95:J97)/J$74 -> 37655.6958 | K80: =SUM('12.2018 WA Usage'!K95:K97)/K$74 -> 33054.09443 | L80: =SUM('12.2018 WA Usage'!L95:L97)/L$74 -> 17392.07518 | M80: =SUM('12.2018 WA Usage'!M95:M97)/M$74 -> 8713.710505 | N80: =SUM('12.2018 WA Usage'!N95:N97)/N$74 -> 5374.036214
A82: Idaho
A83: Schedule 1 | C83: ='12.2018 ID Usage'!C103/C$74 -> 186031.765 | D83: ='12.2018 ID Usage'!D103/D$74 -> 168840.8574 | E83: ='12.2018 ID Usage'!E103/E$74 -> 155669.5656 | F83: ='12.2018 ID Usage'!F103/F$74 -> 136478.4947 | G83: ='12.2018 ID Usage'!G103/G$74 -> 102963.6667 | H83: ='12.2018 ID Usage'!H103/H$74 -> 99656.61203 | I83: ='12.2018 ID Usage'!I103/I$74 -> 108039.9141 | J83: ='12.2018 ID Usage'!J103/J$74 -> 126716.4141 | K83: ='12.2018 ID Usage'!K103/K$74 -> 105415.4965 | L83: ='12.2018 ID Usage'!L103/L$74 -> 98703.48679 | M83: ='12.2018 ID Usage'!M103/M$74 -> 127003.1614 | N83: ='12.2018 ID Usage'!N103/N$74 -> 168953.6388
A84: Schedule 11/12 | C84: =SUM('12.2018 ID Usage'!C104:C105)/C$74-C85 -> 51959.44846 | D84: =SUM('12.2018 ID Usage'!D104:D105)/D$74-D85 -> 50761.08632 | E84: =SUM('12.2018 ID Usage'!E104:E105)/E$74-E85 -> 45500.52947 | F84: =SUM('12.2018 ID Usage'!F104:F105)/F$74-F85 -> 42272.19652 | G84: =SUM('12.2018 ID Usage'!G104:G105)/G$74-G85 -> 36803.86659 | H84: =SUM('12.2018 ID Usage'!H104:H105)/H$74-H85 -> 37841.48547 | I84: =SUM('12.2018 ID Usage'!I104:I105)/I$74-I85 -> 39410.72161 | J84: =SUM('12.2018 ID Usage'!J104:J105)/J$74-J85 -> 43913.23399 | K84: =SUM('12.2018 ID Usage'!K104:K105)/K$74-K85 -> 40496.85403 | L84: =SUM('12.2018 ID Usage'!L104:L105)/L$74-L85 -> 35576.54019 | M84: =SUM('12.2018 ID Usage'!M104:M105)/M$74-M85 -> 39955.74707 | N84: =SUM('12.2018 ID Usage'!N104:N105)/N$74-N85 -> 48270.16216
A85: Schedule 11/12 Demand Metered | C85: ='12.2018 ID Usage'!C133/C$74 -> 0 | D85: ='12.2018 ID Usage'!D133/D$74 -> 0 | E85: ='12.2018 ID Usage'!E133/E$74 -> 0 | F85: ='12.2018 ID Usage'!F133/F$74 -> 0 | G85: ='12.2018 ID Usage'!G133/G$74 -> 0 | H85: ='12.2018 ID Usage'!H133/H$74 -> 0 | I85: ='12.2018 ID Usage'!I133/I$74 -> 0 | J85: ='12.2018 ID Usage'!J133/J$74 -> 0 | K85: ='12.2018 ID Usage'!K133/K$74 -> 0 | L85: ='12.2018 ID Usage'!L133/L$74 -> 0 | M85: ='12.2018 ID Usage'!M133/M$74 -> 0 | N85: ='12.2018 ID Usage'!N133/N$74 -> 0
A86: Schedule 21/22 Secondary | C86: =SUM('12.2018 ID Usage'!C106:C107)/C$74-C87 -> 71181.4794 | D86: =SUM('12.2018 ID Usage'!D106:D107)/D$74-D87 -> 74176.04175 | E86: =SUM('12.2018 ID Usage'!E106:E107)/E$74-E87 -> 66092.87448 | F86: =SUM('12.2018 ID Usage'!F106:F107)/F$74-F87 -> 66459.38615 | G86: =SUM('12.2018 ID Usage'!G106:G107)/G$74-G87 -> 62262.75566 | H86: =SUM('12.2018 ID Usage'!H106:H107)/H$74-H87 -> 64847.50467 | I86: =SUM('12.2018 ID Usage'!I106:I107)/I$74-I87 -> 64860.60766 | J86: =SUM('12.2018 ID Usage'!J106:J107)/J$74-J87 -> 69842.95181 | K86: =SUM('12.2018 ID Usage'!K106:K107)/K$74-K87 -> 67893.06365 | L86: =SUM('12.2018 ID Usage'!L106:L107)/L$74-L87 -> 60656.57508 | M86: =SUM('12.2018 ID Usage'!M106:M107)/M$74-M87 -> 63548.17703 | N86: =SUM('12.2018 ID Usage'!N106:N107)/N$74-N87 -> 69081.96747
A87: Schedule 21 Primary | C87: ='12.2018 ID Usage'!C132/C$74 -> 5067.630644 | D87: ='12.2018 ID Usage'!D132/D$74 -> 5346.875792 | E87: ='12.2018 ID Usage'!E132/E$74 -> 4522.388022 | F87: ='12.2018 ID Usage'!F132/F$74 -> 4756.832474 | G87: ='12.2018 ID Usage'!G132/G$74 -> 4170.050286 | H87: ='12.2018 ID Usage'!H132/H$74 -> 4016.193054 | I87: ='12.2018 ID Usage'!I132/I$74 -> 3776.660801 | J87: ='12.2018 ID Usage'!J132/J$74 -> 4005.700254 | K87: ='12.2018 ID Usage'!K132/K$74 -> 4151.980829 | L87: ='12.2018 ID Usage'!L132/L$74 -> 4122.675524 | M87: ='12.2018 ID Usage'!M132/M$74 -> 4549.413592 | N87: ='12.2018 ID Usage'!N132/N$74 -> 4627.389785
A88: Schedule 31/32 | C88: =SUM('12.2018 ID Usage'!C111:C113)/C$74 -> 4939.273141 | D88: =SUM('12.2018 ID Usage'!D111:D113)/D$74 -> 5294.216162 | E88: =SUM('12.2018 ID Usage'!E111:E113)/E$74 -> 4671.994689 | F88: =SUM('12.2018 ID Usage'!F111:F113)/F$74 -> 4770.21245 | G88: =SUM('12.2018 ID Usage'!G111:G113)/G$74 -> 5695.343546 | H88: =SUM('12.2018 ID Usage'!H111:H113)/H$74 -> 9040.881444 | I88: =SUM('12.2018 ID Usage'!I111:I113)/I$74 -> 11202.6883 | J88: =SUM('12.2018 ID Usage'!J111:J113)/J$74 -> 12948.86025 | K88: =SUM('12.2018 ID Usage'!K111:K113)/K$74 -> 10662.02956 | L88: =SUM('12.2018 ID Usage'!L111:L113)/L$74 -> 7038.296284 | M88: =SUM('12.2018 ID Usage'!M111:M113)/M$74 -> 4301.594397 | N88: =SUM('12.2018 ID Usage'!N111:N113)/N$74 -> 4806.109113
A90: Estimate 12 Monthly Non-Coincident Peaks | C90: =C$5 -> 2018-01-31 | D90: =D$5 -> 2018-02-28 | E90: 2018-03-31 | F90: 2018-04-30 | G90: 2018-05-31 | H90: 2018-06-30 | I90: 2018-07-31 | J90: 2018-08-31 | K90: 2018-09-30 | L90: 2018-10-31 | M90: 2018-11-30 | N90: 2018-12-31
A91: Washington
A92: =A76 -> Schedule 1 | C92: =C76*C60 -> 537371.5923 | D92: =D76*D60 -> 536981.0106 | E92: 580396.6195 | F92: 392684.0512 | G92: 321941.3657 | H92: 344216.6316 | I92: 395953.0066 | J92: 493482.5941 | K92: 456217.7896 | L92: 308113.5402 | M92: 385346.4939 | N92: 527188.6325
A93: =A77 -> Schedule 11/12 | C93: =C77*C61 -> 122116.8715 | D93: 129940.9391 | E93: 112909.7619 | F93: 105043.4429 | G93: 106281.7199 | H93: 109324.191 | I93: 109979.3141 | J93: 122275.7817 | K93: 109337.7146 | L93: 88325.74871 | M93: 95467.70098 | N93: 109003.0653
A94: =A78 -> Schedule 21/22 Secondary | C94: =C78*C62 -> 213848.2382 | D94: 216311.9631 | E94: 188303.0772 | F94: 215329.5934 | G94: 218848.8878 | H94: 221576.3233 | I94: 211909.0244 | J94: 221203.1913 | K94: 234581.8059 | L94: 187977.9372 | M94: 193376.0812 | N94: 212270.3083
A95: =A79 -> Schedule 21 Primary | C95: =C79*C63 -> 20424.66423 | D95: 19097.39306 | E95: 17197.91948 | F95: 18814.31613 | G95: 18841.6455 | H95: 20494.17942 | I95: 18951.46919 | J95: 21655.55903 | K95: 22830.7991 | L95: 16869.25625 | M95: 18013.14002 | N95: 18130.5493
A96: =A80 -> Schedule 31/32 | C96: =C80*C64 -> 12288.89281 | D96: 10829.48471 | E96: 8649.42709 | F96: 17900.87807 | G96: 29280.22551 | H96: 41973.03164 | I96: 45575.09364 | J96: 52984.85154 | K96: 68935.43571 | L96: 30849.84605 | M96: 14217.37533 | N96: 9076.252422
A97: Street Lights | B97: ='Peak Calc CP'!B14 -> 10967850.23 | C97: =$B97/'2018 Daylight'!Hrs_Darkness -> 2556.479329 | D97: =$B97/'2018 Daylight'!Hrs_Darkness -> 2556.479329 | E97: =$B97/'2018 Daylight'!Hrs_Darkness -> 2556.479329 | F97: =$B97/'2018 Daylight'!Hrs_Darkness -> 2556.479329 | G97: =$B97/'2018 Daylight'!Hrs_Darkness -> 2556.479329 | H97: =$B97/'2018 Daylight'!Hrs_Darkness -> 2556.479329 | I97: =$B97/'2018 Daylight'!Hrs_Darkness -> 2556.479329 | J97: =$B97/'2018 Daylight'!Hrs_Darkness -> 2556.479329 | K97: =$B97/'2018 Daylight'!Hrs_Darkness -> 2556.479329 | L97: =$B97/'2018 Daylight'!Hrs_Darkness -> 2556.479329 | M97: =$B97/'2018 Daylight'!Hrs_Darkness -> 2556.479329 | N97: =$B97/'2018 Daylight'!Hrs_Darkness -> 2556.479329
A98: Area Lights | B98: ='Peak Calc CP'!B15 -> 7574181.315 | C98: =$B98/'2018 Daylight'!Hrs_Darkness -> 1765.454266 | D98: =$B98/'2018 Daylight'!Hrs_Darkness -> 1765.454266 | E98: =$B98/'2018 Daylight'!Hrs_Darkness -> 1765.454266 | F98: =$B98/'2018 Daylight'!Hrs_Darkness -> 1765.454266 | G98: =$B98/'2018 Daylight'!Hrs_Darkness -> 1765.454266 | H98: =$B98/'2018 Daylight'!Hrs_Darkness -> 1765.454266 | I98: =$B98/'2018 Daylight'!Hrs_Darkness -> 1765.454266 | J98: =$B98/'2018 Daylight'!Hrs_Darkness -> 1765.454266 | K98: =$B98/'2018 Daylight'!Hrs_Darkness -> 1765.454266 | L98: =$B98/'2018 Daylight'!Hrs_Darkness -> 1765.454266 | M98: =$B98/'2018 Daylight'!Hrs_Darkness -> 1765.454266 | N98: =$B98/'2018 Daylight'!Hrs_Darkness -> 1765.454266
A99: Schedule 21 Transmission | C99: 0 | D99: 0 | E99: 0 | F99: 0 | G99: 0 | H99: 0 | I99: 0 | J99: 0 | K99: 0 | L99: 0 | M99: 0 | N99: 0
A100: Schedule 25 Transmission | C100: 57024 | D100: 57816 | E100: 53532 | F100: 54648 | G100: 54684 | H100: 53280 | I100: 54540 | J100: 111024 | K100: 56196 | L100: 57636 | M100: 58500 | N100: 57132
A101: Schedule 25 Primary | C101: 81358.399 | D101: 82960.8 | E101: 80982.7 | F101: 87438.899 | G101: 86286.8 | H101: 84776.9 | I101: 82125.3 | J101: 110108.6 | K101: 79936.1 | L101: 79333.6 | M101: 79784.8 | N101: 77841.9
A102: Schedule 25 Secondary | C102: 10818.4 | D102: 11245.6 | E102: 10124.4 | F102: 13214.8 | G102: 14651.6 | H102: 14230.8 | I102: 10425.6 | J102: 18090 | K102: 10904.8 | L102: 9937.403925 | M102: 9194 | N102: 10827.2
A103: Total Washington | C103: =SUM(C92:C102) -> 1059572.992 | D103: 1069505.124 | E103: 1056417.839 | F103: 909395.9143 | G103: 855138.1781 | H103: 894193.9905 | I103: 933780.7415 | J103: 1155146.511 | K103: 1043262.379 | L103: 783365.2659 | M103: 858221.525 | N103: 1025791.841
A105: Idaho
A106: =A83 -> Schedule 1 | C106: =C83*C67 -> 277079.2224 | D106: 282135.3514 | E106: 303132.0892 | F106: 206903.2901 | G106: 161647.9238 | H106: 174469.4828 | I106: 214201.8799 | J106: 238789.6682 | K106: 212156.6428 | L106: 153497.6401 | M106: 203018.2029 | N106: 279990.5443
A107: Schedule 11/12 | C107: =C84*C68 -> 70572.02456 | D107: 76033.72397 | E107: 67835.01319 | F107: 64128.82296 | G107: 62864.19293 | H107: 63991.18753 | I107: 70671.7458 | J107: 74342.78548 | K107: 72214.01771 | L107: 49392.31601 | M107: 57160.30984 | N107: 73002.37342
A108: Schedule 11/12 Demand Metered | C108: =C85*C68 -> 0 | D108: 0 | E108: 0 | F108: 0 | G108: 0 | H108: 0 | I108: 0 | J108: 0 | K108: 0 | L108: 0 | M108: 0 | N108: 0
A109: Schedule 21/22 Secondary | C109: =C86*C69 -> 112002.9078 | D109: =D86*D69 -> 114098.0174 | E109: 102751.5338 | F109: 105264.1797 | G109: 102852.666 | H109: 107021.3684 | I109: 110553.8819 | J109: 113442.2294 | K109: 115192.8138 | L109: 94129.68179 | M109: 101420.9288 | N109: 109450.7243
A110: Schedule 21 Primary | C110: =C87*C70 -> 7904.008295 | D110: =D87*D70 -> 8253.934026 | E110: 6665.222237 | F110: 7365.455281 | G110: 6420.822501 | H110: 6326.725765 | I110: 5722.233372 | J110: 6234.483151 | K110: 6553.419329 | L110: 6242.21884 | M110: 7019.077736 | N110: 7109.480445
A111: Schedule 31/32 | C111: =C88*C71 -> 15187.16386 | D111: 14626.18178 | E111: 18176.75511 | F111: 14401.0763 | G111: 20608.68149 | H111: 20484.69996 | I111: 25620.49953 | J111: 24231.60343 | K111: 27210.56847 | L111: 19318.01189 | M111: 14457.24669 | N111: 15390.94727
A112: Street Lights | B112: ='Peak Calc CP'!B28 -> 7455506.463 | C112: =$B112/'2018 Daylight'!Hrs_Darkness -> 1737.792527 | D112: =$B112/'2018 Daylight'!Hrs_Darkness -> 1737.792527 | E112: =$B112/'2018 Daylight'!Hrs_Darkness -> 1737.792527 | F112: =$B112/'2018 Daylight'!Hrs_Darkness -> 1737.792527 | G112: =$B112/'2018 Daylight'!Hrs_Darkness -> 1737.792527 | H112: =$B112/'2018 Daylight'!Hrs_Darkness -> 1737.792527 | I112: =$B112/'2018 Daylight'!Hrs_Darkness -> 1737.792527 | J112: =$B112/'2018 Daylight'!Hrs_Darkness -> 1737.792527 | K112: =$B112/'2018 Daylight'!Hrs_Darkness -> 1737.792527 | L112: =$B112/'2018 Daylight'!Hrs_Darkness -> 1737.792527 | M112: =$B112/'2018 Daylight'!Hrs_Darkness -> 1737.792527 | N112: =$B112/'2018 Daylight'!Hrs_Darkness -> 1737.792527
A113: Area Lights | B113: ='Peak Calc CP'!B29 -> 4101952.346 | C113: =$B113/'2018 Daylight'!Hrs_Darkness -> 956.1177592 | D113: =$B113/'2018 Daylight'!Hrs_Darkness -> 956.1177592 | E113: =$B113/'2018 Daylight'!Hrs_Darkness -> 956.1177592 | F113: =$B113/'2018 Daylight'!Hrs_Darkness -> 956.1177592 | G113: =$B113/'2018 Daylight'!Hrs_Darkness -> 956.1177592 | H113: =$B113/'2018 Daylight'!Hrs_Darkness -> 956.1177592 | I113: =$B113/'2018 Daylight'!Hrs_Darkness -> 956.1177592 | J113: =$B113/'2018 Daylight'!Hrs_Darkness -> 956.1177592 | K113: =$B113/'2018 Daylight'!Hrs_Darkness -> 956.1177592 | L113: =$B113/'2018 Daylight'!Hrs_Darkness -> 956.1177592 | M113: =$B113/'2018 Daylight'!Hrs_Darkness -> 956.1177592 | N113: =$B113/'2018 Daylight'!Hrs_Darkness -> 956.1177592
A114: Schedule 25 Primary | C114: 46234.767 | D114: 47317.414 | E114: 45147.765 | F114: 46230.294 | G114: 48663.307 | H114: 46240.626 | I114: 46205.488 | J114: 54918.6 | K114: 46948.453 | L114: 48393.303 | M114: 47679.671 | N114: 49672.166
A115: Schedule 25 Secondary | C115: 609.6 | D115: 528 | E115: 883.2 | F115: 528 | G115: 614.4 | H115: 384 | I115: 393.6 | J115: 436.8 | K115: 523.2 | L115: 427.2 | M115: 590.4 | N115: 528
A116: Schedule 25P Primary | C116: 55510 | D116: 56140 | E116: 74690 | F116: 102260 | G116: 102270 | H116: 89300 | I116: 74400 | J116: 63870 | K116: 75340 | L116: 71050 | M116: 51840 | N116: 67710
A117: Schedule 25P Generation | C117: 0 | D117: 0 | E117: 0 | F117: 0 | G117: 0 | H117: 0 | I117: 0 | J117: 0 | K117: 0 | L117: 0 | M117: 0 | N117: 0
A118: Total | C118: =SUM(C92:C102,C106:C117) -> 1647366.596 | D118: 1671331.657 | E118: 1678393.328 | F118: 1459170.943 | G118: 1363774.082 | H118: 1405105.991 | I118: 1484243.98 | J118: 1734106.591 | K118: 1602095.404 | L118: 1228509.548 | M118: 1344101.272 | N118: 1631339.987
A120: Estimated Non-Coincident Peak with Losses | C120: =C$5 -> 2018-01-31 | D120: =D$5 -> 2018-02-28 | E120: 2018-03-31 | F120: 2018-04-30 | G120: 2018-05-31 | H120: 2018-06-30 | I120: 2018-07-31 | J120: 2018-08-31 | K120: 2018-09-30 | L120: 2018-10-31 | M120: 2018-11-30 | N120: 2018-12-31 | O120: 12 Month
A121: Washington | O121: Average
A122: =A92 -> Schedule 1 | B122: ='Peak Calc CP'!B41 -> 1.062 | C122: =C92*$B122 -> 570688.631 | D122: 570273.8332 | E122: 616381.2099 | F122: 417030.4624 | G122: 341901.7304 | H122: 365558.0627 | I122: 420502.093 | J122: 524078.5149 | K122: 484503.2926 | L122: 327216.5796 | M122: 409237.9765 | N122: 559874.3277 | O122: =AVERAGE(C122:N122) -> 467270.5595
A123: Schedule 11/12 | B123: ='Peak Calc CP'!B42 -> 1.062 | C123: =C93*$B123 -> 129688.1176 | D123: 137997.2773 | E123: 119910.1672 | F123: 111556.1364 | G123: 112871.1866 | H123: 116102.2908 | I123: 116798.0316 | J123: 129856.8802 | K123: 116116.653 | L123: 93801.94513 | M123: 101386.6984 | N123: 115761.2554 | O123: 116820.5533
A124: Schedule 21/22 Secondary | B124: ='Peak Calc CP'!B43 -> 1.062 | C124: =C94*$B124 -> 227106.829 | D124: 229723.3048 | E124: 199977.868 | F124: 228680.0281 | G124: 232417.5189 | H124: 235314.0554 | I124: 225047.3839 | J124: 234917.7891 | K124: 249125.8779 | L124: 199632.5693 | M124: 205365.3983 | N124: 225431.0674 | O124: 224394.9742
A125: Schedule 21 Primary | B125: ='Peak Calc CP'!B44 -> 1.046 | C125: =C95*$B125 -> 21364.19879 | D125: =D95*$B125 -> 19975.87315 | E125: 17989.02378 | F125: 19679.77467 | G125: 19708.36119 | H125: 21436.91168 | I125: 19823.23677 | J125: 22651.71475 | K125: 23881.01586 | L125: 17645.24203 | M125: 18841.74446 | N125: 18964.55456 | O125: 20163.47097
A126: Schedule 31/32 | B126: ='Peak Calc CP'!B45 -> 1.062 | C126: =C96*$B126 -> 13050.80416 | D126: 11500.91276 | E126: 9185.691569 | F126: 19010.73251 | G126: 31095.5995 | H126: 44575.3596 | I126: 48400.74944 | J126: 56269.91234 | K126: 73209.43273 | L126: 32762.5365 | M126: 15098.8526 | N126: 9638.980073 | O126: 30316.63031
A127: Street Lights | B127: ='Peak Calc CP'!B46 -> 1.062 | C127: =C97*$B127 -> 2714.981048 | D127: 2714.981048 | E127: 2714.981048 | F127: 2714.981048 | G127: 2714.981048 | H127: 2714.981048 | I127: 2714.981048 | J127: 2714.981048 | K127: 2714.981048 | L127: 2714.981048 | M127: 2714.981048 | N127: 2714.981048 | O127: 2714.981048
A128: Area Lights | B128: ='Peak Calc CP'!B47 -> 1.062 | C128: =C98*$B128 -> 1874.91243 | D128: 1874.91243 | E128: 1874.91243 | F128: 1874.91243 | G128: 1874.91243 | H128: 1874.91243 | I128: 1874.91243 | J128: 1874.91243 | K128: 1874.91243 | L128: 1874.91243 | M128: 1874.91243 | N128: 1874.91243 | O128: 1874.91243
A129: Schedule 21 Transmission | B129: ='Peak Calc CP'!B48 -> 1.03 | C129: =C99*$B129 -> 0 | D129: 0 | E129: 0 | F129: 0 | G129: 0 | H129: 0 | I129: 0 | J129: 0 | K129: 0 | L129: 0 | M129: 0 | N129: 0 | O129: 0
A130: Schedule 25 Transmission | B130: ='Peak Calc CP'!B49 -> 1.03 | C130: =C100*$B130 -> 58734.72 | D130: 59550.48 | E130: 55137.96 | F130: 56287.44 | G130: 56324.52 | H130: 54878.4 | I130: 56176.2 | J130: 114354.72 | K130: 57881.88 | L130: 59365.08 | M130: 60255 | N130: 58845.96 | O130: 62316.03
A131: Schedule 25 Primary | B131: ='Peak Calc CP'!B50 -> 1.046 | C131: =C101*$B131 -> 85100.88535 | D131: 86776.9968 | E131: 84707.9042 | F131: 91461.08835 | G131: 90255.9928 | H131: 88676.6374 | I131: 85903.0638 | J131: 115173.5956 | K131: 83613.1606 | L131: 82982.9456 | M131: 83454.9008 | N131: 81422.6274 | O131: 88294.14989
A132: Schedule 25 Secondary | B132: ='Peak Calc CP'!B51 -> 1.062 | C132: =C102*$B132 -> 11489.1408 | D132: 11942.8272 | E132: 10752.1128 | F132: 14034.1176 | G132: 15559.9992 | H132: 15113.1096 | I132: 11071.9872 | J132: 19211.58 | K132: 11580.8976 | L132: 10553.52297 | M132: 9764.028 | N132: 11498.4864 | O132: 12714.31745
A133: Total | C133: =SUM(C122:C132) -> 1121813.22 | D133: 1132331.399 | E133: 1118631.831 | F133: 962329.6736 | G133: 904724.802 | H133: 946244.7207 | I133: 988312.6391 | J133: 1221104.6 | K133: 1104502.104 | L133: 828550.3147 | M133: 907994.4925 | N133: 1086027.152 | O133: 1026880.579
A135: Idaho
A136: =A106 -> Schedule 1 | B136: ='Peak Calc CP'!B55 -> 1.062 | C136: =C106*$B136 -> 294258.1342 | D136: 299627.7431 | E136: 321926.2787 | F136: 219731.2941 | G136: 171670.0951 | H136: 185286.5907 | I136: 227482.3964 | J136: 253594.6276 | K136: 225310.3547 | L136: 163014.4938 | M136: 215605.3315 | N136: 297349.9581 | O136: =AVERAGE(C136:N136) -> 239571.4415
A137: =A107 -> Schedule 11/12 | B137: ='Peak Calc CP'!B56 -> 1.062 | C137: =C107*$B137 -> 74947.49009 | D137: 80747.81486 | E137: 72040.78401 | F137: 68104.80998 | G137: 66761.77289 | H137: 67958.64116 | I137: 75053.39404 | J137: 78952.03818 | K137: 76691.28681 | L137: 52454.6396 | M137: 60704.24905 | N137: 77528.52057 | O137: 70995.45344
A138: =A108 -> Schedule 11/12 Demand Metered | B138: ='Peak Calc CP'!B57 -> 1.062 | C138: =C108*$B138 -> 0 | D138: 0 | E138: 0 | F138: 0 | G138: 0 | H138: 0 | I138: 0 | J138: 0 | K138: 0 | L138: 0 | M138: 0 | N138: 0 | O138: 0
A139: =A109 -> Schedule 21/22 Secondary | B139: ='Peak Calc CP'!B58 -> 1.062 | C139: =C109*$B139 -> 118947.0881 | D139: 121172.0944 | E139: 109122.1289 | F139: 111790.5589 | G139: 109229.5313 | H139: 113656.6933 | I139: 117408.2226 | J139: 120475.6476 | K139: 122334.7683 | L139: 99965.72206 | M139: 107709.0264 | N139: 116236.6692 | O139: 114004.0126
A140: Schedule 21 Primary | B140: ='Peak Calc CP'!B59 -> 1.046 | C140: =C110*$B140-'Schedule Shifting Adj - ID'!D14 -> 9475.095076 | D140: =D110*$B140-'Schedule Shifting Adj - ID'!E14 -> 9967.892591 | E140: =E110*$B140-'Schedule Shifting Adj - ID'!F14 -> 8126.60646 | F140: =F110*$B140-'Schedule Shifting Adj - ID'!G14 -> 9236.865424 | G140: =G110*$B140-'Schedule Shifting Adj - ID'!H14 -> 8114.473136 | H140: =H110*$B140-'Schedule Shifting Adj - ID'!I14 -> 7827.76795 | I140: =I110*$B140-'Schedule Shifting Adj - ID'!J14 -> 7103.839307 | J140: =J110*$B140-'Schedule Shifting Adj - ID'!K14 -> 7363.508575 | K140: =K110*$B140-'Schedule Shifting Adj - ID'!L14 -> 8162.795019 | L140: =L110*$B140-'Schedule Shifting Adj - ID'!M14 -> 7828.492907 | M140: =M110*$B140-'Schedule Shifting Adj - ID'!N14 -> 8707.612912 | N140: =N110*$B140-'Schedule Shifting Adj - ID'!O14 -> 8661.591745 | O140: 8381.378425
A141: Schedule 31/32 | B141: ='Peak Calc CP'!B60 -> 1.062 | C141: =C111*$B141 -> 16128.76802 | D141: 15533.00505 | E141: 19303.71393 | F141: 15293.94303 | G141: 21886.41974 | H141: 21754.75136 | I141: 27208.9705 | J141: 25733.96285 | K141: 28897.62372 | L141: 20515.72863 | M141: 15353.59599 | N141: 16345.186 | O141: 20329.63907
A142: Street Lights | B142: ='Peak Calc CP'!B61 -> 1.062 | C142: =C112*$B142 -> 1845.535664 | D142: 1845.535664 | E142: 1845.535664 | F142: 1845.535664 | G142: 1845.535664 | H142: 1845.535664 | I142: 1845.535664 | J142: 1845.535664 | K142: 1845.535664 | L142: 1845.535664 | M142: 1845.535664 | N142: 1845.535664 | O142: 1845.535664
A143: Area Lights | B143: ='Peak Calc CP'!B62 -> 1.062 | C143: =C113*$B143 -> 1015.39706 | D143: 1015.39706 | E143: 1015.39706 | F143: 1015.39706 | G143: 1015.39706 | H143: 1015.39706 | I143: 1015.39706 | J143: 1015.39706 | K143: 1015.39706 | L143: 1015.39706 | M143: 1015.39706 | N143: 1015.39706 | O143: 1015.39706
A144: Schedule 25 Primary | B144: ='Peak Calc CP'!B63 -> 1.046 | C144: =C114*$B144+'Schedule Shifting Adj - ID'!D14 -> 47154.06388 | D144: =D114*$B144+'Schedule Shifting Adj - ID'!E14 -> 48159.73744 | E144: =E114*$B144+'Schedule Shifting Adj - ID'!F14 -> 46069.77819 | F144: =F114*$B144+'Schedule Shifting Adj - ID'!G14 -> 46824.28832 | G144: =G114*$B144+'Schedule Shifting Adj - ID'!H14 -> 49503.52632 | H144: =H114*$B144+'Schedule Shifting Adj - ID'!I14 -> 47157.682 | I144: =I114*$B144+'Schedule Shifting Adj - ID'!J14 -> 47212.55725 | J144: =J114*$B144+'Schedule Shifting Adj - ID'!K14 -> 56602.6164 | K144: =K114*$B144+'Schedule Shifting Adj - ID'!L14 -> 47800.16344 | L144: =L114*$B144+'Schedule Shifting Adj - ID'!M14 -> 49320.26294 | M144: =M114*$B144+'Schedule Shifting Adj - ID'!N14 -> 48507.27827 | N144: =N114*$B144+'Schedule Shifting Adj - ID'!O14 -> 50732.01044 | O144: 48753.66374
A145: =A115 -> Schedule 25 Secondary | B145: ='Peak Calc CP'!B64 -> 1.062 | C145: =C115*$B145 -> 647.3952 | D145: =D115*$B145 -> 560.736 | E145: 937.9584 | F145: 560.736 | G145: 652.4928 | H145: 407.808 | I145: 418.0032 | J145: 463.8816 | K145: 555.6384 | L145: 453.6864 | M145: 627.0048 | N145: 560.736 | O145: 570.5064
A146: =A116 -> Schedule 25P Primary | B146: ='Peak Calc CP'!B65 -> 1.046 | C146: =C116*$B146 -> 58063.46 | D146: =D116*$B146 -> 58722.44 | E146: 78125.74 | F146: 106963.96 | G146: 106974.42 | H146: 93407.8 | I146: 77822.4 | J146: 66808.02 | K146: 78805.64 | L146: 74318.3 | M146: 54224.64 | N146: 70824.66 | O146: 77088.45667
A147: =A117 -> Schedule 25P Generation | B147: ='Peak Calc CP'!B66 -> 1 | C147: =C117*$B147 -> 0 | D147: =D117*$B147 -> 0 | E147: 0 | F147: 0 | G147: 0 | H147: 0 | I147: 0 | J147: 0 | K147: 0 | L147: 0 | M147: 0 | N147: 0 | O147: 0
A148: Total | C148: =SUM(C136:C147) -> 622482.4273 | D148: =SUM(D136:D147) -> 637352.3962 | E148: 658513.9214 | F148: 581367.3885 | G148: 537653.664 | H148: 540318.6672 | I148: 582570.716 | J148: 612855.2356 | K148: 591419.203 | L148: 470732.2591 | M148: 514299.6716 | N148: 641100.2647 | O148: =SUM(O136:O147) -> 582555.4846
A151: Street and Area Lights | B151: Idaho | C151: =C142+C143 -> 2860.932724 | D151: =D142+D143 -> 2860.932724 | E151: 2860.932724 | F151: 2860.932724 | G151: 2860.932724 | H151: 2860.932724 | I151: 2860.932724 | J151: 2860.932724 | K151: 2860.932724 | L151: 2860.932724 | M151: 2860.932724 | N151: 2860.932724 | O151: =SUM(C151:N151) -> 34331.19269

Sheet Peak Calc Billing kW est
A1: AVISTA UTILITIES
A2: Electric Cost Study
A3: Twelve Months Ended December 31, 2018
A4: Estimated Billing Peak Calculations
A5: =RIGHT(A3,4) -> 2018 | C5: =DATE($A5,COLUMN(C1)-COLUMN($C1)+2,0) -> 2018-01-31 | D5: =DATE($A5,COLUMN(D1)-COLUMN($C1)+2,0) -> 2018-02-28 | E5: 2018-03-31 | F5: 2018-04-30 | G5: 2018-05-31 | H5: 2018-06-30 | I5: 2018-07-31 | J5: 2018-08-31 | K5: 2018-09-30 | L5: 2018-10-31 | M5: 2018-11-30 | N5: 2018-12-31
A6: 2014 Peak Study Estimated Billing Peak
A9: Washington
A10: Schedule 1 | C10: 1532794.33 | D10: 1573167.53 | E10: 1485152.94 | F10: 1340494.9 | G10: 1240116.55 | H10: 1251942.07 | I10: 1337810.24 | J10: 1295810.34 | K10: 1291960.61 | L10: 1374625.44 | M10: 1460726.95 | N10: 1588979.67
A11: Schedule 11/12 | C11: 212496.86 | D11: 222798.72 | E11: 210544.46 | F11: 195152.76 | G11: 190258.33 | H11: 187706.61 | I11: 211017.51 | J11: 205230.87 | K11: 206309.43 | L11: 197819.48 | M11: 202994.35 | N11: 219421
A12: Schedule 21/22 Secondary | C12: 255572 | D12: 263659.23 | E12: 258513.13 | F12: 254799.44 | G12: 283461.84 | H12: 280541.8 | I12: 314780.07 | J12: 311514.19 | K12: 326416.01 | L12: 275958.19 | M12: 267561.18 | N12: 269192.37
A13: Schedule 21 Primary | C13: 28557.99 | D13: 29385.14 | E13: 28542.09 | F13: 27741.36 | G13: 29304.37 | H13: 29349.65 | I13: 31298.61 | J13: 29854.23 | K13: 29456.73 | L13: 26076.17 | M13: 25890.29 | N13: 28356.02
A14: Schedule 31/32 | C14: 32862.66 | D14: 24043.33 | E14: 26304.58 | F14: 45125.57 | G14: 65844.93 | H14: 66747.34 | I14: 68989.61 | J14: 57916.93 | K14: 43411.43 | L14: 35825.76 | M14: 21751.9 | N14: 24460.27
A15: Total Washington | C15: =SUM(C10:C14) -> 2062283.84 | D15: 2113053.95 | E15: 2009057.2 | F15: 1863314.03 | G15: 1808986.02 | H15: 1816287.47 | I15: 1963896.04 | J15: 1900326.56 | K15: 1897554.21 | L15: 1910305.04 | M15: 1978924.67 | N15: 2130409.33
A17: Idaho
A18: Schedule 1 | C18: 731101.08 | D18: 767700.69 | E18: 717778.53 | F18: 631690.65 | G18: 616013 | H18: 583732.64 | I18: 602144.49 | J18: 622828.55 | K18: 640928.16 | L18: 643206.91 | M18: 674116.76 | N18: 735227.51
A19: Schedule 11/12 | C19: 147699.92 | D19: 148613.31 | E19: 151533.42 | F19: 131878.18 | G19: 129263.67 | H19: 130229.57 | I19: 128655.14 | J19: 122026.25 | K19: 120283.19 | L19: 122060.16 | M19: 129351 | N19: 178515.93
A20: Schedule 21/22 Secondary | C20: 135125.36 | D20: 137838.98 | E20: 132357.32 | F20: 132601.27 | G20: 132518.68 | H20: 131054.12 | I20: 148941.75 | J20: 150501.05 | K20: 147877.2 | L20: 131536.29 | M20: 133235.58 | N20: 137792.44
A21: Schedule 21 Primary | C21: 20632.71 | D21: 20672.89 | E21: 20943.8 | F21: 20488.29 | G21: 19975.29 | H21: 19773.98 | I21: 18964.35 | J21: 19180.46 | K21: 19307.64 | L21: 19519.78 | M21: 20560.83 | N21: 21399.31
A22: Schedule 31/32 | C22: 23623.94 | D22: 19491.45 | E22: 31410.98 | F22: 26032.68 | G22: 38090.07 | H22: 39449.95 | I22: 51325.4 | J22: 43851.89 | K22: 47064.91 | L22: 22924.41 | M22: 23326.97 | N22: 27330.67
A23: Total Idaho | C23: =SUM(C18:C22) -> 1058183.01 | D23: 1094317.32 | E23: 1054024.05 | F23: 942691.07 | G23: 935860.71 | H23: 904240.26 | I23: 950031.13 | J23: 958388.2 | K23: 975461.1 | L23: 939247.55 | M23: 980591.14 | N23: 1100265.86
A25: monthly kWh consumption | C25: Jan | D25: Feb | E25: Mar | F25: Apr | G25: May | H25: Jun | I25: Jul | J25: Aug | K25: Sep | L25: Oct | M25: Nov | N25: Dec
A26: Washington
A27: =A10 -> Schedule 1 | C27: 274145636.9 | D27: 264080031.4 | E27: 225090809.4 | F27: 175969889.8 | G27: 157862499.3 | H27: 157780438.1 | I27: 224439339.4 | J27: 206247756.8 | K27: 171964807.3 | L27: 194630473.9 | M27: 243789672.8 | N27: 310636626.9
A28: =A11 -> Schedule 11/12 | C28: 60470813.12 | D28: 55841909.32 | E28: 53036987.99 | F28: 46792751.08 | G28: 46682773.56 | H28: 46086295.78 | I28: 56493222.02 | J28: 53658065.37 | K28: 48977016.12 | L28: 49930255.51 | M28: 54443209.96 | N28: 61779452.39
A29: =A12 -> Schedule 21/22 Secondary | C29: 115112236.3 | D29: 104931143.4 | E29: 109549055.5 | F29: 105331705.2 | G29: 113503682.5 | H29: 110129391.1 | I29: 125768613.1 | J29: 125685575.8 | K29: 115178491.3 | L29: 113349590.5 | M29: 111319943.5 | N29: 116194385.6
A30: =A13 -> Schedule 21 Primary | C30: 12824351.64 | D30: 12259201.57 | E30: 12736146.96 | F30: 12102715.9 | G30: 12288086.2 | H30: 11776620.6 | I30: 12892900.51 | J30: 12584113.49 | K30: 11365458.44 | L30: 12077046.49 | M30: 11618844.95 | N30: 12838879.14
A31: =A14 -> Schedule 31/32 | C31: 6066578.91 | D31: 4344676.39 | E31: 4776252.45 | F31: 6097816.18 | G31: 17895192.46 | H31: 24228254.89 | I31: 26393810.52 | J31: 21159226.24 | K31: 11680999.46 | L31: 6785895.63 | M31: 5290683.59 | N31: 5071140.78
A32: Total Washington | C32: =SUM(C27:C31) -> 468619616.9 | D32: 441456962.1 | E32: 405189252.3 | F32: 346294878.2 | G32: 348232233.9 | H32: 350001000.4 | I32: 445987885.5 | J32: 419334737.7 | K32: 359166772.6 | L32: 376773262 | M32: 426462354.9 | N32: 506520484.9
A34: Idaho
A35: =A18 -> Schedule 1 | C35: 139199851.5 | D35: 133633182.5 | E35: 117635348.7 | F35: 98131288.81 | G35: 80754914.16 | H35: 71756362.17 | I35: 93213781.98 | J35: 87867556.83 | K35: 76735058.52 | L35: 93922380.47 | M35: 113844327.1 | N35: 151248173.6
A36: =A19 -> Schedule 11/12 | C36: 41202569.99 | D36: 38804160.67 | E36: 35187479.64 | F36: 28766972.74 | G36: 26714399.83 | H36: 25857421.47 | I36: 30614799.57 | J36: 30620453.38 | K36: 27728993.44 | L36: 29961500.75 | M36: 33281014.88 | N36: 44164859.32
A37: Schedule 21/22 Secondary | C37: 56186903.71 | D37: 51509767.99 | E37: 53661657.29 | F37: 53115637.18 | G37: 54068840.03 | H37: 52531517.93 | I37: 54490134.92 | J37: 57049651.21 | K37: 52937224.08 | L37: 54269426.65 | M37: 53720422.54 | N37: 57454741.9
A38: Schedule 21 Primary | C38: 9059799.41 | D38: 8238944.38 | E38: 8825853.41 | F38: 8409761.46 | G38: 8123746.77 | H38: 8107965.46 | I38: 7835964.33 | J38: 7778007.83 | K38: 7506774.91 | L38: 8245671.34 | M38: 8403416.17 | N38: 8940971.6
A39: =A22 -> Schedule 31/32 | C39: 3157426.16 | D39: 3122714.45 | E39: 3260629.3 | F39: 2974703.96 | G39: 4298937.88 | H39: 6269028.51 | I39: 12076616.6 | J39: 9769644.03 | K39: 6942761.71 | L39: 3634800.64 | M39: 2733408 | N39: 3138474.66
A40: Total Idaho | C40: =SUM(C35:C39) -> 248806550.8 | D40: 235308770 | E40: 218570968.4 | F40: 191398364.2 | G40: 173960838.7 | H40: 164522295.5 | I40: 198231297.4 | J40: 193085313.3 | K40: 171850812.7 | L40: 190033779.8 | M40: 211982588.7 | N40: 264947221.1
C42: =C$5 -> 2018-01-31 | D42: =D$5 -> 2018-02-28 | E42: 2018-03-31 | F42: 2018-04-30 | G42: 2018-05-31 | H42: 2018-06-30 | I42: 2018-07-31 | J42: 2018-08-31 | K42: 2018-09-30 | L42: 2018-10-31 | M42: 2018-11-30 | N42: 2018-12-31
A43: 2014 Study Average kW (consumption/hours) | C43: =IF(MONTH(C$5)=IF($A$5+0>2006,3,4),-1,IF(MONTH(C$5)=IF($A$5+0>2006,11,10),1))+DAY(C$5)*24 -> 744 | D43: =IF(MONTH(D$5)=IF($A$5+0>2006,3,4),-1,IF(MONTH(D$5)=IF($A$5+0>2006,11,10),1))+DAY(D$5)*24 -> 672 | E43: 743 | F43: 720 | G43: 744 | H43: 720 | I43: 744 | J43: 744 | K43: 720 | L43: 744 | M43: 721 | N43: 744
A44: Washington
A45: =A27 -> Schedule 1 | C45: =C27/C$43 -> 368475.3185 | D45: =D27/D$43 -> 392976.2372 | E45: 302948.5995 | F45: 244402.6247 | G45: 212180.7786 | H45: 219139.4973 | I45: 301665.7787 | J45: 277214.7269 | K45: 238840.0101 | L45: 261600.0994 | M45: 338127.1468 | N45: 417522.348
A46: =A28 -> Schedule 11/12 | C46: 81277.97462 | D46: 83098.07935 | E46: 71382.21802 | F46: 64989.93206 | G46: 62745.66339 | H46: 64008.74414 | I46: 75931.75003 | J46: 72121.0556 | K46: 68023.6335 | L46: 67110.55848 | M46: 75510.69343 | N46: 83036.89837
A47: =A29 -> Schedule 21/22 Secondary | C47: 154720.7477 | D47: 156147.5348 | E47: 147441.5283 | F47: 146294.0351 | G47: 152558.713 | H47: 152957.4876 | I47: 169043.8348 | J47: 168932.2255 | K47: 159970.1267 | L47: 152351.6001 | M47: 154396.593 | N47: 156175.2495
A48: =A30 -> Schedule 21 Primary | C48: 17237.03177 | D48: 18242.85948 | E48: 17141.51677 | F48: 16809.32764 | G48: 16516.24489 | H48: 16356.4175 | I48: 17329.16735 | J48: 16914.13103 | K48: 15785.35894 | L48: 16232.58937 | M48: 16114.90284 | N48: 17256.55798
A49: =A31 -> Schedule 31/32 | C49: 8154.003911 | D49: 6465.292247 | E49: 6428.334388 | F49: 8469.189139 | G49: 24052.67804 | H49: 33650.35401 | I49: 35475.55177 | J49: 28439.82022 | K49: 16223.61036 | L49: 9120.82746 | M49: 7337.980014 | N49: 6816.049435
A51: Idaho
A52: =A35 -> Schedule 1 | C52: =C35/C$43 -> 187096.5746 | D52: 198858.9026 | E52: 158324.83 | F52: 136293.4567 | G52: 108541.5513 | H52: 99661.61413 | I52: 125287.3414 | J52: 118101.5549 | K52: 106576.4702 | L52: 126239.7587 | M52: 157897.8184 | N52: 203290.5559
A53: =A36 -> Schedule 11/12 | C53: =C36/C$43 -> 55379.79837 | D53: 57744.28671 | E53: 47358.65362 | F53: 39954.12881 | G53: 35906.45138 | H53: 35913.08537 | I53: 41148.92415 | J53: 41156.52336 | K53: 38512.49089 | L53: 40270.83434 | M53: 46159.52133 | N53: 59361.37005
A54: =A37 -> Schedule 21/22 Secondary | C54: =C37/C$43 -> 75520.03187 | D54: 76651.44046 | E54: 72222.95732 | F54: 73771.71831 | G54: 72673.17208 | H54: 72960.44157 | I54: 73239.42866 | J54: 76679.63872 | K54: 73523.92233 | L54: 72942.77776 | M54: 74508.21434 | N54: 77224.11546
A55: =A38 -> Schedule 21 Primary | C55: =C38/C$43 -> 12177.14974 | D55: 12260.3339 | E55: 11878.67215 | F55: 11680.22425 | G55: 10919.01448 | H55: 11261.06314 | I55: 10532.21012 | J55: 10454.3116 | K55: 10426.07626 | L55: 11082.89159 | M55: 11655.22354 | N55: 12017.43495
A56: =A39 -> Schedule 31/32 | C56: =C39/C$43 -> 4243.852366 | D56: 4646.896503 | E56: 4388.464738 | F56: 4131.533278 | G56: 5778.142312 | H56: 8706.984042 | I56: 16232.01156 | J56: 13131.24198 | K56: 9642.724597 | L56: 4885.484731 | M56: 3791.134535 | N56: 4218.379919
A58: Ratio of Billing Peak kW to Average kW
A59: Washington
A60: =A45 -> Schedule 1 | C60: =C10/C45 -> 4.159829039 | D60: 4.003212869 | E60: 4.902326476 | F60: 5.484781114 | G60: 5.844622488 | H60: 5.712991429 | I60: 4.434743131 | J60: 4.674392138 | K60: 5.409313997 | L60: 5.254682408 | M60: 4.320052276 | N60: 3.805735615
A61: =A46 -> Schedule 11/12 | C61: =C11/C46 -> 2.614445808 | D61: 2.681153665 | E61: 2.949536535 | F61: 3.002815264 | G61: 3.032214813 | H61: 2.93251512 | I61: 2.779041836 | J61: 2.845644289 | K61: 3.032908114 | L61: 2.947665531 | M61: 2.688286133 | N61: 2.642451781
A62: =A47 -> Schedule 21/22 Secondary | C62: =C12/C47 -> 1.651827591 | D62: 1.688526369 | E62: 1.753326441 | F62: 1.741693979 | G62: 1.858050809 | H62: 1.834116161 | I62: 1.862120972 | J62: 1.844018742 | K62: 2.040481036 | L62: 1.811324527 | M62: 1.732947436 | N62: 1.72365577
A63: =A48 -> Schedule 21 Primary | C63: =C13/C48 -> 1.656781189 | D63: 1.610774892 | E63: 1.66508544 | F63: 1.650355124 | G63: 1.774275581 | H63: 1.794381319 | I63: 1.806123131 | J63: 1.765046631 | K63: 1.866079201 | L63: 1.606408528 | M63: 1.606605404 | N63: 1.643202545
A64: =A49 -> Schedule 31/32 | C64: =C14/C49 -> 4.030248251 | D64: 3.718831119 | E64: 4.091974439 | F64: 5.328204301 | G64: 2.737530095 | H64: 1.983555358 | I64: 1.944708582 | J64: 2.036473141 | K64: 2.675818084 | L64: 3.927906778 | M64: 2.964289894 | N64: 3.588628608
A66: Idaho
A67: =A52 -> Schedule 1 | C67: =C18/C52 -> 3.90761339 | D67: 3.860529652 | E67: 4.53358156 | F67: 4.634783396 | G67: 5.675365726 | H67: 5.857146155 | I67: 4.806107971 | J67: 5.273669349 | K67: 6.013786711 | L67: 5.09512151 | M67: 4.269322823 | N67: 3.61663387
A68: =A53 -> Schedule 11/12 | C68: =C19/C53 -> 2.667036073 | D68: 2.573645264 | E68: 3.199698649 | F68: 3.300739722 | G68: 3.600012394 | H68: 3.626242876 | I68: 3.126573602 | J68: 2.964930952 | K68: 3.123225406 | L68: 3.030981652 | M68: 2.802260428 | N68: 3.007274425
A69: =A54 -> Schedule 21/22 Secondary | C69: =C20/C54 -> 1.789265135 | D69: 1.798256878 | E69: 1.832621162 | F69: 1.797453998 | G69: 1.823488314 | H69: 1.796235291 | I69: 2.033627962 | J69: 1.962725079 | K69: 2.011280075 | L69: 1.803280517 | M69: 1.788199881 | N69: 1.784318787
A70: =A55 -> Schedule 21 Primary | C70: =C21/C55 -> 1.694379262 | D70: 1.68616044 | E70: 1.763143197 | F70: 1.75410074 | G70: 1.829404114 | H70: 1.755960317 | I70: 1.800604981 | J70: 1.834693735 | K70: 1.851860615 | L70: 1.761253356 | M70: 1.764087144 | N70: 1.780688649
A71: =A56 -> Schedule 31/32 | C71: =C22/C56 -> 5.566626255 | D71: 4.194509171 | E71: 7.15762388 | F71: 6.300973089 | G71: 6.592096204 | H71: 4.530839819 | I71: 3.161986413 | J71: 3.339508181 | K71: 4.880872571 | L71: 4.692351171 | M71: 6.153031443 | N71: 6.478949389
A73: =RIGHT(A3,4) -> 2018 | C73: =C$5 -> 2018-01-31 | D73: =D$5 -> 2018-02-28 | E73: 2018-03-31 | F73: 2018-04-30 | G73: 2018-05-31 | H73: 2018-06-30 | I73: 2018-07-31 | J73: 2018-08-31 | K73: 2018-09-30 | L73: 2018-10-31 | M73: 2018-11-30 | N73: 2018-12-31
A74: 2018 Average kW (consumption/hours) | C74: =C43 -> 744 | D74: =D43 -> 672 | E74: 743 | F74: 720 | G74: 744 | H74: 720 | I74: 744 | J74: 744 | K74: 720 | L74: 744 | M74: 721 | N74: 744
A75: Washington
A76: Schedule 1 | C76: ='12.2018 WA Usage'!C87/C$74 -> 389895.9916 | D76: ='12.2018 WA Usage'!D87/D$74 -> 337853.4317 | E76: ='12.2018 WA Usage'!E87/E$74 -> 313023.0212 | F76: ='12.2018 WA Usage'!F87/F$74 -> 271348.2409 | G76: ='12.2018 WA Usage'!G87/G$74 -> 214181.8312 | H76: ='12.2018 WA Usage'!H87/H$74 -> 206958.5953 | I76: ='12.2018 WA Usage'!I87/I$74 -> 218663.7512 | J76: ='12.2018 WA Usage'!J87/J$74 -> 275228.3747 | K76: ='12.2018 WA Usage'!K87/K$74 -> 230032.5571 | L76: ='12.2018 WA Usage'!L87/L$74 -> 200430.7802 | M76: ='12.2018 WA Usage'!M87/M$74 -> 250813.6731 | N76: ='12.2018 WA Usage'!N87/N$74 -> 329612.2139
A77: Schedule 11/12 | C77: =(SUM('12.2018 WA Usage'!C89:C90)+'12.2018 WA Usage'!C116)/C$74 -> 87322.60379 | D77: =(SUM('12.2018 WA Usage'!D89:D90)+'12.2018 WA Usage'!D116)/D$74 -> 83270.99587 | E77: =(SUM('12.2018 WA Usage'!E89:E90)+'12.2018 WA Usage'!E116)/E$74 -> 75020.33098 | F77: =(SUM('12.2018 WA Usage'!F89:F90)+'12.2018 WA Usage'!F116)/F$74 -> 70405.88905 | G77: =(SUM('12.2018 WA Usage'!G89:G90)+'12.2018 WA Usage'!G116)/G$74 -> 63102.40466 | H77: =(SUM('12.2018 WA Usage'!H89:H90)+'12.2018 WA Usage'!H116)/H$74 -> 64028.74559 | I77: =(SUM('12.2018 WA Usage'!I89:I90)+'12.2018 WA Usage'!I116)/I$74 -> 64742.3974 | J77: =(SUM('12.2018 WA Usage'!J89:J90)+'12.2018 WA Usage'!J116)/J$74 -> 74207.55148 | K77: =(SUM('12.2018 WA Usage'!K89:K90)+'12.2018 WA Usage'!K116)/K$74 -> 67378.45598 | L77: =(SUM('12.2018 WA Usage'!L89:L90)+'12.2018 WA Usage'!L116)/L$74 -> 61346.6407 | M77: =(SUM('12.2018 WA Usage'!M89:M90)+'12.2018 WA Usage'!M116)/M$74 -> 66196.44245 | N77: =(SUM('12.2018 WA Usage'!N89:N90)+'12.2018 WA Usage'!N116)/N$74 -> 76659.17847
A78: Schedule 21/22 Secondary | C78: =(SUM('12.2018 WA Usage'!C91:C92)-'12.2018 WA Usage'!C116)/C$74-C79 -> 156019.3694 | D78: =(SUM('12.2018 WA Usage'!D91:D92)-'12.2018 WA Usage'!D116)/D$74-D79 -> 155788.9542 | E78: =(SUM('12.2018 WA Usage'!E91:E92)-'12.2018 WA Usage'!E116)/E$74-E79 -> 139502.9386 | F78: =(SUM('12.2018 WA Usage'!F91:F92)-'12.2018 WA Usage'!F116)/F$74-F79 -> 142378.737 | G78: =(SUM('12.2018 WA Usage'!G91:G92)-'12.2018 WA Usage'!G116)/G$74-G79 -> 139324.3524 | H78: =(SUM('12.2018 WA Usage'!H91:H92)-'12.2018 WA Usage'!H116)/H$74-H79 -> 144465.7144 | I78: =(SUM('12.2018 WA Usage'!I91:I92)-'12.2018 WA Usage'!I116)/I$74-I79 -> 142589.3962 | J78: =(SUM('12.2018 WA Usage'!J91:J92)-'12.2018 WA Usage'!J116)/J$74-J79 -> 154109.5536 | K78: =(SUM('12.2018 WA Usage'!K91:K92)-'12.2018 WA Usage'!K116)/K$74-K79 -> 144324.4039 | L78: =(SUM('12.2018 WA Usage'!L91:L92)-'12.2018 WA Usage'!L116)/L$74-L79 -> 136859.7791 | M78: =(SUM('12.2018 WA Usage'!M91:M92)-'12.2018 WA Usage'!M116)/M$74-M79 -> 139114.4685 | N78: =(SUM('12.2018 WA Usage'!N91:N92)-'12.2018 WA Usage'!N116)/N$74-N79 -> 147792.2174
A79: Schedule 21 Primary | C79: ='12.2018 WA Usage'!C114/C$74 -> 13250.8629 | D79: ='12.2018 WA Usage'!D114/D$74 -> 12960.46577 | E79: ='12.2018 WA Usage'!E114/E$74 -> 11538.69044 | F79: ='12.2018 WA Usage'!F114/F$74 -> 11913.94861 | G79: ='12.2018 WA Usage'!G114/G$74 -> 11580.50679 | H79: ='12.2018 WA Usage'!H114/H$74 -> 13052.49694 | I79: ='12.2018 WA Usage'!I114/I$74 -> 11866.97457 | J79: ='12.2018 WA Usage'!J114/J$74 -> 13577.86214 | K79: ='12.2018 WA Usage'!K114/K$74 -> 13607.378 | L79: ='12.2018 WA Usage'!L114/L$74 -> 11592.07028 | M79: ='12.2018 WA Usage'!M114/M$74 -> 12135.58347 | N79: ='12.2018 WA Usage'!N114/N$74 -> 12311.20763
A80: Schedule 31/32 | C80: =SUM('12.2018 WA Usage'!C95:C97)/C$74 -> 6988.986126 | D80: =SUM('12.2018 WA Usage'!D95:D97)/D$74 -> 6391.853094 | E80: =SUM('12.2018 WA Usage'!E95:E97)/E$74 -> 5688.624226 | F80: =SUM('12.2018 WA Usage'!F95:F97)/F$74 -> 7394.209726 | G80: =SUM('12.2018 WA Usage'!G95:G97)/G$74 -> 13610.39743 | H80: =SUM('12.2018 WA Usage'!H95:H97)/H$74 -> 25717.55077 | I80: =SUM('12.2018 WA Usage'!I95:I97)/I$74 -> 31026.81806 | J80: =SUM('12.2018 WA Usage'!J95:J97)/J$74 -> 37655.6958 | K80: =SUM('12.2018 WA Usage'!K95:K97)/K$74 -> 33054.09443 | L80: =SUM('12.2018 WA Usage'!L95:L97)/L$74 -> 17392.07518 | M80: =SUM('12.2018 WA Usage'!M95:M97)/M$74 -> 8713.710505 | N80: =SUM('12.2018 WA Usage'!N95:N97)/N$74 -> 5374.036214
A82: Idaho
A83: Schedule 1 | C83: ='12.2018 ID Usage'!C103/C$74 -> 186031.765 | D83: ='12.2018 ID Usage'!D103/D$74 -> 168840.8574 | E83: ='12.2018 ID Usage'!E103/E$74 -> 155669.5656 | F83: ='12.2018 ID Usage'!F103/F$74 -> 136478.4947 | G83: ='12.2018 ID Usage'!G103/G$74 -> 102963.6667 | H83: ='12.2018 ID Usage'!H103/H$74 -> 99656.61203 | I83: ='12.2018 ID Usage'!I103/I$74 -> 108039.9141 | J83: ='12.2018 ID Usage'!J103/J$74 -> 126716.4141 | K83: ='12.2018 ID Usage'!K103/K$74 -> 105415.4965 | L83: ='12.2018 ID Usage'!L103/L$74 -> 98703.48679 | M83: ='12.2018 ID Usage'!M103/M$74 -> 127003.1614 | N83: ='12.2018 ID Usage'!N103/N$74 -> 168953.6388
A84: Schedule 11/12 | C84: =SUM('12.2018 ID Usage'!C104:C105)/C$74-C85 -> 51959.44846 | D84: =SUM('12.2018 ID Usage'!D104:D105)/D$74-D85 -> 50761.08632 | E84: =SUM('12.2018 ID Usage'!E104:E105)/E$74-E85 -> 45500.52947 | F84: =SUM('12.2018 ID Usage'!F104:F105)/F$74-F85 -> 42272.19652 | G84: =SUM('12.2018 ID Usage'!G104:G105)/G$74-G85 -> 36803.86659 | H84: =SUM('12.2018 ID Usage'!H104:H105)/H$74-H85 -> 37841.48547 | I84: =SUM('12.2018 ID Usage'!I104:I105)/I$74-I85 -> 39410.72161 | J84: =SUM('12.2018 ID Usage'!J104:J105)/J$74-J85 -> 43913.23399 | K84: =SUM('12.2018 ID Usage'!K104:K105)/K$74-K85 -> 40496.85403 | L84: =SUM('12.2018 ID Usage'!L104:L105)/L$74-L85 -> 35576.54019 | M84: =SUM('12.2018 ID Usage'!M104:M105)/M$74-M85 -> 39955.74707 | N84: =SUM('12.2018 ID Usage'!N104:N105)/N$74-N85 -> 48270.16216
A85: Schedule 11/12 Demand Metered | C85: ='12.2018 ID Usage'!C133/C$74 -> 0 | D85: ='12.2018 ID Usage'!D133/D$74 -> 0 | E85: ='12.2018 ID Usage'!E133/E$74 -> 0 | F85: ='12.2018 ID Usage'!F133/F$74 -> 0 | G85: ='12.2018 ID Usage'!G133/G$74 -> 0 | H85: ='12.2018 ID Usage'!H133/H$74 -> 0 | I85: ='12.2018 ID Usage'!I133/I$74 -> 0 | J85: ='12.2018 ID Usage'!J133/J$74 -> 0 | K85: ='12.2018 ID Usage'!K133/K$74 -> 0 | L85: ='12.2018 ID Usage'!L133/L$74 -> 0 | M85: ='12.2018 ID Usage'!M133/M$74 -> 0 | N85: ='12.2018 ID Usage'!N133/N$74 -> 0
A86: Schedule 21/22 Secondary | C86: =SUM('12.2018 ID Usage'!C106:C107)/C$74-C87 -> 71181.4794 | D86: =SUM('12.2018 ID Usage'!D106:D107)/D$74-D87 -> 74176.04175 | E86: =SUM('12.2018 ID Usage'!E106:E107)/E$74-E87 -> 66092.87448 | F86: =SUM('12.2018 ID Usage'!F106:F107)/F$74-F87 -> 66459.38615 | G86: =SUM('12.2018 ID Usage'!G106:G107)/G$74-G87 -> 62262.75566 | H86: =SUM('12.2018 ID Usage'!H106:H107)/H$74-H87 -> 64847.50467 | I86: =SUM('12.2018 ID Usage'!I106:I107)/I$74-I87 -> 64860.60766 | J86: =SUM('12.2018 ID Usage'!J106:J107)/J$74-J87 -> 69842.95181 | K86: =SUM('12.2018 ID Usage'!K106:K107)/K$74-K87 -> 67893.06365 | L86: =SUM('12.2018 ID Usage'!L106:L107)/L$74-L87 -> 60656.57508 | M86: =SUM('12.2018 ID Usage'!M106:M107)/M$74-M87 -> 63548.17703 | N86: =SUM('12.2018 ID Usage'!N106:N107)/N$74-N87 -> 69081.96747
A87: Schedule 21 Primary | C87: ='12.2018 ID Usage'!C132/C$74 -> 5067.630644 | D87: ='12.2018 ID Usage'!D132/D$74 -> 5346.875792 | E87: ='12.2018 ID Usage'!E132/E$74 -> 4522.388022 | F87: ='12.2018 ID Usage'!F132/F$74 -> 4756.832474 | G87: ='12.2018 ID Usage'!G132/G$74 -> 4170.050286 | H87: ='12.2018 ID Usage'!H132/H$74 -> 4016.193054 | I87: ='12.2018 ID Usage'!I132/I$74 -> 3776.660801 | J87: ='12.2018 ID Usage'!J132/J$74 -> 4005.700254 | K87: ='12.2018 ID Usage'!K132/K$74 -> 4151.980829 | L87: ='12.2018 ID Usage'!L132/L$74 -> 4122.675524 | M87: ='12.2018 ID Usage'!M132/M$74 -> 4549.413592 | N87: ='12.2018 ID Usage'!N132/N$74 -> 4627.389785
A88: Schedule 31/32 | C88: =SUM('12.2018 ID Usage'!C111:C113)/C$74 -> 4939.273141 | D88: =SUM('12.2018 ID Usage'!D111:D113)/D$74 -> 5294.216162 | E88: =SUM('12.2018 ID Usage'!E111:E113)/E$74 -> 4671.994689 | F88: =SUM('12.2018 ID Usage'!F111:F113)/F$74 -> 4770.21245 | G88: =SUM('12.2018 ID Usage'!G111:G113)/G$74 -> 5695.343546 | H88: =SUM('12.2018 ID Usage'!H111:H113)/H$74 -> 9040.881444 | I88: =SUM('12.2018 ID Usage'!I111:I113)/I$74 -> 11202.6883 | J88: =SUM('12.2018 ID Usage'!J111:J113)/J$74 -> 12948.86025 | K88: =SUM('12.2018 ID Usage'!K111:K113)/K$74 -> 10662.02956 | L88: =SUM('12.2018 ID Usage'!L111:L113)/L$74 -> 7038.296284 | M88: =SUM('12.2018 ID Usage'!M111:M113)/M$74 -> 4301.594397 | N88: =SUM('12.2018 ID Usage'!N111:N113)/N$74 -> 4806.109113
A90: Estimate 12 Monthly Billing Peaks | C90: =C$5 -> 2018-01-31 | D90: =D$5 -> 2018-02-28 | E90: 2018-03-31 | F90: 2018-04-30 | G90: 2018-05-31 | H90: 2018-06-30 | I90: 2018-07-31 | J90: 2018-08-31 | K90: 2018-09-30 | L90: 2018-10-31 | M90: 2018-11-30 | N90: 2018-12-31 | O90: Annual Total
A91: Washington
A92: =A76 -> Schedule 1 | C92: =C76*C60 -> 1621900.668 | D92: =D76*D60 -> 1352499.206 | E92: 1534541.044 | F92: 1488285.707 | G92: 1251811.947 | H92: 1182352.681 | I92: 969717.5686 | J92: 1286525.351 | K92: 1244318.331 | L92: 1053200.094 | M92: 1083528.179 | N92: 1254416.942 | O92: =SUM(C92:N92) -> 15323097.72
A93: =A77 -> Schedule 11/12 | C93: 228300.2154 | D93: 223262.3358 | E93: 221275.2071 | F93: 211415.8783 | G93: 191340.0462 | H93: 187765.2646 | I93: 179921.8309 | J93: 211168.2951 | K93: 204352.6659 | L93: 180829.3782 | M93: 177954.9783 | N93: 202568.1827 | O93: =SUM(C93:N93) -> 2420154.278
A94: =A78 -> Schedule 21/22 Secondary | C94: 257717.0992 | D94: 263053.7572 | E94: 244594.1908 | F94: 247980.1889 | G94: 258871.7256 | H94: 264966.9016 | I94: 265518.705 | J94: 284180.9051 | K94: 294491.2092 | L94: 247897.4747 | M94: 241078.0615 | N94: 254742.9084 | O94: 3125093.127
A95: =A79 -> Schedule 21 Primary | C95: 21953.7804 | D95: 20876.39285 | E95: 19212.90546 | F95: 19662.24614 | G95: 20547.01041 | H95: 23421.15668 | I95: 21433.21727 | J95: 23965.55982 | K95: 25392.44506 | L95: 18621.60056 | M95: 19497.09398 | N95: 20229.80772 | O95: 254813.2163
A96: =A80 -> Schedule 31/32 | C96: 28167.34911 | D96: 23770.22219 | E96: 23277.70493 | F96: 39397.86007 | G96: 37258.87256 | H96: 51012.18562 | I96: 60338.11936 | J96: 76684.81309 | K96: 88446.74364 | L96: 68314.44997 | M96: 25829.96399 | N96: 19285.4201 | O96: 541783.7046
A97: Street Lights | B97: ='Peak Calc CP'!B14 -> 10967850.23 | C97: =$B97/'2018 Daylight'!Hrs_Darkness -> 2556.479329 | D97: =$B97/'2018 Daylight'!Hrs_Darkness -> 2556.479329 | E97: =$B97/'2018 Daylight'!Hrs_Darkness -> 2556.479329 | F97: =$B97/'2018 Daylight'!Hrs_Darkness -> 2556.479329 | G97: =$B97/'2018 Daylight'!Hrs_Darkness -> 2556.479329 | H97: =$B97/'2018 Daylight'!Hrs_Darkness -> 2556.479329 | I97: =$B97/'2018 Daylight'!Hrs_Darkness -> 2556.479329 | J97: =$B97/'2018 Daylight'!Hrs_Darkness -> 2556.479329 | K97: =$B97/'2018 Daylight'!Hrs_Darkness -> 2556.479329 | L97: =$B97/'2018 Daylight'!Hrs_Darkness -> 2556.479329 | M97: =$B97/'2018 Daylight'!Hrs_Darkness -> 2556.479329 | N97: =$B97/'2018 Daylight'!Hrs_Darkness -> 2556.479329 | O97: 30677.75195
A98: Area Lights | B98: ='Peak Calc CP'!B15 -> 7574181.315 | C98: =$B98/'2018 Daylight'!Hrs_Darkness -> 1765.454266 | D98: =$B98/'2018 Daylight'!Hrs_Darkness -> 1765.454266 | E98: =$B98/'2018 Daylight'!Hrs_Darkness -> 1765.454266 | F98: =$B98/'2018 Daylight'!Hrs_Darkness -> 1765.454266 | G98: =$B98/'2018 Daylight'!Hrs_Darkness -> 1765.454266 | H98: =$B98/'2018 Daylight'!Hrs_Darkness -> 1765.454266 | I98: =$B98/'2018 Daylight'!Hrs_Darkness -> 1765.454266 | J98: =$B98/'2018 Daylight'!Hrs_Darkness -> 1765.454266 | K98: =$B98/'2018 Daylight'!Hrs_Darkness -> 1765.454266 | L98: =$B98/'2018 Daylight'!Hrs_Darkness -> 1765.454266 | M98: =$B98/'2018 Daylight'!Hrs_Darkness -> 1765.454266 | N98: =$B98/'2018 Daylight'!Hrs_Darkness -> 1765.454266 | O98: 21185.45119
A99: Schedule 21 Transmission | C99: 0 | D99: 0 | E99: 0 | F99: 0 | G99: 0 | H99: 0 | I99: 0 | J99: 0 | K99: 0 | L99: 0 | M99: 0 | N99: 0
A100: Schedule 25 Transmission | C100: ='WA Sch 25 (12.2018)'!D103+'WA Sch 25 (12.2018)'!D105 -> 61887 | D100: ='WA Sch 25 (12.2018)'!E103+'WA Sch 25 (12.2018)'!E105 -> 62443 | E100: ='WA Sch 25 (12.2018)'!F103+'WA Sch 25 (12.2018)'!F105 -> 62402 | F100: ='WA Sch 25 (12.2018)'!G103+'WA Sch 25 (12.2018)'!G105 -> 61411.3 | G100: ='WA Sch 25 (12.2018)'!H103+'WA Sch 25 (12.2018)'!H105 -> 65364.7 | H100: ='WA Sch 25 (12.2018)'!I103+'WA Sch 25 (12.2018)'!I105 -> 59328.3 | I100: ='WA Sch 25 (12.2018)'!J103+'WA Sch 25 (12.2018)'!J105 -> 61807.21 | J100: ='WA Sch 25 (12.2018)'!K103+'WA Sch 25 (12.2018)'!K105 -> 60540.94 | K100: ='WA Sch 25 (12.2018)'!L103+'WA Sch 25 (12.2018)'!L105 -> 62665.97 | L100: ='WA Sch 25 (12.2018)'!M103+'WA Sch 25 (12.2018)'!M105 -> 60701.58 | M100: ='WA Sch 25 (12.2018)'!N103+'WA Sch 25 (12.2018)'!N105 -> 61976.13 | N100: ='WA Sch 25 (12.2018)'!O103+'WA Sch 25 (12.2018)'!O105 -> 61206.48 | O100: =SUM(C100:N100) -> 741734.61
A101: Schedule 25 Primary | C101: ='WA Sch 25 (12.2018)'!D91-C100-C102 -> 36791.641 | D101: ='WA Sch 25 (12.2018)'!E91-D100-D102 -> 37984.937 | E101: ='WA Sch 25 (12.2018)'!F91-E100-E102 -> 37517.82 | F101: ='WA Sch 25 (12.2018)'!G91-F100-F102 -> 43151.06 | G101: ='WA Sch 25 (12.2018)'!H91-G100-G102 -> 42294.153 | H101: ='WA Sch 25 (12.2018)'!I91-H100-H102 -> 41967.23 | I101: ='WA Sch 25 (12.2018)'!J91-I100-I102 -> 45046.921 | J101: ='WA Sch 25 (12.2018)'!K91-J100-J102 -> 46939.975 | K101: ='WA Sch 25 (12.2018)'!L91-K100-K102 -> 43477.789 | L101: ='WA Sch 25 (12.2018)'!M91-L100-L102 -> 39660.633 | M101: ='WA Sch 25 (12.2018)'!N91-M100-M102 -> 36659.122 | N101: ='WA Sch 25 (12.2018)'!O91-N100-N102 -> 37854.023 | O101: 489345.304
A102: Schedule 25 Secondary | C102: ='WA Sch 25 (12.2018)'!D89+'WA Sch 25 (12.2018)'!D90+'WA Sch 25 (12.2018)'!D107-'WA Sch 25 (12.2018)'!D105-'WA Sch 25 (12.2018)'!D103 -> 3525.005 | D102: ='WA Sch 25 (12.2018)'!E89+'WA Sch 25 (12.2018)'!E90+'WA Sch 25 (12.2018)'!E107-'WA Sch 25 (12.2018)'!E105-'WA Sch 25 (12.2018)'!E103 -> 3267.375 | E102: ='WA Sch 25 (12.2018)'!F89+'WA Sch 25 (12.2018)'!F90+'WA Sch 25 (12.2018)'!F107-'WA Sch 25 (12.2018)'!F105-'WA Sch 25 (12.2018)'!F103 -> 4212.571 | F102: ='WA Sch 25 (12.2018)'!G89+'WA Sch 25 (12.2018)'!G90+'WA Sch 25 (12.2018)'!G107-'WA Sch 25 (12.2018)'!G105-'WA Sch 25 (12.2018)'!G103 -> 5790.881 | G102: ='WA Sch 25 (12.2018)'!H89+'WA Sch 25 (12.2018)'!H90+'WA Sch 25 (12.2018)'!H107-'WA Sch 25 (12.2018)'!H105-'WA Sch 25 (12.2018)'!H103 -> 644.481 | H102: ='WA Sch 25 (12.2018)'!I89+'WA Sch 25 (12.2018)'!I90+'WA Sch 25 (12.2018)'!I107-'WA Sch 25 (12.2018)'!I105-'WA Sch 25 (12.2018)'!I103 -> 4267.193 | I102: ='WA Sch 25 (12.2018)'!J89+'WA Sch 25 (12.2018)'!J90+'WA Sch 25 (12.2018)'!J107-'WA Sch 25 (12.2018)'!J105-'WA Sch 25 (12.2018)'!J103 -> 6545.185 | J102: ='WA Sch 25 (12.2018)'!K89+'WA Sch 25 (12.2018)'!K90+'WA Sch 25 (12.2018)'!K107-'WA Sch 25 (12.2018)'!K105-'WA Sch 25 (12.2018)'!K103 -> 6678.574 | K102: ='WA Sch 25 (12.2018)'!L89+'WA Sch 25 (12.2018)'!L90+'WA Sch 25 (12.2018)'!L107-'WA Sch 25 (12.2018)'!L105-'WA Sch 25 (12.2018)'!L103 -> 3254.416 | L102: ='WA Sch 25 (12.2018)'!M89+'WA Sch 25 (12.2018)'!M90+'WA Sch 25 (12.2018)'!M107-'WA Sch 25 (12.2018)'!M105-'WA Sch 25 (12.2018)'!M103 -> 4490.967 | M102: ='WA Sch 25 (12.2018)'!N89+'WA Sch 25 (12.2018)'!N90+'WA Sch 25 (12.2018)'!N107-'WA Sch 25 (12.2018)'!N105-'WA Sch 25 (12.2018)'!N103 -> 2170.3 | N102: ='WA Sch 25 (12.2018)'!O89+'WA Sch 25 (12.2018)'!O90+'WA Sch 25 (12.2018)'!O107-'WA Sch 25 (12.2018)'!O105-'WA Sch 25 (12.2018)'!O103 -> 3467.531 | O102: 48314.479
A103: Total Washington | C103: =SUM(C92:C102) -> 2264564.692 | D103: 1991479.159 | E103: 2151355.377 | F103: 2121417.055 | G103: 1872454.87 | H103: 1819402.846 | I103: 1614650.691 | J103: 2001006.347 | K103: 1970721.503 | L103: 1678038.111 | M103: 1653015.762 | N103: 1858093.228 | O103: 22996199.64
A105: Idaho
A106: =A83 -> Schedule 1 | C106: =C83*C67 -> 726940.2156 | D106: 651815.1364 | E106: 705740.6723 | F106: 632548.261 | G106: 584356.465 | H106: 583703.342 | I106: 519251.4921 | J106: 668260.4692 | K106: 633946.3118 | L106: 502906.2587 | M106: 542217.4954 | N106: 611043.4527 | O106: =SUM(C106:N106) -> 7362729.572
A107: Schedule 11/12 | C107: =C84*C68 -> 138577.7234 | D107: 130641.0294 | E107: 145587.9827 | F107: 139529.5182 | G107: 132494.3759 | H107: 137222.4171 | I107: 123220.5218 | J107: 130199.7067 | K107: 126480.8034 | L107: 107831.8406 | M107: 111966.4089 | N107: 145161.6242 | O107: =SUM(C107:N107) -> 1568913.952
A108: Schedule 11/12 Demand Metered | C108: =C85*C68 -> 0 | D108: 0 | E108: 0 | F108: 0 | G108: 0 | H108: 0 | I108: 0 | J108: 0 | K108: 0 | L108: 0 | M108: 0 | N108: 0 | O108: 0
A109: Schedule 21/22 Secondary | C109: =C86*C69 -> 127362.5393 | D109: 133387.5772 | E109: 121123.2005 | F109: 119457.6893 | G109: 113535.4073 | H109: 116481.3764 | I109: 131902.3453 | J109: 137082.5131 | K109: 136551.9661 | L109: 109380.8201 | M109: 113636.8426 | N109: 123264.2524 | O109: 1483166.53
A110: Schedule 21 Primary | C110: =C87*C69 -> 9067.334827 | D110: 9615.056167 | E110: 8287.823993 | F110: 8550.187547 | G110: 7604.037964 | H110: 7214.0277 | I110: 7680.323006 | J110: 7862.088349 | K110: 8350.796312 | L110: 7434.340452 | M110: 8135.260843 | N110: 8256.738527 | O110: 98058.01569
A111: Schedule 31/32 | C111: =C88*C71 -> 27495.08755 | D111: 22206.63825 | E111: 33440.38075 | F111: 30056.98028 | G111: 37544.25257 | H111: 40962.78565 | I111: 35422.74818 | J111: 43242.82475 | K111: 52040.00765 | L111: 33026.15781 | M111: 26467.84558 | N111: 31138.5377 | O111: 413044.2467
A112: Street Lights | B112: ='Peak Calc CP'!B28 -> 7455506.463 | C112: =$B112/'2018 Daylight'!Hrs_Darkness -> 1737.792527 | D112: =$B112/'2018 Daylight'!Hrs_Darkness -> 1737.792527 | E112: =$B112/'2018 Daylight'!Hrs_Darkness -> 1737.792527 | F112: =$B112/'2018 Daylight'!Hrs_Darkness -> 1737.792527 | G112: =$B112/'2018 Daylight'!Hrs_Darkness -> 1737.792527 | H112: =$B112/'2018 Daylight'!Hrs_Darkness -> 1737.792527 | I112: =$B112/'2018 Daylight'!Hrs_Darkness -> 1737.792527 | J112: =$B112/'2018 Daylight'!Hrs_Darkness -> 1737.792527 | K112: =$B112/'2018 Daylight'!Hrs_Darkness -> 1737.792527 | L112: =$B112/'2018 Daylight'!Hrs_Darkness -> 1737.792527 | M112: =$B112/'2018 Daylight'!Hrs_Darkness -> 1737.792527 | N112: =$B112/'2018 Daylight'!Hrs_Darkness -> 1737.792527 | O112: 20853.51033
A113: Area Lights | B113: ='Peak Calc CP'!B29 -> 4101952.346 | C113: =$B113/'2018 Daylight'!Hrs_Darkness -> 956.1177592 | D113: =$B113/'2018 Daylight'!Hrs_Darkness -> 956.1177592 | E113: =$B113/'2018 Daylight'!Hrs_Darkness -> 956.1177592 | F113: =$B113/'2018 Daylight'!Hrs_Darkness -> 956.1177592 | G113: =$B113/'2018 Daylight'!Hrs_Darkness -> 956.1177592 | H113: =$B113/'2018 Daylight'!Hrs_Darkness -> 956.1177592 | I113: =$B113/'2018 Daylight'!Hrs_Darkness -> 956.1177592 | J113: =$B113/'2018 Daylight'!Hrs_Darkness -> 956.1177592 | K113: =$B113/'2018 Daylight'!Hrs_Darkness -> 956.1177592 | L113: =$B113/'2018 Daylight'!Hrs_Darkness -> 956.1177592 | M113: =$B113/'2018 Daylight'!Hrs_Darkness -> 956.1177592 | N113: =$B113/'2018 Daylight'!Hrs_Darkness -> 956.1177592 | O113: 11473.41311
A114: Schedule 25 Primary | C114: ='ID Sch 25 (12.2018)'!E54-C115 -> 60269.498 | D114: ='ID Sch 25 (12.2018)'!F54-D115 -> 60422.027 | E114: ='ID Sch 25 (12.2018)'!G54-E115 -> 59781.166 | F114: ='ID Sch 25 (12.2018)'!H54-F115 -> 58783.853 | G114: ='ID Sch 25 (12.2018)'!I54-G115 -> 60309.717 | H114: ='ID Sch 25 (12.2018)'!J54-H115 -> 61420.008 | I114: ='ID Sch 25 (12.2018)'!K54-I115 -> 59538.318 | J114: ='ID Sch 25 (12.2018)'!L54-J115 -> 61534.92 | K114: ='ID Sch 25 (12.2018)'!M54-K115 -> 61402.293 | L114: ='ID Sch 25 (12.2018)'!N54-L115 -> 58892.167 | M114: ='ID Sch 25 (12.2018)'!O54-M115 -> 58446.771 | N114: ='ID Sch 25 (12.2018)'!P54-N115 -> 58794.024 | O114: =SUM(C114:N114) -> 719594.762
A115: Schedule 25 Secondary | C115: ='ID Sch 25 (12.2018)'!E83 -> 0 | D115: ='ID Sch 25 (12.2018)'!F83 -> 0 | E115: ='ID Sch 25 (12.2018)'!G83 -> 0 | F115: ='ID Sch 25 (12.2018)'!H83 -> 0 | G115: ='ID Sch 25 (12.2018)'!I83 -> 0 | H115: ='ID Sch 25 (12.2018)'!J83 -> 0 | I115: ='ID Sch 25 (12.2018)'!K83 -> 0 | J115: ='ID Sch 25 (12.2018)'!L83 -> 0 | K115: ='ID Sch 25 (12.2018)'!M83 -> 0 | L115: ='ID Sch 25 (12.2018)'!N83 -> 0 | M115: ='ID Sch 25 (12.2018)'!O83 -> 0 | N115: ='ID Sch 25 (12.2018)'!P83 -> 0 | O115: 0
A116: Schedule 25P Primary | C116: ='ID Sch 25 (12.2018)'!E91 -> 86200 | D116: ='ID Sch 25 (12.2018)'!F91 -> 56450 | E116: ='ID Sch 25 (12.2018)'!G91 -> 83990 | F116: ='ID Sch 25 (12.2018)'!H91 -> 60660 | G116: ='ID Sch 25 (12.2018)'!I91 -> 60400 | H116: ='ID Sch 25 (12.2018)'!J91 -> 89400 | I116: ='ID Sch 25 (12.2018)'!K91 -> 118390 | J116: ='ID Sch 25 (12.2018)'!L91 -> 118500 | K116: ='ID Sch 25 (12.2018)'!M91 -> 83600 | L116: ='ID Sch 25 (12.2018)'!N91 -> 77850 | M116: ='ID Sch 25 (12.2018)'!O91 -> 66790 | N116: ='ID Sch 25 (12.2018)'!P91 -> 79580 | O116: 981810
A117: Schedule 25P Generation | C117: 0 | D117: 0 | E117: 0 | F117: 0 | G117: 0 | H117: 0 | I117: 0 | J117: 0 | K117: 0 | L117: 0 | M117: 0 | N117: 0 | O117: 0
A118: Total Idaho | C118: =SUM(C106:C117) -> 1178606.309 | D118: =SUM(D106:D117) -> 1067231.375 | E118: 1160645.136 | F118: 1052280.4 | G118: 998938.166 | H118: 1039097.867 | I118: 998099.6587 | J118: 1169376.432 | K118: 1105066.089 | L118: 900015.4949 | M118: 930354.5346 | N118: 1059932.54 | O118: 12659644
A120: Total | C120: =SUM(C92:C102,C106:C117) -> 3443171.001 | D120: 3058710.534 | E120: 3312000.514 | F120: 3173697.454 | G120: 2871393.036 | H120: 2858500.713 | I120: 2612750.349 | J120: 3170382.779 | K120: 3075787.592 | L120: 2578053.606 | M120: 2583370.297 | N120: 2918025.768 | O120: 35655843.64

Sheet Generation Level Energy
A1: WUTC Docket No. UE-19____
A2: Normalized Usage by Month
A3: Twelve Months Ended December 31, 2018
A4: WASHINGTON ELECTRIC SYSTEM
D5: January | E5: February | F5: March | G5: April | H5: May | I5: June | J5: July | K5: August | L5: September | M5: October | N5: November | O5: December | P5: Annual Total
A7: Normalized Test Year Usage
B8: Residential Schedule 001/002 | D8: 292945712.1 | E8: 209125084 | F8: 229152606.2 | G8: 174130864.3 | H8: 159047392.7 | I8: 151500181.6 | J8: 166667942.6 | K8: 194633616.9 | L8: 145837333.6 | M8: 161623305.1 | N8: 216281572.5 | O8: 273758077 | P8: =SUM(D8:O8) -> 2374703689
B9: General Svc Schedule 011/012 | D9: 61842177.22 | E9: 55474186.22 | F9: 54102587.92 | G9: 47514875.11 | H9: 47298627.07 | I9: 46432321.83 | J9: 51151868.66 | K9: 50745216.3 | L9: 43885424.31 | M9: 49943728.68 | N9: 52992525.01 | O9: 57922413.78 | P9: 619305952.1
B10: Large Gen Svc Schedule 021/022 | D10: 109593425.8 | E10: 115965593.2 | F10: 108864331.4 | G10: 109146751.6 | H10: 116261884.2 | I10: 114370455.2 | J10: 123453224.8 | K10: 112125247.3 | L10: 104087347.9 | M10: 122196435.9 | N10: 117307306.4 | O10: 112532620.3 | P10: 1365904624
B11: Extra Large Gen Schedule 25 | D11: 93238368.5 | E11: 87059587.7 | F11: 95150558.5 | G11: 92496437 | H11: 94067376.6 | I11: 91430985.9 | J11: 95462593 | K11: 98727949.19 | L11: 89411353.69 | M11: 95120660.7 | N11: 88922599.88 | O11: 92475540.9 | P11: 1113564012
B12: Pumping Schedule 31/32 | D12: 5528837.678 | E12: 4179537.279 | F12: 4089372.8 | G12: 5346233.003 | H12: 11056361.69 | I12: 20734509.55 | J12: 25117040.64 | K12: 28742733.67 | L12: 22268510.99 | M12: 11147651.93 | N12: 4972313.274 | O12: 2639414.943 | P12: 145822517.4
B13: Street and Area Lights | D13: 1677509.998 | E13: 1505148.608 | F13: 1474261.937 | G13: 1503568.736 | H13: 1565521.43 | I13: 1544276.268 | J13: 1517440.931 | K13: 1578869.159 | L13: 1535455.022 | M13: 1534835.862 | N13: 1517745.801 | O13: 1587397.787 | P13: 18542031.54
A14: Total Normalized Test Year Usage | D14: =SUM(D8:D13) -> 564826031.3 | E14: 473309137 | F14: 492833718.7 | G14: 430138729.8 | H14: 429297163.7 | I14: 426012730.3 | J14: 463370110.7 | K14: 486553632.5 | L14: 407025425.6 | M14: 441566618.2 | N14: 481994062.9 | O14: 540915464.7 | P14: 5637842825
B16: Percentage of Annual Usage | D16: =ROUND(D14/$P$14,3) -> 0.1 | E16: =ROUND(E14/$P$14,3) -> 0.084 | F16: =ROUND(F14/$P$14,3)+0.001 -> 0.088 | G16: =ROUND(G14/$P$14,3) -> 0.076 | H16: 0.076 | I16: 0.076 | J16: 0.082 | K16: 0.086 | L16: 0.072 | M16: 0.078 | N16: =ROUND(N14/$P$14,3)+0.001 -> 0.086 | O16: =ROUND(O14/$P$14,3) -> 0.096 | P16: =SUM(D16:O16) -> 1
A18: By Service Voltage Level | C18: Loss Factor
B19: Secondary Residential Sch 01/02 | C19: =Loss_Sec -> 0.062 | D19: =D8*(1+$C19) -> 311108346.2 | E19: =E8*(1+$C19) -> 222090839.2 | F19: 243360067.8 | G19: 184926977.9 | H19: 168908331 | I19: 160893192.8 | J19: 177001355.1 | K19: 206700901.2 | L19: 154879248.3 | M19: 171643950 | N19: 229691030 | O19: 290731077.8 | P19: =SUM(D19:O19) -> 2521935317
B20: Secondary General Svc Sch 11/12 | C20: =Loss_Sec -> 0.062 | D20: =D9*(1+$C20) -> 65676392.21 | E20: =E9*(1+$C20) -> 58913585.77 | F20: 57456948.37 | G20: 50460797.37 | H20: 50231141.95 | I20: 49311125.78 | J20: 54323284.52 | K20: 53891419.71 | L20: 46606320.61 | M20: 53040239.86 | N20: 56278061.56 | O20: 61513603.44 | P20: =SUM(D20:O20) -> 657702921.1
B21: Secondary Large Gen Svc Sch 21/22 | C21: =Loss_Sec -> 0.062 | D21: =(D10-'12.2018 WA Usage'!C114)*(1+$C21) -> 105918340.4 | E21: =(E10-'12.2018 WA Usage'!D114)*(1+$C21) -> 113906042.2 | F21: =(F10-'12.2018 WA Usage'!E114)*(1+$C21) -> 106509131.6 | G21: =(G10-'12.2018 WA Usage'!F114)*(1+$C21) -> 106803968.5 | H21: =(H10-'12.2018 WA Usage'!G114)*(1+$C21) -> 114320038.4 | I21: =(I10-'12.2018 WA Usage'!H114)*(1+$C21) -> 111480962.1 | J21: =(J10-'12.2018 WA Usage'!I114)*(1+$C21) -> 121730895.9 | K21: =(K10-'12.2018 WA Usage'!J114)*(1+$C21) -> 108348763.6 | L21: =(L10-'12.2018 WA Usage'!K114)*(1+$C21) -> 100136018 | M21: =(M10-'12.2018 WA Usage'!L114)*(1+$C21) -> 120613395.7 | N21: =(N10-'12.2018 WA Usage'!M114)*(1+$C21) -> 115288118.9 | O21: =(O10-'12.2018 WA Usage'!N114)*(1+$C21) -> 109782212.8 | P21: 1334837888
B22: Primary Large Gen Svc Sch 21/22 | C22: =Loss_Prim -> 0.046 | D22: =('12.2018 WA Usage'!C114)*(1+$C22) -> 10312139.53 | E22: =('12.2018 WA Usage'!D114)*(1+$C22) -> 9110066.918 | F22: =('12.2018 WA Usage'!E114)*(1+$C22) -> 8967616.362 | G22: =('12.2018 WA Usage'!F114)*(1+$C22) -> 8972632.978 | H22: =('12.2018 WA Usage'!G114)*(1+$C22) -> 9012228.314 | I22: =('12.2018 WA Usage'!H114)*(1+$C22) -> 9830096.499 | J22: =('12.2018 WA Usage'!I114)*(1+$C22) -> 9235164.418 | K22: =('12.2018 WA Usage'!J114)*(1+$C22) -> 10566618.18 | L22: =('12.2018 WA Usage'!K114)*(1+$C22) -> 10247988.52 | M22: =('12.2018 WA Usage'!L114)*(1+$C22) -> 9021227.303 | N22: =('12.2018 WA Usage'!M114)*(1+$C22) -> 9152244.441 | O22: =('12.2018 WA Usage'!N114)*(1+$C22)-269000 -> 9311877.25 | P22: 113739900.7
B23: Transmission Extra Large Gen Sch 25 | C23: =Loss_Transm -> 0.03 | D23: =('WA Sch 25 (12.2018)'!D97+'WA Sch 25 (12.2018)'!D99)*(1+$C23) -> 41981234.4 | E23: =('WA Sch 25 (12.2018)'!E97+'WA Sch 25 (12.2018)'!E99)*(1+$C23) -> 38619932.4 | F23: =('WA Sch 25 (12.2018)'!F97+'WA Sch 25 (12.2018)'!F99)*(1+$C23) -> 41820344.28 | G23: =('WA Sch 25 (12.2018)'!G97+'WA Sch 25 (12.2018)'!G99)*(1+$C23) -> 40753181.88 | H23: =('WA Sch 25 (12.2018)'!H97+'WA Sch 25 (12.2018)'!H99)*(1+$C23) -> 39253852.08 | I23: =('WA Sch 25 (12.2018)'!I97+'WA Sch 25 (12.2018)'!I99)*(1+$C23) -> 39549008.88 | J23: =('WA Sch 25 (12.2018)'!J97+'WA Sch 25 (12.2018)'!J99)*(1+$C23) -> 40463809.56 | K23: =('WA Sch 25 (12.2018)'!K97+'WA Sch 25 (12.2018)'!K99)*(1+$C23) -> 41056718.76 | L23: =('WA Sch 25 (12.2018)'!L97+'WA Sch 25 (12.2018)'!L99)*(1+$C23) -> 38264001.48 | M23: =('WA Sch 25 (12.2018)'!M97+'WA Sch 25 (12.2018)'!M99)*(1+$C23) -> 41275453.68 | N23: =('WA Sch 25 (12.2018)'!N97+'WA Sch 25 (12.2018)'!N99)*(1+$C23) -> 39407622.84 | O23: =('WA Sch 25 (12.2018)'!O97+'WA Sch 25 (12.2018)'!O99)*(1+$C23) -> 41109631.92 | P23: 483554792.2
B24: Primary Extra Large Gen Sch 25 | C24: =Loss_Prim -> 0.046 | D24: =(D11-'WA Sch 25 (12.2018)'!D5-'WA Sch 25 (12.2018)'!D14-'WA Sch 25 (12.2018)'!D25-'WA Sch 25 (12.2018)'!D26)*(1+$C24) -> 47657237.68 | E24: =(E11-'WA Sch 25 (12.2018)'!E5-'WA Sch 25 (12.2018)'!E14-'WA Sch 25 (12.2018)'!E25-'WA Sch 25 (12.2018)'!E26)*(1+$C24) -> 44942140.3 | F24: =(F11-'WA Sch 25 (12.2018)'!F5-'WA Sch 25 (12.2018)'!F14-'WA Sch 25 (12.2018)'!F25-'WA Sch 25 (12.2018)'!F26)*(1+$C24) -> 49543060.41 | G24: =(G11-'WA Sch 25 (12.2018)'!G5-'WA Sch 25 (12.2018)'!G14-'WA Sch 25 (12.2018)'!G25-'WA Sch 25 (12.2018)'!G26)*(1+$C24) -> 48002252.1 | H24: =(H11-'WA Sch 25 (12.2018)'!H5-'WA Sch 25 (12.2018)'!H14-'WA Sch 25 (12.2018)'!H25-'WA Sch 25 (12.2018)'!H26)*(1+$C24) -> 51231647.19 | I24: =(I11-'WA Sch 25 (12.2018)'!I5-'WA Sch 25 (12.2018)'!I14-'WA Sch 25 (12.2018)'!I25-'WA Sch 25 (12.2018)'!I26)*(1+$C24) -> 48546216.77 | J24: =(J11-'WA Sch 25 (12.2018)'!J5-'WA Sch 25 (12.2018)'!J14-'WA Sch 25 (12.2018)'!J25-'WA Sch 25 (12.2018)'!J26)*(1+$C24) -> 50683511.81 | K24: =(K11-'WA Sch 25 (12.2018)'!K5-'WA Sch 25 (12.2018)'!K14-'WA Sch 25 (12.2018)'!K25-'WA Sch 25 (12.2018)'!K26)*(1+$C24) -> 53052579 | L24: =(L11-'WA Sch 25 (12.2018)'!L5-'WA Sch 25 (12.2018)'!L14-'WA Sch 25 (12.2018)'!L25-'WA Sch 25 (12.2018)'!L26)*(1+$C24) -> 47164059.34 | M24: =(M11-'WA Sch 25 (12.2018)'!M5-'WA Sch 25 (12.2018)'!M14-'WA Sch 25 (12.2018)'!M25-'WA Sch 25 (12.2018)'!M26)*(1+$C24) -> 49889119.68 | N24: =(N11-'WA Sch 25 (12.2018)'!N5-'WA Sch 25 (12.2018)'!N14-'WA Sch 25 (12.2018)'!N25-'WA Sch 25 (12.2018)'!N26)*(1+$C24) -> 45812319.6 | O24: =(O11-'WA Sch 25 (12.2018)'!O5-'WA Sch 25 (12.2018)'!O14-'WA Sch 25 (12.2018)'!O25-'WA Sch 25 (12.2018)'!O26)*(1+$C24) -> 47549474.35 | P24: 584073618.2
B25: Secondary Extra Large Gen Sch 25 | C25: =Loss_Sec -> 0.062 | D25: =('WA Sch 25 (12.2018)'!D98+'WA Sch 25 (12.2018)'!D25+'WA Sch 25 (12.2018)'!D26+'WA Sch 25 (12.2018)'!D5)*(1+$C25) -> 7347421.3 | E25: =('WA Sch 25 (12.2018)'!E98+'WA Sch 25 (12.2018)'!E25+'WA Sch 25 (12.2018)'!E26+'WA Sch 25 (12.2018)'!E5)*(1+$C25) -> 7007915.405 | F25: =('WA Sch 25 (12.2018)'!F98+'WA Sch 25 (12.2018)'!F25+'WA Sch 25 (12.2018)'!F26+'WA Sch 25 (12.2018)'!F5)*(1+$C25) -> 7567512.516 | G25: =('WA Sch 25 (12.2018)'!G98+'WA Sch 25 (12.2018)'!G25+'WA Sch 25 (12.2018)'!G26+'WA Sch 25 (12.2018)'!G5)*(1+$C25) -> 7476068.581 | H25: =('WA Sch 25 (12.2018)'!H98+'WA Sch 25 (12.2018)'!H25+'WA Sch 25 (12.2018)'!H26+'WA Sch 25 (12.2018)'!H5)*(1+$C25) -> 7410995.381 | I25: =('WA Sch 25 (12.2018)'!I98+'WA Sch 25 (12.2018)'!I25+'WA Sch 25 (12.2018)'!I26+'WA Sch 25 (12.2018)'!I5)*(1+$C25) -> 7034274.67 | J25: =('WA Sch 25 (12.2018)'!J98+'WA Sch 25 (12.2018)'!J25+'WA Sch 25 (12.2018)'!J26+'WA Sch 25 (12.2018)'!J5)*(1+$C25) -> 8200800.958 | K25: =('WA Sch 25 (12.2018)'!K98+'WA Sch 25 (12.2018)'!K25+'WA Sch 25 (12.2018)'!K26+'WA Sch 25 (12.2018)'!K5)*(1+$C25) -> 8654253.293 | L25: =('WA Sch 25 (12.2018)'!L98+'WA Sch 25 (12.2018)'!L25+'WA Sch 25 (12.2018)'!L26+'WA Sch 25 (12.2018)'!L5)*(1+$C25) -> 7636133.434 | M25: =('WA Sch 25 (12.2018)'!M98+'WA Sch 25 (12.2018)'!M25+'WA Sch 25 (12.2018)'!M26+'WA Sch 25 (12.2018)'!M5)*(1+$C25) -> 7788044.887 | N25: =('WA Sch 25 (12.2018)'!N98+'WA Sch 25 (12.2018)'!N25+'WA Sch 25 (12.2018)'!N26+'WA Sch 25 (12.2018)'!N5)*(1+$C25) -> 7350491.966 | O25: =('WA Sch 25 (12.2018)'!O98+'WA Sch 25 (12.2018)'!O25+'WA Sch 25 (12.2018)'!O26+'WA Sch 25 (12.2018)'!O5)*(1+$C25) -> 7545391.506 | P25: 91019303.9
B26: Secondary Pumping Schedule 31/32 | C26: =Loss_Sec -> 0.062 | D26: =D12*(1+$C26) -> 5871625.614 | E26: =E12*(1+$C26) -> 4438668.59 | F26: 4342913.914 | G26: 5677699.449 | H26: 11741856.11 | I26: 22020049.14 | J26: 26674297.15 | K26: 30524783.16 | L26: 23649158.67 | M26: 11838806.35 | N26: 5280596.697 | O26: 2803058.669 | P26: 154863513.5
B27: Secondary Street and Area Lights | C27: =Loss_Sec -> 0.062 | D27: =D13*(1+$C27) -> 1781515.618 | E27: =E13*(1+$C27) -> 1598467.822 | F27: 1565666.178 | G27: 1596789.998 | H27: 1662583.759 | I27: 1640021.397 | J27: 1611522.269 | K27: 1676759.047 | L27: 1630653.233 | M27: 1629995.685 | N27: 1611846.041 | O27: 1685816.45 | P27: 19691637.5
A28: Total Generation Level Normalized TY Usage | D28: =SUM(D19:D27) -> 597654253 | E28: =SUM(E19:E27) -> 500627658.6 | F28: 521133261.4 | G28: 454670368.8 | H28: 453772674.2 | I28: 450304948.1 | J28: 489924641.6 | K28: 514472795.9 | L28: 430213581.6 | M28: 466740233.1 | N28: 509872332 | O28: 572032144.2 | P28: 5961418893

Sheet WA DemEst
D1: JAN | E1: FEB | F1: MAR | G1: APR | H1: MAY | I1: JUN | J1: JUL | K1: AUG | L1: SEP | M1: OCT | N1: NOV | O1: DEC
D2: ='Peak Calc CP'!C70 -> 2018-01-02 | E2: ='Peak Calc CP'!D70 -> 2018-02-21 | F2: ='Peak Calc CP'!E70 -> 2018-03-07 | G2: ='Peak Calc CP'!F70 -> 2018-04-02 | H2: ='Peak Calc CP'!G70 -> 2018-05-15 | I2: ='Peak Calc CP'!H70 -> 2018-06-20 | J2: ='Peak Calc CP'!I70 -> 2018-07-30 | K2: ='Peak Calc CP'!J70 -> 2018-08-10 | L2: ='Peak Calc CP'!K70 -> 2018-09-07 | M2: ='Peak Calc CP'!L70 -> 2018-10-16 | N2: ='Peak Calc CP'!M70 -> 2018-11-26 | O2: ='Peak Calc CP'!N70 -> 2018-12-07
D3: ='Peak Calc CP'!C71 -> 2018-01-02 | E3: ='Peak Calc CP'!D71 -> 2018-02-21 | F3: ='Peak Calc CP'!E71 -> 2018-03-07 | G3: ='Peak Calc CP'!F71 -> 2018-04-02 | H3: ='Peak Calc CP'!G71 -> 2018-05-15 | I3: ='Peak Calc CP'!H71 -> 2018-06-20 | J3: ='Peak Calc CP'!I71 -> 2018-07-30 | K3: ='Peak Calc CP'!J71 -> 2018-08-10 | L3: ='Peak Calc CP'!K71 -> 2018-09-07 | M3: ='Peak Calc CP'!L71 -> 2018-10-16 | N3: ='Peak Calc CP'!M71 -> 2018-11-26 | O3: ='Peak Calc CP'!N71 -> 2018-12-07
D4: ='Peak Calc CP'!C72 -> 18:00:00 | E4: ='Peak Calc CP'!D72 -> 08:00:00 | F4: ='Peak Calc CP'!E72 -> 08:00:00 | G4: ='Peak Calc CP'!F72 -> 10:00:00 | H4: ='Peak Calc CP'!G72 -> 19:00:00 | I4: ='Peak Calc CP'!H72 -> 17:00:00 | J4: ='Peak Calc CP'!I72 -> 16:00:00 | K4: ='Peak Calc CP'!J72 -> 16:00:00 | L4: ='Peak Calc CP'!K72 -> 17:00:00 | M4: ='Peak Calc CP'!L72 -> 08:00:00 | N4: ='Peak Calc CP'!M72 -> 18:00:00 | O4: ='Peak Calc CP'!N72 -> 08:00:00
C5: days in month | D5: =DAY(DATE(YEAR(D3),MONTH(D3)+1,0)) -> 31 | E5: =DAY(DATE(YEAR(E3),MONTH(E3)+1,0)) -> 28 | F5: 31 | G5: 30 | H5: 31 | I5: 30 | J5: 31 | K5: 31 | L5: 30 | M5: 31 | N5: 30 | O5: 31 | P5: =SUM(D5:O5) -> 365
C6: m.wkdy.h | D6: =MONTH(D3)&"."&WEEKDAY(D3)&"."&HOUR(D4) -> 1.3.18 | E6: =MONTH(E3)&"."&WEEKDAY(E3)&"."&HOUR(E4) -> 2.4.8 | F6: 3.4.8 | G6: 4.2.10 | H6: 5.3.19 | I6: 6.4.17 | J6: 7.2.16 | K6: 8.6.16 | L6: 9.6.17 | M6: 10.3.8 | N6: 11.2.18 | O6: 12.6.8
C7: DDH | D7: =MAX('Peak Calc CP'!C73,0) -> 43 | E7: =MAX('Peak Calc CP'!D73,0) -> 51 | F7: =MAX('Peak Calc CP'!E73,0) -> 29 | G7: =MAX('Peak Calc CP'!F73,0) -> 29 | H7: =MAX('Peak Calc CP'!G73,0) -> 0 | I7: =MAX('Peak Calc CP'!H73,0) -> 0 | J7: =MAX('Peak Calc CP'!I73,0) -> 0 | K7: =MAX('Peak Calc CP'!J73,0) -> 0 | L7: =MAX('Peak Calc CP'!K73,0) -> 0 | M7: =MAX('Peak Calc CP'!L73,0) -> 17 | N7: =MAX('Peak Calc CP'!M73,0) -> 31 | O7: =MAX('Peak Calc CP'!N73,0) -> 43
C8: DDC | D8: =MAX(-'Peak Calc CP'!C73,0) -> 0 | E8: =MAX(-'Peak Calc CP'!D73,0) -> 0 | F8: =MAX(-'Peak Calc CP'!E73,0) -> 0 | G8: =MAX(-'Peak Calc CP'!F73,0) -> 0 | H8: =MAX(-'Peak Calc CP'!G73,0) -> 5 | I8: =MAX(-'Peak Calc CP'!H73,0) -> 6 | J8: =MAX(-'Peak Calc CP'!I73,0) -> 16 | K8: =MAX(-'Peak Calc CP'!J73,0) -> 23 | L8: =MAX(-'Peak Calc CP'!K73,0) -> 6 | M8: =MAX(-'Peak Calc CP'!L73,0) -> 0 | N8: =MAX(-'Peak Calc CP'!M73,0) -> 0 | O8: =MAX(-'Peak Calc CP'!N73,0) -> 0
A10: WA Res Sch 1 | B10: Peak Day Estimate | D10: =(($C12*12)/$P$5+D13*D$7+D14*D$8)*D11 -> 9870954.676 | E10: =(($C12*12)/$P$5+E13*E$7+E14*E$8)*E11 -> 10866924.26 | F10: 8070865.597 | G10: 7033296.196 | H10: 5548596.513 | I10: 5802429.136 | J10: 8433072.501 | K10: 10275058.87 | L10: 5783360.056 | M10: 5971088.653 | N10: 7292126.261 | O10: 9959300.348
A11: ='Load Shape'!E2 -> WA01 | B11: Number of Cust | C11: =AVERAGE(D11:O11) -> 215660.5 | D11: 215194 | E11: 214194 | F11: 216041 | G11: 214967 | H11: 215095 | I11: 214825 | J11: 215404 | K11: 215645 | L11: 214119 | M11: 218385 | N11: 216937 | O11: 217120
A12: =MATCH(A11,'Load Shape'!$E$2:$N$2,0) -> 1 | B12: Baseload/Cust/Mo | C12: ='Electric Factors '!$H$8 -> 600
B13: Usage/DDH/Cust | D13: =IF(OR(MONTH(D$3)={12,1,2,3}),'Electric Factors '!$E$8,IF(OR(MONTH(D$3)={7,8,9}),0,'Electric Factors '!$D$8)) -> 0.608 | E13: =IF(OR(MONTH(E$3)={12,1,2,3}),'Electric Factors '!$E$8,IF(OR(MONTH(E$3)={7,8,9}),0,'Electric Factors '!$D$8)) -> 0.608 | F13: =IF(OR(MONTH(F$3)={12,1,2,3}),'Electric Factors '!$E$8,IF(OR(MONTH(F$3)={7,8,9}),0,'Electric Factors '!$D$8)) -> 0.608 | G13: =IF(OR(MONTH(G$3)={12,1,2,3}),'Electric Factors '!$E$8,IF(OR(MONTH(G$3)={7,8,9}),0,'Electric Factors '!$D$8)) -> 0.448 | H13: =IF(OR(MONTH(H$3)={12,1,2,3}),'Electric Factors '!$E$8,IF(OR(MONTH(H$3)={7,8,9}),0,'Electric Factors '!$D$8)) -> 0.448 | I13: =IF(OR(MONTH(I$3)={12,1,2,3}),'Electric Factors '!$E$8,IF(OR(MONTH(I$3)={7,8,9}),0,'Electric Factors '!$D$8)) -> 0.448 | J13: =IF(OR(MONTH(J$3)={12,1,2,3}),'Electric Factors '!$E$8,IF(OR(MONTH(J$3)={7,8,9}),0,'Electric Factors '!$D$8)) -> 0 | K13: =IF(OR(MONTH(K$3)={12,1,2,3}),'Electric Factors '!$E$8,IF(OR(MONTH(K$3)={7,8,9}),0,'Electric Factors '!$D$8)) -> 0 | L13: =IF(OR(MONTH(L$3)={12,1,2,3}),'Electric Factors '!$E$8,IF(OR(MONTH(L$3)={7,8,9}),0,'Electric Factors '!$D$8)) -> 0 | M13: =IF(OR(MONTH(M$3)={12,1,2,3}),'Electric Factors '!$E$8,IF(OR(MONTH(M$3)={7,8,9}),0,'Electric Factors '!$D$8)) -> 0.448 | N13: =IF(OR(MONTH(N$3)={12,1,2,3}),'Electric Factors '!$E$8,IF(OR(MONTH(N$3)={7,8,9}),0,'Electric Factors '!$D$8)) -> 0.448 | O13: =IF(OR(MONTH(O$3)={12,1,2,3}),'Electric Factors '!$E$8,IF(OR(MONTH(O$3)={7,8,9}),0,'Electric Factors '!$D$8)) -> 0.608
B14: Usage/DDC/Cust | D14: =IF(OR(MONTH(D$3)={4,5,10,11}),'Electric Factors '!$F$8,IF(OR(MONTH(D$3)={6,7,8,9}),'Electric Factors '!$G$8,0)) -> 0 | E14: =IF(OR(MONTH(E$3)={4,5,10,11}),'Electric Factors '!$F$8,IF(OR(MONTH(E$3)={6,7,8,9}),'Electric Factors '!$G$8,0)) -> 0 | F14: =IF(OR(MONTH(F$3)={4,5,10,11}),'Electric Factors '!$F$8,IF(OR(MONTH(F$3)={6,7,8,9}),'Electric Factors '!$G$8,0)) -> 0 | G14: =IF(OR(MONTH(G$3)={4,5,10,11}),'Electric Factors '!$F$8,IF(OR(MONTH(G$3)={6,7,8,9}),'Electric Factors '!$G$8,0)) -> 1.214 | H14: =IF(OR(MONTH(H$3)={4,10,11}),'Electric Factors '!$F$8,IF(OR(MONTH(H$3)={5,6,7,8,9}),'Electric Factors '!$G$8,0)) -> 1.214 | I14: =IF(OR(MONTH(I$3)={4,5,10,11}),'Electric Factors '!$F$8,IF(OR(MONTH(I$3)={6,7,8,9}),'Electric Factors '!$G$8,0)) -> 1.214 | J14: =IF(OR(MONTH(J$3)={4,5,10,11}),'Electric Factors '!$F$8,IF(OR(MONTH(J$3)={6,7,8,9}),'Electric Factors '!$G$8,0)) -> 1.214 | K14: =IF(OR(MONTH(K$3)={4,5,10,11}),'Electric Factors '!$F$8,IF(OR(MONTH(K$3)={6,7,8,9}),'Electric Factors '!$G$8,0)) -> 1.214 | L14: =IF(OR(MONTH(L$3)={4,5,10,11}),'Electric Factors '!$F$8,IF(OR(MONTH(L$3)={6,7,8,9}),'Electric Factors '!$G$8,0)) -> 1.214 | M14: =IF(OR(MONTH(M$3)={4,5,10,11}),'Electric Factors '!$F$8,IF(OR(MONTH(M$3)={6,7,8,9}),'Electric Factors '!$G$8,0)) -> 1.214 | N14: =IF(OR(MONTH(N$3)={4,5,10,11}),'Electric Factors '!$F$8,IF(OR(MONTH(N$3)={6,7,8,9}),'Electric Factors '!$G$8,0)) -> 1.214 | O14: =IF(OR(MONTH(O$3)={4,5,10,11}),'Electric Factors '!$F$8,IF(OR(MONTH(O$3)={6,7,8,9}),'Electric Factors '!$G$8,0)) -> 0
B15: Seasonal Profile hourly % | D15: =INDEX(LoadShape,MATCH(D$6,M.WkDy.H,0),$A12) -> 0.05138629166 | E15: =INDEX(LoadShape,MATCH(E$6,M.WkDy.H,0),$A12) -> 0.05011282314 | F15: 0.05285529821 | G15: 0.04643925383 | H15: 0.05483730353 | I15: 0.04797572572 | J15: 0.05334586584 | K15: 0.05419408412 | L15: 0.05185196122 | M15: 0.05237912448 | N15: 0.05209952157 | O15: 0.04561954058
B16: Peak Hour Estimate | C16: =AVERAGE(D16:O16) -> 403439.1481 | D16: =D10*D15 -> 507231.756 | E16: 544572.2537 | F16: 426588.0079 | G16: 326621.0273 | H16: 304270.0711 | I16: 278375.7487 | J16: 449869.5543 | K16: 556847.4046 | L16: 299878.5613 | M16: 312760.3959 | N16: 379916.2894 | O16: 454338.7064
A18: WA Res Sch 11 (Sch 12) | B18: Peak Day Estimate | D18: =(($C20*12)/$P$5+D21*D$7+D22*D$8)*D19 -> 248547.7042 | E18: =(($C20*12)/$P$5+E21*E$7+E22*E$8)*E19 -> 267860.379 | F18: 202108.2982 | G18: 184143.3889 | H18: 132850.7511 | I18: 136420.6845 | J18: 179182.7191 | K18: 205700.9449 | L18: 136304.6435 | M18: 159137.4973 | N18: 192886.5521 | O18: 249431.1984
B19: Number of Cust | C19: =AVERAGE(D19:O19) -> 9489.583333 | D19: 9565 | E19: 9368 | F19: 9435 | G19: 9384 | H19: 9434 | I19: 9405 | J19: 9564 | K19: 9481 | L19: 9397 | M19: 9671 | N19: 9572 | O19: 9599
B20: Baseload/Cust/Mo | C20: ='Electric Factors '!$H$9 -> 364
B21: Usage/DDH/Cust | D21: =IF(OR(MONTH(D$3)={12,1,2,3}),'Electric Factors '!$E$9,IF(OR(MONTH(D$3)={7,8,9}),0,'Electric Factors '!$D$9)) -> 0.326 | E21: =IF(OR(MONTH(E$3)={12,1,2,3}),'Electric Factors '!$E$9,IF(OR(MONTH(E$3)={7,8,9}),0,'Electric Factors '!$D$9)) -> 0.326 | F21: =IF(OR(MONTH(F$3)={12,1,2,3}),'Electric Factors '!$E$9,IF(OR(MONTH(F$3)={7,8,9}),0,'Electric Factors '!$D$9)) -> 0.326 | G21: =IF(OR(MONTH(G$3)={12,1,2,3}),'Electric Factors '!$E$9,IF(OR(MONTH(G$3)={7,8,9}),0,'Electric Factors '!$D$9)) -> 0.264 | H21: =IF(OR(MONTH(H$3)={12,1,2,3}),'Electric Factors '!$E$9,IF(OR(MONTH(H$3)={7,8,9}),0,'Electric Factors '!$D$9)) -> 0.264 | I21: =IF(OR(MONTH(I$3)={12,1,2,3}),'Electric Factors '!$E$9,IF(OR(MONTH(I$3)={7,8,9}),0,'Electric Factors '!$D$9)) -> 0.264 | J21: =IF(OR(MONTH(J$3)={12,1,2,3}),'Electric Factors '!$E$9,IF(OR(MONTH(J$3)={7,8,9}),0,'Electric Factors '!$D$9)) -> 0 | K21: =IF(OR(MONTH(K$3)={12,1,2,3}),'Electric Factors '!$E$9,IF(OR(MONTH(K$3)={7,8,9}),0,'Electric Factors '!$D$9)) -> 0 | L21: =IF(OR(MONTH(L$3)={12,1,2,3}),'Electric Factors '!$E$9,IF(OR(MONTH(L$3)={7,8,9}),0,'Electric Factors '!$D$9)) -> 0 | M21: =IF(OR(MONTH(M$3)={12,1,2,3}),'Electric Factors '!$E$9,IF(OR(MONTH(M$3)={7,8,9}),0,'Electric Factors '!$D$9)) -> 0.264 | N21: =IF(OR(MONTH(N$3)={12,1,2,3}),'Electric Factors '!$E$9,IF(OR(MONTH(N$3)={7,8,9}),0,'Electric Factors '!$D$9)) -> 0.264 | O21: =IF(OR(MONTH(O$3)={12,1,2,3}),'Electric Factors '!$E$9,IF(OR(MONTH(O$3)={7,8,9}),0,'Electric Factors '!$D$9)) -> 0.326
B22: Usage/DDC/Cust | D22: =IF(OR(MONTH(D$3)={4,5,10,11}),'Electric Factors '!$F$9,IF(OR(MONTH(D$3)={6,7,8,9}),'Electric Factors '!$G$9,0)) -> 0 | E22: =IF(OR(MONTH(E$3)={4,5,10,11}),'Electric Factors '!$F$9,IF(OR(MONTH(E$3)={6,7,8,9}),'Electric Factors '!$G$9,0)) -> 0 | F22: =IF(OR(MONTH(F$3)={4,5,10,11}),'Electric Factors '!$F$9,IF(OR(MONTH(F$3)={6,7,8,9}),'Electric Factors '!$G$9,0)) -> 0 | G22: =IF(OR(MONTH(G$3)={4,5,10,11}),'Electric Factors '!$F$9,IF(OR(MONTH(G$3)={6,7,8,9}),'Electric Factors '!$G$9,0)) -> 0.423 | H22: =IF(OR(MONTH(H$3)={4,10,11}),'Electric Factors '!$F$9,IF(OR(MONTH(H$3)={5,6,7,8,9}),'Electric Factors '!$G$9,0)) -> 0.423 | I22: =IF(OR(MONTH(I$3)={4,5,10,11}),'Electric Factors '!$F$9,IF(OR(MONTH(I$3)={6,7,8,9}),'Electric Factors '!$G$9,0)) -> 0.423 | J22: =IF(OR(MONTH(J$3)={4,5,10,11}),'Electric Factors '!$F$9,IF(OR(MONTH(J$3)={6,7,8,9}),'Electric Factors '!$G$9,0)) -> 0.423 | K22: =IF(OR(MONTH(K$3)={4,5,10,11}),'Electric Factors '!$F$9,IF(OR(MONTH(K$3)={6,7,8,9}),'Electric Factors '!$G$9,0)) -> 0.423 | L22: =IF(OR(MONTH(L$3)={4,5,10,11}),'Electric Factors '!$F$9,IF(OR(MONTH(L$3)={6,7,8,9}),'Electric Factors '!$G$9,0)) -> 0.423 | M22: =IF(OR(MONTH(M$3)={4,5,10,11}),'Electric Factors '!$F$9,IF(OR(MONTH(M$3)={6,7,8,9}),'Electric Factors '!$G$9,0)) -> 0.423 | N22: =IF(OR(MONTH(N$3)={4,5,10,11}),'Electric Factors '!$F$9,IF(OR(MONTH(N$3)={6,7,8,9}),'Electric Factors '!$G$9,0)) -> 0.423 | O22: =IF(OR(MONTH(O$3)={4,5,10,11}),'Electric Factors '!$F$9,IF(OR(MONTH(O$3)={6,7,8,9}),'Electric Factors '!$G$9,0)) -> 0
A24: WA Com Sch 11 | B24: Peak Day Estimate | D24: =(($C26*12)/$P$5+D27*D$7+D28*D$8)*D25 -> 1812164.232 | E24: =(($C26*12)/$P$5+E27*E$7+E28*E$8)*E25 -> 1876964.9 | F24: 1661559.527 | G24: 1489587.538 | H24: 1529968.845 | I24: 1560949.892 | J24: 1874510.344 | K24: 2108246.299 | L24: 1513530.907 | M24: 1490170.071 | N24: 1509519.734 | O24: 1798283.418
B25: Number of Cust | C25: =AVERAGE(D25:O25) -> 22556.91667 | D25: 22716 | E25: 22534 | F25: 22571 | G25: 22377 | H25: 22556 | I25: 22549 | J25: 22537 | K25: 22684 | L25: 21864 | M25: 23210 | N25: 22543 | O25: 22542
B26: Baseload/Cust/Mo | C26: ='Electric Factors '!$H$10 -> 1851
B27: Usage/DDH/Cust | D27: =IF(OR(MONTH(D$3)={12,1,2,3}),'Electric Factors '!$E$10,IF(OR(MONTH(D$3)={7,8,9}),0,'Electric Factors '!$D$10)) -> 0.44 | E27: =IF(OR(MONTH(E$3)={12,1,2,3}),'Electric Factors '!$E$10,IF(OR(MONTH(E$3)={7,8,9}),0,'Electric Factors '!$D$10)) -> 0.44 | F27: =IF(OR(MONTH(F$3)={12,1,2,3}),'Electric Factors '!$E$10,IF(OR(MONTH(F$3)={7,8,9}),0,'Electric Factors '!$D$10)) -> 0.44 | G27: =IF(OR(MONTH(G$3)={12,1,2,3}),'Electric Factors '!$E$10,IF(OR(MONTH(G$3)={7,8,9}),0,'Electric Factors '!$D$10)) -> 0.197 | H27: =IF(OR(MONTH(H$3)={12,1,2,3}),'Electric Factors '!$E$10,IF(OR(MONTH(H$3)={7,8,9}),0,'Electric Factors '!$D$10)) -> 0.197 | I27: =IF(OR(MONTH(I$3)={12,1,2,3}),'Electric Factors '!$E$10,IF(OR(MONTH(I$3)={7,8,9}),0,'Electric Factors '!$D$10)) -> 0.197 | J27: =IF(OR(MONTH(J$3)={12,1,2,3}),'Electric Factors '!$E$10,IF(OR(MONTH(J$3)={7,8,9}),0,'Electric Factors '!$D$10)) -> 0 | K27: =IF(OR(MONTH(K$3)={12,1,2,3}),'Electric Factors '!$E$10,IF(OR(MONTH(K$3)={7,8,9}),0,'Electric Factors '!$D$10)) -> 0 | L27: =IF(OR(MONTH(L$3)={12,1,2,3}),'Electric Factors '!$E$10,IF(OR(MONTH(L$3)={7,8,9}),0,'Electric Factors '!$D$10)) -> 0 | M27: =IF(OR(MONTH(M$3)={12,1,2,3}),'Electric Factors '!$E$10,IF(OR(MONTH(M$3)={7,8,9}),0,'Electric Factors '!$D$10)) -> 0.197 | N27: =IF(OR(MONTH(N$3)={12,1,2,3}),'Electric Factors '!$E$10,IF(OR(MONTH(N$3)={7,8,9}),0,'Electric Factors '!$D$10)) -> 0.197 | O27: =IF(OR(MONTH(O$3)={12,1,2,3}),'Electric Factors '!$E$10,IF(OR(MONTH(O$3)={7,8,9}),0,'Electric Factors '!$D$10)) -> 0.44
B28: Usage/DDC/Cust | D28: =IF(OR(MONTH(D$3)={4,5,10,11}),'Electric Factors '!$F$10,IF(OR(MONTH(D$3)={6,7,8,9}),'Electric Factors '!$G$10,0)) -> 0 | E28: =IF(OR(MONTH(E$3)={4,5,10,11}),'Electric Factors '!$F$10,IF(OR(MONTH(E$3)={6,7,8,9}),'Electric Factors '!$G$10,0)) -> 0 | F28: =IF(OR(MONTH(F$3)={4,5,10,11}),'Electric Factors '!$F$10,IF(OR(MONTH(F$3)={6,7,8,9}),'Electric Factors '!$G$10,0)) -> 0 | G28: =IF(OR(MONTH(G$3)={4,5,10,11}),'Electric Factors '!$F$10,IF(OR(MONTH(G$3)={6,7,8,9}),'Electric Factors '!$G$10,0)) -> 1.395 | H28: =IF(OR(MONTH(H$3)={4,10,11}),'Electric Factors '!$F$10,IF(OR(MONTH(H$3)={5,6,7,8,9}),'Electric Factors '!$G$10,0)) -> 1.395 | I28: =IF(OR(MONTH(I$3)={4,5,10,11}),'Electric Factors '!$F$10,IF(OR(MONTH(I$3)={6,7,8,9}),'Electric Factors '!$G$10,0)) -> 1.395 | J28: =IF(OR(MONTH(J$3)={4,5,10,11}),'Electric Factors '!$F$10,IF(OR(MONTH(J$3)={6,7,8,9}),'Electric Factors '!$G$10,0)) -> 1.395 | K28: =IF(OR(MONTH(K$3)={4,5,10,11}),'Electric Factors '!$F$10,IF(OR(MONTH(K$3)={6,7,8,9}),'Electric Factors '!$G$10,0)) -> 1.395 | L28: =IF(OR(MONTH(L$3)={4,5,10,11}),'Electric Factors '!$F$10,IF(OR(MONTH(L$3)={6,7,8,9}),'Electric Factors '!$G$10,0)) -> 1.395 | M28: =IF(OR(MONTH(M$3)={4,5,10,11}),'Electric Factors '!$F$10,IF(OR(MONTH(M$3)={6,7,8,9}),'Electric Factors '!$G$10,0)) -> 1.395 | N28: =IF(OR(MONTH(N$3)={4,5,10,11}),'Electric Factors '!$F$10,IF(OR(MONTH(N$3)={6,7,8,9}),'Electric Factors '!$G$10,0)) -> 1.395 | O28: =IF(OR(MONTH(O$3)={4,5,10,11}),'Electric Factors '!$F$10,IF(OR(MONTH(O$3)={6,7,8,9}),'Electric Factors '!$G$10,0)) -> 0
A30: WA Ind Sch 11 | B30: Peak Day Estimate | D30: =(($C32*12)/$P$5+D33*D$7+D34*D$8)*D31 -> 22550.26962 | E30: =(($C32*12)/$P$5+E33*E$7+E34*E$8)*E31 -> 23218.20773 | F30: 18784.66655 | G30: 17510.02062 | H30: 14449.57644 | I30: 14476.39726 | J30: 16018.52844 | K30: 16881.89726 | L30: 13897.34137 | M30: 16749.24568 | N30: 17902.61479 | O30: 22372.70844
B31: Number of Cust | C31: =AVERAGE(D31:O31) -> 125.5 | D31: 127 | E31: 122 | F31: 121 | G31: 127 | H31: 126 | I31: 125 | J31: 126 | K31: 125 | L31: 120 | M31: 133 | N31: 128 | O31: 126
B32: Baseload/Cust/Mo | C32: ='Electric Factors '!$H$11 -> 3316
B33: Usage/DDH/Cust | D33: =IF(OR(MONTH(D$3)={12,1,2,3}),'Electric Factors '!$E$11,IF(OR(MONTH(D$3)={7,8,9}),0,'Electric Factors '!$D$11)) -> 1.594 | E33: =IF(OR(MONTH(E$3)={12,1,2,3}),'Electric Factors '!$E$11,IF(OR(MONTH(E$3)={7,8,9}),0,'Electric Factors '!$D$11)) -> 1.594 | F33: =IF(OR(MONTH(F$3)={12,1,2,3}),'Electric Factors '!$E$11,IF(OR(MONTH(F$3)={7,8,9}),0,'Electric Factors '!$D$11)) -> 1.594 | G33: =IF(OR(MONTH(G$3)={12,1,2,3}),'Electric Factors '!$E$11,IF(OR(MONTH(G$3)={7,8,9}),0,'Electric Factors '!$D$11)) -> 0.995 | H33: =IF(OR(MONTH(H$3)={12,1,2,3}),'Electric Factors '!$E$11,IF(OR(MONTH(H$3)={7,8,9}),0,'Electric Factors '!$D$11)) -> 0.995 | I33: =IF(OR(MONTH(I$3)={12,1,2,3}),'Electric Factors '!$E$11,IF(OR(MONTH(I$3)={7,8,9}),0,'Electric Factors '!$D$11)) -> 0.995 | J33: =IF(OR(MONTH(J$3)={12,1,2,3}),'Electric Factors '!$E$11,IF(OR(MONTH(J$3)={7,8,9}),0,'Electric Factors '!$D$11)) -> 0 | K33: =IF(OR(MONTH(K$3)={12,1,2,3}),'Electric Factors '!$E$11,IF(OR(MONTH(K$3)={7,8,9}),0,'Electric Factors '!$D$11)) -> 0 | L33: =IF(OR(MONTH(L$3)={12,1,2,3}),'Electric Factors '!$E$11,IF(OR(MONTH(L$3)={7,8,9}),0,'Electric Factors '!$D$11)) -> 0 | M33: =IF(OR(MONTH(M$3)={12,1,2,3}),'Electric Factors '!$E$11,IF(OR(MONTH(M$3)={7,8,9}),0,'Electric Factors '!$D$11)) -> 0.995 | N33: =IF(OR(MONTH(N$3)={12,1,2,3}),'Electric Factors '!$E$11,IF(OR(MONTH(N$3)={7,8,9}),0,'Electric Factors '!$D$11)) -> 0.995 | O33: =IF(OR(MONTH(O$3)={12,1,2,3}),'Electric Factors '!$E$11,IF(OR(MONTH(O$3)={7,8,9}),0,'Electric Factors '!$D$11)) -> 1.594
B34: Usage/DDC/Cust | D34: =IF(OR(MONTH(D$3)={4,5,10,11}),'Electric Factors '!$F$11,IF(OR(MONTH(D$3)={6,7,8,9}),'Electric Factors '!$G$11,0)) -> 0 | E34: =IF(OR(MONTH(E$3)={4,5,10,11}),'Electric Factors '!$F$11,IF(OR(MONTH(E$3)={6,7,8,9}),'Electric Factors '!$G$11,0)) -> 0 | F34: =IF(OR(MONTH(F$3)={4,5,10,11}),'Electric Factors '!$F$11,IF(OR(MONTH(F$3)={6,7,8,9}),'Electric Factors '!$G$11,0)) -> 0 | G34: =IF(OR(MONTH(G$3)={4,5,10,11}),'Electric Factors '!$F$11,IF(OR(MONTH(G$3)={6,7,8,9}),'Electric Factors '!$G$11,0)) -> 1.132 | H34: =IF(OR(MONTH(H$3)={4,5,10,11}),'Electric Factors '!$F$11,IF(OR(MONTH(H$3)={6,7,8,9}),'Electric Factors '!$G$11,0)) -> 1.132 | I34: =IF(OR(MONTH(I$3)={4,5,10,11}),'Electric Factors '!$F$11,IF(OR(MONTH(I$3)={6,7,8,9}),'Electric Factors '!$G$11,0)) -> 1.132 | J34: =IF(OR(MONTH(J$3)={4,5,10,11}),'Electric Factors '!$F$11,IF(OR(MONTH(J$3)={6,7,8,9}),'Electric Factors '!$G$11,0)) -> 1.132 | K34: =IF(OR(MONTH(K$3)={4,5,10,11}),'Electric Factors '!$F$11,IF(OR(MONTH(K$3)={6,7,8,9}),'Electric Factors '!$G$11,0)) -> 1.132 | L34: =IF(OR(MONTH(L$3)={4,5,10,11}),'Electric Factors '!$F$11,IF(OR(MONTH(L$3)={6,7,8,9}),'Electric Factors '!$G$11,0)) -> 1.132 | M34: =IF(OR(MONTH(M$3)={4,5,10,11}),'Electric Factors '!$F$11,IF(OR(MONTH(M$3)={6,7,8,9}),'Electric Factors '!$G$11,0)) -> 1.132 | N34: =IF(OR(MONTH(N$3)={4,5,10,11}),'Electric Factors '!$F$11,IF(OR(MONTH(N$3)={6,7,8,9}),'Electric Factors '!$G$11,0)) -> 1.132 | O34: =IF(OR(MONTH(O$3)={4,5,10,11}),'Electric Factors '!$F$11,IF(OR(MONTH(O$3)={6,7,8,9}),'Electric Factors '!$G$11,0)) -> 0
A36: WA Other Sch 11 | B36: Billed Usage | D36: ='12.2018 WA Usage'!F146 -> 204981.312 | E36: ='12.2018 WA Usage'!G146 -> 178237.567 | F36: ='12.2018 WA Usage'!H146 -> 118138.798 | G36: ='12.2018 WA Usage'!I146 -> 139780.318 | H36: ='12.2018 WA Usage'!J146 -> 150693.619 | I36: ='12.2018 WA Usage'!K146 -> 178237.265 | J36: ='12.2018 WA Usage'!L146 -> 224232.703 | K36: ='12.2018 WA Usage'!M146 -> 175484.16 | L36: ='12.2018 WA Usage'!N146 -> 227377.02 | M36: ='12.2018 WA Usage'!C146 -> 272160.458 | N36: ='12.2018 WA Usage'!D146 -> 211471.039 | O36: ='12.2018 WA Usage'!E146 -> 236280.783
B37: Estimated Daily Usage | D37: =D36/D$5 -> 6612.300387 | E37: =E36/E$5 -> 6365.627393 | F37: 3810.928968 | G37: 4659.343933 | H37: 4861.084484 | I37: 5941.242167 | J37: 7233.313 | K37: 5660.779355 | L37: 7579.234 | M37: 8779.369613 | N37: 7049.034633 | O37: 7621.960742
A39: Total WA Sch 11 | B39: Peak Day Estimate | D39: =D18+D24+D30+D37 -> 2089874.507 | E39: =E18+E24+E30+E37 -> 2174409.114 | F39: 1886263.421 | G39: 1695900.291 | H39: 1682130.257 | I39: 1717788.216 | J39: 2076944.905 | K39: 2336489.92 | L39: 1671312.126 | M39: 1674836.183 | N39: 1727357.935 | O39: 2077709.286
A40: ='Load Shape'!F2 -> WA11 | B40: Seasonal Profile hourly % | D40: =INDEX(LoadShape,MATCH(D$6,M.WkDy.H,0),$A41) -> 0.04246334101 | E40: 0.04461311457 | F40: 0.04543506677 | G40: 0.04976059383 | H40: 0.03349071893 | I40: 0.05155496396 | J40: 0.05532657754 | K40: 0.05234293903 | L40: 0.04868493419 | M40: 0.04838019991 | N40: 0.04496363846 | O40: 0.04595296345
A41: =MATCH(A40,'Load Shape'!$E$2:$N$2,0) -> 2 | B41: Peak Hour Estimate #1 | C41: =AVERAGE(D41:O41) -> 89457.40147 | D41: =D39*D40 -> 88743.05385 | E41: 97007.16292 | F41: 85702.50447 | G41: 84389.00557 | H41: 56335.75165 | I41: 88560.50954 | J41: 114910.2533 | K41: 122298.7495 | L41: 81367.72089 | M41: 81028.90937 | N41: 77668.29769 | O41: 95476.89887
A43: Total WA Sch 11/12 | B43: Peak Day Estimate | D43: =(($C45*12)/$P$5+D46*D$7+D47*D$8)*D44 -> 2086713.687 | E43: =(($C45*12)/$P$5+E46*E$7+E47*E$8)*E44 -> 2163537.366 | F43: 1890214.117 | G43: 1682547.397 | H43: 1686789.335 | I43: 1718092.197 | J43: 2060614.852 | K43: 2299316.026 | L43: 1681044.531 | M43: 1668138.671 | N43: 1713590.276 | O43: 2077908.445
B44: Number of Cust | C44: =AVERAGE(D44:O44) -> 32233.33333 | D44: 32467 | E44: 32081 | F44: 32186 | G44: 31947 | H44: 32176 | I44: 32138 | J44: 32288 | K44: 32352 | L44: 31445 | M44: 33083 | N44: 32307 | O44: 32330
B45: Baseload/Cust/Mo | C45: ='Electric Factors '!$H$12 -> 1437
B46: Usage/DDH/Cust | D46: =IF(OR(MONTH(D$3)={12,1,2,3}),'Electric Factors '!$E$12,IF(OR(MONTH(D$3)={7,8,9}),0,'Electric Factors '!$D$12)) -> 0.396 | E46: =IF(OR(MONTH(E$3)={12,1,2,3}),'Electric Factors '!$E$12,IF(OR(MONTH(E$3)={7,8,9}),0,'Electric Factors '!$D$12)) -> 0.396 | F46: =IF(OR(MONTH(F$3)={12,1,2,3}),'Electric Factors '!$E$12,IF(OR(MONTH(F$3)={7,8,9}),0,'Electric Factors '!$D$12)) -> 0.396 | G46: =IF(OR(MONTH(G$3)={12,1,2,3}),'Electric Factors '!$E$12,IF(OR(MONTH(G$3)={7,8,9}),0,'Electric Factors '!$D$12)) -> 0.187 | H46: =IF(OR(MONTH(H$3)={12,1,2,3}),'Electric Factors '!$E$12,IF(OR(MONTH(H$3)={7,8,9}),0,'Electric Factors '!$D$12)) -> 0.187 | I46: =IF(OR(MONTH(I$3)={12,1,2,3}),'Electric Factors '!$E$12,IF(OR(MONTH(I$3)={7,8,9}),0,'Electric Factors '!$D$12)) -> 0.187 | J46: =IF(OR(MONTH(J$3)={12,1,2,3}),'Electric Factors '!$E$12,IF(OR(MONTH(J$3)={7,8,9}),0,'Electric Factors '!$D$12)) -> 0 | K46: =IF(OR(MONTH(K$3)={12,1,2,3}),'Electric Factors '!$E$12,IF(OR(MONTH(K$3)={7,8,9}),0,'Electric Factors '!$D$12)) -> 0 | L46: =IF(OR(MONTH(L$3)={12,1,2,3}),'Electric Factors '!$E$12,IF(OR(MONTH(L$3)={7,8,9}),0,'Electric Factors '!$D$12)) -> 0 | M46: =IF(OR(MONTH(M$3)={12,1,2,3}),'Electric Factors '!$E$12,IF(OR(MONTH(M$3)={7,8,9}),0,'Electric Factors '!$D$12)) -> 0.187 | N46: =IF(OR(MONTH(N$3)={12,1,2,3}),'Electric Factors '!$E$12,IF(OR(MONTH(N$3)={7,8,9}),0,'Electric Factors '!$D$12)) -> 0.187 | O46: =IF(OR(MONTH(O$3)={12,1,2,3}),'Electric Factors '!$E$12,IF(OR(MONTH(O$3)={7,8,9}),0,'Electric Factors '!$D$12)) -> 0.396
B47: Usage/DDC/Cust | D47: =IF(OR(MONTH(D$3)={4,5,10,11}),'Electric Factors '!$F$12,IF(OR(MONTH(D$3)={6,7,8,9}),'Electric Factors '!$G$12,0)) -> 0 | E47: =IF(OR(MONTH(E$3)={4,5,10,11}),'Electric Factors '!$F$12,IF(OR(MONTH(E$3)={6,7,8,9}),'Electric Factors '!$G$12,0)) -> 0 | F47: =IF(OR(MONTH(F$3)={4,5,10,11}),'Electric Factors '!$F$12,IF(OR(MONTH(F$3)={6,7,8,9}),'Electric Factors '!$G$12,0)) -> 0 | G47: =IF(OR(MONTH(G$3)={4,5,10,11}),'Electric Factors '!$F$12,IF(OR(MONTH(G$3)={6,7,8,9}),'Electric Factors '!$G$12,0)) -> 1.036 | H47: =IF(OR(MONTH(H$3)={4,5,10,11}),'Electric Factors '!$F$12,IF(OR(MONTH(H$3)={6,7,8,9}),'Electric Factors '!$G$12,0)) -> 1.036 | I47: =IF(OR(MONTH(I$3)={4,5,10,11}),'Electric Factors '!$F$12,IF(OR(MONTH(I$3)={6,7,8,9}),'Electric Factors '!$G$12,0)) -> 1.036 | J47: =IF(OR(MONTH(J$3)={4,5,10,11}),'Electric Factors '!$F$12,IF(OR(MONTH(J$3)={6,7,8,9}),'Electric Factors '!$G$12,0)) -> 1.036 | K47: =IF(OR(MONTH(K$3)={4,5,10,11}),'Electric Factors '!$F$12,IF(OR(MONTH(K$3)={6,7,8,9}),'Electric Factors '!$G$12,0)) -> 1.036 | L47: =IF(OR(MONTH(L$3)={4,5,10,11}),'Electric Factors '!$F$12,IF(OR(MONTH(L$3)={6,7,8,9}),'Electric Factors '!$G$12,0)) -> 1.036 | M47: =IF(OR(MONTH(M$3)={4,5,10,11}),'Electric Factors '!$F$12,IF(OR(MONTH(M$3)={6,7,8,9}),'Electric Factors '!$G$12,0)) -> 1.036 | N47: =IF(OR(MONTH(N$3)={4,5,10,11}),'Electric Factors '!$F$12,IF(OR(MONTH(N$3)={6,7,8,9}),'Electric Factors '!$G$12,0)) -> 1.036 | O47: =IF(OR(MONTH(O$3)={4,5,10,11}),'Electric Factors '!$F$12,IF(OR(MONTH(O$3)={6,7,8,9}),'Electric Factors '!$G$12,0)) -> 0
B48: Seasonal Profile hourly % | D48: =D40 -> 0.04246334101 | E48: =E40 -> 0.04461311457 | F48: 0.04543506677 | G48: 0.04976059383 | H48: 0.03349071893 | I48: 0.05155496396 | J48: 0.05532657754 | K48: 0.05234293903 | L48: 0.04868493419 | M48: 0.04838019991 | N48: 0.04496363846 | O48: 0.04595296345
B49: Peak Hour Estimate #2 | C49: =AVERAGE(D49:O49) -> 89103.91346 | D49: =D43*D48 -> 88608.83488 | E49: 96522.14041 | F49: 85882.00462 | G49: 83724.55764 | H49: 56491.78751 | I49: 88576.18129 | J49: 114006.7674 | K49: 120352.9586 | L49: 81841.54237 | M49: 80704.88236 | N49: 77049.25364 | O49: 95486.05085
A51: WA Res Sch 21 (Sch 22) | B51: Peak Day Estimate | D51: =(($C53*12)/$P$5+D54*D$7+D55*D$8)*D52 -> 114085.9161 | E51: =(($C53*12)/$P$5+E54*E$7+E55*E$8)*E52 -> 119746.5021 | F51: 97643.71814 | G51: 90539.76214 | H51: 82471.01397 | I51: 82952.34805 | J51: 102417.4141 | K51: 117252.6821 | L51: 84680.52197 | M51: 84888.08597 | N51: 90100.47222 | O51: 104578.7564
B52: Number of Cust | C52: =AVERAGE(D52:O52) -> 47.33333333 | D52: 48 | E52: 47 | F52: 47 | G52: 47 | H52: 49 | I52: 48 | J52: 47 | K52: 47 | L52: 49 | M52: 49 | N52: 46 | O52: 44
B53: Baseload/Cust/Mo | C53: ='Electric Factors '!$H$13 -> 44336
B54: Usage/DDH/Cust | D54: =IF(OR(MONTH(D$3)={12,1,2,3}),'Electric Factors '!$E$13,IF(OR(MONTH(D$3)={7,8,9}),0,'Electric Factors '!$D$13)) -> 21.376 | E54: =IF(OR(MONTH(E$3)={12,1,2,3}),'Electric Factors '!$E$13,IF(OR(MONTH(E$3)={7,8,9}),0,'Electric Factors '!$D$13)) -> 21.376 | F54: =IF(OR(MONTH(F$3)={12,1,2,3}),'Electric Factors '!$E$13,IF(OR(MONTH(F$3)={7,8,9}),0,'Electric Factors '!$D$13)) -> 21.376 | G54: =IF(OR(MONTH(G$3)={12,1,2,3}),'Electric Factors '!$E$13,IF(OR(MONTH(G$3)={7,8,9}),0,'Electric Factors '!$D$13)) -> 16.164 | H54: =IF(OR(MONTH(H$3)={12,1,2,3}),'Electric Factors '!$E$13,IF(OR(MONTH(H$3)={7,8,9}),0,'Electric Factors '!$D$13)) -> 16.164 | I54: =IF(OR(MONTH(I$3)={12,1,2,3}),'Electric Factors '!$E$13,IF(OR(MONTH(I$3)={7,8,9}),0,'Electric Factors '!$D$13)) -> 16.164 | J54: =IF(OR(MONTH(J$3)={12,1,2,3}),'Electric Factors '!$E$13,IF(OR(MONTH(J$3)={7,8,9}),0,'Electric Factors '!$D$13)) -> 0 | K54: =IF(OR(MONTH(K$3)={12,1,2,3}),'Electric Factors '!$E$13,IF(OR(MONTH(K$3)={7,8,9}),0,'Electric Factors '!$D$13)) -> 0 | L54: =IF(OR(MONTH(L$3)={12,1,2,3}),'Electric Factors '!$E$13,IF(OR(MONTH(L$3)={7,8,9}),0,'Electric Factors '!$D$13)) -> 0 | M54: =IF(OR(MONTH(M$3)={12,1,2,3}),'Electric Factors '!$E$13,IF(OR(MONTH(M$3)={7,8,9}),0,'Electric Factors '!$D$13)) -> 16.164 | N54: =IF(OR(MONTH(N$3)={12,1,2,3}),'Electric Factors '!$E$13,IF(OR(MONTH(N$3)={7,8,9}),0,'Electric Factors '!$D$13)) -> 16.164 | O54: =IF(OR(MONTH(O$3)={12,1,2,3}),'Electric Factors '!$E$13,IF(OR(MONTH(O$3)={7,8,9}),0,'Electric Factors '!$D$13)) -> 21.376
B55: Usage/DDC/Cust | D55: =IF(OR(MONTH(D$3)={4,5,10,11}),'Electric Factors '!$F$13,IF(OR(MONTH(D$3)={6,7,8,9}),'Electric Factors '!$G$13,0)) -> 0 | E55: =IF(OR(MONTH(E$3)={4,5,10,11}),'Electric Factors '!$F$13,IF(OR(MONTH(E$3)={6,7,8,9}),'Electric Factors '!$G$13,0)) -> 0 | F55: =IF(OR(MONTH(F$3)={4,5,10,11}),'Electric Factors '!$F$13,IF(OR(MONTH(F$3)={6,7,8,9}),'Electric Factors '!$G$13,0)) -> 0 | G55: =IF(OR(MONTH(G$3)={4,5,10,11}),'Electric Factors '!$F$13,IF(OR(MONTH(G$3)={6,7,8,9}),'Electric Factors '!$G$13,0)) -> 45.092 | H55: =IF(OR(MONTH(H$3)={4,10,11}),'Electric Factors '!$F$13,IF(OR(MONTH(H$3)={5,6,7,8,9}),'Electric Factors '!$G$13,0)) -> 45.092 | I55: =IF(OR(MONTH(I$3)={4,5,10,11}),'Electric Factors '!$F$13,IF(OR(MONTH(I$3)={6,7,8,9}),'Electric Factors '!$G$13,0)) -> 45.092 | J55: =IF(OR(MONTH(J$3)={4,5,10,11}),'Electric Factors '!$F$13,IF(OR(MONTH(J$3)={6,7,8,9}),'Electric Factors '!$G$13,0)) -> 45.092 | K55: =IF(OR(MONTH(K$3)={4,5,10,11}),'Electric Factors '!$F$13,IF(OR(MONTH(K$3)={6,7,8,9}),'Electric Factors '!$G$13,0)) -> 45.092 | L55: =IF(OR(MONTH(L$3)={4,5,10,11}),'Electric Factors '!$F$13,IF(OR(MONTH(L$3)={6,7,8,9}),'Electric Factors '!$G$13,0)) -> 45.092 | M55: =IF(OR(MONTH(M$3)={4,5,10,11}),'Electric Factors '!$F$13,IF(OR(MONTH(M$3)={6,7,8,9}),'Electric Factors '!$G$13,0)) -> 45.092 | N55: =IF(OR(MONTH(N$3)={4,5,10,11}),'Electric Factors '!$F$13,IF(OR(MONTH(N$3)={6,7,8,9}),'Electric Factors '!$G$13,0)) -> 45.092 | O55: =IF(OR(MONTH(O$3)={4,5,10,11}),'Electric Factors '!$F$13,IF(OR(MONTH(O$3)={6,7,8,9}),'Electric Factors '!$G$13,0)) -> 0
B56: Seasonal Profile hourly % | D56: =D69 -> 0.04328079816 | E56: =E69 -> 0.04594466524 | F56: 0.04664289528 | G56: 0.04857192296 | H56: 0.04373776467 | I56: 0.04871711788 | J56: 0.05189411713 | K56: 0.04774996893 | L56: 0.04631888928 | M56: 0.04791577641 | N56: 0.04504459236 | O56: 0.04736419369
B57: Peak Hour Estimate | C57: =AVERAGE(D57:O57) -> 4579.591887 | D57: =D51*D56 -> 4937.729506 | E57: 5501.712954 | F57: 4554.38572 | G57: 4397.690351 | H57: 3607.097802 | I57: 4041.199318 | J57: 5314.861285 | K57: 5598.811929 | L57: 3922.307721 | M57: 4067.478548 | N57: 4058.539043 | O57: 4953.288473
A59: WA Com Sch 21 | B59: Peak Day Estimate | D59: =(($C61*12)/$P$5+D62*D$7+D63*D$8)*D60 -> 3599900.17 | E59: =(($C61*12)/$P$5+E62*E$7+E63*E$8)*E60 -> 3633234.681 | F59: 3533506.53 | G59: 3334983.518 | H59: 3543212.567 | I59: 3581055.659 | J59: 3932551.296 | K59: 4229177.779 | L59: 3503912.736 | M59: 3409136.515 | N59: 3296956.34 | O59: 3589730.961
B60: Number of Cust | C60: =AVERAGE(D60:O60) -> 1760.666667 | D60: 1770 | E60: 1765 | F60: 1775 | G60: 1754 | H60: 1764 | I60: 1764 | J60: 1752 | K60: 1766 | L60: 1726 | M60: 1793 | N60: 1734 | O60: 1765
B61: Baseload/Cust/Mo | C61: ='Electric Factors '!$H$14 -> 57833
B62: Usage/DDH/Cust | D62: =IF(OR(MONTH(D$3)={12,1,2,3}),'Electric Factors '!$E$14,IF(OR(MONTH(D$3)={7,8,9}),0,'Electric Factors '!$D$14)) -> 3.081 | E62: =IF(OR(MONTH(E$3)={12,1,2,3}),'Electric Factors '!$E$14,IF(OR(MONTH(E$3)={7,8,9}),0,'Electric Factors '!$D$14)) -> 3.081 | F62: =IF(OR(MONTH(F$3)={12,1,2,3}),'Electric Factors '!$E$14,IF(OR(MONTH(F$3)={7,8,9}),0,'Electric Factors '!$D$14)) -> 3.081 | G62: =IF(OR(MONTH(G$3)={12,1,2,3}),'Electric Factors '!$E$14,IF(OR(MONTH(G$3)={7,8,9}),0,'Electric Factors '!$D$14)) -> 0 | H62: =IF(OR(MONTH(H$3)={12,1,2,3}),'Electric Factors '!$E$14,IF(OR(MONTH(H$3)={7,8,9}),0,'Electric Factors '!$D$14)) -> 0 | I62: =IF(OR(MONTH(I$3)={12,1,2,3}),'Electric Factors '!$E$14,IF(OR(MONTH(I$3)={7,8,9}),0,'Electric Factors '!$D$14)) -> 0 | J62: =IF(OR(MONTH(J$3)={12,1,2,3}),'Electric Factors '!$E$14,IF(OR(MONTH(J$3)={7,8,9}),0,'Electric Factors '!$D$14)) -> 0 | K62: =IF(OR(MONTH(K$3)={12,1,2,3}),'Electric Factors '!$E$14,IF(OR(MONTH(K$3)={7,8,9}),0,'Electric Factors '!$D$14)) -> 0 | L62: =IF(OR(MONTH(L$3)={12,1,2,3}),'Electric Factors '!$E$14,IF(OR(MONTH(L$3)={7,8,9}),0,'Electric Factors '!$D$14)) -> 0 | M62: =IF(OR(MONTH(M$3)={12,1,2,3}),'Electric Factors '!$E$14,IF(OR(MONTH(M$3)={7,8,9}),0,'Electric Factors '!$D$14)) -> 0 | N62: =IF(OR(MONTH(N$3)={12,1,2,3}),'Electric Factors '!$E$14,IF(OR(MONTH(N$3)={7,8,9}),0,'Electric Factors '!$D$14)) -> 0 | O62: =IF(OR(MONTH(O$3)={12,1,2,3}),'Electric Factors '!$E$14,IF(OR(MONTH(O$3)={7,8,9}),0,'Electric Factors '!$D$14)) -> 3.081
B63: Usage/DDC/Cust | D63: =IF(OR(MONTH(D$3)={4,5,10,11}),'Electric Factors '!$F$14,IF(OR(MONTH(D$3)={6,7,8,9}),'Electric Factors '!$G$14,0)) -> 0 | E63: =IF(OR(MONTH(E$3)={4,5,10,11}),'Electric Factors '!$F$14,IF(OR(MONTH(E$3)={6,7,8,9}),'Electric Factors '!$G$14,0)) -> 0 | F63: =IF(OR(MONTH(F$3)={4,5,10,11}),'Electric Factors '!$F$14,IF(OR(MONTH(F$3)={6,7,8,9}),'Electric Factors '!$G$14,0)) -> 0 | G63: =IF(OR(MONTH(G$3)={4,5,10,11}),'Electric Factors '!$F$14,IF(OR(MONTH(G$3)={6,7,8,9}),'Electric Factors '!$G$14,0)) -> 21.453 | H63: =IF(OR(MONTH(H$3)={4,10,11}),'Electric Factors '!$F$14,IF(OR(MONTH(H$3)={5,6,7,8,9}),'Electric Factors '!$G$14,0)) -> 21.453 | I63: =IF(OR(MONTH(I$3)={4,5,10,11}),'Electric Factors '!$F$14,IF(OR(MONTH(I$3)={6,7,8,9}),'Electric Factors '!$G$14,0)) -> 21.453 | J63: =IF(OR(MONTH(J$3)={4,5,10,11}),'Electric Factors '!$F$14,IF(OR(MONTH(J$3)={6,7,8,9}),'Electric Factors '!$G$14,0)) -> 21.453 | K63: =IF(OR(MONTH(K$3)={4,5,10,11}),'Electric Factors '!$F$14,IF(OR(MONTH(K$3)={6,7,8,9}),'Electric Factors '!$G$14,0)) -> 21.453 | L63: =IF(OR(MONTH(L$3)={4,5,10,11}),'Electric Factors '!$F$14,IF(OR(MONTH(L$3)={6,7,8,9}),'Electric Factors '!$G$14,0)) -> 21.453 | M63: =IF(OR(MONTH(M$3)={4,5,10,11}),'Electric Factors '!$F$14,IF(OR(MONTH(M$3)={6,7,8,9}),'Electric Factors '!$G$14,0)) -> 21.453 | N63: =IF(OR(MONTH(N$3)={4,5,10,11}),'Electric Factors '!$F$14,IF(OR(MONTH(N$3)={6,7,8,9}),'Electric Factors '!$G$14,0)) -> 21.453 | O63: =IF(OR(MONTH(O$3)={4,5,10,11}),'Electric Factors '!$F$14,IF(OR(MONTH(O$3)={6,7,8,9}),'Electric Factors '!$G$14,0)) -> 0
B64: Seasonal Profile hourly % | D64: =D69 -> 0.04328079816 | E64: =E69 -> 0.04594466524 | F64: 0.04664289528 | G64: 0.04857192296 | H64: 0.04373776467 | I64: 0.04871711788 | J64: 0.05189411713 | K64: 0.04774996893 | L64: 0.04631888928 | M64: 0.04791577641 | N64: 0.04504459236 | O64: 0.04736419369
B65: Peak Hour Estimate | C65: =AVERAGE(D65:O65) -> 169097.3059 | D65: =D59*D64 -> 155806.5527 | E65: =E59*E64 -> 166927.7511 | F65: 164812.9751 | G65: 161986.5625 | H65: 154972.1974 | I65: 174458.7107 | J65: 204076.2776 | K65: 201943.1075 | L65: 162297.3461 | M65: 163351.423 | N65: 148510.0544 | O65: 170024.7125
A67: WA Other Sec Sch 21 | B67: Billed Usage | D67: ='12.2018 WA Usage'!F157-D72 -> -76305.845 | E67: ='12.2018 WA Usage'!G157-E72 -> -377759.488 | F67: ='12.2018 WA Usage'!H157-F72 -> -1236235.483 | G67: ='12.2018 WA Usage'!I157-G72 -> -471498.123 | H67: ='12.2018 WA Usage'!J157-H72 -> -1286925.463 | I67: ='12.2018 WA Usage'!K157-I72 -> -2002256.742 | J67: ='12.2018 WA Usage'!L157-J72 -> 203345.563 | K67: ='12.2018 WA Usage'!M157-K72 -> -496866.171 | L67: ='12.2018 WA Usage'!N157-L72 -> -441583.41 | M67: ='12.2018 WA Usage'!C157-M72 -> -629408.685 | N67: ='12.2018 WA Usage'!D157-N72 -> -138550.763 | O67: ='12.2018 WA Usage'!E157-O72 -> -309018.932
A68: ='Load Shape'!G2 -> WA21S | B68: Estimated Daily Usage | D68: =D67/D$5 -> -2461.478871 | E68: =E67/E$5 -> -13491.41029 | F68: -39878.56397 | G68: -15716.6041 | H68: -41513.72461 | I68: -66741.8914 | J68: 6559.53429 | K68: -16027.941 | L68: -14719.447 | M68: -20303.50597 | N68: -4618.358767 | O68: -9968.352645
A69: =MATCH(A68,'Load Shape'!$E$2:$N$2,0) -> 3 | B69: Seasonal Profile hourly % | D69: =INDEX(LoadShape,MATCH(D$6,M.WkDy.H,0),$A69) -> 0.04328079816 | E69: 0.04594466524 | F69: 0.04664289528 | G69: 0.04857192296 | H69: 0.04373776467 | I69: 0.04871711788 | J69: 0.05189411713 | K69: 0.04774996893 | L69: 0.04631888928 | M69: 0.04791577641 | N69: 0.04504459236 | O69: 0.04736419369
B70: Peak Hour Estimate | C70: =AVERAGE(D70:O70) -> -931.3978983 | D70: =D68*D69 -> -106.5347702 | E70: -619.8583291 | F70: -1860.051683 | G70: -763.3856835 | H70: -1815.717518 | I70: -3251.472591 | J70: 340.4012408 | K70: -765.3336847 | L70: -681.7884358 | M70: -972.8582524 | N70: -208.032088 | O70: -472.1429854
A72: WA Primary Sch 21 | B72: Billed Usage | D72: ='12.2018 WA Usage'!F114 -> 8578043 | E72: ='12.2018 WA Usage'!G114 -> 8615897.05 | F72: ='12.2018 WA Usage'!H114 -> 9397797.8 | G72: ='12.2018 WA Usage'!I114 -> 8829029.08 | H72: ='12.2018 WA Usage'!J114 -> 10101929.43 | I72: ='12.2018 WA Usage'!K114 -> 9797312.16 | J72: ='12.2018 WA Usage'!L114 -> 8624500.29 | K72: ='12.2018 WA Usage'!M114 -> 8749755.68 | L72: ='12.2018 WA Usage'!N114 -> 9159538.48 | M72: ='12.2018 WA Usage'!C114 -> 9858642 | N72: ='12.2018 WA Usage'!D114 -> 8709433 | O72: ='12.2018 WA Usage'!E114 -> 8573247
A73: ='Load Shape'!H2 -> WA21P | B73: Estimated Daily Usage | D73: =D72/D$5 -> 276711.0645 | E73: =E72/E$5 -> 307710.6089 | F73: 303154.7677 | G73: 294300.9693 | H73: 325868.6913 | I73: 326577.072 | J73: 278209.6868 | K73: 282250.1832 | L73: 305317.9493 | M73: 318020.7097 | N73: 290314.4333 | O73: 276556.3548
A74: =MATCH(A73,'Load Shape'!$E$2:$N$2,0) -> 4 | B74: Seasonal Profile hourly % | D74: =INDEX(LoadShape,MATCH(D$6,M.WkDy.H,0),$A74) -> 0.03960396197 | E74: 0.04765674385 | F74: 0.04789488696 | G74: 0.05149219006 | H74: 0.04042186685 | I74: 0.0442804066 | J74: 0.04771016437 | K74: 0.0448879927 | L74: 0.04391654605 | M74: 0.04976124871 | N74: 0.04283825079 | O74: 0.04932878923
B75: Peak Hour Estimate | C75: =AVERAGE(D75:O75) -> 13682.14462 | D75: =D73*D74 -> 10958.85448 | E75: 14664.48567 | F75: 14519.56333 | G75: 15154.20145 | H75: 13172.22085 | I75: 14460.96553 | J75: 13273.42988 | K75: 12669.64416 | L75: 13408.50978 | M75: 15825.10763 | N75: 12436.5625 | O75: 13642.19014
A77: WA Total Sch 31 | B77: Billed Usage | D77: =SUM('12.2018 WA Usage'!F95:F97) -> 5323831.003 | E77: =SUM('12.2018 WA Usage'!G95:G97) -> 10126135.69 | F77: =SUM('12.2018 WA Usage'!H95:H97) -> 18516636.55 | G77: =SUM('12.2018 WA Usage'!I95:I97) -> 23083952.64 | H77: =SUM('12.2018 WA Usage'!J95:J97) -> 28015837.67 | I77: =SUM('12.2018 WA Usage'!K95:K97) -> 23798947.99 | J77: =SUM('12.2018 WA Usage'!L95:L97) -> 12939703.93 | K77: =SUM('12.2018 WA Usage'!M95:M97) -> 6282585.274 | L77: =SUM('12.2018 WA Usage'!N95:N97) -> 3998282.943 | M77: =SUM('12.2018 WA Usage'!C95:C97) -> 5199805.678 | N77: =SUM('12.2018 WA Usage'!D95:D97) -> 4295325.279 | O77: =SUM('12.2018 WA Usage'!E95:E97) -> 4226647.8
A78: ='Load Shape'!I2 -> WA31 | B78: Estimated Daily Usage | D78: =D77/D$5 -> 171736.484 | E78: =E77/E$5 -> 361647.703 | F78: 597310.8565 | G78: 769465.0878 | H78: 903736.6991 | I78: 793298.2663 | J78: 417409.8042 | K78: 202664.0411 | L78: 133276.0981 | M78: 167735.667 | N78: 143177.5093 | O78: 136343.4774
A79: =MATCH(A78,'Load Shape'!$E$2:$N$2,0) -> 5 | B79: Seasonal Profile hourly % | D79: =INDEX(LoadShape,MATCH(D$6,M.WkDy.H,0),$A79) -> 0.03711549599 | E79: 0.04659006498 | F79: 0.04142726463 | G79: 0.04613926686 | H79: 0.03898511769 | I79: 0.03868444603 | J79: 0.03899252019 | K79: 0.03858746429 | L79: 0.03639053647 | M79: 0.04623389529 | N79: 0.04855461248 | O79: 0.04155985536
B80: Peak Hour Estimate | C80: =AVERAGE(D80:O80) -> 16559.24396 | D80: =D78*D79 -> 6374.084783 | E80: 16849.18998 | F80: 24744.95492 | G80: 35502.55503 | H80: 35232.28158 | I80: 30688.30397 | J80: 16275.86022 | K80: 7820.291448 | L80: 4849.988709 | M80: 7755.073266 | N80: 6951.92848 | O80: 5666.415201

Sheet ID DemEst
D1: JAN | E1: FEB | F1: MAR | G1: APR | H1: MAY | I1: JUN | J1: JUL | K1: AUG | L1: SEP | M1: OCT | N1: NOV | O1: DEC
D2: ='Peak Calc CP'!C70 -> 2018-01-02 | E2: ='Peak Calc CP'!D70 -> 2018-02-21 | F2: ='Peak Calc CP'!E70 -> 2018-03-07 | G2: ='Peak Calc CP'!F70 -> 2018-04-02 | H2: ='Peak Calc CP'!G70 -> 2018-05-15 | I2: ='Peak Calc CP'!H70 -> 2018-06-20 | J2: ='Peak Calc CP'!I70 -> 2018-07-30 | K2: ='Peak Calc CP'!J70 -> 2018-08-10 | L2: ='Peak Calc CP'!K70 -> 2018-09-07 | M2: ='Peak Calc CP'!L70 -> 2018-10-16 | N2: ='Peak Calc CP'!M70 -> 2018-11-26 | O2: ='Peak Calc CP'!N70 -> 2018-12-07
D3: ='Peak Calc CP'!C71 -> 2018-01-02 | E3: ='Peak Calc CP'!D71 -> 2018-02-21 | F3: ='Peak Calc CP'!E71 -> 2018-03-07 | G3: ='Peak Calc CP'!F71 -> 2018-04-02 | H3: ='Peak Calc CP'!G71 -> 2018-05-15 | I3: ='Peak Calc CP'!H71 -> 2018-06-20 | J3: ='Peak Calc CP'!I71 -> 2018-07-30 | K3: ='Peak Calc CP'!J71 -> 2018-08-10 | L3: ='Peak Calc CP'!K71 -> 2018-09-07 | M3: ='Peak Calc CP'!L71 -> 2018-10-16 | N3: ='Peak Calc CP'!M71 -> 2018-11-26 | O3: ='Peak Calc CP'!N71 -> 2018-12-07
D4: ='Peak Calc CP'!C72 -> 18:00:00 | E4: ='Peak Calc CP'!D72 -> 08:00:00 | F4: ='Peak Calc CP'!E72 -> 08:00:00 | G4: ='Peak Calc CP'!F72 -> 10:00:00 | H4: ='Peak Calc CP'!G72 -> 19:00:00 | I4: ='Peak Calc CP'!H72 -> 17:00:00 | J4: ='Peak Calc CP'!I72 -> 16:00:00 | K4: ='Peak Calc CP'!J72 -> 16:00:00 | L4: ='Peak Calc CP'!K72 -> 17:00:00 | M4: ='Peak Calc CP'!L72 -> 08:00:00 | N4: ='Peak Calc CP'!M72 -> 18:00:00 | O4: ='Peak Calc CP'!N72 -> 08:00:00
C5: days in month | D5: =DAY(DATE(YEAR(D3),MONTH(D3)+1,0)) -> 31 | E5: =DAY(DATE(YEAR(E3),MONTH(E3)+1,0)) -> 28 | F5: 31 | G5: 30 | H5: 31 | I5: 30 | J5: 31 | K5: 31 | L5: 30 | M5: 31 | N5: 30 | O5: 31 | P5: =SUM(D5:O5) -> 365
C6: m.wkdy.h | D6: =MONTH(D3)&"."&WEEKDAY(D3)&"."&HOUR(D4) -> 1.3.18 | E6: =MONTH(E3)&"."&WEEKDAY(E3)&"."&HOUR(E4) -> 2.4.8 | F6: 3.4.8 | G6: 4.2.10 | H6: 5.3.19 | I6: 6.4.17 | J6: 7.2.16 | K6: 8.6.16 | L6: 9.6.17 | M6: 10.3.8 | N6: 11.2.18 | O6: 12.6.8
C7: DDH | D7: =MAX('Peak Calc CP'!C73,0) -> 43 | E7: =MAX('Peak Calc CP'!D73,0) -> 51 | F7: =MAX('Peak Calc CP'!E73,0) -> 29 | G7: =MAX('Peak Calc CP'!F73,0) -> 29 | H7: =MAX('Peak Calc CP'!G73,0) -> 0 | I7: =MAX('Peak Calc CP'!H73,0) -> 0 | J7: =MAX('Peak Calc CP'!I73,0) -> 0 | K7: =MAX('Peak Calc CP'!J73,0) -> 0 | L7: =MAX('Peak Calc CP'!K73,0) -> 0 | M7: =MAX('Peak Calc CP'!L73,0) -> 17 | N7: =MAX('Peak Calc CP'!M73,0) -> 31 | O7: =MAX('Peak Calc CP'!N73,0) -> 43
C8: DDC | D8: =MAX(-'Peak Calc CP'!C73,0) -> 0 | E8: =MAX(-'Peak Calc CP'!D73,0) -> 0 | F8: =MAX(-'Peak Calc CP'!E73,0) -> 0 | G8: =MAX(-'Peak Calc CP'!F73,0) -> 0 | H8: =MAX(-'Peak Calc CP'!G73,0) -> 5 | I8: =MAX(-'Peak Calc CP'!H73,0) -> 6 | J8: =MAX(-'Peak Calc CP'!I73,0) -> 16 | K8: =MAX(-'Peak Calc CP'!J73,0) -> 23 | L8: =MAX(-'Peak Calc CP'!K73,0) -> 6 | M8: =MAX(-'Peak Calc CP'!L73,0) -> 0 | N8: =MAX(-'Peak Calc CP'!M73,0) -> 0 | O8: =MAX(-'Peak Calc CP'!N73,0) -> 0
A10: ID Res Sch 1 | B10: Peak Day Estimate | D10: =(($C12*12)/$P$5+D13*D$7+D14*D$8)*D11 -> 4783086.032 | E10: =(($C12*12)/$P$5+E13*E$7+E14*E$8)*E11 -> 5291948.971 | F10: 3890095.648 | G10: 3464981.632 | H10: 2565784.96 | I10: 2670551.18 | J10: 3741249.507 | K10: 4496902.521 | L10: 2691383.011 | M10: 2903882.292 | N10: 3611212.086 | O10: 4851783.457
A11: ='Load Shape'!J2 -> ID01 | B11: Number of Cust | C11: =AVERAGE(D11:O11) -> 107925.25 | D11: 107432 | E11: 107381 | F11: 107485 | G11: 107448 | H11: 107481 | I11: 107428 | J11: 107727 | K11: 108000 | L11: 108266 | M11: 108597 | N11: 108883 | O11: 108975
A12: =MATCH(A11,'Load Shape'!$E$2:$N$2,0) -> 6 | B12: Baseload/Cust/Mo | C12: ='Electric Factors '!$H$19 -> 576
B13: Usage/DDH/Cust | D13: =IF(OR(MONTH(D$3)={12,1,2,3}),'Electric Factors '!$E$19,IF(OR(MONTH(D$3)={7,8,9}),0,'Electric Factors '!$D$19)) -> 0.595 | E13: =IF(OR(MONTH(E$3)={12,1,2,3}),'Electric Factors '!$E$19,IF(OR(MONTH(E$3)={7,8,9}),0,'Electric Factors '!$D$19)) -> 0.595 | F13: =IF(OR(MONTH(F$3)={12,1,2,3}),'Electric Factors '!$E$19,IF(OR(MONTH(F$3)={7,8,9}),0,'Electric Factors '!$D$19)) -> 0.595 | G13: =IF(OR(MONTH(G$3)={12,1,2,3}),'Electric Factors '!$E$19,IF(OR(MONTH(G$3)={7,8,9}),0,'Electric Factors '!$D$19)) -> 0.459 | H13: =IF(OR(MONTH(H$3)={12,1,2,3}),'Electric Factors '!$E$19,IF(OR(MONTH(H$3)={7,8,9}),0,'Electric Factors '!$D$19)) -> 0.459 | I13: =IF(OR(MONTH(I$3)={12,1,2,3}),'Electric Factors '!$E$19,IF(OR(MONTH(I$3)={7,8,9}),0,'Electric Factors '!$D$19)) -> 0.459 | J13: =IF(OR(MONTH(J$3)={12,1,2,3}),'Electric Factors '!$E$19,IF(OR(MONTH(J$3)={7,8,9}),0,'Electric Factors '!$D$19)) -> 0 | K13: =IF(OR(MONTH(K$3)={12,1,2,3}),'Electric Factors '!$E$19,IF(OR(MONTH(K$3)={7,8,9}),0,'Electric Factors '!$D$19)) -> 0 | L13: =IF(OR(MONTH(L$3)={12,1,2,3}),'Electric Factors '!$E$19,IF(OR(MONTH(L$3)={7,8,9}),0,'Electric Factors '!$D$19)) -> 0 | M13: =IF(OR(MONTH(M$3)={12,1,2,3}),'Electric Factors '!$E$19,IF(OR(MONTH(M$3)={7,8,9}),0,'Electric Factors '!$D$19)) -> 0.459 | N13: =IF(OR(MONTH(N$3)={12,1,2,3}),'Electric Factors '!$E$19,IF(OR(MONTH(N$3)={7,8,9}),0,'Electric Factors '!$D$19)) -> 0.459 | O13: =IF(OR(MONTH(O$3)={12,1,2,3}),'Electric Factors '!$E$19,IF(OR(MONTH(O$3)={7,8,9}),0,'Electric Factors '!$D$19)) -> 0.595
B14: Usage/DDC/Cust | D14: =IF(OR(MONTH(D$3)={4,5,10,11}),'Electric Factors '!$F$19,IF(OR(MONTH(D$3)={6,7,8,9}),'Electric Factors '!$G$19,0)) -> 0 | E14: =IF(OR(MONTH(E$3)={4,5,10,11}),'Electric Factors '!$F$19,IF(OR(MONTH(E$3)={6,7,8,9}),'Electric Factors '!$G$19,0)) -> 0 | F14: =IF(OR(MONTH(F$3)={4,5,10,11}),'Electric Factors '!$F$19,IF(OR(MONTH(F$3)={6,7,8,9}),'Electric Factors '!$G$19,0)) -> 0 | G14: =IF(OR(MONTH(G$3)={4,5,10,11}),'Electric Factors '!$F$19,IF(OR(MONTH(G$3)={6,7,8,9}),'Electric Factors '!$G$19,0)) -> 0.987 | H14: =IF(OR(MONTH(H$3)={4,10,11}),'Electric Factors '!$F$19,IF(OR(MONTH(H$3)={5,6,7,8,9}),'Electric Factors '!$G$19,0)) -> 0.987 | I14: =IF(OR(MONTH(I$3)={4,5,10,11}),'Electric Factors '!$F$19,IF(OR(MONTH(I$3)={6,7,8,9}),'Electric Factors '!$G$19,0)) -> 0.987 | J14: =IF(OR(MONTH(J$3)={4,5,10,11}),'Electric Factors '!$F$19,IF(OR(MONTH(J$3)={6,7,8,9}),'Electric Factors '!$G$19,0)) -> 0.987 | K14: =IF(OR(MONTH(K$3)={4,5,10,11}),'Electric Factors '!$F$19,IF(OR(MONTH(K$3)={6,7,8,9}),'Electric Factors '!$G$19,0)) -> 0.987 | L14: =IF(OR(MONTH(L$3)={4,5,10,11}),'Electric Factors '!$F$19,IF(OR(MONTH(L$3)={6,7,8,9}),'Electric Factors '!$G$19,0)) -> 0.987 | M14: =IF(OR(MONTH(M$3)={4,5,10,11}),'Electric Factors '!$F$19,IF(OR(MONTH(M$3)={6,7,8,9}),'Electric Factors '!$G$19,0)) -> 0.987 | N14: =IF(OR(MONTH(N$3)={4,5,10,11}),'Electric Factors '!$F$19,IF(OR(MONTH(N$3)={6,7,8,9}),'Electric Factors '!$G$19,0)) -> 0.987 | O14: =IF(OR(MONTH(O$3)={4,5,10,11}),'Electric Factors '!$F$19,IF(OR(MONTH(O$3)={6,7,8,9}),'Electric Factors '!$G$19,0)) -> 0
B15: Seasonal Profile hourly % | D15: =INDEX(LoadShape,MATCH(D$6,M.WkDy.H,0),$A12) -> 0.05419528033 | E15: =INDEX(LoadShape,MATCH(E$6,M.WkDy.H,0),$A12) -> 0.04930626922 | F15: 0.05283857718 | G15: 0.04608247863 | H15: 0.05253436874 | I15: 0.05335556808 | J15: 0.05939337769 | K15: 0.0552472251 | L15: 0.05527894004 | M15: 0.04951558558 | N15: 0.05794190103 | O15: 0.04398617874
B16: Peak Hour Estimate | C16: =AVERAGE(D16:O16) -> 195709.3874 | D16: =D10*D15 -> 259220.6884 | E16: 260926.2607 | F16: 205547.1191 | G16: 159674.942 | H16: 134791.8932 | I16: 142488.7753 | J16: 222205.445 | K16: 248441.3858 | L16: 148776.8001 | M16: 143787.4322 | N16: 209240.4933 | O16: 213411.4143
A18: ID Res Sch 11 | B18: Peak Day Estimate | D18: =(($C20*12)/$P$5+D21*D$7+D22*D$8)*D19 -> 103877.904 | E18: =(($C20*12)/$P$5+E21*E$7+E22*E$8)*E19 -> 113725.1559 | F18: 86328.06227 | G18: 73832.54227 | H18: 55622.73884 | I18: 56603.24581 | J18: 67924.29107 | K18: 76279.21792 | L18: 57213.01332 | M18: 65297.28082 | N18: 77428.63664 | O18: 106192.732
B19: Number of Cust | C19: =AVERAGE(D19:O19) -> 5426.666667 | D19: 5385 | E19: 5376 | F19: 5386 | G19: 5386 | H19: 5397 | I19: 5384 | J19: 5398 | K19: 5436 | L19: 5442 | M19: 5500 | N19: 5525 | O19: 5505
B20: Baseload/Cust/Mo | C20: ='Electric Factors '!$H$20 -> 282
B21: Usage/DDH/Cust | D21: =IF(OR(MONTH(D$3)={12,1,2,3}),'Electric Factors '!$E$20,IF(OR(MONTH(D$3)={7,8,9}),0,'Electric Factors '!$D$20)) -> 0.233 | E21: =IF(OR(MONTH(E$3)={12,1,2,3}),'Electric Factors '!$E$20,IF(OR(MONTH(E$3)={7,8,9}),0,'Electric Factors '!$D$20)) -> 0.233 | F21: =IF(OR(MONTH(F$3)={12,1,2,3}),'Electric Factors '!$E$20,IF(OR(MONTH(F$3)={7,8,9}),0,'Electric Factors '!$D$20)) -> 0.233 | G21: =IF(OR(MONTH(G$3)={12,1,2,3}),'Electric Factors '!$E$20,IF(OR(MONTH(G$3)={7,8,9}),0,'Electric Factors '!$D$20)) -> 0.153 | H21: =IF(OR(MONTH(H$3)={12,1,2,3}),'Electric Factors '!$E$20,IF(OR(MONTH(H$3)={7,8,9}),0,'Electric Factors '!$D$20)) -> 0.153 | I21: =IF(OR(MONTH(I$3)={12,1,2,3}),'Electric Factors '!$E$20,IF(OR(MONTH(I$3)={7,8,9}),0,'Electric Factors '!$D$20)) -> 0.153 | J21: =IF(OR(MONTH(J$3)={12,1,2,3}),'Electric Factors '!$E$20,IF(OR(MONTH(J$3)={7,8,9}),0,'Electric Factors '!$D$20)) -> 0 | K21: =IF(OR(MONTH(K$3)={12,1,2,3}),'Electric Factors '!$E$20,IF(OR(MONTH(K$3)={7,8,9}),0,'Electric Factors '!$D$20)) -> 0 | L21: =IF(OR(MONTH(L$3)={12,1,2,3}),'Electric Factors '!$E$20,IF(OR(MONTH(L$3)={7,8,9}),0,'Electric Factors '!$D$20)) -> 0 | M21: =IF(OR(MONTH(M$3)={12,1,2,3}),'Electric Factors '!$E$20,IF(OR(MONTH(M$3)={7,8,9}),0,'Electric Factors '!$D$20)) -> 0.153 | N21: =IF(OR(MONTH(N$3)={12,1,2,3}),'Electric Factors '!$E$20,IF(OR(MONTH(N$3)={7,8,9}),0,'Electric Factors '!$D$20)) -> 0.153 | O21: =IF(OR(MONTH(O$3)={12,1,2,3}),'Electric Factors '!$E$20,IF(OR(MONTH(O$3)={7,8,9}),0,'Electric Factors '!$D$20)) -> 0.233
B22: Usage/DDC/Cust | D22: =IF(OR(MONTH(D$3)={4,5,10,11}),'Electric Factors '!$F$20,IF(OR(MONTH(D$3)={6,7,8,9}),'Electric Factors '!$G$20,0)) -> 0 | E22: =IF(OR(MONTH(E$3)={4,5,10,11}),'Electric Factors '!$F$20,IF(OR(MONTH(E$3)={6,7,8,9}),'Electric Factors '!$G$20,0)) -> 0 | F22: =IF(OR(MONTH(F$3)={4,5,10,11}),'Electric Factors '!$F$20,IF(OR(MONTH(F$3)={6,7,8,9}),'Electric Factors '!$G$20,0)) -> 0 | G22: =IF(OR(MONTH(G$3)={4,5,10,11}),'Electric Factors '!$F$20,IF(OR(MONTH(G$3)={6,7,8,9}),'Electric Factors '!$G$20,0)) -> 0.207 | H22: =IF(OR(MONTH(H$3)={4,10,11}),'Electric Factors '!$F$20,IF(OR(MONTH(H$3)={5,6,7,8,9}),'Electric Factors '!$G$20,0)) -> 0.207 | I22: =IF(OR(MONTH(I$3)={4,5,10,11}),'Electric Factors '!$F$20,IF(OR(MONTH(I$3)={6,7,8,9}),'Electric Factors '!$G$20,0)) -> 0.207 | J22: =IF(OR(MONTH(J$3)={4,5,10,11}),'Electric Factors '!$F$20,IF(OR(MONTH(J$3)={6,7,8,9}),'Electric Factors '!$G$20,0)) -> 0.207 | K22: =IF(OR(MONTH(K$3)={4,5,10,11}),'Electric Factors '!$F$20,IF(OR(MONTH(K$3)={6,7,8,9}),'Electric Factors '!$G$20,0)) -> 0.207 | L22: =IF(OR(MONTH(L$3)={4,5,10,11}),'Electric Factors '!$F$20,IF(OR(MONTH(L$3)={6,7,8,9}),'Electric Factors '!$G$20,0)) -> 0.207 | M22: =IF(OR(MONTH(M$3)={4,5,10,11}),'Electric Factors '!$F$20,IF(OR(MONTH(M$3)={6,7,8,9}),'Electric Factors '!$G$20,0)) -> 0.207 | N22: =IF(OR(MONTH(N$3)={4,5,10,11}),'Electric Factors '!$F$20,IF(OR(MONTH(N$3)={6,7,8,9}),'Electric Factors '!$G$20,0)) -> 0.207 | O22: =IF(OR(MONTH(O$3)={4,5,10,11}),'Electric Factors '!$F$20,IF(OR(MONTH(O$3)={6,7,8,9}),'Electric Factors '!$G$20,0)) -> 0
A24: ID Com Sch 11 | B24: Peak Day Estimate | D24: =(($C26*12)/$P$5+D27*D$7+D28*D$8)*D25 -> 1113884.28 | E24: =(($C26*12)/$P$5+E27*E$7+E28*E$8)*E25 -> 1181458.157 | F24: 1015842.909 | G24: 902638.9732 | H24: 918541.3699 | I24: 946750.1945 | J24: 1195147.011 | K24: 1368707.706 | L24: 944155.8737 | M24: 867540.6596 | N24: 916181.5886 | O24: 1127477.634
B25: Number of Cust | C25: =AVERAGE(D25:O25) -> 16037.25 | D25: 15897 | E25: 15994 | F25: 16018 | G25: 16004 | H25: 16000 | I25: 16057 | J25: 16044 | K25: 16034 | L25: 16013 | M25: 16184 | N25: 16111 | O25: 16091
B26: Baseload/Cust/Mo | C26: ='Electric Factors '!$H$21 -> 1510
B27: Usage/DDH/Cust | D27: =IF(OR(MONTH(D$3)={12,1,2,3}),'Electric Factors '!$E$21,IF(OR(MONTH(D$3)={7,8,9}),0,'Electric Factors '!$D$21)) -> 0.475 | E27: =IF(OR(MONTH(E$3)={12,1,2,3}),'Electric Factors '!$E$21,IF(OR(MONTH(E$3)={7,8,9}),0,'Electric Factors '!$D$21)) -> 0.475 | F27: =IF(OR(MONTH(F$3)={12,1,2,3}),'Electric Factors '!$E$21,IF(OR(MONTH(F$3)={7,8,9}),0,'Electric Factors '!$D$21)) -> 0.475 | G27: =IF(OR(MONTH(G$3)={12,1,2,3}),'Electric Factors '!$E$21,IF(OR(MONTH(G$3)={7,8,9}),0,'Electric Factors '!$D$21)) -> 0.233 | H27: =IF(OR(MONTH(H$3)={12,1,2,3}),'Electric Factors '!$E$21,IF(OR(MONTH(H$3)={7,8,9}),0,'Electric Factors '!$D$21)) -> 0.233 | I27: =IF(OR(MONTH(I$3)={12,1,2,3}),'Electric Factors '!$E$21,IF(OR(MONTH(I$3)={7,8,9}),0,'Electric Factors '!$D$21)) -> 0.233 | J27: =IF(OR(MONTH(J$3)={12,1,2,3}),'Electric Factors '!$E$21,IF(OR(MONTH(J$3)={7,8,9}),0,'Electric Factors '!$D$21)) -> 0 | K27: =IF(OR(MONTH(K$3)={12,1,2,3}),'Electric Factors '!$E$21,IF(OR(MONTH(K$3)={7,8,9}),0,'Electric Factors '!$D$21)) -> 0 | L27: =IF(OR(MONTH(L$3)={12,1,2,3}),'Electric Factors '!$E$21,IF(OR(MONTH(L$3)={7,8,9}),0,'Electric Factors '!$D$21)) -> 0 | M27: =IF(OR(MONTH(M$3)={12,1,2,3}),'Electric Factors '!$E$21,IF(OR(MONTH(M$3)={7,8,9}),0,'Electric Factors '!$D$21)) -> 0.233 | N27: =IF(OR(MONTH(N$3)={12,1,2,3}),'Electric Factors '!$E$21,IF(OR(MONTH(N$3)={7,8,9}),0,'Electric Factors '!$D$21)) -> 0.233 | O27: =IF(OR(MONTH(O$3)={12,1,2,3}),'Electric Factors '!$E$21,IF(OR(MONTH(O$3)={7,8,9}),0,'Electric Factors '!$D$21)) -> 0.475
B28: Usage/DDC/Cust | D28: =IF(OR(MONTH(D$3)={4,5,10,11}),'Electric Factors '!$F$21,IF(OR(MONTH(D$3)={6,7,8,9}),'Electric Factors '!$G$21,0)) -> 0 | E28: =IF(OR(MONTH(E$3)={4,5,10,11}),'Electric Factors '!$F$21,IF(OR(MONTH(E$3)={6,7,8,9}),'Electric Factors '!$G$21,0)) -> 0 | F28: =IF(OR(MONTH(F$3)={4,5,10,11}),'Electric Factors '!$F$21,IF(OR(MONTH(F$3)={6,7,8,9}),'Electric Factors '!$G$21,0)) -> 0 | G28: =IF(OR(MONTH(G$3)={4,5,10,11}),'Electric Factors '!$F$21,IF(OR(MONTH(G$3)={6,7,8,9}),'Electric Factors '!$G$21,0)) -> 1.553 | H28: =IF(OR(MONTH(H$3)={4,5,10,11}),'Electric Factors '!$F$21,IF(OR(MONTH(H$3)={6,7,8,9}),'Electric Factors '!$G$21,0)) -> 1.553 | I28: =IF(OR(MONTH(I$3)={4,5,10,11}),'Electric Factors '!$F$21,IF(OR(MONTH(I$3)={6,7,8,9}),'Electric Factors '!$G$21,0)) -> 1.553 | J28: =IF(OR(MONTH(J$3)={4,5,10,11}),'Electric Factors '!$F$21,IF(OR(MONTH(J$3)={6,7,8,9}),'Electric Factors '!$G$21,0)) -> 1.553 | K28: =IF(OR(MONTH(K$3)={4,5,10,11}),'Electric Factors '!$F$21,IF(OR(MONTH(K$3)={6,7,8,9}),'Electric Factors '!$G$21,0)) -> 1.553 | L28: =IF(OR(MONTH(L$3)={4,5,10,11}),'Electric Factors '!$F$21,IF(OR(MONTH(L$3)={6,7,8,9}),'Electric Factors '!$G$21,0)) -> 1.553 | M28: =IF(OR(MONTH(M$3)={4,5,10,11}),'Electric Factors '!$F$21,IF(OR(MONTH(M$3)={6,7,8,9}),'Electric Factors '!$G$21,0)) -> 1.553 | N28: =IF(OR(MONTH(N$3)={4,5,10,11}),'Electric Factors '!$F$21,IF(OR(MONTH(N$3)={6,7,8,9}),'Electric Factors '!$G$21,0)) -> 1.553 | O28: =IF(OR(MONTH(O$3)={4,5,10,11}),'Electric Factors '!$F$21,IF(OR(MONTH(O$3)={6,7,8,9}),'Electric Factors '!$G$21,0)) -> 0
A30: ID Ind Sch 11 | B30: Peak Day Estimate | D30: =(($C32*12)/$P$5+D33*D$7+D34*D$8)*D31 -> 15326.90063 | E30: =(($C32*12)/$P$5+E33*E$7+E34*E$8)*E31 -> 16122.21263 | F30: 13492.72036 | G30: 12661.62842 | H30: 11535.10836 | I30: 11510.04822 | J30: 13260.03529 | K30: 14656.19642 | L30: 11701.88236 | M30: 11886.72842 | N30: 12998.75856 | O30: 14840.33236
B31: Number of Cust | C31: =AVERAGE(D31:O31) -> 122.9166667 | D31: 126 | E31: 126 | F31: 122 | G31: 123 | H31: 122 | I31: 120 | J31: 121 | K31: 123 | L31: 122 | M31: 123 | N31: 125 | O31: 122
B32: Baseload/Cust/Mo | C32: ='Electric Factors '!$H$22 -> 2668
B33: Usage/DDH/Cust | D33: =IF(OR(MONTH(D$3)={12,1,2,3}),'Electric Factors '!$E$22,IF(OR(MONTH(D$3)={7,8,9}),0,'Electric Factors '!$D$22)) -> 0.789 | E33: =IF(OR(MONTH(E$3)={12,1,2,3}),'Electric Factors '!$E$22,IF(OR(MONTH(E$3)={7,8,9}),0,'Electric Factors '!$D$22)) -> 0.789 | F33: =IF(OR(MONTH(F$3)={12,1,2,3}),'Electric Factors '!$E$22,IF(OR(MONTH(F$3)={7,8,9}),0,'Electric Factors '!$D$22)) -> 0.789 | G33: =IF(OR(MONTH(G$3)={12,1,2,3}),'Electric Factors '!$E$22,IF(OR(MONTH(G$3)={7,8,9}),0,'Electric Factors '!$D$22)) -> 0.525 | H33: =IF(OR(MONTH(H$3)={12,1,2,3}),'Electric Factors '!$E$22,IF(OR(MONTH(H$3)={7,8,9}),0,'Electric Factors '!$D$22)) -> 0.525 | I33: =IF(OR(MONTH(I$3)={12,1,2,3}),'Electric Factors '!$E$22,IF(OR(MONTH(I$3)={7,8,9}),0,'Electric Factors '!$D$22)) -> 0.525 | J33: =IF(OR(MONTH(J$3)={12,1,2,3}),'Electric Factors '!$E$22,IF(OR(MONTH(J$3)={7,8,9}),0,'Electric Factors '!$D$22)) -> 0 | K33: =IF(OR(MONTH(K$3)={12,1,2,3}),'Electric Factors '!$E$22,IF(OR(MONTH(K$3)={7,8,9}),0,'Electric Factors '!$D$22)) -> 0 | L33: =IF(OR(MONTH(L$3)={12,1,2,3}),'Electric Factors '!$E$22,IF(OR(MONTH(L$3)={7,8,9}),0,'Electric Factors '!$D$22)) -> 0 | M33: =IF(OR(MONTH(M$3)={12,1,2,3}),'Electric Factors '!$E$22,IF(OR(MONTH(M$3)={7,8,9}),0,'Electric Factors '!$D$22)) -> 0.525 | N33: =IF(OR(MONTH(N$3)={12,1,2,3}),'Electric Factors '!$E$22,IF(OR(MONTH(N$3)={7,8,9}),0,'Electric Factors '!$D$22)) -> 0.525 | O33: =IF(OR(MONTH(O$3)={12,1,2,3}),'Electric Factors '!$E$22,IF(OR(MONTH(O$3)={7,8,9}),0,'Electric Factors '!$D$22)) -> 0.789
B34: Usage/DDC/Cust | D34: =IF(OR(MONTH(D$3)={4,5,10,11}),'Electric Factors '!$F$22,IF(OR(MONTH(D$3)={6,7,8,9}),'Electric Factors '!$G$22,0)) -> 0 | E34: =IF(OR(MONTH(E$3)={4,5,10,11}),'Electric Factors '!$F$22,IF(OR(MONTH(E$3)={6,7,8,9}),'Electric Factors '!$G$22,0)) -> 0 | F34: =IF(OR(MONTH(F$3)={4,5,10,11}),'Electric Factors '!$F$22,IF(OR(MONTH(F$3)={6,7,8,9}),'Electric Factors '!$G$22,0)) -> 0 | G34: =IF(OR(MONTH(G$3)={4,5,10,11}),'Electric Factors '!$F$22,IF(OR(MONTH(G$3)={6,7,8,9}),'Electric Factors '!$G$22,0)) -> 1.367 | H34: =IF(OR(MONTH(H$3)={4,10,11}),'Electric Factors '!$F$22,IF(OR(MONTH(H$3)={5,6,7,8,9}),'Electric Factors '!$G$22,0)) -> 1.367 | I34: =IF(OR(MONTH(I$3)={4,5,10,11}),'Electric Factors '!$F$22,IF(OR(MONTH(I$3)={6,7,8,9}),'Electric Factors '!$G$22,0)) -> 1.367 | J34: =IF(OR(MONTH(J$3)={4,5,10,11}),'Electric Factors '!$F$22,IF(OR(MONTH(J$3)={6,7,8,9}),'Electric Factors '!$G$22,0)) -> 1.367 | K34: =IF(OR(MONTH(K$3)={4,5,10,11}),'Electric Factors '!$F$22,IF(OR(MONTH(K$3)={6,7,8,9}),'Electric Factors '!$G$22,0)) -> 1.367 | L34: =IF(OR(MONTH(L$3)={4,5,10,11}),'Electric Factors '!$F$22,IF(OR(MONTH(L$3)={6,7,8,9}),'Electric Factors '!$G$22,0)) -> 1.367 | M34: =IF(OR(MONTH(M$3)={4,5,10,11}),'Electric Factors '!$F$22,IF(OR(MONTH(M$3)={6,7,8,9}),'Electric Factors '!$G$22,0)) -> 1.367 | N34: =IF(OR(MONTH(N$3)={4,5,10,11}),'Electric Factors '!$F$22,IF(OR(MONTH(N$3)={6,7,8,9}),'Electric Factors '!$G$22,0)) -> 1.367 | O34: =IF(OR(MONTH(O$3)={4,5,10,11}),'Electric Factors '!$F$22,IF(OR(MONTH(O$3)={6,7,8,9}),'Electric Factors '!$G$22,0)) -> 0
A36: ID Other Sch 11 | B36: Billed Usage | D36: ='12.2018 ID Usage'!F160 -> 510610.64 | E36: ='12.2018 ID Usage'!G160 -> 453384.685 | F36: ='12.2018 ID Usage'!H160 -> 401190.275 | G36: ='12.2018 ID Usage'!I160 -> 417642.42 | H36: ='12.2018 ID Usage'!J160 -> 451102.83 | I36: ='12.2018 ID Usage'!K160 -> 450044.64 | J36: ='12.2018 ID Usage'!L160 -> 442625.38 | K36: ='12.2018 ID Usage'!M160 -> 499520.65 | L36: ='12.2018 ID Usage'!N160 -> 629540.46 | M36: ='12.2018 ID Usage'!C160 -> 580640.574 | N36: ='12.2018 ID Usage'!D160 -> 541204.29 | O36: ='12.2018 ID Usage'!E160 -> 532169.69
B37: Estimated Daily Usage | D37: =D36/D$5 -> 16471.31097 | E37: =E36/E$5 -> 16192.31018 | F37: 12941.62177 | G37: 13921.414 | H37: 14551.70419 | I37: 15001.488 | J37: 14278.23806 | K37: 16113.56935 | L37: 20984.682 | M37: 18730.3411 | N37: 18040.143 | O37: 17166.76419
A39: Total ID Sch 11 | B39: Peak Day Estimate | D39: =D18+D24+D30+D37 -> 1249560.395 | E39: =E18+E24+E30+E37 -> 1327497.836 | F39: 1128605.313 | G39: 1003054.558 | H39: 1000250.921 | I39: 1029864.977 | J39: 1290609.575 | K39: 1475756.69 | L39: 1034055.451 | M39: 963455.01 | N39: 1024649.127 | O39: 1265677.462
A40: ='Load Shape'!K2 -> ID11 | B40: Seasonal Profile hourly % | D40: =INDEX(LoadShape,MATCH(D$6,M.WkDy.H,0),$A41) -> 0.04327942011 | E40: 0.04315713994 | F40: 0.04391802326 | G40: 0.05053883953 | H40: 0.03096399243 | I40: 0.05378300311 | J40: 0.06005949786 | K40: 0.05605399476 | L40: 0.05229561818 | M40: 0.04669036782 | N40: 0.04635012347 | O40: 0.04352358081
A41: =MATCH(A40,'Load Shape'!$E$2:$N$2,0) -> 7 | B41: Peak Hour Estimate #1 | C41: =AVERAGE(D41:O41) -> 54988.9223 | D41: =D39*D40 -> 54080.2493 | E41: 57291.00986 | F41: 49566.11441 | G41: 50693.21335 | H41: 30971.76195 | I41: 55389.23123 | J41: 77513.36301 | K41: 82722.05777 | L41: 54076.56906 | M41: 44984.0688 | N41: 47492.61354 | O41: 55086.81531
A43: Total ID Sch 11 | B43: Peak Day Estimate | D43: =(($C45*12)/$P$5+D46*D$7+D47*D$8)*D44 -> 1244983.288 | E43: =(($C45*12)/$P$5+E46*E$7+E47*E$8)*E44 -> 1322362.821 | F43: 1124976.119 | G43: 995605.7287 | H43: 991120.9225 | I43: 1018895.983 | J43: 1277446.609 | K43: =(($C45*12)/$P$5+K46*K$7+K47*K$8)*K44 -> 1460392.235 | L43: 1019698.263 | M43: 953205.9645 | N43: 1016486.944 | O43: 1262985.285
B44: Number of Cust | C44: =AVERAGE(D44:O44) -> 21616.66667 | D44: 21439 | E44: 21526 | F44: 21555 | G44: 21542 | H44: 21548 | I44: 21590 | J44: 21592 | K44: 21622 | L44: 21607 | M44: 21838 | N44: 21792 | O44: 21749
B45: Baseload/Cust/Mo | C45: ='Electric Factors '!$H$23 -> 1217
B46: Usage/DDH/Cust | D46: =IF(OR(MONTH(D$3)={12,1,2,3}),'Electric Factors '!$E$23,IF(OR(MONTH(D$3)={7,8,9}),0,'Electric Factors '!$D$23)) -> 0.42 | E46: =IF(OR(MONTH(E$3)={12,1,2,3}),'Electric Factors '!$E$23,IF(OR(MONTH(E$3)={7,8,9}),0,'Electric Factors '!$D$23)) -> 0.42 | F46: =IF(OR(MONTH(F$3)={12,1,2,3}),'Electric Factors '!$E$23,IF(OR(MONTH(F$3)={7,8,9}),0,'Electric Factors '!$D$23)) -> 0.42 | G46: =IF(OR(MONTH(G$3)={12,1,2,3}),'Electric Factors '!$E$23,IF(OR(MONTH(G$3)={7,8,9}),0,'Electric Factors '!$D$23)) -> 0.214 | H46: =IF(OR(MONTH(H$3)={12,1,2,3}),'Electric Factors '!$E$23,IF(OR(MONTH(H$3)={7,8,9}),0,'Electric Factors '!$D$23)) -> 0.214 | I46: =IF(OR(MONTH(I$3)={12,1,2,3}),'Electric Factors '!$E$23,IF(OR(MONTH(I$3)={7,8,9}),0,'Electric Factors '!$D$23)) -> 0.214 | J46: =IF(OR(MONTH(J$3)={12,1,2,3}),'Electric Factors '!$E$23,IF(OR(MONTH(J$3)={7,8,9}),0,'Electric Factors '!$D$23)) -> 0 | K46: =IF(OR(MONTH(K$3)={12,1,2,3}),'Electric Factors '!$E$23,IF(OR(MONTH(K$3)={7,8,9}),0,'Electric Factors '!$D$23)) -> 0 | L46: =IF(OR(MONTH(L$3)={12,1,2,3}),'Electric Factors '!$E$23,IF(OR(MONTH(L$3)={7,8,9}),0,'Electric Factors '!$D$23)) -> 0 | M46: =IF(OR(MONTH(M$3)={12,1,2,3}),'Electric Factors '!$E$23,IF(OR(MONTH(M$3)={7,8,9}),0,'Electric Factors '!$D$23)) -> 0.214 | N46: =IF(OR(MONTH(N$3)={12,1,2,3}),'Electric Factors '!$E$23,IF(OR(MONTH(N$3)={7,8,9}),0,'Electric Factors '!$D$23)) -> 0.214 | O46: =IF(OR(MONTH(O$3)={12,1,2,3}),'Electric Factors '!$E$23,IF(OR(MONTH(O$3)={7,8,9}),0,'Electric Factors '!$D$23)) -> 0.42
B47: Usage/DDC/Cust | D47: =IF(OR(MONTH(D$3)={4,5,10,11}),'Electric Factors '!$F$23,IF(OR(MONTH(D$3)={6,7,8,9}),'Electric Factors '!$G$23,0)) -> 0 | E47: =IF(OR(MONTH(E$3)={4,5,10,11}),'Electric Factors '!$F$23,IF(OR(MONTH(E$3)={6,7,8,9}),'Electric Factors '!$G$23,0)) -> 0 | F47: =IF(OR(MONTH(F$3)={4,5,10,11}),'Electric Factors '!$F$23,IF(OR(MONTH(F$3)={6,7,8,9}),'Electric Factors '!$G$23,0)) -> 0 | G47: =IF(OR(MONTH(G$3)={4,5,10,11}),'Electric Factors '!$F$23,IF(OR(MONTH(G$3)={6,7,8,9}),'Electric Factors '!$G$23,0)) -> 1.197 | H47: =IF(OR(MONTH(H$3)={4,5,10,11}),'Electric Factors '!$F$23,IF(OR(MONTH(H$3)={6,7,8,9}),'Electric Factors '!$G$23,0)) -> 1.197 | I47: =IF(OR(MONTH(I$3)={4,5,10,11}),'Electric Factors '!$F$23,IF(OR(MONTH(I$3)={6,7,8,9}),'Electric Factors '!$G$23,0)) -> 1.197 | J47: =IF(OR(MONTH(J$3)={4,5,10,11}),'Electric Factors '!$F$23,IF(OR(MONTH(J$3)={6,7,8,9}),'Electric Factors '!$G$23,0)) -> 1.197 | K47: =IF(OR(MONTH(K$3)={4,5,10,11}),'Electric Factors '!$F$23,IF(OR(MONTH(K$3)={6,7,8,9}),'Electric Factors '!$G$23,0)) -> 1.197 | L47: =IF(OR(MONTH(L$3)={4,5,10,11}),'Electric Factors '!$F$23,IF(OR(MONTH(L$3)={6,7,8,9}),'Electric Factors '!$G$23,0)) -> 1.197 | M47: =IF(OR(MONTH(M$3)={4,5,10,11}),'Electric Factors '!$F$23,IF(OR(MONTH(M$3)={6,7,8,9}),'Electric Factors '!$G$23,0)) -> 1.197 | N47: =IF(OR(MONTH(N$3)={4,5,10,11}),'Electric Factors '!$F$23,IF(OR(MONTH(N$3)={6,7,8,9}),'Electric Factors '!$G$23,0)) -> 1.197 | O47: =IF(OR(MONTH(O$3)={4,5,10,11}),'Electric Factors '!$F$23,IF(OR(MONTH(O$3)={6,7,8,9}),'Electric Factors '!$G$23,0)) -> 0
B48: Seasonal Profile hourly % | D48: =D40 -> 0.04327942011 | E48: =E40 -> 0.04315713994 | F48: 0.04391802326 | G48: 0.05053883953 | H48: 0.03096399243 | I48: 0.05378300311 | J48: 0.06005949786 | K48: 0.05605399476 | L48: 0.05229561818 | M48: 0.04669036782 | N48: 0.04635012347 | O48: 0.04352358081
B49: Peak Hour Estimate #2 | C49: =AVERAGE(D49:O49) -> 54555.18586 | D49: =D43*D48 -> 53882.15474 | E49: 57069.39734 | F49: 49406.72737 | G49: 50316.75816 | H49: 30689.06074 | I49: 54799.28581 | J49: 76722.80186 | K49: 81860.81872 | L49: 53325.75102 | M49: 44505.5371 | N49: 47114.29538 | O49: 54969.64212
A51: ID Res Sch 21 | B51: Peak Day Estimate | D51: =(($C53*12)/$P$5+D54*D$7+D55*D$8)*D52 -> 25695.84701 | E51: =(($C53*12)/$P$5+E54*E$7+E55*E$8)*E52 -> 31099.21989 | F51: 25072.89189 | G51: 21155.28189 | H51: 19484.48589 | I51: 19955.56389 | J51: 24666.34389 | K51: 26410.34045 | L51: 21064.20633 | M51: 18406.53645 | N51: 22623.66933 | O51: 28907.82789
B52: Number of Cust | C52: =AVERAGE(D52:O52) -> 17.83333333 | D52: 16 | E52: 18 | F52: 18 | G52: 18 | H52: 18 | I52: 18 | J52: 18 | K52: 17 | L52: 19 | M52: 17 | N52: 19 | O52: 18
B53: Baseload/Cust/Mo | C53: ='Electric Factors '!$H$24 -> 28945
B54: Usage/DDH/Cust | D54: =IF(OR(MONTH(D$3)={12,1,2,3}),'Electric Factors '!$E$24,IF(OR(MONTH(D$3)={7,8,9}),0,'Electric Factors '!$D$24)) -> 15.218 | E54: =IF(OR(MONTH(E$3)={12,1,2,3}),'Electric Factors '!$E$24,IF(OR(MONTH(E$3)={7,8,9}),0,'Electric Factors '!$D$24)) -> 15.218 | F54: =IF(OR(MONTH(F$3)={12,1,2,3}),'Electric Factors '!$E$24,IF(OR(MONTH(F$3)={7,8,9}),0,'Electric Factors '!$D$24)) -> 15.218 | G54: =IF(OR(MONTH(G$3)={12,1,2,3}),'Electric Factors '!$E$24,IF(OR(MONTH(G$3)={7,8,9}),0,'Electric Factors '!$D$24)) -> 7.713 | H54: =IF(OR(MONTH(H$3)={12,1,2,3}),'Electric Factors '!$E$24,IF(OR(MONTH(H$3)={7,8,9}),0,'Electric Factors '!$D$24)) -> 7.713 | I54: =IF(OR(MONTH(I$3)={12,1,2,3}),'Electric Factors '!$E$24,IF(OR(MONTH(I$3)={7,8,9}),0,'Electric Factors '!$D$24)) -> 7.713 | J54: =IF(OR(MONTH(J$3)={12,1,2,3}),'Electric Factors '!$E$24,IF(OR(MONTH(J$3)={7,8,9}),0,'Electric Factors '!$D$24)) -> 0 | K54: =IF(OR(MONTH(K$3)={12,1,2,3}),'Electric Factors '!$E$24,IF(OR(MONTH(K$3)={7,8,9}),0,'Electric Factors '!$D$24)) -> 0 | L54: =IF(OR(MONTH(L$3)={12,1,2,3}),'Electric Factors '!$E$24,IF(OR(MONTH(L$3)={7,8,9}),0,'Electric Factors '!$D$24)) -> 0 | M54: =IF(OR(MONTH(M$3)={12,1,2,3}),'Electric Factors '!$E$24,IF(OR(MONTH(M$3)={7,8,9}),0,'Electric Factors '!$D$24)) -> 7.713 | N54: =IF(OR(MONTH(N$3)={12,1,2,3}),'Electric Factors '!$E$24,IF(OR(MONTH(N$3)={7,8,9}),0,'Electric Factors '!$D$24)) -> 7.713 | O54: =IF(OR(MONTH(O$3)={12,1,2,3}),'Electric Factors '!$E$24,IF(OR(MONTH(O$3)={7,8,9}),0,'Electric Factors '!$D$24)) -> 15.218
A55: =$A$76 -> ID21S | B55: Usage/DDC/Cust | D55: =IF(OR(MONTH(D$3)={4,5,10,11}),'Electric Factors '!$F$24,IF(OR(MONTH(D$3)={6,7,8,9}),'Electric Factors '!$G$24,0)) -> 0 | E55: =IF(OR(MONTH(E$3)={4,5,10,11}),'Electric Factors '!$F$24,IF(OR(MONTH(E$3)={6,7,8,9}),'Electric Factors '!$G$24,0)) -> 0 | F55: =IF(OR(MONTH(F$3)={4,5,10,11}),'Electric Factors '!$F$24,IF(OR(MONTH(F$3)={6,7,8,9}),'Electric Factors '!$G$24,0)) -> 0 | G55: =IF(OR(MONTH(G$3)={4,5,10,11}),'Electric Factors '!$F$24,IF(OR(MONTH(G$3)={6,7,8,9}),'Electric Factors '!$G$24,0)) -> 26.171 | H55: =IF(OR(MONTH(H$3)={4,10,11}),'Electric Factors '!$F$24,IF(OR(MONTH(H$3)={5,6,7,8,9}),'Electric Factors '!$G$24,0)) -> 26.171 | I55: =IF(OR(MONTH(I$3)={4,5,10,11}),'Electric Factors '!$F$24,IF(OR(MONTH(I$3)={6,7,8,9}),'Electric Factors '!$G$24,0)) -> 26.171 | J55: =IF(OR(MONTH(J$3)={4,5,10,11}),'Electric Factors '!$F$24,IF(OR(MONTH(J$3)={6,7,8,9}),'Electric Factors '!$G$24,0)) -> 26.171 | K55: =IF(OR(MONTH(K$3)={4,5,10,11}),'Electric Factors '!$F$24,IF(OR(MONTH(K$3)={6,7,8,9}),'Electric Factors '!$G$24,0)) -> 26.171 | L55: =IF(OR(MONTH(L$3)={4,5,10,11}),'Electric Factors '!$F$24,IF(OR(MONTH(L$3)={6,7,8,9}),'Electric Factors '!$G$24,0)) -> 26.171 | M55: =IF(OR(MONTH(M$3)={4,5,10,11}),'Electric Factors '!$F$24,IF(OR(MONTH(M$3)={6,7,8,9}),'Electric Factors '!$G$24,0)) -> 26.171 | N55: =IF(OR(MONTH(N$3)={4,5,10,11}),'Electric Factors '!$F$24,IF(OR(MONTH(N$3)={6,7,8,9}),'Electric Factors '!$G$24,0)) -> 26.171 | O55: =IF(OR(MONTH(O$3)={4,5,10,11}),'Electric Factors '!$F$24,IF(OR(MONTH(O$3)={6,7,8,9}),'Electric Factors '!$G$24,0)) -> 0
A56: =MATCH(A55,'Load Shape'!$E$2:$N$2,0) -> 8 | B56: Seasonal Profile hourly % | D56: =INDEX(LoadShape,MATCH(D$6,M.WkDy.H,0),$A56) -> 0.04411120624 | E56: 0.04937060347 | F56: 0.04967929054 | G56: 0.05543720009 | H56: 0.04103604535 | I56: 0.04858267066 | J56: 0.05682778449 | K56: 0.05272290437 | L56: 0.04804145229 | M56: 0.04871705106 | N56: 0.04480118863 | O56: 0.05055411836
B57: Peak Hour Estimate | C57: =AVERAGE(D57:O57) -> 1169.510314 | D57: =D51*D56 -> 1133.474807 | E57: =E51*E56 -> 1535.387253 | F57: 1245.603481 | G57: 1172.789595 | H57: 799.5662466 | I57: 969.4945883 | J57: 1401.733675 | K57: 1392.429854 | L57: 1011.955063 | M57: 896.7121763 | N57: 1013.567277 | O57: 1461.409753
A59: ID Com Sch 21 | B59: Peak Day Estimate | D59: =(($C61*12)/$P$5+D62*D$7+D63*D$8)*D60 -> 1682518.038 | E59: =(($C61*12)/$P$5+E62*E$7+E63*E$8)*E60 -> 1705720.758 | F59: =(($C61*12)/$P$5+F62*F$7+F63*F$8)*F60 -> 1624388.75 | G59: 1495200 | H59: 1606952.842 | I59: 1621214.923 | J59: 1815661.737 | K59: 1964195.408 | L59: 1599049.876 | M59: 1493736.986 | N59: 1474717.808 | O59: 1636690.699
B60: Number of Cust | C60: =AVERAGE(D60:O60) -> 1019.166667 | D60: 1028 | E60: 1022 | F60: 1028 | G60: 1022 | H60: 1028 | I60: 1024 | J60: 1018 | K60: 1021 | L60: 1010 | M60: 1021 | N60: 1008 | O60: 1000
B61: Baseload/Cust/Mo | C61: ='Electric Factors '!$H$25 -> 44500
B62: Usage/DDH/Cust | D62: =IF(OR(MONTH(D$3)={12,1,2,3}),'Electric Factors '!$E$25,IF(OR(MONTH(D$3)={7,8,9}),0,'Electric Factors '!$D$25)) -> 4.039 | E62: =IF(OR(MONTH(E$3)={12,1,2,3}),'Electric Factors '!$E$25,IF(OR(MONTH(E$3)={7,8,9}),0,'Electric Factors '!$D$25)) -> 4.039 | F62: =IF(OR(MONTH(F$3)={12,1,2,3}),'Electric Factors '!$E$25,IF(OR(MONTH(F$3)={7,8,9}),0,'Electric Factors '!$D$25)) -> 4.039 | G62: =IF(OR(MONTH(G$3)={12,1,2,3}),'Electric Factors '!$E$25,IF(OR(MONTH(G$3)={7,8,9}),0,'Electric Factors '!$D$25)) -> 0 | H62: =IF(OR(MONTH(H$3)={12,1,2,3}),'Electric Factors '!$E$25,IF(OR(MONTH(H$3)={7,8,9}),0,'Electric Factors '!$D$25)) -> 0 | I62: =IF(OR(MONTH(I$3)={12,1,2,3}),'Electric Factors '!$E$25,IF(OR(MONTH(I$3)={7,8,9}),0,'Electric Factors '!$D$25)) -> 0 | J62: =IF(OR(MONTH(J$3)={12,1,2,3}),'Electric Factors '!$E$25,IF(OR(MONTH(J$3)={7,8,9}),0,'Electric Factors '!$D$25)) -> 0 | K62: =IF(OR(MONTH(K$3)={12,1,2,3}),'Electric Factors '!$E$25,IF(OR(MONTH(K$3)={7,8,9}),0,'Electric Factors '!$D$25)) -> 0 | L62: =IF(OR(MONTH(L$3)={12,1,2,3}),'Electric Factors '!$E$25,IF(OR(MONTH(L$3)={7,8,9}),0,'Electric Factors '!$D$25)) -> 0 | M62: =IF(OR(MONTH(M$3)={12,1,2,3}),'Electric Factors '!$E$25,IF(OR(MONTH(M$3)={7,8,9}),0,'Electric Factors '!$D$25)) -> 0 | N62: =IF(OR(MONTH(N$3)={12,1,2,3}),'Electric Factors '!$E$25,IF(OR(MONTH(N$3)={7,8,9}),0,'Electric Factors '!$D$25)) -> 0 | O62: =IF(OR(MONTH(O$3)={12,1,2,3}),'Electric Factors '!$E$25,IF(OR(MONTH(O$3)={7,8,9}),0,'Electric Factors '!$D$25)) -> 4.039
A63: =$A$76 -> ID21S | B63: Usage/DDC/Cust | D63: =IF(OR(MONTH(D$3)={4,5,10,11}),'Electric Factors '!$F$25,IF(OR(MONTH(D$3)={6,7,8,9}),'Electric Factors '!$G$25,0)) -> 0 | E63: =IF(OR(MONTH(E$3)={4,5,10,11}),'Electric Factors '!$F$25,IF(OR(MONTH(E$3)={6,7,8,9}),'Electric Factors '!$G$25,0)) -> 0 | F63: =IF(OR(MONTH(F$3)={4,5,10,11}),'Electric Factors '!$F$25,IF(OR(MONTH(F$3)={6,7,8,9}),'Electric Factors '!$G$25,0)) -> 0 | G63: =IF(OR(MONTH(G$3)={4,5,10,11}),'Electric Factors '!$F$25,IF(OR(MONTH(G$3)={6,7,8,9}),'Electric Factors '!$G$25,0)) -> 20.034 | H63: =IF(OR(MONTH(H$3)={4,10,11}),'Electric Factors '!$F$25,IF(OR(MONTH(H$3)={5,6,7,8,9}),'Electric Factors '!$G$25,0)) -> 20.034 | I63: =IF(OR(MONTH(I$3)={4,5,10,11}),'Electric Factors '!$F$25,IF(OR(MONTH(I$3)={6,7,8,9}),'Electric Factors '!$G$25,0)) -> 20.034 | J63: =IF(OR(MONTH(J$3)={4,5,10,11}),'Electric Factors '!$F$25,IF(OR(MONTH(J$3)={6,7,8,9}),'Electric Factors '!$G$25,0)) -> 20.034 | K63: =IF(OR(MONTH(K$3)={4,5,10,11}),'Electric Factors '!$F$25,IF(OR(MONTH(K$3)={6,7,8,9}),'Electric Factors '!$G$25,0)) -> 20.034 | L63: =IF(OR(MONTH(L$3)={4,5,10,11}),'Electric Factors '!$F$25,IF(OR(MONTH(L$3)={6,7,8,9}),'Electric Factors '!$G$25,0)) -> 20.034 | M63: =IF(OR(MONTH(M$3)={4,5,10,11}),'Electric Factors '!$F$25,IF(OR(MONTH(M$3)={6,7,8,9}),'Electric Factors '!$G$25,0)) -> 20.034 | N63: =IF(OR(MONTH(N$3)={4,5,10,11}),'Electric Factors '!$F$25,IF(OR(MONTH(N$3)={6,7,8,9}),'Electric Factors '!$G$25,0)) -> 20.034 | O63: =IF(OR(MONTH(O$3)={4,5,10,11}),'Electric Factors '!$F$25,IF(OR(MONTH(O$3)={6,7,8,9}),'Electric Factors '!$G$25,0)) -> 0
A64: =MATCH(A63,'Load Shape'!$E$2:$N$2,0) -> 8 | B64: Seasonal Profile hourly % | D64: =INDEX(LoadShape,MATCH(D$6,M.WkDy.H,0),$A64) -> 0.04411120624 | E64: 0.04937060347 | F64: 0.04967929054 | G64: 0.05543720009 | H64: 0.04103604535 | I64: 0.04858267066 | J64: 0.05682778449 | K64: 0.05272290437 | L64: 0.04804145229 | M64: 0.04871705106 | N64: 0.04480118863 | O64: 0.05055411836
B65: Peak Hour Estimate | C65: =AVERAGE(D65:O65) -> 80988.69266 | D65: =D59*D64 -> 74217.90019 | E65: =E59*E64 -> 84212.46317 | F65: =F59*F64 -> 80698.48067 | G65: =G59*G64 -> 82889.70158 | H65: =H59*H64 -> 65942.9897 | I65: =I59*I64 -> 78762.95069 | J65: =J59*J64 -> 103180.0339 | K65: =K59*K64 -> 103558.0867 | L65: =L59*L64 -> 76820.6783 | M65: =M59*M64 -> 72770.46104 | N65: =N59*N64 -> 66069.1107 | O65: =O59*O64 -> 82741.45529
A67: ID Ind Sch 21 | B67: Peak Day Estimate | D67: =(($C69*12)/$P$5+D70*D$7+D71*D$8)*D68 -> 282754.7335 | E67: =(($C69*12)/$P$5+E70*E$7+E71*E$8)*E68 -> 309007.8208 | F67: 254063.3132 | G67: 249750.0745 | H67: 225774.2466 | I67: 222011.3425 | J67: 222011.3425 | K67: 225774.2466 | L67: 218248.4384 | M67: 238271.9785 | N67: 238866.6621 | O67: 263584.921
B68: Number of Cust | C68: =AVERAGE(D68:O68) -> 58.58333333 | D68: 59 | E68: 62 | F68: 57 | G68: 59 | H68: 60 | I68: 59 | J68: 59 | K68: 60 | L68: 58 | M68: 59 | N68: 56 | O68: 55
B69: Baseload/Cust/Mo | C69: ='Electric Factors '!$H$26 -> 114455
B70: Usage/DDH/Cust | D70: =IF(OR(MONTH(D$3)={12,1,2,3}),'Electric Factors '!$E$26,IF(OR(MONTH(D$3)={7,8,9}),0,'Electric Factors '!$D$26)) -> 23.943 | E70: =IF(OR(MONTH(E$3)={12,1,2,3}),'Electric Factors '!$E$26,IF(OR(MONTH(E$3)={7,8,9}),0,'Electric Factors '!$D$26)) -> 23.943 | F70: =IF(OR(MONTH(F$3)={12,1,2,3}),'Electric Factors '!$E$26,IF(OR(MONTH(F$3)={7,8,9}),0,'Electric Factors '!$D$26)) -> 23.943 | G70: =IF(OR(MONTH(G$3)={12,1,2,3}),'Electric Factors '!$E$26,IF(OR(MONTH(G$3)={7,8,9}),0,'Electric Factors '!$D$26)) -> 16.212 | H70: =IF(OR(MONTH(H$3)={12,1,2,3}),'Electric Factors '!$E$26,IF(OR(MONTH(H$3)={7,8,9}),0,'Electric Factors '!$D$26)) -> 16.212 | I70: =IF(OR(MONTH(I$3)={12,1,2,3}),'Electric Factors '!$E$26,IF(OR(MONTH(I$3)={7,8,9}),0,'Electric Factors '!$D$26)) -> 16.212 | J70: =IF(OR(MONTH(J$3)={12,1,2,3}),'Electric Factors '!$E$26,IF(OR(MONTH(J$3)={7,8,9}),0,'Electric Factors '!$D$26)) -> 0 | K70: =IF(OR(MONTH(K$3)={12,1,2,3}),'Electric Factors '!$E$26,IF(OR(MONTH(K$3)={7,8,9}),0,'Electric Factors '!$D$26)) -> 0 | L70: =IF(OR(MONTH(L$3)={12,1,2,3}),'Electric Factors '!$E$26,IF(OR(MONTH(L$3)={7,8,9}),0,'Electric Factors '!$D$26)) -> 0 | M70: =IF(OR(MONTH(M$3)={12,1,2,3}),'Electric Factors '!$E$26,IF(OR(MONTH(M$3)={7,8,9}),0,'Electric Factors '!$D$26)) -> 16.212 | N70: =IF(OR(MONTH(N$3)={12,1,2,3}),'Electric Factors '!$E$26,IF(OR(MONTH(N$3)={7,8,9}),0,'Electric Factors '!$D$26)) -> 16.212 | O70: =IF(OR(MONTH(O$3)={12,1,2,3}),'Electric Factors '!$E$26,IF(OR(MONTH(O$3)={7,8,9}),0,'Electric Factors '!$D$26)) -> 23.943
A71: =$A$76 -> ID21S | B71: Usage/DDC/Cust | D71: =IF(OR(MONTH(D$3)={4,5,10,11}),'Electric Factors '!$F$26,IF(OR(MONTH(D$3)={6,7,8,9}),'Electric Factors '!$G$26,0)) -> 0 | E71: =IF(OR(MONTH(E$3)={4,5,10,11}),'Electric Factors '!$F$26,IF(OR(MONTH(E$3)={6,7,8,9}),'Electric Factors '!$G$26,0)) -> 0 | F71: =IF(OR(MONTH(F$3)={4,5,10,11}),'Electric Factors '!$F$26,IF(OR(MONTH(F$3)={6,7,8,9}),'Electric Factors '!$G$26,0)) -> 0 | G71: =IF(OR(MONTH(G$3)={4,5,10,11}),'Electric Factors '!$F$26,IF(OR(MONTH(G$3)={6,7,8,9}),'Electric Factors '!$G$26,0)) -> 0 | H71: =IF(OR(MONTH(H$3)={4,5,10,11}),'Electric Factors '!$F$26,IF(OR(MONTH(H$3)={6,7,8,9}),'Electric Factors '!$G$26,0)) -> 0 | I71: =IF(OR(MONTH(I$3)={4,5,10,11}),'Electric Factors '!$F$26,IF(OR(MONTH(I$3)={6,7,8,9}),'Electric Factors '!$G$26,0)) -> 0 | J71: =IF(OR(MONTH(J$3)={4,5,10,11}),'Electric Factors '!$F$26,IF(OR(MONTH(J$3)={6,7,8,9}),'Electric Factors '!$G$26,0)) -> 0 | K71: =IF(OR(MONTH(K$3)={4,5,10,11}),'Electric Factors '!$F$26,IF(OR(MONTH(K$3)={6,7,8,9}),'Electric Factors '!$G$26,0)) -> 0 | L71: =IF(OR(MONTH(L$3)={4,5,10,11}),'Electric Factors '!$F$26,IF(OR(MONTH(L$3)={6,7,8,9}),'Electric Factors '!$G$26,0)) -> 0 | M71: =IF(OR(MONTH(M$3)={4,5,10,11}),'Electric Factors '!$F$26,IF(OR(MONTH(M$3)={6,7,8,9}),'Electric Factors '!$G$26,0)) -> 0 | N71: =IF(OR(MONTH(N$3)={4,5,10,11}),'Electric Factors '!$F$26,IF(OR(MONTH(N$3)={6,7,8,9}),'Electric Factors '!$G$26,0)) -> 0 | O71: =IF(OR(MONTH(O$3)={4,5,10,11}),'Electric Factors '!$F$26,IF(OR(MONTH(O$3)={6,7,8,9}),'Electric Factors '!$G$26,0)) -> 0
A72: =MATCH(A71,'Load Shape'!$E$2:$N$2,0) -> 8 | B72: Seasonal Profile hourly % | D72: =INDEX(LoadShape,MATCH(D$6,M.WkDy.H,0),$A72) -> 0.04411120624 | E72: 0.04937060347 | F72: 0.04967929054 | G72: 0.05543720009 | H72: 0.04103604535 | I72: 0.04858267066 | J72: 0.05682778449 | K72: 0.05272290437 | L72: 0.04804145229 | M72: 0.04871705106 | N72: 0.04480118863 | O72: 0.05055411836
B73: Peak Hour Estimate | C73: =AVERAGE(D73:O73) -> 12073.83763 | D73: =D67*D72 -> 12472.65236 | E73: =E67*E72 -> 15255.90259 | F73: =F67*F72 -> 12621.68515 | G73: =G67*G72 -> 13845.44485 | H73: =H67*H72 -> 9264.882221 | I73: =I67*I72 -> 10785.90393 | J73: =J67*J72 -> 12616.41272 | K73: =K67*K72 -> 11903.47401 | L73: =L67*L72 -> 10484.97194 | M73: =M67*M72 -> 11607.90814 | N73: =N67*N72 -> 10701.51039 | O73: =O67*O72 -> 13325.30329
A75: ID Other Sec Sch 21 | B75: Billed Usage | D75: =('12.2018 ID Usage'!F173)-D80 -> -3324119.381 | E75: =('12.2018 ID Usage'!G173)-E80 -> -3021997.413 | F75: =('12.2018 ID Usage'!H173)-F80 -> -2823538.999 | G75: =('12.2018 ID Usage'!I173)-G80 -> -2744915.636 | H75: =('12.2018 ID Usage'!J173)-H80 -> -2912000.989 | I75: =('12.2018 ID Usage'!K173)-I80 -> -2918346.197 | J75: =('12.2018 ID Usage'!L173)-J80 -> -2991870.59 | K75: =('12.2018 ID Usage'!M173)-K80 -> -3184807.2 | L75: =('12.2018 ID Usage'!N173)-L80 -> -3302058 | M75: =('12.2018 ID Usage'!O173)-M80 -> -2591597.199 | N75: =('12.2018 ID Usage'!P173)-N80 -> -3593100.532 | O75: =('12.2018 ID Usage'!Q173)-O80 -> -3360134.3
A76: ='Load Shape'!L2 -> ID21S | B76: Estimated Daily Usage | D76: =D75/D$5+D51 -> -81533.81044 | E76: -76829.25915 | F76: -66009.0113 | G76: -70341.90598 | H76: -74451.02988 | I76: -77322.64268 | J76: -71845.61063 | K76: -76325.37568 | L76: -89004.39367 | M76: -65193.37319 | N76: -97146.3484 | O76: -79483.60114
A77: =MATCH(A76,'Load Shape'!$E$2:$N$2,0) -> 8 | B77: Seasonal Profile hourly % | D77: =INDEX(LoadShape,MATCH(D$6,M.WkDy.H,0),$A77) -> 0.04411120624 | E77: 0.04937060347 | F77: 0.04967929054 | G77: 0.05543720009 | H77: 0.04103604535 | I77: 0.04858267066 | J77: 0.05682778449 | K77: 0.05272290437 | L77: 0.04804145229 | M77: 0.04871705106 | N77: 0.04480118863 | O77: 0.05055411836
B78: Peak Hour Estimate | C78: =AVERAGE(D78:O78) -> -3775.796996 | D78: =D76*D77 -> -3596.554728 | E78: -3793.106888 | F78: -3279.280851 | G78: -3899.558317 | H78: -3055.175838 | I78: -3756.540484 | J78: -4082.826877 | K78: -4024.095483 | L78: -4275.900332 | M78: -3176.028891 | N78: -4352.271879 | O78: -4018.223379
A80: ID Primary Sch 21 | B80: Billed Usage | D80: ='12.2018 ID Usage'!F132 -> 3424919.381 | E80: ='12.2018 ID Usage'!G132 -> 3102517.413 | F80: ='12.2018 ID Usage'!H132 -> 2891658.999 | G80: ='12.2018 ID Usage'!I132 -> 2809835.636 | H80: ='12.2018 ID Usage'!J132 -> 2980240.989 | I80: ='12.2018 ID Usage'!K132 -> 2989426.197 | J80: ='12.2018 ID Usage'!L132 -> 3067270.59 | K80: ='12.2018 ID Usage'!M132 -> 3280127.2 | L80: ='12.2018 ID Usage'!N132 -> 3442778 | M80: ='12.2018 ID Usage'!C132 -> 3770317.199 | N80: ='12.2018 ID Usage'!D132 -> 3593100.532 | O80: ='12.2018 ID Usage'!E132 -> 3360134.3
A81: ='Load Shape'!M2 -> ID21P | B81: Estimated Daily Usage | D81: =D80/D$5 -> 110481.2704 | E81: =E80/E$5 -> 110804.1933 | F81: 93279.32255 | G81: 93661.18787 | H81: 96136.8061 | I81: 99647.5399 | J81: 98944.21258 | K81: 105810.5548 | L81: 114759.2667 | M81: 121623.1355 | N81: 119770.0177 | O81: 108391.429
A82: =MATCH(A81,'Load Shape'!$E$2:$N$2,0) -> 9 | B82: Seasonal Profile hourly % | D82: =INDEX(LoadShape,MATCH(D$6,M.WkDy.H,0),$A82) -> 0.03605515151 | E82: 0.05269471339 | F82: 0.05314079207 | G82: 0.05350022254 | H82: 0.03466126226 | I82: 0.03653747112 | J82: 0.04954859876 | K82: 0.04682812459 | L82: 0.04032670303 | M82: 0.05453893404 | N82: 0.03604246686 | O82: 0.05278122435
B83: Peak Hour Estimate | C83: =AVERAGE(D83:O83) -> 4826.624415 | D83: =D81*D82 -> 3983.418942 | E83: =E81*E82 -> 5838.795209 | F83: 4956.937084 | G83: 5010.894395 | H83: 3332.223049 | I83: 3640.869111 | J83: 4902.547088 | K83: 4954.909845 | L83: 4627.862867 | M83: 6633.196163 | N83: 4316.806895 | O83: 5721.032333
A85: ID Total Sch 31 | B85: Billed Usage | D85: =SUM('12.2018 ID Usage'!F111:F113) -> 3434552.964 | E85: =SUM('12.2018 ID Usage'!G111:G113) -> 4237335.598 | F85: =SUM('12.2018 ID Usage'!H111:H113) -> 6509434.64 | G85: =SUM('12.2018 ID Usage'!I111:I113) -> 8334800.094 | H85: =SUM('12.2018 ID Usage'!J111:J113) -> 9633952.029 | I85: =SUM('12.2018 ID Usage'!K111:K113) -> 7676661.285 | J85: =SUM('12.2018 ID Usage'!L111:L113) -> 5236492.435 | K85: =SUM('12.2018 ID Usage'!M111:M113) -> 3101449.56 | L85: =SUM('12.2018 ID Usage'!N111:N113) -> 3575745.18 | M85: =SUM('12.2018 ID Usage'!C111:C113) -> 3674819.217 | N85: =SUM('12.2018 ID Usage'!D111:D113) -> 3557713.261 | O85: =SUM('12.2018 ID Usage'!E111:E113) -> 3471292.054
A86: ='Load Shape'!N2 -> ID31 | B86: Estimated Daily Usage | D86: =D85/D$5 -> 110792.0311 | E86: =E85/E$5 -> 151333.4142 | F86: 209981.7626 | G86: 277826.6698 | H86: 310772.6461 | I86: 255888.7095 | J86: 168919.1108 | K86: 100046.76 | L86: 119191.506 | M86: 118542.5554 | N86: 118590.442 | O86: 111977.163
A87: =MATCH(A86,'Load Shape'!$E$2:$N$2,0) -> 10 | B87: Seasonal Profile hourly % | D87: =INDEX(LoadShape,MATCH(D$6,M.WkDy.H,0),$A87) -> 0.06066998669 | E87: 0.04210599774 | F87: 0.04187757724 | G87: 0.05117311594 | H87: 0.03987655086 | I87: 0.04266775612 | J87: 0.03541522663 | K87: 0.03244123362 | L87: 0.03249631127 | M87: 0.04249963671 | N87: 0.02564999895 | O87: 0.04732277288
B88: Peak Hour Estimate | C88: =AVERAGE(D88:O88) -> 7157.95674 | D88: =D86*D87 -> 6721.751052 | E88: 6372.044397 | F88: 8793.527482 | G88: 14217.25639 | H88: 12392.54123 | I88: 10918.19705 | J88: 5982.308591 | K88: 3245.640315 | L88: 3873.28428 | M88: 5038.015538 | N88: 3041.844714 | O88: 5299.069854

Sheet PT Ratio
A1: 2018
B2: 2018-01-31 | C2: =EOMONTH(B2,1) -> 2018-02-28 | D2: 2018-03-31 | E2: 2018-04-30 | F2: 2018-05-31 | G2: 2018-06-30 | H2: 2018-07-31 | I2: 2018-08-31 | J2: 2018-09-30 | K2: 2018-10-31 | L2: 2018-11-30 | M2: 2018-12-31 | N2: Total
A3: Washington
A4: Area Load at Time of Sys Pk | B4: 1314 | C4: 1394 | D4: 1194 | E4: 1082 | F4: 1111 | G4: 1155 | H4: 1412 | I4: 1487 | J4: 1118 | K4: 1058 | L4: 1177 | M4: 1321 | N4: =SUM(B4:M4) -> 14823
A5: <BPA & GCPD Borderline Load> | B5: -177 | C5: -211 | D5: -165 | E5: -149 | F5: -166 | G5: -179 | H5: -204 | I5: -211 | J5: -160 | K5: -157 | L5: -153 | M5: -191 | N5: =SUM(B5:M5) -> -2123 | O5: opp. sign as source
A6: AVA Load on BPA at time of Sys Pk | B6: 0 | C6: 0 | D6: 0 | E6: 0 | F6: 0 | G6: 0 | H6: 0 | I6: 0 | J6: 0 | K6: 0 | L6: 0 | M6: 0 | N6: =SUM(B6:M6) -> 0
A7: Adj at Time of Sys Pk | B7: 9 | C7: 11 | D7: 14 | E7: 6 | F7: 11 | G7: 11 | H7: 9 | I7: 6 | J7: 9 | K7: 5 | L7: 8 | M7: 10 | N7: =SUM(B7:M7) -> 109
A8: Subtotal | B8: =SUM(B4:B7) -> 1146 | C8: 1194 | D8: 1043 | E8: 939 | F8: 956 | G8: 987 | H8: 1217 | I8: 1282 | J8: 967 | K8: 906 | L8: 1032 | M8: 1140 | N8: =IF(ROUND(SUM(N4:N7),3)<>ROUND(SUM(B8:M8),3),#VALUE!,SUM(B8:M8)) -> 12809
A9: + Adj. To WA Peak | B9: =B36 -> -177 | C9: =C36 -> -174 | D9: -180 | E9: -163 | F9: -128 | G9: -117 | H9: -156 | I9: -159 | J9: -144 | K9: -145 | L9: -167 | M9: -181 | N9: =SUM(B9:M9) -> -1891 | O9: Pend Oreille PUD; opp. sign as source
A10: WA Retail Peak | B10: =B8+B9 -> 969 | C10: =C8+C9 -> 1020 | D10: 863 | E10: 776 | F10: 828 | G10: 870 | H10: 1061 | I10: 1123 | J10: 823 | K10: 761 | L10: 865 | M10: 959 | N10: =IF(ROUND(N8+N9,3)<>ROUND(SUM(B10:M10),3),#VALUE!,N8+N9) -> 10918
B11: =B10/B21 -> 0.656504065 | C11: =C10/C21 -> 0.659767141 | D11: 0.6513207547 | E11: 0.6392092257 | F11: 0.6677419355 | G11: 0.6676899463 | H11: 0.6529230769 | I11: 0.6495083864 | J11: 0.6557768924 | K11: 0.6331114809 | L11: 0.6533232628 | M11: 0.6555023923 | N11: 0.6536941684
A12: Idaho
A13: Area Load at Time of Sys Pk | B13: 727 | C13: 776 | D13: 669 | E13: 613 | F13: 558 | G13: 586 | H13: 715 | I13: 750 | J13: 560 | K13: 590 | L13: 650 | M13: 738 | N13: =SUM(B13:M13) -> 7932
A14: <BPA & GCPD Borderline Load> | B14: -156 | C14: -184 | D14: -145 | E14: -121 | F14: -91 | G14: -95 | H14: -125 | I14: -138 | J14: -91 | K14: -119 | L14: -131 | M14: -165 | N14: =SUM(B14:M14) -> -1561 | O14: opp. sign as source
A15: AVA Load on BPA at time of Sys Pk | B15: 0 | C15: 0 | D15: 0 | E15: 0 | F15: 0 | G15: 0 | H15: 0 | I15: 0 | J15: 0 | K15: 0 | L15: 0 | M15: 0 | N15: =SUM(B15:M15) -> 0
A16: Adj at Time of Sys Pk | B16: =-B7 -> -9 | C16: =-C7 -> -11 | D16: -14 | E16: -6 | F16: -11 | G16: -11 | H16: -9 | I16: -6 | J16: -9 | K16: -5 | L16: -8 | M16: -10 | N16: =SUM(B16:M16) -> -109
A17: Subtotal | B17: =SUM(B13:B16) -> 562 | C17: 581 | D17: 510 | E17: 486 | F17: 456 | G17: 480 | H17: 581 | I17: 606 | J17: 460 | K17: 466 | L17: 511 | M17: 563 | N17: =IF(ROUND(SUM(N13:N16),3)<>ROUND(SUM(B17:M17),3),#VALUE!,SUM(B17:M17)) -> 6262
A18: + Adj. To ID Peak | B18: =B39 -> -55 | C18: =C39 -> -55 | D18: -48 | E18: -48 | F18: -44 | G18: -47 | H18: -17 | I18: 0 | J18: -28 | K18: -25 | L18: -52 | M18: -59 | N18: =SUM(B18:M18) -> -478
A19: ID Retail Peak | B19: =B17+B18 -> 507 | C19: 526 | D19: 462 | E19: 438 | F19: 412 | G19: 433 | H19: 564 | I19: 606 | J19: 432 | K19: 441 | L19: 459 | M19: 504 | N19: =IF(ROUND(N17+N18,3)<>ROUND(SUM(B19:M19),3),#VALUE!,N17+N18) -> 5784
B20: =B19/B21 -> 0.343495935 | C20: =C19/C21 -> 0.340232859 | D20: 0.3486792453 | E20: 0.3607907743 | F20: 0.3322580645 | G20: 0.3323100537 | H20: 0.3470769231 | I20: 0.3504916136 | J20: 0.3442231076 | K20: 0.3668885191 | L20: 0.3466767372 | M20: 0.3444976077 | N20: 0.3463058316
A21: System Total for P/T Allocation | B21: =B10+B19 -> 1476 | C21: =C10+C19 -> 1546 | D21: 1325 | E21: 1214 | F21: 1240 | G21: 1303 | H21: 1625 | I21: 1729 | J21: 1255 | K21: 1202 | L21: 1324 | M21: 1463 | N21: =SUM(B21:M21) -> 16702
A23: Date: (Net System Peak) | B23: 2018-01-02 | C23: 2018-02-21 | D23: 2018-03-07 | E23: 2018-04-02 | F23: 2018-05-15 | G23: 2018-06-20 | H23: 2018-07-30 | I23: 2018-08-10 | J23: 2018-09-07 | K23: 2018-10-16 | L23: 2018-11-26 | M23: 2018-12-07
A24: Time: HE PT | B24: 18:00:00 | C24: 08:00:00 | D24: 08:00:00 | E24: 10:00:00 | F24: 19:00:00 | G24: 17:00:00 | H24: 16:00:00 | I24: 16:00:00 | J24: 17:00:00 | K24: 08:00:00 | L24: 18:00:00 | M24: 08:00:00
A26: Adjustment to Peak Detail
A27: Washington
A28: Deduct Box Canyon PPUD | B28: -39 | C28: -71 | D28: -77 | E28: -73 | F28: 0 | G28: -43 | H28: -51 | I28: -45 | J28: -32 | K28: -70 | L28: -42 | M28: -53 | N28: =SUM(B28:M28) -> -596 | O28: opp. sign as source
A29: Add back Pine PUD Rathdrum | B29: 34 | C29: 59 | D29: 39 | E29: 4 | F29: 63 | G29: 81 | H29: 44 | I29: 42 | J29: 33 | K29: 48 | L29: 39 | M29: 54 | N29: =SUM(B29:M29) -> 540
A30: Kaiser Trentwood (BPA) | B30: -37 | C30: -38 | D30: -37 | E30: -35 | F30: -36 | G30: -36 | H30: -38 | I30: -40 | J30: -38 | K30: -39 | L30: -37 | M30: -36 | N30: -447
A31: Pend Oreille PUD (Usk-BPA) | B31: -99 | C31: -79 | D31: -82 | E31: -88 | F31: -80 | G31: -46 | H31: -84 | I31: -86 | J31: -78 | K31: -104 | L31: -85 | M31: -93 | N31: -1004
A32: Pend Oreille PUD (Newport-BPA) | B32: -8 | C32: -16 | D32: -15 | E32: 18 | F32: -16 | G32: -37 | H32: -10 | I32: -7 | J32: -9 | K32: 15 | L32: -15 | M32: -15 | N32: -115
A33: Pend Oreille PUD (Box Canyon-BPA) | B33: -9 | C33: -4 | D33: 11 | E33: 26 | F33: -50 | G33: -24 | H33: -4 | I33: -9 | J33: -10 | K33: 21 | L33: -10 | M33: -15 | N33: -77
A34: Pend Oreille PUD (Metaline Falls-BPA) | B34: -9 | C34: -11 | D34: -9 | E34: -8 | F34: -6 | G34: -7 | H34: -8 | I34: -8 | J34: -6 | K34: -8 | L34: -8 | M34: -11 | N34: -99
A35: Pend Oreille PUD (Diamond Lake-BPA) | B35: -10 | C35: -14 | D35: -10 | E35: -7 | F35: -3 | G35: -5 | H35: -5 | I35: -6 | J35: -4 | K35: -8 | L35: -9 | M35: -12 | N35: -93
A36: Total Washington Adjustment | B36: =SUM(B28:B35) -> -177 | C36: =SUM(C28:C35) -> -174 | D36: -180 | E36: -163 | F36: -128 | G36: -117 | H36: -156 | I36: -159 | J36: -144 | K36: -145 | L36: -167 | M36: -181 | N36: -1891
A38: Idaho
A39: Deduct PFI Generation | B39: -55 | C39: -55 | D39: -48 | E39: -48 | F39: -44 | G39: -47 | H39: -17 | I39: 0 | J39: -28 | K39: -25 | L39: -52 | M39: -59 | N39: =SUM(B39:M39) -> -478 | O39: opp. sign as source

Sheet Electric Factors
A1: Weather Sensitivity Regression Summary for January 2007 through December 2016
A3: Adj | B3: Dependent | D3: Shoulder Mo. | E3: Winter Mo | F3: Shoulder Mo | G3: Summer Mo | H3: Usage/Cust | I3: Usage/Cust | J3: Durbin Watson
A4: R2 | B4: Variable | D4: Heating | E4: Heating | F4: Cooling | G4: Cooling | H4: Base Load | I4: 2016 Low | J4: test results
D5: Apr, May, Jun, Oct, Nov | E5: Dec, Jan, Feb, Mar | F5: Apr, May, Oct, Nov | G5: Jun, Jul, Aug, Sep
A7: Washington Electric
A8: 0.96 | B8: WR1 | D8: 0.448 | E8: 0.608 | F8: =G8 -> 1.214 | G8: 1.214 | H8: 600 | I8: 703 | J8: No Autocorrelation
A9: 0.942 | B9: WR11 | D9: 0.264 | E9: 0.326 | F9: =G9 -> 0.423 | G9: 0.423 | H9: 364 | I9: 407 | J9: Corrected with AR(1)
A10: 0.916 | B10: WC11 | D10: 0.197 | E10: 0.44 | F10: 1.395 | G10: 1.395 | H10: 1851 | I10: 1863 | J10: Corrected with AR(1),(2)
A11: 0.952 | B11: WI11 | D11: 0.995 | E11: 1.594 | F11: 1.132 | G11: 1.132 | H11: 3316 | I11: 3708 | J11: Corrected with AR(1),(2)
A12: 0.918 | B12: WT11 | D12: 0.187 | E12: 0.396 | F12: 1.036 | G12: 1.036 | H12: 1437 | I12: 1453 | J12: Corrected with AR(1),(2)
A13: 0.89 | B13: WR21 | D13: 16.164 | E13: 21.376 | F13: 45.092 | G13: 45.092 | H13: 44336 | I13: 42888 | J13: Corrected with AR(1),(2)
A14: 0.956 | B14: WC21 | D14: 0 | E14: 3.081 | F14: 21.453 | G14: 21.453 | H14: 57833 | I14: 55067 | J14: Corrected with AR(1),(2)
A15: 0.881 | B15: WI21 | D15: 0 | E15: 4.321 | F15: 0 | G15: 0 | H15: 105245 | I15: 87859 | J15: Corrected with AR(1),(3)
A16: 0.956 | B16: WT21 | D16: 0 | E16: 3.422 | F16: 20.98 | G16: 20.98 | H16: 59700 | I16: 56587 | J16: Corrected with AR(1),(2)
A18: Idaho Electric
A19: 0.971 | B19: IR1 | D19: 0.459 | E19: 0.595 | F19: =G19 -> 0.987 | G19: 0.987 | H19: 576 | I19: 685 | J19: No Autocorrelation
A20: 0.94 | B20: IR11 | D20: 0.153 | E20: 0.233 | F20: =G20 -> 0.207 | G20: 0.207 | H20: 282 | I20: 294 | J20: Corrected with AR(1)
A21: 0.857 | B21: IC11 | D21: 0.233 | E21: 0.475 | F21: 1.553 | G21: 1.553 | H21: 1510 | I21: 1532 | J21: No Autocorrelation
A22: 0.751 | B22: II11 | D22: 0.525 | E22: 0.789 | F22: 1.367 | G22: 1.367 | H22: 2668 | I22: 2598 | J22: Corrected with AR(1)
A23: 0.874 | B23: IT11 | D23: 0.214 | E23: 0.42 | F23: 1.197 | G23: 1.197 | H23: 1217 | I23: 1242 | J23: Corrected with AR(1)
A24: 0.874 | B24: IR21 | D24: 7.713 | E24: 15.218 | F24: 26.171 | G24: 26.171 | H24: 28945 | I24: 28764 | J24: Corrected with AR(1)
A25: 0.878 | B25: IC21 | D25: 0 | E25: 4.039 | F25: 20.034 | G25: 20.034 | H25: 44500 | I25: 41063 | J25: Corrected with AR(1)
A26: 0.669 | B26: II21 | D26: 16.212 | E26: 23.943 | F26: 0 | G26: 0 | H26: 114455 | I26: 69361 | J26: Corrected with AR(1),(2)
A27: 0.873 | B27: IT21 | D27: 1.882 | E27: 5.174 | F27: 20.17 | G27: 20.17 | H27: 48140 | I27: 43852 | J27: Corrected with AR(1)
A29: Dependent Variable Name Code
B30: 1st letter | G30: 2nd letter | I30: Numerical reference
B31: W = Washington Jurisdiction | G31: R = Residential Class | I31: Rate Schedule
B32: I = Idaho Jurisdiction | G32: C = Commercial Class
G33: I = Industrial Class

Sheet 2018 Daylight
A1: http://aa.usno.navy.mil/data/docs/RS_OneYear.html
A2: o , o , SPOKANE, WASHINGTON Astronomical Applications Dept.
A3: Location: W117 25, N47 40 Rise and Set for the Sun for 2018 U. S. Naval Observatory
A4: Washington, DC 20392-5420
A5: Pacific Standard Time
AA6: RISE - in Excel date format | AN6: SET - in Excel date format | BA6: DAYLIGHT - in Excel format
B7: 2018-01-01 | D7: =EOMONTH(B7,1) -> 2018-02-28 | F7: =EOMONTH(D7,1) -> 2018-03-31 | H7: =EOMONTH(F7,1) -> 2018-04-30 | J7: =EOMONTH(H7,1) -> 2018-05-31 | L7: =EOMONTH(J7,1) -> 2018-06-30 | N7: =EOMONTH(L7,1) -> 2018-07-31 | P7: =EOMONTH(N7,1) -> 2018-08-31 | R7: =EOMONTH(P7,1) -> 2018-09-30 | T7: =EOMONTH(R7,1) -> 2018-10-31 | V7: =EOMONTH(T7,1) -> 2018-11-30 | X7: =EOMONTH(V7,1) -> 2018-12-31 | AA7: =B7 -> 2018-01-01 | AB7: =DATE(YEAR(AA7),MONTH(AA7)+1,DAY(AA7)) -> 2018-02-01 | AC7: 2018-03-01 | AD7: 2018-04-01 | AE7: 2018-05-01 | AF7: 2018-06-01 | AG7: 2018-07-01 | AH7: 2018-08-01 | AI7: 2018-09-01 | AJ7: 2018-10-01 | AK7: 2018-11-01 | AL7: 2018-12-01 | AN7: =AA7 -> 2018-01-01 | AO7: 2018-02-01 | AP7: 2018-03-01 | AQ7: 2018-04-01 | AR7: 2018-05-01 | AS7: 2018-06-01 | AT7: 2018-07-01 | AU7: 2018-08-01 | AV7: 2018-09-01 | AW7: 2018-10-01 | AX7: 2018-11-01 | AY7: 2018-12-01 | BA7: =AA7 -> 2018-01-01 | BB7: 2018-02-01 | BC7: 2018-03-01 | BD7: 2018-04-01 | BE7: 2018-05-01 | BF7: 2018-06-01 | BG7: 2018-07-01 | BH7: 2018-08-01 | BI7: 2018-09-01 | BJ7: 2018-10-01 | BK7: 2018-11-01 | BL7: 2018-12-01
A8: Day | B8: Rise | C8: Set | D8: Rise | E8: Set | F8: Rise | G8: Set | H8: Rise | I8: Set | J8: Rise | K8: Set | L8: Rise | M8: Set | N8: Rise | O8: Set | P8: Rise | Q8: Set | R8: Rise | S8: Set | T8: Rise | U8: Set | V8: Rise | W8: Set | X8: Rise | Y8: Set
A9: 1 | B9: 738 | C9: 1609 | D9: 716 | E9: 1651 | F9: 630 | G9: 1735 | H9: 528 | I9: 1820 | J9: 432 | K9: 1902 | L9: 356 | M9: 1940 | N9: 356 | O9: 1951 | P9: 427 | Q9: 1924 | R9: 508 | S9: 1830 | T9: 549 | U9: 1729 | V9: 634 | W9: 1632 | X9: 717 | Y9: 1600 | AA9: =IF(B9=0,0,TIME(INT(B9/100),RIGHT(B9,2),0)) -> 07:38:00 | AB9: =IF(D9=0,0,TIME(INT(D9/100),RIGHT(D9,2),0)) -> 07:16:00 | AC9: =IF(F9=0,0,TIME(INT(F9/100),RIGHT(F9,2),0)) -> 06:30:00 | AD9: =IF(H9=0,0,TIME(INT(H9/100),RIGHT(H9,2),0)) -> 05:28:00 | AE9: =IF(J9=0,0,TIME(INT(J9/100),RIGHT(J9,2),0)) -> 04:32:00 | AF9: =IF(L9=0,0,TIME(INT(L9/100),RIGHT(L9,2),0)) -> 03:56:00 | AG9: =IF(N9=0,0,TIME(INT(N9/100),RIGHT(N9,2),0)) -> 03:56:00 | AH9: =IF(P9=0,0,TIME(INT(P9/100),RIGHT(P9,2),0)) -> 04:27:00 | AI9: =IF(R9=0,0,TIME(INT(R9/100),RIGHT(R9,2),0)) -> 05:08:00 | AJ9: =IF(T9=0,0,TIME(INT(T9/100),RIGHT(T9,2),0)) -> 05:49:00 | AK9: =IF(V9=0,0,TIME(INT(V9/100),RIGHT(V9,2),0)) -> 06:34:00 | AL9: =IF(X9=0,0,TIME(INT(X9/100),RIGHT(X9,2),0)) -> 07:17:00 | AN9: =IF(C9=0,0,TIME(INT(C9/100),RIGHT(C9,2),0)) -> 16:09:00 | AO9: =IF(E9=0,0,TIME(INT(E9/100),RIGHT(E9,2),0)) -> 16:51:00 | AP9: =IF(G9=0,0,TIME(INT(G9/100),RIGHT(G9,2),0)) -> 17:35:00 | AQ9: =IF(I9=0,0,TIME(INT(I9/100),RIGHT(I9,2),0)) -> 18:20:00 | AR9: =IF(K9=0,0,TIME(INT(K9/100),RIGHT(K9,2),0)) -> 19:02:00 | AS9: =IF(M9=0,0,TIME(INT(M9/100),RIGHT(M9,2),0)) -> 19:40:00 | AT9: =IF(O9=0,0,TIME(INT(O9/100),RIGHT(O9,2),0)) -> 19:51:00 | AU9: =IF(Q9=0,0,TIME(INT(Q9/100),RIGHT(Q9,2),0)) -> 19:24:00 | AV9: =IF(S9=0,0,TIME(INT(S9/100),RIGHT(S9,2),0)) -> 18:30:00 | AW9: =IF(U9=0,0,TIME(INT(U9/100),RIGHT(U9,2),0)) -> 17:29:00 | AX9: =IF(W9=0,0,TIME(INT(W9/100),RIGHT(W9,2),0)) -> 16:32:00 | AY9: =IF(Y9=0,0,TIME(INT(Y9/100),RIGHT(Y9,2),0)) -> 16:00:00 | BA9: =AN9-AA9 -> 08:31:00 | BB9: 09:35:00 | BC9: 11:05:00 | BD9: 12:52:00 | BE9: 14:30:00 | BF9: 15:44:00 | BG9: 15:55:00 | BH9: 14:57:00 | BI9: 13:22:00 | BJ9: 11:40:00 | BK9: 09:58:00 | BL9: 08:43:00
A10: 2 | B10: 738 | C10: 1610 | D10: 715 | E10: 1653 | F10: 628 | G10: 1736 | H10: 526 | I10: 1821 | J10: 431 | K10: 1903 | L10: 355 | M10: 1941 | N10: 356 | O10: 1951 | P10: 428 | Q10: 1923 | R10: 510 | S10: 1828 | T10: 550 | U10: 1727 | V10: 636 | W10: 1630 | X10: 718 | Y10: 1600 | AA10: 07:38:00 | AB10: 07:15:00 | AC10: 06:28:00 | AD10: 05:26:00 | AE10: 04:31:00 | AF10: 03:55:00 | AG10: 03:56:00 | AH10: 04:28:00 | AI10: 05:10:00 | AJ10: 05:50:00 | AK10: 06:36:00 | AL10: 07:18:00 | AN10: 16:10:00 | AO10: 16:53:00 | AP10: 17:36:00 | AQ10: 18:21:00 | AR10: 19:03:00 | AS10: 19:41:00 | AT10: 19:51:00 | AU10: 19:23:00 | AV10: 18:28:00 | AW10: 17:27:00 | AX10: 16:30:00 | AY10: 16:00:00 | BA10: 08:32:00 | BB10: 09:38:00 | BC10: 11:08:00 | BD10: 12:55:00 | BE10: 14:32:00 | BF10: 15:46:00 | BG10: 15:55:00 | BH10: 14:55:00 | BI10: 13:18:00 | BJ10: 11:37:00 | BK10: 09:54:00 | BL10: 08:42:00
A11: 3 | B11: 738 | C11: 1611 | D11: 713 | E11: 1654 | F11: 626 | G11: 1738 | H11: 524 | I11: 1823 | J11: 429 | K11: 1905 | L11: 355 | M11: 1942 | N11: 357 | O11: 1950 | P11: 430 | Q11: 1921 | R11: 511 | S11: 1826 | T11: 552 | U11: 1725 | V11: 637 | W11: 1629 | X11: 720 | Y11: 1559 | AA11: 07:38:00 | AB11: 07:13:00 | AC11: 06:26:00 | AD11: 05:24:00 | AE11: 04:29:00 | AF11: 03:55:00 | AG11: 03:57:00 | AH11: 04:30:00 | AI11: 05:11:00 | AJ11: 05:52:00 | AK11: 06:37:00 | AL11: 07:20:00 | AN11: 16:11:00 | AO11: 16:54:00 | AP11: 17:38:00 | AQ11: 18:23:00 | AR11: 19:05:00 | AS11: 19:42:00 | AT11: 19:50:00 | AU11: 19:21:00 | AV11: 18:26:00 | AW11: 17:25:00 | AX11: 16:29:00 | AY11: 15:59:00 | BA11: 08:33:00 | BB11: 09:41:00 | BC11: 11:12:00 | BD11: 12:59:00 | BE11: 14:36:00 | BF11: 15:47:00 | BG11: 15:53:00 | BH11: 14:51:00 | BI11: 13:15:00 | BJ11: 11:33:00 | BK11: 09:52:00 | BL11: 08:39:00
A12: 4 | B12: 738 | C12: 1612 | D12: 712 | E12: 1656 | F12: 624 | G12: 1739 | H12: 522 | I12: 1824 | J12: 427 | K12: 1906 | L12: 354 | M12: 1942 | N12: 358 | O12: 1950 | P12: 431 | Q12: 1920 | R12: 512 | S12: 1824 | T12: 553 | U12: 1723 | V12: 639 | W12: 1627 | X12: 721 | Y12: 1559 | AA12: 07:38:00 | AB12: 07:12:00 | AC12: 06:24:00 | AD12: 05:22:00 | AE12: 04:27:00 | AF12: 03:54:00 | AG12: 03:58:00 | AH12: 04:31:00 | AI12: 05:12:00 | AJ12: 05:53:00 | AK12: 06:39:00 | AL12: 07:21:00 | AN12: 16:12:00 | AO12: 16:56:00 | AP12: 17:39:00 | AQ12: 18:24:00 | AR12: 19:06:00 | AS12: 19:42:00 | AT12: 19:50:00 | AU12: 19:20:00 | AV12: 18:24:00 | AW12: 17:23:00 | AX12: 16:27:00 | AY12: 15:59:00 | BA12: 08:34:00 | BB12: 09:44:00 | BC12: 11:15:00 | BD12: 13:02:00 | BE12: 14:39:00 | BF12: 15:48:00 | BG12: 15:52:00 | BH12: 14:49:00 | BI12: 13:12:00 | BJ12: 11:30:00 | BK12: 09:48:00 | BL12: 08:38:00
A13: 5 | B13: 738 | C13: 1613 | D13: 711 | E13: 1657 | F13: 622 | G13: 1741 | H13: 520 | I13: 1825 | J13: 426 | K13: 1908 | L13: 354 | M13: 1943 | N13: 359 | O13: 1950 | P13: 432 | Q13: 1918 | R13: 514 | S13: 1822 | T13: 554 | U13: 1721 | V13: 640 | W13: 1626 | X13: 722 | Y13: 1559 | AA13: 07:38:00 | AB13: 07:11:00 | AC13: 06:22:00 | AD13: 05:20:00 | AE13: 04:26:00 | AF13: 03:54:00 | AG13: 03:59:00 | AH13: 04:32:00 | AI13: 05:14:00 | AJ13: 05:54:00 | AK13: 06:40:00 | AL13: 07:22:00 | AN13: 16:13:00 | AO13: 16:57:00 | AP13: 17:41:00 | AQ13: 18:25:00 | AR13: 19:08:00 | AS13: 19:43:00 | AT13: 19:50:00 | AU13: 19:18:00 | AV13: 18:22:00 | AW13: 17:21:00 | AX13: 16:26:00 | AY13: 15:59:00 | BA13: 08:35:00 | BB13: 09:46:00 | BC13: 11:19:00 | BD13: 13:05:00 | BE13: 14:42:00 | BF13: 15:49:00 | BG13: 15:51:00 | BH13: 14:46:00 | BI13: 13:08:00 | BJ13: 11:27:00 | BK13: 09:46:00 | BL13: 08:37:00
A14: 6 | B14: 737 | C14: 1614 | D14: 709 | E14: 1659 | F14: 620 | G14: 1742 | H14: 518 | I14: 1827 | J14: 424 | K14: 1909 | L14: 353 | M14: 1944 | N14: 359 | O14: 1949 | P14: 434 | Q14: 1917 | R14: 515 | S14: 1820 | T14: 556 | U14: 1719 | V14: 642 | W14: 1624 | X14: 723 | Y14: 1558 | AA14: 07:37:00 | AB14: 07:09:00 | AC14: 06:20:00 | AD14: 05:18:00 | AE14: 04:24:00 | AF14: 03:53:00 | AG14: 03:59:00 | AH14: 04:34:00 | AI14: 05:15:00 | AJ14: 05:56:00 | AK14: 06:42:00 | AL14: 07:23:00 | AN14: 16:14:00 | AO14: 16:59:00 | AP14: 17:42:00 | AQ14: 18:27:00 | AR14: 19:09:00 | AS14: 19:44:00 | AT14: 19:49:00 | AU14: 19:17:00 | AV14: 18:20:00 | AW14: 17:19:00 | AX14: 16:24:00 | AY14: 15:58:00 | BA14: 08:37:00 | BB14: 09:50:00 | BC14: 11:22:00 | BD14: 13:09:00 | BE14: 14:45:00 | BF14: 15:51:00 | BG14: 15:50:00 | BH14: 14:43:00 | BI14: 13:05:00 | BJ14: 11:23:00 | BK14: 09:42:00 | BL14: 08:35:00
A15: 7 | B15: 737 | C15: 1615 | D15: 708 | E15: 1700 | F15: 618 | G15: 1744 | H15: 516 | I15: 1828 | J15: 423 | K15: 1910 | L15: 353 | M15: 1945 | N15: 400 | O15: 1949 | P15: 435 | Q15: 1915 | R15: 516 | S15: 1818 | T15: 557 | U15: 1717 | V15: 643 | W15: 1623 | X15: 724 | Y15: 1558 | AA15: 07:37:00 | AB15: 07:08:00 | AC15: 06:18:00 | AD15: 05:16:00 | AE15: 04:23:00 | AF15: 03:53:00 | AG15: 04:00:00 | AH15: 04:35:00 | AI15: 05:16:00 | AJ15: 05:57:00 | AK15: 06:43:00 | AL15: 07:24:00 | AN15: 16:15:00 | AO15: 17:00:00 | AP15: =IF(G15=0,0,TIME(INT(G15/100),RIGHT(G15,2),0)) -> 17:44:00 | AQ15: 18:28:00 | AR15: 19:10:00 | AS15: 19:45:00 | AT15: 19:49:00 | AU15: 19:15:00 | AV15: 18:18:00 | AW15: 17:17:00 | AX15: 16:23:00 | AY15: 15:58:00 | BA15: 08:38:00 | BB15: 09:52:00 | BC15: 11:26:00 | BD15: 13:12:00 | BE15: 14:47:00 | BF15: 15:52:00 | BG15: 15:49:00 | BH15: 14:40:00 | BI15: 13:02:00 | BJ15: 11:20:00 | BK15: 09:40:00 | BL15: 08:34:00
A16: 8 | B16: 737 | C16: 1616 | D16: 706 | E16: 1702 | F16: 616 | G16: 1745 | H16: 514 | I16: 1830 | J16: 421 | K16: 1912 | L16: 352 | M16: 1946 | N16: 401 | O16: 1948 | P16: 436 | Q16: 1913 | R16: 518 | S16: 1816 | T16: 559 | U16: 1715 | V16: 645 | W16: 1622 | X16: 725 | Y16: 1558 | AA16: 07:37:00 | AB16: 07:06:00 | AC16: =IF(F16=0,0,TIME(INT(F16/100),RIGHT(F16,2),0)) -> 06:16:00 | AD16: 05:14:00 | AE16: 04:21:00 | AF16: 03:52:00 | AG16: 04:01:00 | AH16: 04:36:00 | AI16: 05:18:00 | AJ16: 05:59:00 | AK16: 06:45:00 | AL16: 07:25:00 | AN16: 16:16:00 | AO16: 17:02:00 | AP16: 17:45:00 | AQ16: 18:30:00 | AR16: 19:12:00 | AS16: 19:46:00 | AT16: 19:48:00 | AU16: 19:13:00 | AV16: 18:16:00 | AW16: 17:15:00 | AX16: 16:22:00 | AY16: 15:58:00 | BA16: 08:39:00 | BB16: 09:56:00 | BC16: 11:29:00 | BD16: 13:16:00 | BE16: 14:51:00 | BF16: 15:54:00 | BG16: 15:47:00 | BH16: 14:37:00 | BI16: 12:58:00 | BJ16: 11:16:00 | BK16: 09:37:00 | BL16: 08:33:00
A17: 9 | B17: 736 | C17: 1618 | D17: 705 | E17: 1704 | F17: 614 | G17: 1747 | H17: 512 | I17: 1831 | J17: 420 | K17: 1913 | L17: 352 | M17: 1946 | N17: 402 | O17: 1948 | P17: 438 | Q17: 1912 | R17: 519 | S17: 1814 | T17: 600 | U17: 1713 | V17: 646 | W17: 1620 | X17: 726 | Y17: 1558 | AA17: 07:36:00 | AB17: 07:05:00 | AC17: 06:14:00 | AD17: 05:12:00 | AE17: 04:20:00 | AF17: 03:52:00 | AG17: 04:02:00 | AH17: 04:38:00 | AI17: 05:19:00 | AJ17: 06:00:00 | AK17: 06:46:00 | AL17: 07:26:00 | AN17: 16:18:00 | AO17: 17:04:00 | AP17: 17:47:00 | AQ17: 18:31:00 | AR17: 19:13:00 | AS17: 19:46:00 | AT17: 19:48:00 | AU17: 19:12:00 | AV17: 18:14:00 | AW17: 17:13:00 | AX17: 16:20:00 | AY17: 15:58:00 | BA17: 08:42:00 | BB17: 09:59:00 | BC17: 11:33:00 | BD17: 13:19:00 | BE17: 14:53:00 | BF17: 15:54:00 | BG17: 15:46:00 | BH17: 14:34:00 | BI17: 12:55:00 | BJ17: 11:13:00 | BK17: 09:34:00 | BL17: 08:32:00
A18: 10 | B18: 736 | C18: 1619 | D18: 703 | E18: 1705 | F18: 612 | G18: 1748 | H18: 510 | I18: 1833 | J18: 419 | K18: 1914 | L18: 352 | M18: 1947 | N18: 403 | O18: 1947 | P18: 439 | Q18: 1910 | R18: 520 | S18: 1812 | T18: 602 | U18: 1711 | V18: 648 | W18: 1619 | X18: 727 | Y18: 1558 | AA18: 07:36:00 | AB18: 07:03:00 | AC18: 06:12:00 | AD18: 05:10:00 | AE18: 04:19:00 | AF18: 03:52:00 | AG18: 04:03:00 | AH18: 04:39:00 | AI18: 05:20:00 | AJ18: 06:02:00 | AK18: 06:48:00 | AL18: 07:27:00 | AN18: 16:19:00 | AO18: 17:05:00 | AP18: 17:48:00 | AQ18: 18:33:00 | AR18: 19:14:00 | AS18: 19:47:00 | AT18: 19:47:00 | AU18: 19:10:00 | AV18: 18:12:00 | AW18: 17:11:00 | AX18: 16:19:00 | AY18: 15:58:00 | BA18: 08:43:00 | BB18: 10:02:00 | BC18: 11:36:00 | BD18: 13:23:00 | BE18: 14:55:00 | BF18: 15:55:00 | BG18: 15:44:00 | BH18: 14:31:00 | BI18: 12:52:00 | BJ18: 11:09:00 | BK18: 09:31:00 | BL18: 08:31:00
A19: 11 | B19: 736 | C19: 1620 | D19: 702 | E19: 1707 | F19: 610 | G19: 1750 | H19: 508 | I19: 1834 | J19: 417 | K19: 1916 | L19: 352 | M19: 1947 | N19: 403 | O19: 1946 | P19: 440 | Q19: 1909 | R19: 522 | S19: 1810 | T19: 603 | U19: 1709 | V19: 649 | W19: 1618 | X19: 728 | Y19: 1558 | AA19: 07:36:00 | AB19: 07:02:00 | AC19: 06:10:00 | AD19: 05:08:00 | AE19: 04:17:00 | AF19: 03:52:00 | AG19: 04:03:00 | AH19: 04:40:00 | AI19: 05:22:00 | AJ19: 06:03:00 | AK19: 06:49:00 | AL19: 07:28:00 | AN19: 16:20:00 | AO19: 17:07:00 | AP19: 17:50:00 | AQ19: 18:34:00 | AR19: 19:16:00 | AS19: 19:47:00 | AT19: 19:46:00 | AU19: 19:09:00 | AV19: 18:10:00 | AW19: 17:09:00 | AX19: 16:18:00 | AY19: 15:58:00 | BA19: 08:44:00 | BB19: 10:05:00 | BC19: 11:40:00 | BD19: 13:26:00 | BE19: 14:59:00 | BF19: 15:55:00 | BG19: 15:43:00 | BH19: 14:29:00 | BI19: 12:48:00 | BJ19: 11:06:00 | BK19: 09:29:00 | BL19: 08:30:00
A20: 12 | B20: 735 | C20: 1621 | D20: 700 | E20: 1708 | F20: 608 | G20: 1751 | H20: 506 | I20: 1835 | J20: 416 | K20: 1917 | L20: 351 | M20: 1948 | N20: 404 | O20: 1946 | P20: 442 | Q20: 1907 | R20: 523 | S20: 1808 | T20: 604 | U20: 1707 | V20: 651 | W20: 1616 | X20: 729 | Y20: 1558 | AA20: 07:35:00 | AB20: 07:00:00 | AC20: 06:08:00 | AD20: 05:06:00 | AE20: 04:16:00 | AF20: 03:51:00 | AG20: 04:04:00 | AH20: 04:42:00 | AI20: 05:23:00 | AJ20: 06:04:00 | AK20: 06:51:00 | AL20: 07:29:00 | AN20: 16:21:00 | AO20: 17:08:00 | AP20: 17:51:00 | AQ20: 18:35:00 | AR20: 19:17:00 | AS20: 19:48:00 | AT20: 19:46:00 | AU20: 19:07:00 | AV20: 18:08:00 | AW20: 17:07:00 | AX20: 16:16:00 | AY20: 15:58:00 | BA20: 08:46:00 | BB20: 10:08:00 | BC20: 11:43:00 | BD20: 13:29:00 | BE20: 15:01:00 | BF20: 15:57:00 | BG20: 15:42:00 | BH20: 14:25:00 | BI20: 12:45:00 | BJ20: 11:03:00 | BK20: 09:25:00 | BL20: 08:29:00
A21: 13 | B21: 734 | C21: 1623 | D21: 658 | E21: 1710 | F21: 606 | G21: 1752 | H21: 504 | I21: 1837 | J21: 414 | K21: 1918 | L21: 351 | M21: 1949 | N21: 405 | O21: 1945 | P21: 443 | Q21: 1905 | R21: 524 | S21: 1806 | T21: 606 | U21: 1705 | V21: 652 | W21: 1615 | X21: 730 | Y21: 1558 | AA21: 07:34:00 | AB21: 06:58:00 | AC21: 06:06:00 | AD21: 05:04:00 | AE21: 04:14:00 | AF21: 03:51:00 | AG21: 04:05:00 | AH21: 04:43:00 | AI21: 05:24:00 | AJ21: 06:06:00 | AK21: 06:52:00 | AL21: 07:30:00 | AN21: 16:23:00 | AO21: 17:10:00 | AP21: 17:52:00 | AQ21: 18:37:00 | AR21: 19:18:00 | AS21: 19:49:00 | AT21: 19:45:00 | AU21: 19:05:00 | AV21: 18:06:00 | AW21: 17:05:00 | AX21: 16:15:00 | AY21: 15:58:00 | BA21: 08:49:00 | BB21: 10:12:00 | BC21: 11:46:00 | BD21: 13:33:00 | BE21: 15:04:00 | BF21: 15:58:00 | BG21: 15:40:00 | BH21: 14:22:00 | BI21: 12:42:00 | BJ21: 10:59:00 | BK21: 09:23:00 | BL21: 08:28:00
A22: 14 | B22: 734 | C22: 1624 | D22: 657 | E22: 1711 | F22: 604 | G22: 1754 | H22: 502 | I22: 1838 | J22: 413 | K22: 1920 | L22: 351 | M22: 1949 | N22: 406 | O22: 1944 | P22: 444 | Q22: 1903 | R22: 526 | S22: 1804 | T22: 607 | U22: 1703 | V22: 654 | W22: 1614 | X22: 731 | Y22: 1558 | AA22: 07:34:00 | AB22: 06:57:00 | AC22: 06:04:00 | AD22: 05:02:00 | AE22: 04:13:00 | AF22: 03:51:00 | AG22: 04:06:00 | AH22: 04:44:00 | AI22: 05:26:00 | AJ22: 06:07:00 | AK22: 06:54:00 | AL22: 07:31:00 | AN22: 16:24:00 | AO22: 17:11:00 | AP22: 17:54:00 | AQ22: 18:38:00 | AR22: 19:20:00 | AS22: 19:49:00 | AT22: 19:44:00 | AU22: 19:03:00 | AV22: 18:04:00 | AW22: 17:03:00 | AX22: 16:14:00 | AY22: 15:58:00 | BA22: 08:50:00 | BB22: 10:14:00 | BC22: 11:50:00 | BD22: 13:36:00 | BE22: 15:07:00 | BF22: 15:58:00 | BG22: 15:38:00 | BH22: 14:19:00 | BI22: 12:38:00 | BJ22: 10:56:00 | BK22: 09:20:00 | BL22: 08:27:00
A23: 15 | B23: 733 | C23: 1625 | D23: 655 | E23: 1713 | F23: 602 | G23: 1755 | H23: 501 | I23: 1840 | J23: 412 | K23: 1921 | L23: 351 | M23: 1950 | N23: 407 | O23: 1943 | P23: 446 | Q23: 1902 | R23: 527 | S23: 1802 | T23: 609 | U23: 1701 | V23: 655 | W23: 1613 | X23: 732 | Y23: 1558 | AA23: 07:33:00 | AB23: 06:55:00 | AC23: 06:02:00 | AD23: 05:01:00 | AE23: 04:12:00 | AF23: 03:51:00 | AG23: 04:07:00 | AH23: 04:46:00 | AI23: 05:27:00 | AJ23: 06:09:00 | AK23: 06:55:00 | AL23: 07:32:00 | AN23: 16:25:00 | AO23: 17:13:00 | AP23: 17:55:00 | AQ23: 18:40:00 | AR23: 19:21:00 | AS23: 19:50:00 | AT23: 19:43:00 | AU23: 19:02:00 | AV23: 18:02:00 | AW23: 17:01:00 | AX23: 16:13:00 | AY23: 15:58:00 | BA23: 08:52:00 | BB23: 10:18:00 | BC23: 11:53:00 | BD23: 13:39:00 | BE23: 15:09:00 | BF23: 15:59:00 | BG23: 15:36:00 | BH23: 14:16:00 | BI23: 12:35:00 | BJ23: 10:52:00 | BK23: 09:18:00 | BL23: 08:26:00
A24: 16 | B24: 733 | C24: 1627 | D24: 653 | E24: 1715 | F24: 600 | G24: 1757 | H24: 459 | I24: 1841 | J24: 411 | K24: 1922 | L24: 351 | M24: 1950 | N24: 408 | O24: 1943 | P24: 447 | Q24: 1900 | R24: 528 | S24: 1759 | T24: 610 | U24: 1659 | V24: 657 | W24: 1612 | X24: 732 | Y24: 1558 | AA24: 07:33:00 | AB24: 06:53:00 | AC24: 06:00:00 | AD24: 04:59:00 | AE24: 04:11:00 | AF24: 03:51:00 | AG24: 04:08:00 | AH24: 04:47:00 | AI24: 05:28:00 | AJ24: 06:10:00 | AK24: 06:57:00 | AL24: 07:32:00 | AN24: 16:27:00 | AO24: 17:15:00 | AP24: 17:57:00 | AQ24: 18:41:00 | AR24: 19:22:00 | AS24: 19:50:00 | AT24: 19:43:00 | AU24: 19:00:00 | AV24: 17:59:00 | AW24: 16:59:00 | AX24: 16:12:00 | AY24: 15:58:00 | BA24: 08:54:00 | BB24: 10:22:00 | BC24: 11:57:00 | BD24: 13:42:00 | BE24: 15:11:00 | BF24: 15:59:00 | BG24: 15:35:00 | BH24: 14:13:00 | BI24: 12:31:00 | BJ24: 10:49:00 | BK24: 09:15:00 | BL24: 08:26:00
A25: 17 | B25: 732 | C25: 1628 | D25: 652 | E25: 1716 | F25: 558 | G25: 1758 | H25: 457 | I25: 1842 | J25: 409 | K25: 1923 | L25: 351 | M25: 1950 | N25: 409 | O25: 1942 | P25: 448 | Q25: 1858 | R25: 530 | S25: 1757 | T25: 612 | U25: 1658 | V25: 658 | W25: 1611 | X25: 733 | Y25: 1559 | AA25: 07:32:00 | AB25: 06:52:00 | AC25: 05:58:00 | AD25: 04:57:00 | AE25: 04:09:00 | AF25: 03:51:00 | AG25: 04:09:00 | AH25: 04:48:00 | AI25: 05:30:00 | AJ25: 06:12:00 | AK25: 06:58:00 | AL25: 07:33:00 | AN25: 16:28:00 | AO25: 17:16:00 | AP25: 17:58:00 | AQ25: 18:42:00 | AR25: 19:23:00 | AS25: 19:50:00 | AT25: 19:42:00 | AU25: 18:58:00 | AV25: 17:57:00 | AW25: 16:58:00 | AX25: 16:11:00 | AY25: 15:59:00 | BA25: 08:56:00 | BB25: 10:24:00 | BC25: 12:00:00 | BD25: 13:45:00 | BE25: 15:14:00 | BF25: 15:59:00 | BG25: 15:33:00 | BH25: 14:10:00 | BI25: 12:27:00 | BJ25: 10:46:00 | BK25: 09:13:00 | BL25: 08:26:00
A26: 18 | B26: 731 | C26: 1630 | D26: 650 | E26: 1718 | F26: 556 | G26: 1800 | H26: 455 | I26: 1844 | J26: 408 | K26: 1925 | L26: 351 | M26: 1951 | N26: 410 | O26: 1941 | P26: 450 | Q26: 1856 | R26: 531 | S26: 1755 | T26: 613 | U26: 1656 | V26: 700 | W26: 1610 | X26: 734 | Y26: 1559 | AA26: 07:31:00 | AB26: 06:50:00 | AC26: 05:56:00 | AD26: 04:55:00 | AE26: 04:08:00 | AF26: 03:51:00 | AG26: 04:10:00 | AH26: 04:50:00 | AI26: 05:31:00 | AJ26: 06:13:00 | AK26: 07:00:00 | AL26: 07:34:00 | AN26: 16:30:00 | AO26: 17:18:00 | AP26: 18:00:00 | AQ26: 18:44:00 | AR26: 19:25:00 | AS26: 19:51:00 | AT26: 19:41:00 | AU26: 18:56:00 | AV26: 17:55:00 | AW26: 16:56:00 | AX26: 16:10:00 | AY26: 15:59:00 | BA26: 08:59:00 | BB26: 10:28:00 | BC26: 12:04:00 | BD26: 13:49:00 | BE26: 15:17:00 | BF26: 16:00:00 | BG26: 15:31:00 | BH26: 14:06:00 | BI26: 12:24:00 | BJ26: 10:43:00 | BK26: 09:10:00 | BL26: 08:25:00
A27: 19 | B27: 730 | C27: 1631 | D27: 648 | E27: 1719 | F27: 554 | G27: 1801 | H27: 453 | I27: 1845 | J27: 407 | K27: 1926 | L27: 351 | M27: 1951 | N27: 412 | O27: 1940 | P27: 451 | Q27: 1855 | R27: 532 | S27: 1753 | T27: 615 | U27: 1654 | V27: 701 | W27: 1609 | X27: 734 | Y27: 1559 | AA27: 07:30:00 | AB27: 06:48:00 | AC27: 05:54:00 | AD27: 04:53:00 | AE27: 04:07:00 | AF27: 03:51:00 | AG27: 04:12:00 | AH27: 04:51:00 | AI27: 05:32:00 | AJ27: 06:15:00 | AK27: 07:01:00 | AL27: 07:34:00 | AN27: 16:31:00 | AO27: 17:19:00 | AP27: 18:01:00 | AQ27: 18:45:00 | AR27: 19:26:00 | AS27: 19:51:00 | AT27: 19:40:00 | AU27: 18:55:00 | AV27: 17:53:00 | AW27: 16:54:00 | AX27: 16:09:00 | AY27: 15:59:00 | BA27: 09:01:00 | BB27: 10:31:00 | BC27: 12:07:00 | BD27: 13:52:00 | BE27: 15:19:00 | BF27: 16:00:00 | BG27: 15:28:00 | BH27: 14:04:00 | BI27: 12:21:00 | BJ27: 10:39:00 | BK27: 09:08:00 | BL27: 08:25:00
A28: 20 | B28: 729 | C28: 1633 | D28: 647 | E28: 1721 | F28: 552 | G28: 1803 | H28: 451 | I28: 1847 | J28: 406 | K28: 1927 | L28: 351 | M28: 1951 | N28: 413 | O28: 1939 | P28: 452 | Q28: 1853 | R28: 534 | S28: 1751 | T28: 616 | U28: 1652 | V28: 703 | W28: 1608 | X28: 735 | Y28: 1600 | AA28: 07:29:00 | AB28: 06:47:00 | AC28: 05:52:00 | AD28: 04:51:00 | AE28: 04:06:00 | AF28: 03:51:00 | AG28: 04:13:00 | AH28: 04:52:00 | AI28: 05:34:00 | AJ28: 06:16:00 | AK28: 07:03:00 | AL28: 07:35:00 | AN28: 16:33:00 | AO28: 17:21:00 | AP28: 18:03:00 | AQ28: 18:47:00 | AR28: 19:27:00 | AS28: 19:51:00 | AT28: 19:39:00 | AU28: 18:53:00 | AV28: 17:51:00 | AW28: 16:52:00 | AX28: 16:08:00 | AY28: 16:00:00 | BA28: 09:04:00 | BB28: 10:34:00 | BC28: 12:11:00 | BD28: 13:56:00 | BE28: 15:21:00 | BF28: 16:00:00 | BG28: 15:26:00 | BH28: 14:01:00 | BI28: 12:17:00 | BJ28: 10:36:00 | BK28: 09:05:00 | BL28: 08:25:00
A29: 21 | B29: 728 | C29: 1634 | D29: 645 | E29: 1722 | F29: 550 | G29: 1804 | H29: 449 | I29: 1848 | J29: 405 | K29: 1928 | L29: 352 | M29: 1951 | N29: 414 | O29: 1938 | P29: 454 | Q29: 1851 | R29: 535 | S29: 1749 | T29: 618 | U29: 1650 | V29: 704 | W29: 1607 | X29: 735 | Y29: 1600 | AA29: 07:28:00 | AB29: 06:45:00 | AC29: 05:50:00 | AD29: 04:49:00 | AE29: 04:05:00 | AF29: 03:52:00 | AG29: 04:14:00 | AH29: 04:54:00 | AI29: 05:35:00 | AJ29: 06:18:00 | AK29: 07:04:00 | AL29: 07:35:00 | AN29: 16:34:00 | AO29: 17:22:00 | AP29: 18:04:00 | AQ29: 18:48:00 | AR29: 19:28:00 | AS29: 19:51:00 | AT29: 19:38:00 | AU29: 18:51:00 | AV29: 17:49:00 | AW29: 16:50:00 | AX29: 16:07:00 | AY29: 16:00:00 | BA29: 09:06:00 | BB29: 10:37:00 | BC29: 12:14:00 | BD29: 13:59:00 | BE29: 15:23:00 | BF29: 15:59:00 | BG29: 15:24:00 | BH29: 13:57:00 | BI29: 12:14:00 | BJ29: 10:32:00 | BK29: 09:03:00 | BL29: 08:25:00
A30: 22 | B30: 728 | C30: 1636 | D30: 643 | E30: 1724 | F30: 548 | G30: 1805 | H30: 448 | I30: 1850 | J30: 404 | K30: 1929 | L30: 352 | M30: 1952 | N30: 415 | O30: 1937 | P30: 455 | Q30: 1849 | R30: 537 | S30: 1747 | T30: 619 | U30: 1648 | V30: 705 | W30: 1606 | X30: 736 | Y30: 1601 | AA30: 07:28:00 | AB30: 06:43:00 | AC30: 05:48:00 | AD30: 04:48:00 | AE30: 04:04:00 | AF30: 03:52:00 | AG30: 04:15:00 | AH30: 04:55:00 | AI30: 05:37:00 | AJ30: 06:19:00 | AK30: 07:05:00 | AL30: 07:36:00 | AN30: 16:36:00 | AO30: 17:24:00 | AP30: 18:05:00 | AQ30: 18:50:00 | AR30: 19:29:00 | AS30: 19:52:00 | AT30: 19:37:00 | AU30: 18:49:00 | AV30: 17:47:00 | AW30: 16:48:00 | AX30: 16:06:00 | AY30: 16:01:00 | BA30: 09:08:00 | BB30: 10:41:00 | BC30: 12:17:00 | BD30: =AQ30-AD30 -> 14:02:00 | BE30: 15:25:00 | BF30: 16:00:00 | BG30: 15:22:00 | BH30: 13:54:00 | BI30: 12:10:00 | BJ30: 10:29:00 | BK30: 09:01:00 | BL30: 08:25:00
A31: 23 | B31: 727 | C31: 1637 | D31: 641 | E31: 1725 | F31: 546 | G31: 1807 | H31: 446 | I31: 1851 | J31: 403 | K31: 1931 | L31: 352 | M31: 1952 | N31: 416 | O31: 1935 | P31: 456 | Q31: 1847 | R31: 538 | S31: 1745 | T31: 620 | U31: 1647 | V31: 707 | W31: 1605 | X31: 736 | Y31: 1601 | AA31: 07:27:00 | AB31: 06:41:00 | AC31: 05:46:00 | AD31: 04:46:00 | AE31: 04:03:00 | AF31: 03:52:00 | AG31: 04:16:00 | AH31: 04:56:00 | AI31: 05:38:00 | AJ31: 06:20:00 | AK31: 07:07:00 | AL31: 07:36:00 | AN31: 16:37:00 | AO31: 17:25:00 | AP31: 18:07:00 | AQ31: 18:51:00 | AR31: 19:31:00 | AS31: 19:52:00 | AT31: 19:35:00 | AU31: 18:47:00 | AV31: 17:45:00 | AW31: 16:47:00 | AX31: 16:05:00 | AY31: 16:01:00 | BA31: =AN31-AA31 -> 09:10:00 | BB31: 10:44:00 | BC31: 12:21:00 | BD31: 14:05:00 | BE31: 15:28:00 | BF31: 16:00:00 | BG31: 15:19:00 | BH31: 13:51:00 | BI31: 12:07:00 | BJ31: 10:27:00 | BK31: 08:58:00 | BL31: 08:25:00
A32: 24 | B32: 726 | C32: 1639 | D32: 639 | E32: 1727 | F32: 544 | G32: 1808 | H32: 444 | I32: 1852 | J32: 402 | K32: 1932 | L32: 353 | M32: 1952 | N32: 417 | O32: 1934 | P32: 458 | Q32: 1845 | R32: 539 | S32: 1743 | T32: 622 | U32: 1645 | V32: 708 | W32: 1604 | X32: 737 | Y32: 1602 | AA32: 07:26:00 | AB32: 06:39:00 | AC32: 05:44:00 | AD32: 04:44:00 | AE32: 04:02:00 | AF32: 03:53:00 | AG32: 04:17:00 | AH32: 04:58:00 | AI32: 05:39:00 | AJ32: 06:22:00 | AK32: 07:08:00 | AL32: 07:37:00 | AN32: 16:39:00 | AO32: 17:27:00 | AP32: 18:08:00 | AQ32: 18:52:00 | AR32: 19:32:00 | AS32: 19:52:00 | AT32: 19:34:00 | AU32: 18:45:00 | AV32: 17:43:00 | AW32: 16:45:00 | AX32: 16:04:00 | AY32: 16:02:00 | BA32: 09:13:00 | BB32: 10:48:00 | BC32: 12:24:00 | BD32: 14:08:00 | BE32: 15:30:00 | BF32: 15:59:00 | BG32: 15:17:00 | BH32: 13:47:00 | BI32: 12:04:00 | BJ32: 10:23:00 | BK32: 08:56:00 | BL32: 08:25:00
A33: 25 | B33: 724 | C33: 1640 | D33: 637 | E33: 1729 | F33: 542 | G33: 1810 | H33: 442 | I33: 1854 | J33: 401 | K33: 1933 | L33: 353 | M33: 1952 | N33: 418 | O33: 1933 | P33: 459 | Q33: 1843 | R33: 541 | S33: 1741 | T33: 623 | U33: 1643 | V33: 709 | W33: 1604 | X33: 737 | Y33: 1603 | AA33: 07:24:00 | AB33: 06:37:00 | AC33: 05:42:00 | AD33: 04:42:00 | AE33: 04:01:00 | AF33: 03:53:00 | AG33: 04:18:00 | AH33: 04:59:00 | AI33: 05:41:00 | AJ33: 06:23:00 | AK33: 07:09:00 | AL33: 07:37:00 | AN33: 16:40:00 | AO33: 17:29:00 | AP33: 18:10:00 | AQ33: 18:54:00 | AR33: 19:33:00 | AS33: 19:52:00 | AT33: 19:33:00 | AU33: 18:43:00 | AV33: 17:41:00 | AW33: 16:43:00 | AX33: 16:04:00 | AY33: 16:03:00 | BA33: 09:16:00 | BB33: 10:52:00 | BC33: 12:28:00 | BD33: 14:12:00 | BE33: 15:32:00 | BF33: 15:59:00 | BG33: 15:15:00 | BH33: 13:44:00 | BI33: 12:00:00 | BJ33: 10:20:00 | BK33: 08:55:00 | BL33: 08:26:00
A34: 26 | B34: 723 | C34: 1642 | D34: 636 | E34: 1730 | F34: 540 | G34: 1811 | H34: 441 | I34: 1855 | J34: 400 | K34: 1934 | L34: 353 | M34: 1952 | N34: 420 | O34: 1932 | P34: 500 | Q34: 1842 | R34: 542 | S34: 1739 | T34: 625 | U34: 1642 | V34: 711 | W34: 1603 | X34: 737 | Y34: 1603 | AA34: 07:23:00 | AB34: 06:36:00 | AC34: 05:40:00 | AD34: 04:41:00 | AE34: 04:00:00 | AF34: 03:53:00 | AG34: 04:20:00 | AH34: 05:00:00 | AI34: 05:42:00 | AJ34: 06:25:00 | AK34: 07:11:00 | AL34: 07:37:00 | AN34: 16:42:00 | AO34: 17:30:00 | AP34: 18:11:00 | AQ34: 18:55:00 | AR34: 19:34:00 | AS34: 19:52:00 | AT34: 19:32:00 | AU34: 18:42:00 | AV34: 17:39:00 | AW34: 16:42:00 | AX34: 16:03:00 | AY34: 16:03:00 | BA34: 09:19:00 | BB34: 10:54:00 | BC34: 12:31:00 | BD34: 14:14:00 | BE34: 15:34:00 | BF34: 15:59:00 | BG34: 15:12:00 | BH34: 13:42:00 | BI34: 11:57:00 | BJ34: 10:17:00 | BK34: 08:52:00 | BL34: 08:26:00
A35: 27 | B35: 722 | C35: 1643 | D35: 634 | E35: 1732 | F35: 538 | G35: 1813 | H35: 439 | I35: 1857 | J35: 359 | K35: 1935 | L35: 354 | M35: 1952 | N35: 421 | O35: 1931 | P35: 502 | Q35: 1840 | R35: 543 | S35: 1737 | T35: 626 | U35: 1640 | V35: 712 | W35: 1602 | X35: 738 | Y35: 1604 | AA35: 07:22:00 | AB35: 06:34:00 | AC35: 05:38:00 | AD35: 04:39:00 | AE35: 03:59:00 | AF35: 03:54:00 | AG35: 04:21:00 | AH35: 05:02:00 | AI35: 05:43:00 | AJ35: 06:26:00 | AK35: 07:12:00 | AL35: 07:38:00 | AN35: 16:43:00 | AO35: 17:32:00 | AP35: 18:13:00 | AQ35: 18:57:00 | AR35: 19:35:00 | AS35: 19:52:00 | AT35: 19:31:00 | AU35: 18:40:00 | AV35: 17:37:00 | AW35: 16:40:00 | AX35: 16:02:00 | AY35: 16:04:00 | BA35: 09:21:00 | BB35: 10:58:00 | BC35: 12:35:00 | BD35: 14:18:00 | BE35: 15:36:00 | BF35: 15:58:00 | BG35: 15:10:00 | BH35: 13:38:00 | BI35: 11:54:00 | BJ35: 10:14:00 | BK35: 08:50:00 | BL35: 08:26:00
A36: 28 | B36: 721 | C36: 1645 | D36: 632 | E36: 1733 | F36: 536 | G36: 1814 | H36: 437 | I36: 1858 | J36: 359 | K36: 1936 | L36: 354 | M36: 1952 | N36: 422 | O36: 1929 | P36: 503 | Q36: 1838 | R36: 545 | S36: 1735 | T36: 628 | U36: 1638 | V36: 713 | W36: 1602 | X36: 738 | Y36: 1605 | AA36: 07:21:00 | AB36: 06:32:00 | AC36: 05:36:00 | AD36: 04:37:00 | AE36: 03:59:00 | AF36: 03:54:00 | AG36: 04:22:00 | AH36: 05:03:00 | AI36: 05:45:00 | AJ36: 06:28:00 | AK36: 07:13:00 | AL36: 07:38:00 | AN36: 16:45:00 | AO36: 17:33:00 | AP36: 18:14:00 | AQ36: 18:58:00 | AR36: 19:36:00 | AS36: 19:52:00 | AT36: 19:29:00 | AU36: 18:38:00 | AV36: 17:35:00 | AW36: 16:38:00 | AX36: 16:02:00 | AY36: 16:05:00 | BA36: 09:24:00 | BB36: 11:01:00 | BC36: 12:38:00 | BD36: 14:21:00 | BE36: 15:37:00 | BF36: 15:58:00 | BG36: 15:07:00 | BH36: 13:35:00 | BI36: 11:50:00 | BJ36: 10:10:00 | BK36: 08:49:00 | BL36: 08:27:00
A37: 29 | B37: 720 | C37: 1646 | F37: 534 | G37: 1815 | H37: 435 | I37: 1859 | J37: 358 | K37: 1937 | L37: 355 | M37: 1951 | N37: 423 | O37: 1928 | P37: 504 | Q37: 1836 | R37: 546 | S37: 1733 | T37: 629 | U37: 1637 | V37: 715 | W37: 1601 | X37: 738 | Y37: 1606 | AA37: 07:20:00 | AB37: 00:00:00 | AC37: 05:34:00 | AD37: 04:35:00 | AE37: 03:58:00 | AF37: 03:55:00 | AG37: 04:23:00 | AH37: 05:04:00 | AI37: 05:46:00 | AJ37: 06:29:00 | AK37: 07:15:00 | AL37: 07:38:00 | AN37: 16:46:00 | AO37: 00:00:00 | AP37: 18:15:00 | AQ37: 18:59:00 | AR37: 19:37:00 | AS37: 19:51:00 | AT37: 19:28:00 | AU37: 18:36:00 | AV37: 17:33:00 | AW37: 16:37:00 | AX37: 16:01:00 | AY37: 16:06:00 | BA37: 09:26:00 | BB37: 00:00:00 | BC37: 12:41:00 | BD37: 14:24:00 | BE37: 15:39:00 | BF37: 15:56:00 | BG37: 15:05:00 | BH37: 13:32:00 | BI37: 11:47:00 | BJ37: 10:08:00 | BK37: 08:46:00 | BL37: 08:28:00
A38: 30 | B38: 719 | C38: 1648 | F38: 532 | G38: 1817 | H38: 434 | I38: 1901 | J38: 357 | K38: 1938 | L38: 355 | M38: 1951 | N38: 425 | O38: 1927 | P38: 506 | Q38: 1834 | R38: 548 | S38: 1731 | T38: 631 | U38: 1635 | V38: 716 | W38: 1600 | X38: 738 | Y38: 1607 | AA38: 07:19:00 | AB38: 00:00:00 | AC38: 05:32:00 | AD38: 04:34:00 | AE38: 03:57:00 | AF38: 03:55:00 | AG38: 04:25:00 | AH38: 05:06:00 | AI38: 05:48:00 | AJ38: 06:31:00 | AK38: 07:16:00 | AL38: 07:38:00 | AN38: 16:48:00 | AO38: 00:00:00 | AP38: 18:17:00 | AQ38: 19:01:00 | AR38: 19:38:00 | AS38: 19:51:00 | AT38: 19:27:00 | AU38: 18:34:00 | AV38: 17:31:00 | AW38: 16:35:00 | AX38: 16:00:00 | AY38: 16:07:00 | BA38: 09:29:00 | BB38: 00:00:00 | BC38: 12:45:00 | BD38: 14:27:00 | BE38: 15:41:00 | BF38: 15:56:00 | BG38: 15:02:00 | BH38: 13:28:00 | BI38: 11:43:00 | BJ38: 10:04:00 | BK38: 08:44:00 | BL38: 08:29:00
A39: 31 | B39: 717 | C39: 1649 | F39: 530 | G39: 1818 | J39: 356 | K39: 1939 | N39: 426 | O39: 1925 | P39: 507 | Q39: 1832 | T39: 633 | U39: 1633 | X39: 738 | Y39: 1608 | AA39: 07:17:00 | AB39: 00:00:00 | AC39: 05:30:00 | AD39: 00:00:00 | AE39: 03:56:00 | AF39: 00:00:00 | AG39: 04:26:00 | AH39: 05:07:00 | AI39: 00:00:00 | AJ39: 06:33:00 | AK39: 00:00:00 | AL39: 07:38:00 | AN39: 16:49:00 | AO39: 00:00:00 | AP39: 18:18:00 | AQ39: 00:00:00 | AR39: 19:39:00 | AS39: 00:00:00 | AT39: 19:25:00 | AU39: 18:32:00 | AV39: 00:00:00 | AW39: 16:33:00 | AX39: 00:00:00 | AY39: 16:08:00 | BA39: 09:32:00 | BB39: 00:00:00 | BC39: 12:48:00 | BD39: 00:00:00 | BE39: 15:43:00 | BF39: 00:00:00 | BG39: 14:59:00 | BH39: 13:25:00 | BI39: 00:00:00 | BJ39: 10:00:00 | BK39: 00:00:00 | BL39: 08:30:00
A41: Add one hour for daylight time, if and when in use.
C43: 2018 Daylight Savings = 3/11 - 11/3
B45: 1 | C45: 1 | D45: =B45+1 -> 2 | E45: 2 | F45: 3 | G45: 3 | H45: 4 | I45: 4 | J45: 5 | K45: 5 | L45: 6 | M45: 6 | N45: 7 | O45: 7 | P45: 8 | Q45: 8 | R45: 9 | S45: 9 | T45: 10 | U45: 10 | V45: 11 | W45: 11 | X45: 12 | Y45: 12
B46: 1 | C46: 2 | D46: 3 | E46: 4 | F46: 5 | G46: 6 | H46: 7 | I46: 8 | J46: 9 | K46: 10 | L46: 11 | M46: 12
B47: =B7 -> 2018-01-01 | C47: =EOMONTH(B47,1) -> 2018-02-28 | D47: 2018-03-31 | E47: 2018-04-30 | F47: 2018-05-31 | G47: 2018-06-30 | H47: 2018-07-31 | I47: 2018-08-31 | J47: 2018-09-30 | K47: 2018-10-31 | L47: 2018-11-30 | M47: 2018-12-31
A48: Peak Day | B48: ='Peak Calc CP'!C71 -> 2018-01-02 | C48: ='Peak Calc CP'!D71 -> 2018-02-21 | D48: ='Peak Calc CP'!E71 -> 2018-03-07 | E48: ='Peak Calc CP'!F71 -> 2018-04-02 | F48: ='Peak Calc CP'!G71 -> 2018-05-15 | G48: ='Peak Calc CP'!H71 -> 2018-06-20 | H48: ='Peak Calc CP'!I71 -> 2018-07-30 | I48: ='Peak Calc CP'!J71 -> 2018-08-10 | J48: ='Peak Calc CP'!K71 -> 2018-09-07 | K48: ='Peak Calc CP'!L71 -> 2018-10-16 | L48: ='Peak Calc CP'!M71 -> 2018-11-26 | M48: ='Peak Calc CP'!N71 -> 2018-12-07
A49: Peak Time | B49: ='Peak Calc CP'!C72 -> 18:00:00 | C49: ='Peak Calc CP'!D72 -> 08:00:00 | D49: ='Peak Calc CP'!E72 -> 08:00:00 | E49: ='Peak Calc CP'!F72 -> 10:00:00 | F49: ='Peak Calc CP'!G72 -> 19:00:00 | G49: ='Peak Calc CP'!H72 -> 17:00:00 | H49: ='Peak Calc CP'!I72 -> 16:00:00 | I49: ='Peak Calc CP'!J72 -> 16:00:00 | J49: ='Peak Calc CP'!K72 -> 17:00:00 | K49: ='Peak Calc CP'!L72 -> 08:00:00 | L49: ='Peak Calc CP'!M72 -> 18:00:00 | M49: ='Peak Calc CP'!N72 -> 08:00:00
A51: Rise | B51: =INDEX($B$9:$Y$39,DAY(B$48),MATCH(B$46,$B$45:$Y$45,0)) -> 738 | C51: 645 | D51: 618 | E51: 526 | F51: 412 | G51: 351 | H51: 425 | I51: 439 | J51: 516 | K51: 610 | L51: 711 | M51: 724
A52: Rise | B52: =TIME(INT(B51/100),RIGHT(B51,2),0) -> 07:38:00 | C52: =TIME(INT(C51/100),RIGHT(C51,2),0) -> 06:45:00 | D52: =TIME(INT(D51/100),RIGHT(D51,2),0) -> 06:18:00 | E52: =TIME(INT(E51/100)+1,RIGHT(E51,2),0) -> 06:26:00 | F52: 05:12:00 | G52: 04:51:00 | H52: 05:25:00 | I52: 05:39:00 | J52: 06:16:00 | K52: 07:10:00 | L52: =TIME(INT(L51/100),RIGHT(L51,2),0) -> 07:11:00 | M52: =TIME(INT(M51/100),RIGHT(M51,2),0) -> 07:24:00
A53: Set | B53: =INDEX($B$9:$Y$39,DAY(B$48),MATCH(B$46,$B$45:$Y$45,0)+1) -> 1610 | C53: 1722 | D53: 1744 | E53: 1821 | F53: 1921 | G53: 1951 | H53: 1927 | I53: 1910 | J53: 1818 | K53: 1659 | L53: 1603 | M53: 1558
A54: Set | B54: =TIME(INT(B53/100),RIGHT(B53,2),0) -> 16:10:00 | C54: =TIME(INT(C53/100),RIGHT(C53,2),0) -> 17:22:00 | D54: =TIME(INT(D53/100),RIGHT(D53,2),0) -> 17:44:00 | E54: =TIME(INT(E53/100)+1,RIGHT(E53,2),0) -> 19:21:00 | F54: 20:21:00 | G54: 20:51:00 | H54: 20:27:00 | I54: 20:10:00 | J54: 19:18:00 | K54: 17:59:00 | L54: =TIME(INT(L53/100),RIGHT(L53,2),0) -> 16:03:00 | M54: =TIME(INT(M53/100),RIGHT(M53,2),0) -> 15:58:00
A56: Hours of darkness at Peak Hour?
A57: check AM | B57: =IF(B49-1/24<B52,MIN(60,(B52-(B49-1/24))*24*60)/60,0) -> 0 | C57: 0 | D57: 0 | E57: 0 | F57: 0 | G57: 0 | H57: 0 | I57: 0 | J57: 0 | K57: 0.1666666667 | L57: 0 | M57: 0.4
A58: check PM | B58: =IF(B49>B54,MIN(60,(B49-B54)*24*60)/60,0) -> 1 | C58: =IF(C49>C54,MIN(60,(C49-C54)*24*60)/60,0) -> 0 | D58: 0 | E58: 0 | F58: 0 | G58: 0 | H58: 0 | I58: 0 | J58: 0 | K58: 0 | L58: 1 | M58: 0
A59: Total | B59: =B57+B58 -> 1 | C59: 0 | D59: 0 | E59: 0 | F59: 0 | G59: 0 | H59: 0 | I59: 0 | J59: 0 | K59: 0.1666666667 | L59: 1 | M59: 0.4
A61: Annual Hrs
A62: Light | B62: =BA63 -> 277.3833333 | C62: 287.9 | D62: 370.3 | E62: 410.15 | F62: 470 | G62: 477.8166667 | H62: 481.4333333 | I62: 440.35 | J62: 376.35 | K62: 335.6833333 | L62: 279.0333333 | M62: 263.3833333 | N62: =SUM(B62:M62) -> 4469.783333 | AA62: Dark AM | AN62: Dark PM | BA62: Light
A63: Dark | B63: =AA63+AN63 -> 466.6166667 | C63: 384.1 | D63: 373.7 | E63: 309.85 | F63: 274 | G63: 242.1833333 | H63: 262.5666667 | I63: 303.65 | J63: 343.65 | K63: 408.3166667 | L63: 440.9666667 | M63: 480.6166667 | N63: =SUM(B63:M63) -> 4290.216667 | AA63: =SUM(AA9:AA39)*24 -> 232.9166667 | AB63: 193.7833333 | AC63: 186 | AD63: 150.0166667 | AE63: 130.15 | AF63: 116.3333333 | AG63: 128.75 | AH63: 148.2833333 | AI63: 163.9 | AJ63: 191.35 | AK63: 207.8333333 | AL63: 232.8166667 | AN63: =SUM(IF(AN9:AN39>0,1-AN9:AN39,0))*24 -> 233.7 | AO63: =SUM(IF(AO9:AO39>0,1-AO9:AO39,0))*24 -> 190.3166667 | AP63: =SUM(IF(AP9:AP39>0,1-AP9:AP39,0))*24 -> 187.7 | AQ63: =SUM(IF(AQ9:AQ39>0,1-AQ9:AQ39,0))*24 -> 159.8333333 | AR63: =SUM(IF(AR9:AR39>0,1-AR9:AR39,0))*24 -> 143.85 | AS63: =SUM(IF(AS9:AS39>0,1-AS9:AS39,0))*24 -> 125.85 | AT63: =SUM(IF(AT9:AT39>0,1-AT9:AT39,0))*24 -> 133.8166667 | AU63: =SUM(IF(AU9:AU39>0,1-AU9:AU39,0))*24 -> 155.3666667 | AV63: =SUM(IF(AV9:AV39>0,1-AV9:AV39,0))*24 -> 179.75 | AW63: =SUM(IF(AW9:AW39>0,1-AW9:AW39,0))*24 -> 216.9666667 | AX63: =SUM(IF(AX9:AX39>0,1-AX9:AX39,0))*24 -> 233.1333333 | AY63: =SUM(IF(AY9:AY39>0,1-AY9:AY39,0))*24 -> 247.8 | BA63: =SUM(BA9:BA39)*24 -> 277.3833333 | BB63: 287.9 | BC63: 370.3 | BD63: 410.15 | BE63: 470 | BF63: 477.8166667 | BG63: 481.4333333 | BH63: 440.35 | BI63: 376.35 | BJ63: 335.6833333 | BK63: 279.0333333 | BL63: 263.3833333
A64: Total | B64: =B62+B63 -> 744 | C64: 672 | D64: 744 | E64: 720 | F64: 744 | G64: 720 | H64: 744 | I64: 744 | J64: 720 | K64: 744 | L64: 720 | M64: 744 | N64: =SUM(B64:M64) -> 8760

Sheet Schedule Shifting Adj - ID
A1: Schedule Shifting Adjustment - Idaho
A4: CP | D4: January | E4: February | F4: March | G4: April | H4: May | I4: June | J4: July | K4: August | L4: September | M4: October | N4: November | O4: December
A6: Sch 25 Customer 4 moved to Schedule 21 in 2019 | D6: =D20 -> 1338.0432 | E6: 1207.5024 | F6: 1137.2112 | G6: 1055.6232 | H6: 1468.584 | I6: 1510.0056 | J6: 1761.0456 | K6: 1861.4616 | L6: 1506.24 | M6: 923.8272 | N6: 1370.6784 | O6: 1206.2472
A7: Schedule 25 Adjustment | D7: =-D6 -> -1338.0432 | E7: =-E6 -> -1207.5024 | F7: -1137.2112 | G7: -1055.6232 | H7: -1468.584 | I7: -1510.0056 | J7: -1761.0456 | K7: -1861.4616 | L7: -1506.24 | M7: -923.8272 | N7: -1370.6784 | O7: -1206.2472
A8: Schedule 21 Adjustment | D8: =D6 -> 1338.0432 | E8: =E6 -> 1207.5024 | F8: 1137.2112 | G8: 1055.6232 | H8: 1468.584 | I8: 1510.0056 | J8: 1761.0456 | K8: 1861.4616 | L8: 1506.24 | M8: 923.8272 | N8: 1370.6784 | O8: 1206.2472
A11: NCP | D11: January | E11: February | F11: March | G11: April | H11: May | I11: June | J11: July | K11: August | L11: September | M11: October | N11: November | O11: December
A13: Sch 25 Customer 4 moved to Schedule 21 in 2019 | D13: =D25 -> 1207.5024 | E13: =E25 -> 1334.2776 | F13: 1154.784 | G13: 1532.5992 | H13: 1398.2928 | I13: 1210.0128 | J13: 1118.3832 | K13: 842.2392 | L13: 1307.9184 | M13: 1299.132 | N13: 1365.6576 | O13: 1225.0752
A14: Schedule 25 Adjustment | D14: =-D13 -> -1207.5024 | E14: =-E13 -> -1334.2776 | F14: -1154.784 | G14: -1532.5992 | H14: -1398.2928 | I14: -1210.0128 | J14: -1118.3832 | K14: -842.2392 | L14: -1307.9184 | M14: -1299.132 | N14: -1365.6576 | O14: -1225.0752
A15: Schedule 21 Adjustment | D15: =D13 -> 1207.5024 | E15: =E13 -> 1334.2776 | F15: 1154.784 | G15: 1532.5992 | H15: 1398.2928 | I15: 1210.0128 | J15: 1118.3832 | K15: 842.2392 | L15: 1307.9184 | M15: 1299.132 | N15: 1365.6576 | O15: 1225.0752
D17: January | E17: February | F17: March | G17: April | H17: May | I17: June | J17: July | K17: August | L17: September | M17: October | N17: November | O17: December
B18: Customer 4
A19: 12 Monthly Coincident Peaks | D19: 1279.2 | E19: 1154.4 | F19: 1087.2 | G19: 1009.2 | H19: 1404 | I19: 1443.6 | J19: 1683.6 | K19: 1779.6 | L19: 1440 | M19: 883.2 | N19: 1310.4 | O19: 1153.2
A20: Coincident Peak with Losses | D20: =D19*'Peak Calc CP'!$B$63 -> 1338.0432 | E20: =E19*'Peak Calc CP'!$B$63 -> 1207.5024 | F20: =F19*'Peak Calc CP'!$B$63 -> 1137.2112 | G20: =G19*'Peak Calc CP'!$B$63 -> 1055.6232 | H20: =H19*'Peak Calc CP'!$B$63 -> 1468.584 | I20: =I19*'Peak Calc CP'!$B$63 -> 1510.0056 | J20: =J19*'Peak Calc CP'!$B$63 -> 1761.0456 | K20: =K19*'Peak Calc CP'!$B$63 -> 1861.4616 | L20: =L19*'Peak Calc CP'!$B$63 -> 1506.24 | M20: =M19*'Peak Calc CP'!$B$63 -> 923.8272 | N20: =N19*'Peak Calc CP'!$B$63 -> 1370.6784 | O20: =O19*'Peak Calc CP'!$B$63 -> 1206.2472
D22: January | E22: February | F22: March | G22: April | H22: May | I22: June | J22: July | K22: August | L22: September | M22: October | N22: November | O22: December
B23: Customer 4
A24: 12 Monthly Non-Coincident Peaks | D24: 1154.4 | E24: 1275.6 | F24: 1104 | G24: 1465.2 | H24: 1336.8 | I24: 1156.8 | J24: 1069.2 | K24: 805.2 | L24: 1250.4 | M24: 1242 | N24: 1305.6 | O24: 1171.2
A25: Coincident Peak with Losses | D25: =D24*'Peak Calc CP'!$B$63 -> 1207.5024 | E25: =E24*'Peak Calc CP'!$B$63 -> 1334.2776 | F25: =F24*'Peak Calc CP'!$B$63 -> 1154.784 | G25: =G24*'Peak Calc CP'!$B$63 -> 1532.5992 | H25: =H24*'Peak Calc CP'!$B$63 -> 1398.2928 | I25: =I24*'Peak Calc CP'!$B$63 -> 1210.0128 | J25: =J24*'Peak Calc CP'!$B$63 -> 1118.3832 | K25: =K24*'Peak Calc CP'!$B$63 -> 842.2392 | L25: =L24*'Peak Calc CP'!$B$63 -> 1307.9184 | M25: =M24*'Peak Calc CP'!$B$63 -> 1299.132 | N25: =N24*'Peak Calc CP'!$B$63 -> 1365.6576 | O25: =O24*'Peak Calc CP'!$B$63 -> 1225.0752

Sheet Losses
A1: Compute Estimated Losses by Voltage Level
A2: Avista Retail Load 2018
A4: FERC Form 1 Page 401
C5: MWHs
A6: Retail Sales | C6: 8587539
A7: less: Clearwater purchased generation | C7: 0
A8: Retail Sales subject to losses | C8: =C6-C7 -> 8587539
A9: Retail Losses | C9: 491751 | D9: =C9/C8 -> 0.05726332073
A11: Standard Transmission Loss % | C11: =ROUND(C8*D11,0) -> 257626 | D11: 0.03
A12: Remainder Distribution Losses | C12: =C9-C11 -> 234125 | D12: =C12/C8 -> 0.02726334052
A14: Differentiate Distribution Sales by Voltage
A16: Secondary KWHs per Revenue Runs | C16: Washington | D16: Idaho | E16: Montana | F16: Total | G16: Cumulative MWHs | H16: Losses | I16: Loss %
A17: Schedule 1 | C17: ='12.2018 WA Usage'!O87+'12.2018 WA Usage'!O88 -> 2366635282 | D17: ='12.2018 ID Usage'!O103 -> 1155417468 | E17: ='12.2018 ID Usage'!O86 -> 311977.914
A18: Schedule 11 | C18: ='12.2018 WA Usage'!O89+'12.2018 WA Usage'!O90 -> 622702573.1 | D18: ='12.2018 ID Usage'!O104+'12.2018 ID Usage'!O105 -> 373980898.9 | E18: ='12.2018 ID Usage'!O89 -> 745975
A19: Schedule 21S | C19: ='12.2018 WA Usage'!O91+'12.2018 WA Usage'!O92-C27 -> 1271344801 | D19: ='12.2018 ID Usage'!O106+'12.2018 ID Usage'!O107-D27 -> 584222943.4
A20: Schedule 25S | C20: ='WA Sch 25 (12.2018)'!P5+'WA Sch 25 (12.2018)'!P25+'WA Sch 25 (12.2018)'!P26+'WA Sch 25 (12.2018)'!P98 -> 85705559.22 | D20: ='ID Sch 25 (12.2018)'!Q77 -> 4343016
A21: Schedule 31 | C21: ='12.2018 WA Usage'!O95+'12.2018 WA Usage'!O96+'12.2018 WA Usage'!O97 -> 145807692.4 | D21: ='12.2018 ID Usage'!O112+'12.2018 ID Usage'!O113 -> 62444248.32
A22: Street Lights | C22: =SUM('12.2018 WA Usage'!O98:O102) -> 10967850.23 | D22: =SUM('12.2018 ID Usage'!O114:O119) -> 7455506.463
A23: Area Lights | C23: ='12.2018 WA Usage'!O103+'12.2018 WA Usage'!O104 -> 7574181.315 | D23: =SUM('12.2018 ID Usage'!O120:O122) -> 4101952.346
A24: Total | C24: =SUM(C17:C23) -> 4510737939 | D24: =SUM(D17:D23) -> 2191966033 | E24: =SUM(E17:E23) -> 1057952.914 | F24: =C24+D24+E24 -> 6703761925 | G24: =F24/1000 -> 6703761.925 | H24: =H37-H35-H30 -> 104923 | I24: =H24/G24 -> 0.01565136131
A26: Primary KWHs per Revenue Runs | C26: Washington | D26: Idaho | F26: Total
A27: Schedule 21P | C27: ='12.2018 WA Usage'!O114 -> 108995125 | D27: ='12.2018 ID Usage'!O132 -> 38712326.44
A28: Schedule 25 | C28: ='WA Sch 25 (12.2018)'!P36-C20-C34 -> 558387780.3 | D28: ='ID Sch 25 (12.2018)'!Q24-D20 -> 322606415.6
A29: Schedule 25P less PFI generation | D29: ='ID Sch 25 (12.2018)'!Q37-C7*1000 -> 446649200
C30: =SUM(C27:C29) -> 667382905.3 | D30: =SUM(D27:D29) -> 807967942.1 | F30: =C30+D30 -> 1475350847 | G30: =G24+F30/1000 -> 8179112.773 | H30: =ROUND(G30*I30,0) -> 130866 | I30: 0.016
A32: Transmission KWHs per Revenue Runs | C32: Washington | D32: Idaho | F32: Total
A33: Schedule 28T | C33: ='12.2018 WA Usage'!O94 -> 0 | D33: 0
A34: Schedule 25T | C34: ='WA Sch 25 (12.2018)'!P97+'WA Sch 25 (12.2018)'!P99 -> 469470672
C35: =SUM(C33:C34) -> 469470672 | F35: =C35+D35 -> 469470672 | G35: =G30+F35/1000 -> 8648583.445 | H35: =ROUND(G35*I35,0) -> 259458 | I35: =D11 -> 0.03
A37: Sum | C37: =C24+C30+C35 -> 5647591516 | D37: =D24+D30+D35 -> 2999933975 | E37: =E24+E30+E35 -> 1057952.914 | F37: =F24+F30+F35 -> 8648583445 | G37: =F37/1000 -> 8648583.445 | H37: =ROUND(G37*I37,0) -> 495247 | I37: =D9 -> 0.05726332073
G38: =C8 -> 8587539
A39: Difference from Rev Run | C39: =C37-'12.2018 WA Usage'!O112 -> 90587578 | D39: =D37-'12.2018 ID Usage'!O130 -> 61311845.75 | E39: =E37-'12.2018 ID Usage'!O90 -> 0 | F39: Difference | G39: =G38-G37 -> -61044.44464 | H39: Annual Net Unbilled
A40: Schedule 25 Unbilled Change | C40: =-SUM('WA Sch 25 (12.2018)'!P30:P33) -> -90587578 | D40: =-SUM('ID Sch 25 (12.2018)'!Q19:Q20,'ID Sch 25 (12.2018)'!Q22:Q23,'ID Sch 25 (12.2018)'!Q32:Q33,'ID Sch 25 (12.2018)'!Q35:Q36) -> -61311845.75
A42: Unexplained diff. from Rev Run | C42: =SUM(C39:C41) -> 0 | D42: =SUM(D39:D41) -> -8.940696716e-07 | G42: Losses from System
G43: Secondary | H43: =ROUND(I24+I30+I35,3) -> 0.062
G44: Primary | H44: =ROUND(I30+I35,3) -> 0.046
G45: Transmission | H45: =ROUND(I35,3) -> 0.03
A47: Sch 21 Secondary | C47: =(C19)/(C19+C27) -> 0.9210374757 | D47: =(D19+D20)/(D19+D27) -> 0.944826835
A48: Sch 21 Primary | C48: =C27/(C19+C27) -> 0.07896252431 | D48: =D27/(D19+D27) -> 0.06214502262

Sheet WA Sch 25 (12.2018)
A1: Washington Schedule 25 Billing Determinants | Q1: 1st | R1: =Q2 -> 500000 | S1: =R2 -> 6000000
P2: 12-mo Ended | Q2: 500000 | R2: 6000000 | S2: 99999999
A3: KWHs | C3: Acct No. | D3: 2018-01-01 | E3: 2018-02-01 | F3: 2018-03-01 | G3: 2018-04-01 | H3: 2018-05-01 | I3: 2018-06-01 | J3: 2018-07-01 | K3: 2018-08-01 | L3: 2018-09-01 | M3: 2018-10-01 | N3: 2018-11-01 | O3: 2018-12-01 | P3: Total | Q3: kwhs/mo | R3: kwhs/mo | S3: kwhs/mo
A4: 1 | D4: 5417357.4 | E4: 5209482.6 | F4: 5598083.4 | G4: 5938930.2 | H4: 6179069.4 | I4: 5771215.8 | J4: 6205584 | K4: 6286131.6 | L4: 5214997.2 | M4: 6027205.8 | N4: 4774253.4 | O4: 6083616 | P4: =SUM(D4:O4) -> 68705926.8 | Q4: =Q$2*12-SUMPRODUCT(--($D4:$O4<=Q$2),Q$2-$D4:$O4) -> 6000000 | R4: =R$2*12-SUM($Q4:Q4)-SUMPRODUCT(--($D4:$O4<=R$2),R$2-$D4:$O4) -> 61924320 | S4: =S$2*12-SUM($Q4:R4)-SUMPRODUCT(--($D4:$O4<=S$2),S$2-$D4:$O4) -> 781606.8
A5: 22 | D5: 606597 | E5: 661977.2 | F5: 727160 | G5: 697581 | H5: 691017.6 | I5: 762333.6 | J5: 723049.6 | K5: 817499.2 | L5: 511733.6 | M5: 638428 | N5: 649174.4 | O5: 720994.4 | P5: =SUM(D5:O5) -> 8207545.6 | Q5: 6000000 | R5: =R$2*12-SUM($Q5:Q5)-SUMPRODUCT(--($D5:$O5<=R$2),R$2-$D5:$O5) -> 2207545.6 | S5: =S$2*12-SUM($Q5:R5)-SUMPRODUCT(--($D5:$O5<=S$2),S$2-$D5:$O5) -> 0
A6: 23 | D6: 979473.6 | E6: 895377 | F6: 951957.3 | G6: 876397.2 | H6: 896023.8 | I6: 891303 | J6: 781783.8 | K6: 831364.8 | L6: 779045.4 | M6: 873927.6 | N6: 836098.2 | O6: 812217 | P6: =SUM(D6:O6) -> 10404968.7 | Q6: 6000000 | R6: =R$2*12-SUM($Q6:Q6)-SUMPRODUCT(--($D6:$O6<=R$2),R$2-$D6:$O6) -> 4404968.7 | S6: =S$2*12-SUM($Q6:R6)-SUMPRODUCT(--($D6:$O6<=S$2),S$2-$D6:$O6) -> 0
A7: 2 | D7: 3098709.6 | E7: 2900940 | F7: 3192966 | G7: 3000358.2 | H7: 2990820 | I7: 2914699.2 | J7: 2818183.2 | K7: 2977010.4 | L7: 2712145.8 | M7: 2877663.6 | N7: 2753625 | O7: 1593639.598 | P7: 33830760.6 | Q7: 6000000 | R7: =R$2*12-SUM($Q7:Q7)-SUMPRODUCT(--($D7:$O7<=R$2),R$2-$D7:$O7) -> 27830760.6 | S7: =S$2*12-SUM($Q7:R7)-SUMPRODUCT(--($D7:$O7<=S$2),S$2-$D7:$O7) -> 0
A8: 3 | D8: 1451406.6 | E8: 1330051.8 | F8: 1413395.2 | G8: 1259812.4 | H8: 1296068.2 | I8: 1267047.6 | J8: 1254391.6 | K8: 1297139.2 | L8: 1191800.4 | M8: 1372032.2 | N8: 1325175.6 | O8: 1396154.9 | P8: 15854475.7 | Q8: 6000000 | R8: =R$2*12-SUM($Q8:Q8)-SUMPRODUCT(--($D8:$O8<=R$2),R$2-$D8:$O8) -> 9854475.7 | S8: =S$2*12-SUM($Q8:R8)-SUMPRODUCT(--($D8:$O8<=S$2),S$2-$D8:$O8) -> 0
A9: 4 | D9: 1294328.7 | E9: 1157305.8 | F9: 1248464.7 | G9: 1205773.8 | H9: 1278664.8 | I9: 1238120.1 | J9: 1324371.3 | K9: 1312516.8 | L9: 1250367.3 | M9: 1238766.9 | N9: 1209572.7 | O9: 1305220.344 | P9: 15063473.24 | Q9: 6000000 | R9: =R$2*12-SUM($Q9:Q9)-SUMPRODUCT(--($D9:$O9<=R$2),R$2-$D9:$O9) -> 9063473.244 | S9: =S$2*12-SUM($Q9:R9)-SUMPRODUCT(--($D9:$O9<=S$2),S$2-$D9:$O9) -> 0
A10: 5 | D10: 1680174.3 | E10: 1550971.8 | F10: 1669355.1 | G10: 1622050.5 | H10: 1966864.2 | I10: 1912079.4 | J10: 2179709.7 | K10: 2106808.2 | L10: 1816311 | M10: 1649123.7 | N10: 1620303.3 | O10: 1705474.05 | P10: 21479225.25 | Q10: 6000000 | R10: =R$2*12-SUM($Q10:Q10)-SUMPRODUCT(--($D10:$O10<=R$2),R$2-$D10:$O10) -> 15479225.25 | S10: =S$2*12-SUM($Q10:R10)-SUMPRODUCT(--($D10:$O10<=S$2),S$2-$D10:$O10) -> 0
A11: 6 | D11: 2251093.6 | E11: 2295039.6 | F11: 2148288.8 | G11: 2103292.8 | H11: 1859382 | I11: 1633699.2 | J11: 1985695.6 | K11: 2040340.4 | L11: 2035250 | M11: 2111894.4 | N11: 2195715.2 | O11: 2199177.4 | P11: 24858869 | Q11: 6000000 | R11: =R$2*12-SUM($Q11:Q11)-SUMPRODUCT(--($D11:$O11<=R$2),R$2-$D11:$O11) -> 18858869 | S11: =S$2*12-SUM($Q11:R11)-SUMPRODUCT(--($D11:$O11<=S$2),S$2-$D11:$O11) -> 0
A12: 7 | D12: 1342430.6 | E12: 1273123.6 | F12: 1374676.8 | G12: 1291710 | H12: 1411495.4 | I12: 1389838.8 | J12: 1540082.6 | K12: 1508025.4 | L12: 1332346.4 | M12: 1340910.2 | N12: 1106404.6 | O12: 1156736.7 | P12: 16067781.1 | Q12: 6000000 | R12: =R$2*12-SUM($Q12:Q12)-SUMPRODUCT(--($D12:$O12<=R$2),R$2-$D12:$O12) -> 10067781.1 | S12: =S$2*12-SUM($Q12:R12)-SUMPRODUCT(--($D12:$O12<=S$2),S$2-$D12:$O12) -> 0
A13: 8 | D13: 1108779 | E13: 1009331.4 | F13: 1067136 | G13: 1043343 | H13: 1082596.2 | I13: 1052801.4 | J13: 1056594 | K13: 1131643.8 | L13: 962224.2 | M13: 1076833.8 | N13: 959767.2 | O13: 904652.7 | P13: 12455702.7 | Q13: 6000000 | R13: =R$2*12-SUM($Q13:Q13)-SUMPRODUCT(--($D13:$O13<=R$2),R$2-$D13:$O13) -> 6455702.7 | S13: =S$2*12-SUM($Q13:R13)-SUMPRODUCT(--($D13:$O13<=S$2),S$2-$D13:$O13) -> 0
A14: 9 | D14: 42113570 | E14: 38726690 | F14: 42012008 | G14: 40858220 | H14: 39613368 | I14: 39658628 | J14: 40571988 | K14: 41162272 | L14: 38387778 | M14: 41469272 | N14: 39553724 | O14: 41299864 | P14: 485427382 | Q14: 6000000 | R14: =R$2*12-SUM($Q14:Q14)-SUMPRODUCT(--($D14:$O14<=R$2),R$2-$D14:$O14) -> 66000000 | S14: =S$2*12-SUM($Q14:R14)-SUMPRODUCT(--($D14:$O14<=S$2),S$2-$D14:$O14) -> 413427382
A15: 10 | D15: 5475880.2 | E15: 3225600 | F15: 5302936.8 | G15: 5139876 | H15: 5546520 | I15: 4880064 | J15: 4436115.6 | K15: 5475225 | L15: 4745651.4 | M15: 5373593.4 | N15: 4515264.6 | O15: 4882489.5 | P15: 58999216.5 | Q15: 6000000 | R15: =R$2*12-SUM($Q15:Q15)-SUMPRODUCT(--($D15:$O15<=R$2),R$2-$D15:$O15) -> 52999216.5 | S15: =S$2*12-SUM($Q15:R15)-SUMPRODUCT(--($D15:$O15<=S$2),S$2-$D15:$O15) -> 0
A16: 11 | D16: 2675148 | E16: 4832542.4 | F16: 5366177.6 | G16: 5075285.6 | H16: 5759633.6 | I16: 4983580 | J16: 4542300 | K16: 5232987.2 | L16: 5027002.401 | M16: 5821580.8 | N16: 5324020.8 | O16: 5382109.6 | P16: 60022368 | Q16: 6000000 | R16: =R$2*12-SUM($Q16:Q16)-SUMPRODUCT(--($D16:$O16<=R$2),R$2-$D16:$O16) -> 54022368 | S16: =S$2*12-SUM($Q16:R16)-SUMPRODUCT(--($D16:$O16<=S$2),S$2-$D16:$O16) -> 0
A17: 12 | D17: 3200689.8 | E17: 2917420.8 | F17: 3190861.8 | G17: 3189855.9 | H17: 4044789 | I17: 3911493.6 | J17: 4551246 | K17: 4441298.4 | L17: 3624860.4 | M17: 3239193.3 | N17: 3056115.3 | O17: 3093191.85 | P17: 42461016.15 | Q17: 6000000 | R17: =R$2*12-SUM($Q17:Q17)-SUMPRODUCT(--($D17:$O17<=R$2),R$2-$D17:$O17) -> 36461016.15 | S17: =S$2*12-SUM($Q17:R17)-SUMPRODUCT(--($D17:$O17<=S$2),S$2-$D17:$O17) -> 0
A18: 13 | D18: 911570.1 | E18: 817296.9 | F18: 882348.6 | G18: 881155.8 | H18: 1073816.1 | I18: 1046600.1 | J18: 1202604.9 | K18: 1199814 | L18: 978219.9 | M18: 934644.9 | N18: 858442.2 | O18: 887575.5 | P18: 11674089 | Q18: 6000000 | R18: =R$2*12-SUM($Q18:Q18)-SUMPRODUCT(--($D18:$O18<=R$2),R$2-$D18:$O18) -> 5674089 | S18: =S$2*12-SUM($Q18:R18)-SUMPRODUCT(--($D18:$O18<=S$2),S$2-$D18:$O18) -> 0
A19: 14 | D19: 889757.4 | E19: 844967.4 | F19: 962325 | G19: 864949.2 | H19: 926184 | I19: 881078.4 | J19: 904692 | K19: 991965 | L19: 957684.6 | M19: 1042830.6 | N19: 790020.6 | O19: 875425.8 | P19: 10931880 | Q19: 6000000 | R19: =R$2*12-SUM($Q19:Q19)-SUMPRODUCT(--($D19:$O19<=R$2),R$2-$D19:$O19) -> 4931880 | S19: =S$2*12-SUM($Q19:R19)-SUMPRODUCT(--($D19:$O19<=S$2),S$2-$D19:$O19) -> 0
A20: 15 | D20: 1270193.4 | E20: 1112622 | F20: 1160409.6 | G20: 1219999.2 | H20: 1452465 | I20: 1443086.4 | J20: 1530123 | K20: 1495053 | L20: 1277089.8 | M20: 1209801.6 | N20: 1110093.6 | O20: 1091279.701 | P20: 15372216.3 | Q20: 6000000 | R20: =R$2*12-SUM($Q20:Q20)-SUMPRODUCT(--($D20:$O20<=R$2),R$2-$D20:$O20) -> 9372216.301 | S20: =S$2*12-SUM($Q20:R20)-SUMPRODUCT(--($D20:$O20<=S$2),S$2-$D20:$O20) -> 0
A21: 16 | D21: 2358092.8 | E21: 2190658.4 | F21: 2360405.6 | G21: 2160110.4 | H21: 1789183.2 | I21: 2045484 | J21: 1923790.4 | K21: 1989926.4 | L21: 1954489.6 | M21: 2159164 | N21: 2107380.8 | O21: 2255610 | P21: 25294295.6 | Q21: 6000000 | R21: =R$2*12-SUM($Q21:Q21)-SUMPRODUCT(--($D21:$O21<=R$2),R$2-$D21:$O21) -> 19294295.6 | S21: =S$2*12-SUM($Q21:R21)-SUMPRODUCT(--($D21:$O21<=S$2),S$2-$D21:$O21) -> 0
A22: 17 | D22: 2503933.6 | E22: 2509035.2 | F22: 2568546.4 | G22: 2359705.6 | H22: 2259538.4 | I22: 2136456 | J22: 2168320 | K22: 2295686.4 | L22: 2237127.2 | M22: 2436683.2 | N22: 2370692.8 | O22: 2555655.2 | P22: 28401380 | Q22: 6000000 | R22: =R$2*12-SUM($Q22:Q22)-SUMPRODUCT(--($D22:$O22<=R$2),R$2-$D22:$O22) -> 22401380 | S22: =S$2*12-SUM($Q22:R22)-SUMPRODUCT(--($D22:$O22<=S$2),S$2-$D22:$O22) -> 0
A23: 18 | D23: 4357473 | E23: 3896860 | F23: 3695622 | G23: 3595240 | H23: 4259323 | I23: 4201313 | J23: 5094661.29 | K23: 5131098.29 | L23: 4086204.3 | M23: 3815254.08 | N23: 3722507 | O23: 3968524.87 | P23: 49824080.83 | Q23: 6000000 | R23: =R$2*12-SUM($Q23:Q23)-SUMPRODUCT(--($D23:$O23<=R$2),R$2-$D23:$O23) -> 43824080.83 | S23: =S$2*12-SUM($Q23:R23)-SUMPRODUCT(--($D23:$O23<=S$2),S$2-$D23:$O23) -> 0
A24: 19 | D24: 3294921 | E24: 2997090.6 | F24: 3210345.6 | G24: 3063408.6 | H24: 2906194.2 | I24: 2811337.2 | J24: 2954351.4 | K24: 2975448 | L24: 2907105.6 | M24: 3094039.2 | N24: 3162175.8 | O24: 3309637.8 | P24: 36686055 | Q24: 6000000 | R24: =R$2*12-SUM($Q24:Q24)-SUMPRODUCT(--($D24:$O24<=R$2),R$2-$D24:$O24) -> 30686055 | S24: =S$2*12-SUM($Q24:R24)-SUMPRODUCT(--($D24:$O24<=S$2),S$2-$D24:$O24) -> 0
A25: 20 | D25: 2586936 | E25: 2474712 | F25: 2788048 | G25: 2708744 | H25: 2555544 | I25: 2409704 | J25: 2499608 | K25: 2613272 | L25: 2564312 | M25: 2750072 | N25: 2713584 | O25: 2854344.424 | P25: 31518880.42 | Q25: 6000000 | R25: =R$2*12-SUM($Q25:Q25)-SUMPRODUCT(--($D25:$O25<=R$2),R$2-$D25:$O25) -> 25518880.42 | S25: =S$2*12-SUM($Q25:R25)-SUMPRODUCT(--($D25:$O25<=S$2),S$2-$D25:$O25) -> 0
A26: 21 | D26: 2369852.8 | E26: 2230491.2 | F26: 2259040 | G26: 2340637.6 | H26: 2228816.8 | I26: 2189023.2 | J26: 3213347.2 | K26: 3415423.2 | L26: 2857607.2 | M26: 2567745.6 | N26: 2208488.8 | O26: 2141949.6 | P26: 30022423.2 | Q26: 6000000 | R26: =R$2*12-SUM($Q26:Q26)-SUMPRODUCT(--($D26:$O26<=R$2),R$2-$D26:$O26) -> 24022423.2 | S26: =S$2*12-SUM($Q26:R26)-SUMPRODUCT(--($D26:$O26<=S$2),S$2-$D26:$O26) -> 0
B27: Schedule 25 Total | D27: =SUM(D4:D26) -> 93238368.5 | E27: 87059587.7 | F27: 95150558.3 | G27: 92496437 | H27: 94067376.9 | I27: 91430986 | J27: 95462593.19 | K27: 98727948.69 | L27: 89411353.7 | M27: 95120660.88 | N27: 88922599.9 | O27: 92475540.94 | P27: =IF(ROUND(SUM(P4:P26),0)<>ROUND(SUM(D27:O27),0),#VALUE!,SUM(P4:P26)) -> 1113564012 | Q27: =SUM(Q4:Q26) -> 138000000 | R27: =SUM(R4:R26) -> 561355022.9 | S27: =SUM(S4:S26) -> 414208988.8
S28: =SUM(Q27:S27) -> 1113564012
B29: Revenue Run Total | D29: 85895739.5 | E29: 82389792.7 | F29: 59452404.5 | G29: 91719050 | H29: 50375927.6 | I29: 94067376.9 | J29: 91430986 | K29: 95462593.19 | L29: 98727948.69 | M29: 89411353.7 | N29: 95120660.88 | O29: 88922599.9 | P29: =SUM(D29:O29) -> 1022976434
B30: Booked Unbilled Reversal | D30: -2136242 | E30: -11830759 | F30: -16075679 | G30: -45932134 | H30: -49900218 | I30: -92404792 | J30: -94046228 | K30: -95141639 | L30: -98894442 | M30: -89933574 | N30: -95301943 | O30: -87801605 | P30: =SUM(D30:O30) -> -779399255
B31: Gross Booked Unbilled | D31: 11830759 | E31: 16075679 | F31: 45932134 | G31: 49900218 | H31: 92404792 | I31: 94046228 | J31: 95141639 | K31: 98894442 | L31: 89933574 | M31: 95301943 | N31: 87801605 | O31: 92515285 | P31: 869778298
B32: Gross Unbilled True-up | D32: 0 | E32: 424875 | F32: 6266574 | G32: 3075877 | H32: 4262752 | I32: -15075 | J32: 2921121 | K32: 2433674 | L32: 2077947 | M32: 2418885 | N32: 3721162 | O32: 2560423 | P32: 30148215
B33: Unbilled Reversal True-up | D33: -2351888 | E33: 0 | F33: -424875 | G33: -6266574 | H33: -3075877 | I33: -4262752 | J33: 15075 | K33: -2921121 | L33: -2433674 | M33: -2077947 | N33: -2418885 | O33: -3721162 | P33: -29939680
P34: 0
P35: 0
B36: Adj Revenue Runs, Sch 25 | D36: =SUM(D29:D35) -> 93238368.5 | E36: 87059587.7 | F36: 95150558.5 | G36: 92496437 | H36: 94067376.6 | I36: 91430985.9 | J36: 95462593 | K36: =SUM(K29:K35) -> 98727949.19 | L36: =SUM(L29:L35) -> 89411353.69 | M36: =SUM(M29:M35) -> 95120660.7 | N36: =SUM(N29:N35) -> 88922599.88 | O36: =SUM(O29:O35) -> 92475540.9 | P36: =IF(ROUND(SUM(P29:P35),0)<>ROUND(SUM(D36:O36),0),#VALUE!,SUM(P29:P35)) -> 1113564012
D37: =D36-D27 -> 0 | E37: 0 | F37: 0.2000000328 | G37: 0 | H37: -0.299999997 | I37: -0.09999999404 | J37: -0.1900000274 | K37: 0.4999999702 | L37: -0.01099999249 | M37: -0.1789999902 | N37: -0.01999998093 | O37: -0.03699998558 | P37: -0.1369998455
B40: KVA | D40: =D$3 -> 2018-01-01 | E40: 2018-02-01 | F40: 2018-03-01 | G40: 2018-04-01 | H40: 2018-05-01 | I40: 2018-06-01 | J40: 2018-07-01 | K40: 2018-08-01 | L40: 2018-09-01 | M40: 2018-10-01 | N40: 2018-11-01 | O40: 2018-12-01 | P40: Total | Q40: Peak | R40: Month
A41: 1 | D41: 9397.434 | E41: 10808.555 | F41: 10876.92 | G41: 12189.222 | H41: 10398.216 | I41: 11271.489 | J41: 10980.262 | K41: 11527.986 | L41: 10716.938 | M41: 11924.82 | N41: 10440.25 | O41: 10616.862 | P41: =SUM(D41:O41) -> 131148.954 | Q41: =MAX(D41:O41) -> 12189.222 | R41: =INDEX($D$40:$O$40,MATCH(Q41,$D41:$O41,0)) -> 2018-04-01
A42: 22 | D42: 2039 | E42: 2084 | F42: 2418.837 | G42: 2431.664 | H42: 2296.901 | I42: 2265.198 | J42: 2143.418 | K42: 2308.64 | L42: 2129.444 | M42: 2274.51 | N42: 2130.739 | O42: 2258.765 | P42: =SUM(D42:O42) -> 26781.116 | Q42: =MAX(D42:O42) -> 2431.664 | R42: 2018-04-01
A43: 23 | D43: 4001.76 | E43: 3968.251 | F43: 3931.927 | G43: 3862.137 | H43: 3778.404 | I43: 3829.903 | J43: 3654.618 | K43: 3595.995 | L43: 3626.622 | M43: 3622.504 | N43: 3699.854 | O43: 3744.723 | P43: =SUM(D43:O43) -> 45316.698 | Q43: =MAX(D43:O43) -> 4001.76 | R43: 2018-01-01
A44: 2 | D44: 5106.868 | E44: 5228.836 | F44: 5152.597 | G44: 5015.616 | H44: 4996.581 | I44: 4970.735 | J44: 4928.08 | K44: 5016.854 | L44: 5010.126 | M44: 5221.112 | N44: 5144.923 | O44: 5190.31 | P44: 60982.638 | Q44: =MAX(D44:O44) -> 5228.836 | R44: 2018-02-01
A45: 3 | D45: 3044.835 | E45: 3165.724 | F45: 2936.157 | G45: 2832.737 | H45: 2790.268 | I45: 2642.027 | J45: 2697.375 | K45: 2738.079 | L45: 2684.688 | M45: 2751.567 | N45: 2958.556 | O45: 3120.735 | P45: 34362.748 | Q45: =MAX(D45:O45) -> 3165.724 | R45: 2018-02-01
A46: 4 | D46: 2633.598 | E46: 2437.032 | F46: 2551.955 | G46: 2453.03 | H46: 2354.556 | I46: 2611.745 | J46: 2612.403 | K46: 2763.986 | L46: 2602.496 | M46: 2752.696 | N46: 2553.496 | O46: 2503.218 | P46: 30830.211 | Q46: 2763.986 | R46: 2018-08-01
A47: 5 | D47: 2779.067 | E47: 2869.538 | F47: 2721.992 | G47: 3450.44 | H47: 3858.024 | I47: 3693.93 | J47: 3911.697 | K47: 3885 | L47: 3581.145 | M47: 3055.421 | N47: 2832.361 | O47: 2887.872 | P47: 39526.487 | Q47: 3911.697 | R47: 2018-07-01
A48: 6 | D48: 4475.325 | E48: 4880.02 | F48: 4434.525 | G48: 4814.779 | H48: 4723.4 | I48: 4119.123 | J48: 4821.993 | K48: 5334.552 | L48: 5154.96 | M48: 4196.418 | N48: 4699.364 | O48: 4772.531 | P48: 56426.99 | Q48: 5334.552 | R48: 2018-08-01
A49: 7 | D49: 3061.67 | E49: 3134.306 | F49: 3167.087 | G49: 3035.386 | H49: 3408.92 | I49: 3260.476 | J49: 3649.725 | K49: 3544.709 | L49: 3110.418 | M49: 3118.114 | N49: 3034.592 | O49: 2905.031 | P49: 38430.434 | Q49: 3649.725 | R49: 2018-07-01
A50: 8 | D50: 4179.994 | E50: 4116.866 | F50: 4122.766 | G50: 4175.738 | H50: 4152.031 | I50: 4106.294 | J50: 4239.071 | K50: 4195.243 | L50: 4110.039 | M50: 4143.346 | N50: 4199.874 | O50: 4103.484 | P50: 49844.746 | Q50: 4239.071 | R50: 2018-07-01
A51: 9 | D51: 62256 | E51: 62379 | F51: 63189 | G51: 61994.13 | H51: 61517.53 | I51: 59396.53 | J51: 62813.1 | K51: 61040.2 | L51: 59942.23 | M51: 61096.84 | N51: 60588.02 | O51: 60856.67 | P51: 737069.25 | Q51: 63189 | R51: 2018-03-01
A52: 10 | D52: 8442.418 | E52: 8358.511 | F52: 8105.56 | G52: 8224.904 | H52: 8483.355 | I52: 8479.861 | J52: 8624.309 | K52: 8557.473 | L52: 9557.949 | M52: 8207.006 | N52: 8147.16 | O52: 8210.105 | P52: 101398.611 | Q52: 9557.949 | R52: 2018-09-01
A53: 11 | D53: 8657.716 | E53: 8652.44 | F53: 8902.788 | G53: 9184 | H53: 9377.531 | I53: 8867.607 | J53: 8953.067 | K53: 8889.252 | L53: 8913.068 | M53: 9166.261 | N53: 9181.978 | O53: 9106.778 | P53: 107852.486 | Q53: 9377.531 | R53: 2018-05-01
A54: 12 | D54: 5071.446 | E54: 5121.796 | F54: 5189.142 | G54: 7026.441 | H54: 7631.118 | I54: 7475.982 | J54: 8008.901 | K54: 8512.119 | L54: 7510.109 | M54: 6467.324 | N54: 5024.339 | O54: 5040.661 | P54: 78079.378 | Q54: 8512.119 | R54: 2018-08-01
A55: 13 | D55: 1785.914 | E55: 1777.647 | F55: 1775.562 | G55: 2368.014 | H55: 2782.803 | I55: 2718.5 | J55: 2820.427 | K55: 2869.488 | L55: 2416.084 | M55: 2158.53 | N55: 2108.187 | O55: 1774.449 | P55: 27355.605 | Q55: 2869.488 | R55: 2018-08-01
A56: 14 | D56: 6008.589 | E56: 5809.049 | F56: 6148.594 | G56: 6208.017 | H56: 6002.525 | I56: 6222.267 | J56: 6246.743 | K56: 6290.159 | L56: 5921.322 | M56: 6413.485 | N56: 5857.676 | O56: 6328.834 | P56: 73457.26 | Q56: 6413.485 | R56: 2018-10-01
A57: 15 | D57: 3065.39 | E57: 2963.974 | F57: 2942.471 | G57: 3177.044 | H57: 3683.091 | I57: 3760.293 | J57: 3950.198 | K57: 3875.251 | L57: 3607.348 | M57: 3124.811 | N57: 2862.724 | O57: 2867.945 | P57: 39880.54 | Q57: 3950.198 | R57: 2018-07-01
A58: 16 | D58: 4777.374 | E58: 4899.011 | F58: 4820.959 | G58: 4753.447 | H58: 4477.886 | I58: 4414.122 | J58: 4523.039 | K58: 4447.909 | L58: 4598.115 | M58: 4784.445 | N58: 4793.247 | O58: 4869.476 | P58: 56159.03 | Q58: 4899.011 | R58: 2018-02-01
A59: 17 | D59: 4509.541 | E59: 4640.64 | F59: 4637.138 | G59: 4368.632 | H59: 3971.707 | I59: 3937.003 | J59: 3983.565 | K59: 4133.544 | L59: 4257.915 | M59: 4457.15 | N59: 4390.914 | O59: 4512.599 | P59: 51800.348 | Q59: 4640.64 | R59: 2018-02-01
A60: 18 | D60: 8308 | E60: 7585 | F60: 7410 | G60: 9091.2 | H60: 9326.83 | I60: 9601.17 | J60: 10739.17 | K60: 10982.51 | L60: 9616.03 | M60: 7396.07 | N60: 7264.42 | O60: 7321.84 | P60: 104642.24 | Q60: 10982.51 | R60: 2018-08-01
A61: 19 | D61: 5683.281 | E61: 5615.932 | F61: 5617.817 | G61: 5574.057 | H61: 5024.534 | I61: 4956.975 | J61: 4832.483 | K61: 5151.419 | L61: 5185.685 | M61: 5362.346 | N61: 5780.531 | O61: 5915.085 | P61: 64700.145 | Q61: 5915.085 | R61: 2018-12-01
A62: 20 | D62: 4817.382 | E62: 5010.657 | F62: 5289.252 | G62: 5335.106 | H62: 4795.331 | I62: 4586.645 | J62: 4694.739 | K62: 5016.198 | L62: 4987.947 | M62: 5059.492 | N62: 5305.948 | O62: 5437.411 | P62: 60336.108 | Q62: 5437.411 | R62: 2018-12-01
A63: 21 | D63: 4338.623 | E63: 4320.718 | F63: 4136.319 | G63: 5872.945 | H63: 5696.32 | I63: 5612.318 | J63: 6844.556 | K63: 7163.116 | L63: 6990.209 | M63: 5036.215 | N63: 4252.462 | O63: 4379.93 | P63: 64643.731 | Q63: 7163.116 | R63: 2018-08-01
B64: Schedule 25 Total | D64: =SUM(D41:D63) -> 168441.225 | E64: 169827.503 | F64: 170479.365 | G64: 177438.686 | H64: 175527.862 | I64: 172800.193 | J64: 180672.939 | K64: 181839.682 | L64: 176230.887 | M64: 171790.483 | N64: 167251.615 | O64: 168725.314 | P64: =IF(ROUND(SUM(P41:P63),0)<>ROUND(SUM(D64:O64),0),#VALUE!,SUM(P41:P63)) -> 2081025.754
P66: =P$2 -> 12-mo Ended
B67: KVA in excess of 3,000 | D67: =D$3 -> 2018-01-01 | E67: 2018-02-01 | F67: 2018-03-01 | G67: 2018-04-01 | H67: 2018-05-01 | I67: 2018-06-01 | J67: 2018-07-01 | K67: 2018-08-01 | L67: 2018-09-01 | M67: 2018-10-01 | N67: 2018-11-01 | O67: 2018-12-01 | P67: Total
A68: 1 | B68: =B4 -> 0 | C68: =C4 -> 0 | D68: =IF(D41>3000,D41-3000,0) -> 6397.434 | E68: 7808.555 | F68: 7876.92 | G68: =MAX(0,G41-3000) -> 9189.222 | H68: =MAX(0,H41-3000) -> 7398.216 | I68: 8271.489 | J68: 7980.262 | K68: 8527.986 | L68: 7716.938 | M68: 8924.82 | N68: 7440.25 | O68: 7616.862 | P68: =SUM(D68:O68) -> 95148.954
A69: 22 | D69: 0 | E69: 0 | F69: 0 | G69: =MAX(0,G42-3000) -> 0 | H69: 0 | I69: 0 | J69: 0 | K69: 0 | L69: 0 | M69: 0 | N69: 0 | O69: 0 | P69: =SUM(D69:O69) -> 0
A70: 23 | D70: 1001.76 | E70: 968.251 | F70: 931.927 | G70: 862.137 | H70: 778.404 | I70: 829.903 | J70: 654.618 | K70: 595.995 | L70: 626.622 | M70: 622.504 | N70: 699.854 | O70: 744.723 | P70: =SUM(D70:O70) -> 9316.698
A71: 2 | B71: =B7 -> 0 | C71: 0 | D71: 2106.868 | E71: 2228.836 | F71: 2152.597 | G71: 2015.616 | H71: 1996.581 | I71: 1970.735 | J71: 1928.08 | K71: 2016.854 | L71: 2010.126 | M71: 2221.112 | N71: 2144.923 | O71: 2190.31 | P71: 24982.638
A72: 3 | B72: 0 | C72: 0 | D72: 44.835 | E72: 165.724 | F72: 0 | G72: 0 | H72: 0 | I72: 0 | J72: 0 | K72: 0 | L72: 0 | M72: 0 | N72: 0 | O72: 120.735 | P72: 331.294
A73: 4 | B73: 0 | C73: 0 | D73: 0 | E73: 0 | F73: 0 | G73: 0 | H73: 0 | I73: 0 | J73: 0 | K73: 0 | L73: 0 | M73: 0 | N73: 0 | O73: 0 | P73: 0
A74: 5 | B74: 0 | C74: 0 | D74: 0 | E74: 0 | F74: 0 | G74: 450.44 | H74: 858.024 | I74: 693.93 | J74: 911.697 | K74: 885 | L74: 581.145 | M74: 55.421 | N74: 0 | O74: 0 | P74: 4435.657
A75: 6 | B75: 0 | C75: 0 | D75: 1475.325 | E75: 1880.02 | F75: 1434.525 | G75: 1814.779 | H75: 1723.4 | I75: 1119.123 | J75: 1821.993 | K75: 2334.552 | L75: 2154.96 | M75: 1196.418 | N75: 1699.364 | O75: 1772.531 | P75: 20426.99
A76: 7 | B76: 0 | C76: 0 | D76: 61.67 | E76: 134.306 | F76: 167.087 | G76: 35.386 | H76: 408.92 | I76: 260.476 | J76: 649.725 | K76: 544.709 | L76: 110.418 | M76: 118.114 | N76: 34.592 | O76: 0 | P76: 2525.403
A77: 8 | B77: Huntwood Industries | C77: 610074869 | D77: 1179.994 | E77: 1116.866 | F77: 1122.766 | G77: 1175.738 | H77: 1152.031 | I77: 1106.294 | J77: 1239.071 | K77: 1195.243 | L77: 1110.039 | M77: 1143.346 | N77: 1199.874 | O77: 1103.484 | P77: 13844.746
A78: 9 | B78: =B14 -> 0 | C78: 0 | D78: =MAX(0,D51-3000) -> 59256 | E78: =MAX(0,E51-3000) -> 59379 | F78: =MAX(0,F51-3000) -> 60189 | G78: 58994.13 | H78: 58517.53 | I78: 56396.53 | J78: 59813.1 | K78: 58040.2 | L78: 56942.23 | M78: 58096.84 | N78: 57588.02 | O78: 57856.67 | P78: 701069.25
A79: 10 | B79: 0 | C79: 0 | D79: =IF(D52>3000,D52-3000,0) -> 5442.418 | E79: 5358.511 | F79: 5105.56 | G79: 5224.904 | H79: 5483.355 | I79: 5479.861 | J79: 5624.309 | K79: 5557.473 | L79: 6557.949 | M79: 5207.006 | N79: 5147.16 | O79: 5210.105 | P79: 65398.611
A80: 11 | B80: 0 | C80: 0 | D80: 5657.716 | E80: 5652.44 | F80: 5902.788 | G80: 6184 | H80: 6377.531 | I80: 5867.607 | J80: 5953.067 | K80: 5889.252 | L80: 5913.068 | M80: 6166.261 | N80: 6181.978 | O80: 6106.778 | P80: 71852.486
A81: 12 | B81: 0 | C81: 0 | D81: 2071.446 | E81: 2121.796 | F81: 2189.142 | G81: 4026.441 | H81: 4631.118 | I81: 4475.982 | J81: 5008.901 | K81: 5512.119 | L81: 4510.109 | M81: 3467.324 | N81: 2024.339 | O81: 2040.661 | P81: 42079.378
A82: 13 | B82: 0 | C82: 0 | D82: 0 | E82: 0 | F82: 0 | G82: 0 | H82: 0 | I82: 0 | J82: 0 | K82: 0 | L82: 0 | M82: 0 | N82: 0 | O82: 0 | P82: 0
A83: 14 | B83: 0 | C83: 0 | D83: 3008.589 | E83: 2809.049 | F83: 3148.594 | G83: 3208.017 | H83: 3002.525 | I83: 3222.267 | J83: 3246.743 | K83: 3290.159 | L83: 2921.322 | M83: 3413.485 | N83: 2857.676 | O83: 3328.834 | P83: 37457.26
A84: 15 | B84: 0 | C84: 0 | D84: 65.39 | E84: 0 | F84: 0 | G84: 177.044 | H84: 683.091 | I84: 760.293 | J84: 950.198 | K84: 875.251 | L84: 607.348 | M84: 124.811 | N84: 0 | O84: 0 | P84: 4243.426
A85: 16 | B85: 0 | C85: 0 | D85: 1777.374 | E85: 1899.011 | F85: 1820.959 | G85: =MAX(0,G58-3000) -> 1753.447 | H85: 1477.886 | I85: 1414.122 | J85: 1523.039 | K85: 1447.909 | L85: 1598.115 | M85: 1784.445 | N85: 1793.247 | O85: 1869.476 | P85: 20159.03
A86: 17 | B86: 0 | C86: 0 | D86: 1509.541 | E86: 1640.64 | F86: 1637.138 | G86: 1368.632 | H86: 971.707 | I86: 937.003 | J86: 983.565 | K86: 1133.544 | L86: 1257.915 | M86: 1457.15 | N86: 1390.914 | O86: 1512.599 | P86: 15800.348
A87: 18 | B87: 0 | C87: 0 | D87: 5308 | E87: 4585 | F87: 4410 | G87: 6091.2 | H87: 6326.83 | I87: 6601.17 | J87: 7739.17 | K87: 7982.51 | L87: 6616.03 | M87: 4396.07 | N87: 4264.42 | O87: 4321.84 | P87: 68642.24
A88: 19 | B88: 0 | C88: 0 | D88: 2683.281 | E88: 2615.932 | F88: 2617.817 | G88: 2574.057 | H88: 2024.534 | I88: 1956.975 | J88: 1832.483 | K88: 2151.419 | L88: 2185.685 | M88: 2362.346 | N88: 2780.531 | O88: 2915.085 | P88: 28700.145
A89: 20 | B89: 0 | C89: 0 | D89: 1817.382 | E89: 2010.657 | F89: 2289.252 | G89: 2335.106 | H89: 1795.331 | I89: 1586.645 | J89: 1694.739 | K89: 2016.198 | L89: 1987.947 | M89: 2059.492 | N89: 2305.948 | O89: 2437.411 | P89: 24336.108
A90: 21 | B90: 0 | C90: 0 | D90: 1338.623 | E90: 1320.718 | F90: 1136.319 | G90: 2872.945 | H90: 2696.32 | I90: 2612.318 | J90: 3844.556 | K90: 4163.116 | L90: 3990.209 | M90: 2036.215 | N90: 1252.462 | O90: 1379.93 | P90: 28643.731
B91: Schedule 25 Total | D91: =SUM(D68:D90) -> 102203.646 | E91: 103695.312 | F91: 104132.391 | G91: 110353.241 | H91: 108303.334 | I91: 105562.723 | J91: 113399.316 | K91: 114159.489 | L91: 109398.175 | M91: 104853.18 | N91: 100805.552 | O91: 102528.034 | P91: =IF(ROUND(SUM(P68:P90),0)<>ROUND(SUM(D91:O91),0),#VALUE!,SUM(P68:P90)) -> 1279394.393
B96: 9 KWHs | D96: =D$3 -> 2018-01-01 | E96: 2018-02-01 | F96: 2018-03-01 | G96: 2018-04-01 | H96: 2018-05-01 | I96: 2018-06-01 | J96: 2018-07-01 | K96: 2018-08-01 | L96: 2018-09-01 | M96: 2018-10-01 | N96: 2018-11-01 | O96: 2018-12-01 | P96: Total
B97: 60 KV | D97: 5562144 | E97: 4876344 | F97: 5097348 | G97: 5210820 | H97: 5487552 | I97: 5107032 | J97: 5177772 | K97: 5112972 | L97: 5004972 | M97: 5215464 | N97: 5106708 | O97: 5000688 | P97: =SUM(D97:O97) -> 61959816
B98: 4.16 KV | D98: 1355090 | E98: 1231610 | F98: 1351470 | G98: 1292650 | H98: 1502960 | I98: 1262550 | J98: 1286030 | K98: 1302820 | L98: 1256680 | M98: 1377130 | N98: 1350120 | O98: 1387600 | P98: =SUM(D98:O98) -> 15956710
B99: 115 KV | D99: 35196336 | E99: 32618736 | F99: 35504928 | G99: 34355376 | H99: 32622984 | I99: 33290064 | J99: 34107480 | K99: 34747920 | L99: 32144544 | M99: 34857792 | N99: 33153120 | O99: 34911576 | P99: =SUM(D99:O99) -> 407510856
A100: * | B100: Total | D100: =SUM(D97:D99) -> 42113570 | E100: 38726690 | F100: 41953746 | G100: 40858846 | H100: 39613496 | I100: 39659646 | J100: 40571282 | K100: 41163712 | L100: 38406196 | M100: 41450386 | N100: 39609948 | O100: 41299864 | P100: 485427382
D101: =D14 -> 42113570 | E101: 38726690 | F101: 42012008 | G101: 40858220 | H101: 39613368 | I101: 39658628 | J101: 40571988 | K101: 41162272 | L101: 38387778 | M101: 41469272 | N101: 39553724 | O101: 41299864 | P101: =SUM(D101:O101) -> 485427382
B102: 9 KVA
B103: 60 KV | D103: 9615 | E103: 9738 | F103: 9266 | G103: 9426.5 | H103: 13524.7 | I103: 8784.3 | J103: 8958.43 | K103: 9132.94 | L103: 11689.97 | M103: 9293.58 | N103: 10280.13 | O103: 9078.28 | P103: =SUM(D103:O103) -> 118787.83
B104: 4.16 KV | P104: =SUM(D104:O104) -> 0
B105: 115 KV | D105: 52272 | E105: 52705 | F105: 53136 | G105: 51984.8 | H105: 51840 | I105: 50544 | J105: 52848.78 | K105: 51408 | L105: 50976 | M105: 51408 | N105: 51696 | O105: 52128.2 | P105: =SUM(D105:O105) -> 622946.78
A106: * | B106: Total | D106: =SUM(D103:D105) -> 61887 | E106: 62443 | F106: 62402 | G106: 61411.3 | H106: 65364.7 | I106: 59328.3 | J106: 61807.21 | K106: 60540.94 | L106: 62665.97 | M106: 60701.58 | N106: 61976.13 | O106: 61206.48 | P106: 741734.61
D107: =D51 -> 62256 | E107: =E51 -> 62379 | F107: 63189 | G107: =G51 -> 61994.13 | H107: 61517.53 | I107: 59396.53 | J107: 62813.1 | K107: 61040.2 | L107: 59942.23 | M107: 61096.84 | N107: 60588.02 | O107: 60856.67 | P107: =SUM(D107:O107) -> 737069.25
A109: *9 | B109: Class Peak | C109: Class Peak | D109: 1850 | E109: 1780 | F109: 1740 | G109: 1770 | H109: 2010 | I109: 1790 | J109: 1910 | K109: 1960 | L109: 1970 | M109: 1880 | N109: 1870 | O109: 1890 | P109: =AVERAGE(D109:O109) -> 1868.333333

Sheet ID Sch 25 (12.2018)
A1: Idaho Schedule 25 Billing Determinants | S1: 1st | T1: =S2 -> 500000
Q2: 12-mo Ended | S2: 500000 | T2: 99999999
A3: KWH | C3: SA Account ID | D3: new SA | E3: 2018-01-01 | F3: 2018-02-01 | G3: 2018-03-01 | H3: 2018-04-01 | I3: 2018-05-01 | J3: 2018-06-01 | K3: 2018-07-01 | L3: 2018-08-01 | M3: 2018-09-01 | N3: 2018-10-01 | O3: 2018-11-01 | P3: 2018-12-01 | Q3: Total | S3: kwhs/mo | T3: kwhs/mo
A4: 1 | E4: 3570885 | F4: 3377124 | G4: 3974775 | H4: 3647640.65 | I4: 3727456 | J4: 3396866.07 | K4: 3511807.18 | L4: 3611794.59 | M4: 3359233.92 | N4: 3676400.6 | O4: 3409588.82 | P4: 3662546.52 | Q4: =SUM(E4:P4) -> 42926118.35 | S4: =S$2*12-SUMPRODUCT(--($E4:$P4<=S$2),S$2-$E4:$P4) -> 6000000 | T4: =T$2*12-SUM($R4:S4)-SUMPRODUCT(--($E4:$P4<=T$2),T$2-$E4:$P4) -> 36926118.35
A5: 2 | E5: 3679156.8 | F5: 3339014.4 | G5: 3604975.2 | H5: 3383438.4 | I5: 3228696 | J5: 3316248 | K5: 3255537.6 | L5: 3484065.6 | M5: 3198009.6 | N5: 3393489.6 | O5: 3015792 | P5: 2906258.4 | Q5: 39804681.6 | S5: =S$2*12-SUMPRODUCT(--($E5:$P5<=S$2),S$2-$E5:$P5) -> 6000000 | T5: =T$2*12-SUM($R5:S5)-SUMPRODUCT(--($E5:$P5<=T$2),T$2-$E5:$P5) -> 33804681.6
A6: 3 | E6: 2000737.2 | F6: 1839734.4 | G6: 1923717.6 | H6: 1877064 | I6: 1960232.4 | J6: 1635102 | K6: 2054488.8 | L6: 2241414 | M6: 1943197.2 | N6: 2062267.2 | O6: 1865614.8 | P6: 1876803.6 | Q6: 23280373.2 | S6: =S$2*12-SUMPRODUCT(--($E6:$P6<=S$2),S$2-$E6:$P6) -> 6000000 | T6: =T$2*12-SUM($R6:S6)-SUMPRODUCT(--($E6:$P6<=T$2),T$2-$E6:$P6) -> 17280373.2
A7: 4 | E7: 855483.6 | F7: 770070 | G7: 810138 | H7: 737127.6 | I7: 784754.4 | J7: 776937.6 | K7: 944554.8 | L7: 909382.8 | M7: 732451.2 | N7: 716073.6 | O7: 766382.4 | P7: 875492.399 | Q7: 9678848.399 | S7: 6000000 | T7: =T$2*12-SUM($R7:S7)-SUMPRODUCT(--($E7:$P7<=T$2),T$2-$E7:$P7) -> 3678848.399 | U7: Moved to Schedule 21 January 1, 2019
A8: 5 | E8: 2716546 | F8: 2657172 | G8: 2845054.8 | H8: 2747959.2 | I8: 2874925.2 | J8: 2812964 | K8: 2897428.8 | L8: 2947613.2 | M8: 2809640.4 | N8: 2854894 | O8: 2695456.4 | P8: 2726613.4 | Q8: 33586267.4 | S8: 6000000 | T8: =T$2*12-SUM($R8:S8)-SUMPRODUCT(--($E8:$P8<=T$2),T$2-$E8:$P8) -> 27586267.4
A9: 6 | E9: 2024685.6 | F9: 1845659.2 | G9: 1983111.2 | H9: 1946565.6 | I9: 1911795.2 | J9: 2014941.6 | K9: 2110444 | L9: 2128162.4 | M9: 1961960 | N9: 1978127.2 | O9: 1944516 | P9: 2034099.2 | Q9: 23884067.2 | S9: 6000000 | T9: =T$2*12-SUM($R9:S9)-SUMPRODUCT(--($E9:$P9<=T$2),T$2-$E9:$P9) -> 17884067.2
A10: 7 | E10: 2152806 | F10: 1935968 | G10: 2017902 | H10: 1866831.21 | I10: 1957436.21 | J10: 1838540.85 | K10: 1886185.42 | L10: 2016673.57 | M10: 1833304.79 | N10: 2202865.07 | O10: 1956988.43 | P10: 2004567.71 | Q10: 23670069.26 | S10: 6000000 | T10: =T$2*12-SUM($R10:S10)-SUMPRODUCT(--($E10:$P10<=T$2),T$2-$E10:$P10) -> 17670069.26
A11: 8 | E11: 4215097.6 | F11: 4053899.2 | G11: 4386580.2 | H11: 4053510.6 | I11: 4146743.2 | J11: 3186219.6 | K11: 4270046 | L11: 4460645.6 | M11: 4008280.6 | N11: 4380319.4 | O11: 4211462.4 | P11: 4357252.6 | Q11: 49730057 | S11: 6000000 | T11: =T$2*12-SUM($R11:S11)-SUMPRODUCT(--($E11:$P11<=T$2),T$2-$E11:$P11) -> 43730057
A12: 9 | E12: 3318210 | F12: 2835778.8 | G12: 3183040.32 | H12: 2981333.76 | I12: 3035629.44 | J12: 3049105.68 | K12: 2820538.8 | L12: 2933392.08 | M12: 2812996.32 | N12: 3297083.52 | O12: 2928690.48 | P12: 2996199.12 | Q12: 36191998.32 | S12: 6000000 | T12: =T$2*12-SUM($R12:S12)-SUMPRODUCT(--($E12:$P12<=T$2),T$2-$E12:$P12) -> 30191998.32
A13: 10 | E13: 1545243 | F13: 1428527.1 | G13: 1557110.1 | H13: 1532766.9 | I13: 1515313.8 | J13: 1496607 | K13: 1531580.4 | L13: 1474000.5 | M13: 1452761.1 | N13: 1518279 | O13: 1414324.8 | P13: 1376247.6 | Q13: =SUM(E13:P13) -> 17842761.3 | S13: 6000000 | T13: =T$2*12-SUM($R13:S13)-SUMPRODUCT(--($E13:$P13<=T$2),T$2-$E13:$P13) -> 11842761.3
A14: 11 | E14: 1283114 | F14: 1178436 | G14: 1294904.8 | H14: 1281126 | I14: 1444072 | J14: 1393207.2 | K14: 1552877.2 | L14: 1562327.2 | M14: 1394870.4 | N14: 1363555.2 | O14: 1271264.4 | P14: 1285708.2 | Q14: 16305462.6 | S14: 6000000 | T14: =T$2*12-SUM($R14:S14)-SUMPRODUCT(--($E14:$P14<=T$2),T$2-$E14:$P14) -> 10305462.6
A15: 12 | E15: 883282 | F15: 846266 | G15: 918610 | H15: 841644 | I15: 844392 | J15: 848816 | K15: 669522 | L15: 818122 | M15: 744832 | N15: 890448 | O15: 852706 | P15: 890087 | Q15: 10048727 | S15: 6000000 | T15: =T$2*12-SUM($R15:S15)-SUMPRODUCT(--($E15:$P15<=T$2),T$2-$E15:$P15) -> 4048727
E16: =SUM(E4:E15) -> 28245246.8 | F16: =SUM(F4:F15) -> 26107649.1 | G16: 28499919.22 | H16: 26897007.92 | I16: 27431445.85 | J16: 25765555.6 | K16: 27505011 | L16: 28587593.54 | M16: 26251537.53 | N16: 28333802.39 | O16: 26332786.93 | P16: 26991875.75 | Q16: =IF(ROUND(SUM(E16:P16),3)<>ROUND(SUM(Q4:Q15),3),#VALUE!,SUM(E16:P16)) -> 326949431.6 | S16: =SUM(S4:S15) -> 72000000 | T16: =SUM(T4:T15) -> 254949431.6
T17: =SUM(S16:T16) -> 326949431.6
A18: Revenue Run Total | E18: 28245246.8 | F18: 26107649.1 | G18: 22507242.22 | H18: 27375213.06 | I18: 5514471.86 | J18: 27431445.85 | K18: 25765555.6 | L18: 27505011 | M18: 28587593.54 | N18: 26251537.53 | O18: 28333802.39 | P18: 26332786.93 | Q18: =SUM(E18:P18) -> 299957555.9
A19: Booked Unbilled Reversal | H19: 5514472 | I19: 65455690 | J19: 23353787 | K19: 27387310 | L19: 31378615 | M19: 26434177 | N19: 28254820 | O19: 26284114 | P19: 27065983 | Q19: =SUM(E19:P19) -> 261128968
A20: Gross Booked Unbilled | I20: -5514472 | J20: -65455690 | K20: -23353787 | L20: -27387310 | M20: -31378615 | N20: -26434177 | O20: -28254820 | P20: -26284114 | Q20: =SUM(E20:P20) -> -234062985
A21: Calendar per Books Total | E21: =SUM(E18:E20) -> 28245246.8 | F21: 26107649.1 | G21: 22507242.22 | H21: 32889685.06 | I21: 65455689.86 | J21: -14670457.15 | K21: 29799078.6 | L21: 31496316 | M21: 23643155.54 | N21: 28072180.53 | O21: 26363096.39 | P21: 27114655.93 | Q21: 327023538.9
A22: Gross Unbilled True-up | E22: =E16-E21-E23 -> -3.725290298e-09 | F22: =F16-F21-F23 -> -3.725290298e-09 | G22: =G16-G21-G23 -> 5992677 | H22: =H16-H21-H23 -> -0.1399999969 | I22: =I16-I21-I23 -> -38024244.15 | J22: 2411768.6 | K22: 117701 | L22: -2791021.46 | M22: -182639.47 | N22: 78982.39 | O22: 48672.93 | P22: -74107.251 | Q22: =SUM(E22:P22) -> -32422210.55
A23: Unbilled Reversal True-up | E23: 0 | F23: =-E22 -> 3.725290298e-09 | G23: =-F22 -> 3.725290298e-09 | H23: =-G22 -> -5992677 | I23: =-H22 -> 0.1399999969 | J23: 38024244.15 | K23: -2411768.6 | L23: -117701 | M23: 2791021.46 | N23: 182639.47 | O23: -78982.39 | P23: -48672.93 | Q23: =SUM(E23:P23) -> 32348103.3
A24: Adj Revenue Runs, Sch 25 | E24: =SUM(E21:E23) -> 28245246.8 | F24: 26107649.1 | G24: =SUM(G21:G23) -> 28499919.22 | H24: =SUM(H21:H23) -> 26897007.92 | I24: 27431445.85 | J24: 25765555.6 | K24: 27505011 | L24: 28587593.54 | M24: 26251537.53 | N24: 28333802.39 | O24: 26332786.93 | P24: =SUM(P21:P23) -> 26991875.75 | Q24: =SUM(Q21:Q23) -> 326949431.6
A26: Schedule 25P KWH
A27: 1 | C27: 2166400000 | D27: 2160125933 | E27: 31034360 | F27: 29136680 | G27: 33893450 | H27: 34523990 | I27: 36069710 | J27: 33600660 | K27: 38255050 | L27: 62513600 | M27: 47084840 | N27: 35905670 | O27: 30311220 | P27: 34319970 | Q27: =SUM(E27:P27) -> 446649200 | S27: =Q27/8760/1000 -> 50.9873516
Q28: =SUM(E28:P28) -> 0 | S28: =Q28/8760/1000 -> 0
A29: 25P Tie Load | E29: =E27-E28 -> 31034360 | F29: 29136680 | G29: 33893450 | H29: 34523990 | I29: 36069710 | J29: 33600660 | K29: 38255050 | L29: 62513600 | M29: 47084840 | N29: 35905670 | O29: 30311220 | P29: 34319970 | Q29: =IF(ROUND(SUM(E29:P29),3)<>ROUND(Q27-Q28,3),#VALUE!,SUM(E29:P29)) -> 446649200 | S29: =Q29/8760/1000 -> 50.9873516
A31: Revenue Run Total | E31: 31034360 | F31: 29136680 | G31: 33893450 | H31: 34523990 | I31: 0 | J31: 36069710 | K31: 33600660 | L31: 38255050 | M31: 62513600 | N31: 47084840 | O31: 35905670 | P31: 30311220 | Q31: =SUM(E31:P31) -> 412329230
A32: Booked Unbilled Reversal | J32: 35849850 | K32: 37927498 | L32: 62513600 | M32: 46333333 | N32: 36250894 | O32: 30311220 | P32: 30311220 | Q32: =SUM(E32:P32) -> 279497615
A33: Gross Booked Unbilled | K33: -35849850 | L33: -37927498 | M33: -62513600 | N33: -46333333 | O33: -36250894 | P33: -30311220 | Q33: =SUM(E33:P33) -> -249186395
A34: Calendar per Books Total | E34: =SUM(E31:E33) -> 31034360 | F34: 29136680 | G34: 33893450 | H34: 34523990 | I34: 0 | J34: 71919560 | K34: 35678308 | L34: 62841152 | M34: 46333333 | N34: 37002401 | O34: 29965996 | P34: 30311220 | Q34: 442640450
A35: Gross Unbilled True-up | E35: =E29-E34-E36 -> 0 | F35: 0 | G35: 0 | H35: 0 | I35: 36069710 | J35: -2249190 | K35: 327552 | L35: 0 | M35: 751507 | N35: -345224 | O35: 0 | P35: 4008750 | Q35: =SUM(E35:P35) -> 38563105
A36: Unbilled Reversal True-up | E36: 0 | F36: =-E35 -> 0 | G36: =-F35 -> 0 | H36: =-G35 -> 0 | I36: =-H35 -> 0 | J36: -36069710 | K36: 2249190 | L36: -327552 | M36: 0 | N36: -751507 | O36: 345224 | P36: 0 | Q36: =SUM(E36:P36) -> -34554355
A37: Adj Revenue Runs, Sch 25P | E37: =SUM(E34:E36) -> 31034360 | F37: 29136680 | G37: =SUM(G34:G36) -> 33893450 | H37: =SUM(H34:H36) -> 34523990 | I37: 36069710 | J37: 33600660 | K37: 38255050 | L37: 62513600 | M37: 47084840 | N37: 35905670 | O37: 30311220 | P37: =SUM(P34:P36) -> 34319970 | Q37: =SUM(Q34:Q36) -> 446649200
Q40: =Q$2 -> 12-mo Ended
A41: KVA | E41: =E$3 -> 2018-01-01 | F41: 2018-02-01 | G41: 2018-03-01 | H41: 2018-04-01 | I41: 2018-05-01 | J41: 2018-06-01 | K41: 2018-07-01 | L41: 2018-08-01 | M41: 2018-09-01 | N41: 2018-10-01 | O41: 2018-11-01 | P41: 2018-12-01 | Q41: Total | S41: Peak | T41: Month
A42: 1 | E42: 9479 | F42: 9446 | G42: 9544 | H42: 7905.73 | I42: 9368 | J42: 7767.28 | K42: 7735.2 | L42: 8952.48 | M42: 7523.96 | N42: 8152.61 | O42: 7792.81 | P42: 7960.9 | Q42: =SUM(E42:P42) -> 101627.97 | S42: =MAX(F42:P42) -> 9544 | T42: =INDEX($E$41:$P$41,MATCH(S42,$E42:$P42,0)) -> 2018-03-01
A43: 2 | E43: 9294.439 | F43: 9199.211 | G43: 9152.647 | H43: 9054.852 | I43: 8977.127 | J43: 9117.304 | K43: 9052.837 | L43: 9060.988 | M43: 9160.177 | N43: 9216.146 | O43: 8951.937 | P43: 9318.146 | Q43: =SUM(E43:P43) -> 109555.811 | S43: =MAX(F43:P43) -> 9318.146 | T43: =INDEX($E$41:$P$41,MATCH(S43,$E43:$P43,0)) -> 2018-12-01
A44: 3 | E44: 3551.124 | F44: 3553.428 | G44: 3500.372 | H44: 3878.217 | I44: 3781.306 | J44: 3664.134 | K44: 3889.227 | L44: 4324.099 | M44: 4174.555 | N44: 3991.653 | O44: 3724.791 | P44: 3528.16 | Q44: 45561.066 | S44: =MAX(F44:P44) -> 4324.099 | T44: 2018-08-01
A45: 4 | E45: 1470.951 | F45: 1514.217 | G45: 1452.974 | H45: 1502.412 | I45: 2113.161 | J45: 1640.702 | K45: 2285.45 | L45: 2076.445 | M45: 1636.68 | N45: 1387.86 | O45: 1481.502 | P45: 1528.666 | Q45: 20091.02 | S45: 2285.45 | T45: 2018-07-01
A46: 5 | E46: 4610.773 | F46: 4618.883 | G46: 4475.129 | H46: 4611.041 | I46: 4669.124 | J46: 4824.617 | K46: 4914.239 | L46: 4870.278 | M46: 4810.247 | N46: 4657.504 | O46: 4480.619 | P46: 4578.242 | Q46: 56120.696 | S46: 4914.239 | T46: 2018-07-01
A47: 6 | E47: 3605.53 | F47: 3655.526 | G47: 3541.928 | H47: 3690.566 | I47: 3858.152 | J47: 6465.03 | K47: 4155.743 | L47: 4294.495 | M47: 6812.565 | N47: 3414.255 | O47: 3577.168 | P47: 3630.338 | Q47: 50701.296 | S47: 6812.565 | T47: 2018-09-01
A48: 7 | E48: 5044 | F48: 4912 | G48: 4816 | H48: 4658.95 | I48: 4604.62 | J48: 4645.77 | K48: 4557.76 | L48: 4585.66 | M48: 4714.62 | N48: 4812.7 | O48: 4439.93 | P48: 4633 | Q48: 56425.01 | S48: 4912 | T48: 2018-02-01
A49: 8 | E49: =4906.126+3000 -> 7906.126 | F49: =5327.918+3000 -> 8327.918 | G49: =3000+5152.47 -> 8152.47 | H49: =3000+5030.346 -> 8030.346 | I49: =3000+4837.043 -> 7837.043 | J49: =3000+5031.288 -> 8031.288 | K49: =3000+4936.945 -> 7936.945 | L49: =3000+5199.279 -> 8199.279 | M49: =3000+4591.183 -> 7591.183 | N49: =3000+5205.028 -> 8205.028 | O49: =3000+5566.527 -> 8566.527 | P49: =3000+5125.313 -> 8125.313 | Q49: 96909.466 | S49: 8566.527 | T49: 2018-11-01
A50: 9 | E50: 7335.11 | F50: 7167.325 | G50: 7153.704 | H50: 7160.119 | I50: 6821.823 | J50: 7082.709 | K50: 6755.749 | L50: 6814.946 | M50: 6787.026 | N50: 7060.482 | O50: 7534.907 | P50: 7524.973 | Q50: 85198.873 | S50: 7534.907 | T50: 2018-11-01
A51: 10 | E51: 3289.632 | F51: 3213.121 | G51: 3223.986 | H51: 3157.445 | I51: 3102.376 | J51: 3153.372 | K51: 3175.211 | L51: 3113.812 | M51: 3079.127 | N51: 3144.704 | O51: 3151.069 | P51: 3234.101 | Q51: 38037.956 | S51: =MAX(F51:P51) -> 3234.101 | T51: 2018-12-01
A52: 11 | E52: 2116.215 | F52: 2162.449 | G52: 2160.468 | H52: 2609.414 | I52: 2681.389 | J52: 2621.434 | K52: 2733.334 | L52: 2945.414 | M52: 2722.09 | N52: 2404.872 | O52: 2213.878 | P52: 2150.415 | Q52: 29521.372 | S52: =MAX(F52:P52) -> 2945.414 | T52: 2018-08-01
A53: 12 | E53: 2566.598 | F53: 2651.949 | G53: 2607.488 | H53: 2524.761 | I53: 2495.596 | J53: 2406.368 | K53: 2346.623 | L53: 2297.024 | M53: 2390.063 | N53: 2444.353 | O53: 2531.633 | P53: 2581.77 | Q53: 29844.226 | S53: 2651.949 | T53: 2018-02-01
E54: =SUM(E42:E53) -> 60269.498 | F54: =SUM(F42:F53) -> 60422.027 | G54: 59781.166 | H54: 58783.853 | I54: 60309.717 | J54: 61420.008 | K54: 59538.318 | L54: 61534.92 | M54: 61402.293 | N54: 58892.167 | O54: 58446.771 | P54: 58794.024 | Q54: =IF(ROUND(SUM(E54:P54),3)<>ROUND(SUM(Q42:Q53),3),#VALUE!,SUM(E54:P54)) -> 719594.762
Q56: =Q$2 -> 12-mo Ended
A57: KVA in excess of 3,000 | E57: =E$3 -> 2018-01-01 | F57: 2018-02-01 | G57: 2018-03-01 | H57: 2018-04-01 | I57: 2018-05-01 | J57: 2018-06-01 | K57: 2018-07-01 | L57: 2018-08-01 | M57: 2018-09-01 | N57: 2018-10-01 | O57: 2018-11-01 | P57: 2018-12-01 | Q57: Total
A58: 1 | B58: =B42 -> 0 | C58: =C42 -> 0 | D58: 0 | E58: =MAX(0,E42-3000) -> 6479 | F58: 6446 | G58: 6544 | H58: 4905.73 | I58: 6368 | J58: 4767.28 | K58: 4735.2 | L58: 5952.48 | M58: 4523.96 | N58: 5152.61 | O58: 4792.81 | P58: 4960.9 | Q58: =SUM(E58:P58) -> 65627.97
A59: 2 | B59: =B43 -> 0 | C59: 0 | D59: 0 | E59: 6294.439 | F59: 6199.211 | G59: 6152.647 | H59: 6054.852 | I59: 5977.127 | J59: 6117.304 | K59: 6052.837 | L59: 6060.988 | M59: 6160.177 | N59: 6216.146 | O59: 5951.937 | P59: 6318.146 | Q59: 73555.811
A60: 3 | B60: 0 | C60: 0 | D60: 0 | E60: 551.124 | F60: 553.428 | G60: 500.372 | H60: 878.217 | I60: 781.306 | J60: 664.134 | K60: 889.227 | L60: 1324.099 | M60: 1174.555 | N60: 991.653 | O60: 724.791 | P60: 528.16 | Q60: 9561.066
A61: 4 | B61: 0 | C61: 0 | D61: 0 | E61: 0 | F61: 0 | G61: 0 | H61: 0 | I61: 0 | J61: 0 | K61: 0 | L61: 0 | M61: 0 | N61: 0 | O61: 0 | P61: 0 | Q61: 0
A62: 5 | B62: 0 | C62: 0 | D62: 0 | E62: 1610.773 | F62: 1618.883 | G62: 1475.129 | H62: 1611.041 | I62: 1669.124 | J62: 1824.617 | K62: 1914.239 | L62: 1870.278 | M62: 1810.247 | N62: 1657.504 | O62: 1480.619 | P62: 1578.242 | Q62: 20120.696
A63: 6 | B63: 0 | C63: 0 | D63: 0 | E63: 605.53 | F63: 655.526 | G63: 541.928 | H63: 690.566 | I63: 858.152 | J63: 3465.03 | K63: 1155.743 | L63: 1294.495 | M63: 3812.565 | N63: 414.255 | O63: 577.168 | P63: 630.338 | Q63: 14701.296
A64: 7 | B64: 0 | C64: 0 | D64: 0 | E64: 2044 | F64: 1912 | G64: 1816 | H64: 1658.95 | I64: 1604.62 | J64: 1645.77 | K64: 1557.76 | L64: 1585.66 | M64: 1714.62 | N64: 1812.7 | O64: 1439.93 | P64: 1633 | Q64: 20425.01
A65: 8 | B65: 0 | C65: 0 | D65: 0 | E65: 4906.126 | F65: 5327.918 | G65: 5152.47 | H65: 5030.346 | I65: 4837.043 | J65: 5031.288 | K65: 4936.945 | L65: 5199.279 | M65: 4591.183 | N65: 5205.028 | O65: 5566.527 | P65: 5125.313 | Q65: 60909.466
A66: 9 | B66: 0 | C66: 0 | D66: 0 | E66: 4335.11 | F66: 4167.325 | G66: 4153.704 | H66: 4160.119 | I66: 3821.823 | J66: 4082.709 | K66: 3755.749 | L66: 3814.946 | M66: 3787.026 | N66: 4060.482 | O66: 4534.907 | P66: 4524.973 | Q66: 49198.873
A67: 10 | B67: 0 | C67: 0 | D67: 0 | E67: 289.632 | F67: 213.121 | G67: 223.986 | H67: 157.445 | I67: 102.376 | J67: 153.372 | K67: 175.211 | L67: 113.812 | M67: 79.127 | N67: 144.704 | O67: 151.069 | P67: 234.101 | Q67: 2037.956
A68: 11 | B68: 0 | C68: 0 | D68: 0 | E68: 0 | F68: 0 | G68: 0 | H68: 0 | I68: 0 | J68: 0 | K68: 0 | L68: 0 | M68: 0 | N68: 0 | O68: 0 | P68: 0 | Q68: 0
A69: 12 | B69: 0 | C69: 0 | D69: 0 | E69: 0 | F69: 0 | G69: 0 | H69: 0 | I69: 0 | J69: 0 | K69: 0 | L69: 0 | M69: 0 | N69: 0 | O69: 0 | P69: 0 | Q69: 0
E70: =SUM(E58:E69) -> 27115.734 | F70: =SUM(F58:F69) -> 27093.412 | G70: 26560.236 | H70: 25147.266 | I70: 26019.571 | J70: 27751.504 | K70: 25172.911 | L70: 27216.037 | M70: 27653.46 | N70: 25655.082 | O70: 25219.758 | P70: 25533.173 | Q70: =IF(ROUND(SUM(E70:P70),3)<>ROUND(SUM(Q58:Q69),3),#VALUE!,SUM(E70:P70)) -> 316138.144
E71: =E54-E70 -> 33153.764 | F71: =F54-F70 -> 33328.615 | G71: 33220.93 | H71: 33636.587 | I71: 34290.146 | J71: 33668.504 | K71: 34365.407 | L71: 34318.883 | M71: 33748.833 | N71: 33237.085 | O71: 33227.013 | P71: =P54-P70 -> 33260.851
Q73: =Q$2 -> 12-mo Ended
A74: Cust 8 KWH | E74: =E$3 -> 2018-01-01 | F74: 2018-02-01 | G74: 2018-03-01 | H74: 2018-04-01 | I74: 2018-05-01 | J74: 2018-06-01 | K74: 2018-07-01 | L74: 2018-08-01 | M74: 2018-09-01 | N74: 2018-10-01 | O74: 2018-11-01 | P74: 2018-12-01 | Q74: Total
B75: PVD | E75: 3717403.2 | F75: 3583395.2 | G75: 3884182.4 | H75: 3562462.4 | I75: 3689912.8 | J75: 2876042.4 | K75: 3857330.4 | L75: 4039974.4 | M75: 3599360.8 | N75: 3912596.8 | O75: 3823215.2 | P75: 3917488.4 | Q75: =SUM(E75:P75) -> 44463364.4
B76: PVD | E76: 109648 | F76: 99545.6 | G76: 108442.6 | H76: 92163.4 | I76: 61420.8 | J76: 29391.6 | K76: 63266 | L76: 71192.8 | M76: 76889.4 | N76: 91508.2 | O76: 57215.2 | P76: 62993 | Q76: =SUM(E76:P76) -> 923676.6
B77: No PVD | E77: 388046.4 | F77: 370958.4 | G77: 393955.2 | H77: 398884.8 | I77: 395409.6 | J77: 280785.6 | K77: 349449.6 | L77: 349478.4 | M77: 332030.4 | N77: 376214.4 | O77: 331032 | P77: 376771.2 | Q77: =SUM(E77:P77) -> 4343016
A78: * | E78: =SUM(E75:E77) -> 4215097.6 | F78: 4053899.2 | G78: 4386580.2 | H78: 4053510.6 | I78: 4146743.2 | J78: 3186219.6 | K78: 4270046 | L78: 4460645.6 | M78: 4008280.6 | N78: 4380319.4 | O78: 4211462.4 | P78: 4357252.6 | Q78: =IF(ROUND(SUM(E78:P78),3)<>ROUND(SUM(Q75:Q77),3),#VALUE!,SUM(E78:P78)) -> 49730057
